Workbook

Sheet LDC INFO
B4: BILL IMPACTS
D14: Utility Name | E14: Kingston Hydro Corporation
D16: Assigned EB Number | E16: EB-2016-0087
D18: Name of Contact and Title | E18: Sherry Gibson, Senior Advisor Rates and Regulatory Affairs
D20: Phone Number | E20: 613-546-1181 ext 2383
D22: Email Address | E22: sgibson@kingstonhydro.com
D24: Year 2 Update Custom IR | E24: 2017

Sheet Rates Summary
B1: 2016 and 2017 Rates Summary
B3: 2017 Rate Rider Description | C3: Residential | D3: General Service < 50 kW | E3: General Service 50 to 4,999 kW | F3: Large Use | G3: Unmetered Scattered Load | H3: Street Lighting | I3: Standby Power | K3: Recovery Period | L3: Metric
A4: 1 | B4: Disposition of Group 1 DVA Accounts (2017) | C4: 0.0027 | D4: 0.0028 | E4: 1.0369 | F4: 1.4963 | G4: 0.0027 | H4: 1.0375 | K4: 1 | L4: $ per kWh/kW
A5: 2 | B5: Disposition of Group 1 DVA Accounts NON-WMP (2017) | C5: -0.0051 | D5: -0.0051 | E5: -1.8545 | F5: -2.6933 | G5: -0.0051 | H5: -1.9483 | K5: 1 | L5: $ per kWh/kW
A6: 3 | B6: Disposition of Global Adjustment Sub-Account (2017) | C6: 0.0139 | D6: 0.0139 | E6: 0.0139 | F6: 0 | G6: 0.0139 | H6: 0.0139 | K6: 1 | L6: $ per kWh
A7: 3 | B7: Disposition of 1580 Sub-Account CBR Class B NON-WMP (2017) | C7: 0.0003 | D7: 0.0003 | E7: 0.0918 | F7: 0 | G7: 0.0003 | H7: 0.1178 | I7: 0 | K7: 1 | L7: $ per kWh/kW
B10: 2016 Rate Rider Description | C10: Residential | D10: General Service < 50 kW | E10: General Service 50 to 4,999 kW | F10: Large Use | G10: Unmetered Scattered Load | H10: Street Lighting | I10: Standby Power Approved on a Final Basis | J10: General Service 50 to 4,999 excluding WMP | K10: Recovery Period | L10: Metric
A11: 1 | B11: Disposition of Deferral/Variance Accounts (2016) | C11: 0.0007 | D11: -0.0007 | E11: 0.7048 | F11: -0.5603 | G11: 0.0003 | H11: 14.8985 | I11: 0 | J11: -1.0947 | K11: 1 | L11: $ per kWh/kW
A12: 2 | B12: Disposition of Global Adjustment Sub-Account (2016) | C12: 0.0205 | D12: 0.0205 | E12: 0 | F12: 0 | G12: 0.0205 | H12: 7.84 | I12: 0 | J12: 7.4692 | K12: 0.6666666667 | L12: $ per kWh/kW | N12: effective May 1 2016 to Dec 31 2016
A13: 3 | B13: Lost Revenue Adjustment Mechanism Variance Account (LRAMVA) (2016) | C13: 0.0003 | D13: 0.0008 | E13: 0.0293 | F13: 0.0268 | G13: 0 | H13: 7.0279 | I13: 0 | J13: 0 | K13: 1 | L13: $ per kWh/kW
A14: 4 | B14: Dispostion of accounting changes under CGAAP (2016) | C14: -0.0108 | D14: -0.0062 | E14: -1.0875 | F14: -0.5513 | G14: -0.006 | H14: -6.6952 | I14: 0 | J14: 0 | K14: 1 | L14: $ per kWh/kW
A15: 5 | B15: Disposition of Incremental Capital Cost Sub-Account (2016) | C15: 0.0004 | D15: 0.0002 | E15: 0.04 | F15: 0.0203 | G15: 0.0002 | H15: 0.246 | I15: 0 | J15: 0 | K15: 1 | L15: $ per kWh/kW
A16: 6 | B16: Recovery of Residual Smart Meter Capital (2016) | C16: 0.25 | D16: 0.43 | E16: 0 | F16: 0 | G16: 0 | H16: 0 | I16: 0 | J16: 0 | K16: 1 | L16: $
A17: 7 | B17: Recovery of Stranded Meter Assets (2016) | C17: 3.69 | D17: 6.4 | E17: 0 | F17: 0 | G17: 0 | H17: 0 | I17: 0 | J17: 0 | K17: 1 | L17: $
C18: Note not shown above is the tax change 2015 and global adjustment 2015 rate riders that ended Apr 30, 2016
B20: Pass-Through Rates 2017 | C20: Residential | D20: General Service < 50 kW | E20: General Service 50 to 4,999 kW | F20: Large Use | G20: Unmetered Scattered Load | H20: Street Lighting | I20: Standby Power
B21: Low Voltage Service Rate | C21: 0.0018 | D21: 0.0016 | E21: 0.6753 | F21: 0.8137 | G21: 0.0018 | H21: 0.4878 | I21: 0 | J21: 0 | L21: $ per kWh/kW
B22: Smart Meter Entity Charge | C22: 0.788 | D22: 0.788 | E22: 0 | F22: 0 | G22: 0 | H22: 0 | I22: 0 | J22: 0 | L22: $
B23: RTSR - Network | C23: 0.0073 | D23: 0.0065 | E23: 2.871 | F23: 3.4592 | G23: 0.0073 | H23: 2.0738 | I23: 0 | J23: 0 | L23: $ per kWh/kW
B24: RTSR - Line and Transformation Connection | C24: 0.0059 | D24: 0.0054 | E24: 2.3395 | F24: 2.8189 | G24: 0.0059 | H24: 1.6898 | I24: 0 | J24: 0 | L24: $ per kWh/kW
B25: Wholesale Market Service Charge (WMSC) | C25: 0.0032 | D25: 0.0032 | E25: 0.0032 | F25: 0.0032 | G25: 0.0032 | H25: 0.0032 | I25: 0 | J25: 0 | L25: $ per kWh
B26: Capacity Based Recovery (CBR) | C26: 0.0004 | D26: 0.0004 | E26: 0.0004 | F26: 0.0004 | G26: 0.0004 | H26: 0.0004 | I26: 0 | J26: 0 | L26: $ per kWh
B27: Ontario Electricity Support Program (OESP) | C27: 0.0011 | D27: 0.0011 | E27: 0.0011 | F27: 0.0011 | G27: 0.0011 | H27: 0.0011 | I27: 0 | J27: 0
B28: Rural and Remote Rate Protection (RRRP) | C28: 0.0013 | D28: 0.0013 | E28: 0.0013 | F28: 0.0013 | G28: 0.0013 | H28: 0.0013 | I28: 0 | J28: 0 | L28: $ per kWh
B29: Standard Supply Service Charge | C29: 0.25 | D29: 0.25 | E29: 0.25 | F29: 0.25 | G29: 0.25 | H29: 0.25 | I29: 0 | J29: 0 | L29: $
B30: Debt Retirement Charge (DRC) | C30: 0 | D30: 0.007 | E30: 0.007 | F30: 0.007 | G30: 0.007 | H30: 0.007 | L30: $ per kWh
B32: Pass-Through Rates 2016 | C32: Residential | D32: General Service < 50 kW | E32: General Service 50 to 4,999 kW | F32: Large Use | G32: Unmetered Scattered Load | H32: Street Lighting | I32: Standby Power Approved on an Interim Basis
B33: Low Voltage Service Rate | C33: 0.0012 | D33: 0.0011 | E33: 0.4663 | F33: 0.5619 | G33: 0.0012 | H33: 0.3368 | I33: 0 | J33: 0 | L33: $ per kWh/kW
B34: Smart Meter Entity Charge | C34: 0.788 | D34: 0.788 | E34: 0 | F34: 0 | G34: 0 | H34: 0 | I34: 0 | J34: 0 | L34: $
B35: RTSR - Network | C35: 0.0071 | D35: 0.0063 | E35: 2.7797 | F35: 3.3492 | G35: 0.0071 | H35: 2.0078 | I35: 0 | J35: 0 | L35: $ per kWh/kW
B36: RTSR - Line and Transformation Connection | C36: 0.0056 | D36: 0.0051 | E36: 2.2225 | F36: 2.678 | G36: 0.0056 | H36: 1.6053 | I36: 0 | J36: 0 | L36: $ per kWh/kW
B37: Wholesale Market Service Charge (WMSC) | C37: 0.0044 | D37: 0.0044 | E37: 0.0044 | F37: 0.0044 | G37: 0.0044 | H37: 0.0044 | I37: 0 | J37: 0 | L37: $ per kWh
B38: Rural and Remote Rate Protection (RRRP) | C38: 0.0013 | D38: 0.0013 | E38: 0.0013 | F38: 0.0013 | G38: 0.0013 | H38: 0.0013 | I38: 0 | J38: 0 | L38: $ per kWh
B39: Standard Supply Service Charge | C39: 0.25 | D39: 0.25 | E39: 0.25 | F39: 0.25 | G39: 0.25 | H39: 0.25 | I39: 0 | J39: 0 | L39: $
B40: Debt Retirement Charge (DRC) | C40: 0 | D40: 0.007 | E40: 0.007 | F40: 0.007 | G40: 0.007 | H40: 0.007 | L40: $ per kWh
B43: Distribution Rates | G43: APPROVED FIXED RATES
B44: Customer Class Name | C44: Metric | D44: 2015 | E44: 2016 | F44: 2017 | G44: 2018 | H44: 2019 | I44: 2020
B45: Residential | C45: $ | D45: 12.56 | E45: 13.98 | F45: 18.54 | G45: 21.88 | H45: 25.35 | I45: 25.96
B46: General Service < 50 kW | C46: $ | D46: 25.85 | E46: 14.27 | F46: 14.59 | G46: 14.94 | H46: 15.22 | I46: 15.4
B47: General Service 50 to 4999 kW | C47: $ | D47: 280.09 | E47: 105.62 | F47: 107.49 | G47: 109.29 | H47: 110.99 | I47: 112.13
B48: Large Use | C48: $ | D48: 5164 | E48: 5164 | F48: 5164 | G48: 5164 | H48: 5164 | I48: 5164
B49: Unmetered Scattered Load | C49: $ | D49: 11.55 | E49: 5.78 | F49: 5.95 | G49: 6.1 | H49: 6.31 | I49: 6.46
B50: Street Lighting | C50: $ per connection | D50: 1.02 | E50: 0.88 | F50: 1.05 | G50: 1.24 | H50: 1.28 | I50: 1.31
B51: Standby Power | C51: Continued
B55: Distribution Rates | G55: APPROVED VARIABLE RATES
B56: Customer Class Name | C56: Metric | D56: 2015 | E56: 2016 | F56: 2017 | G56: 2018 | H56: 2019 | I56: 2020 | J56: per
B57: Residential | C57: $ per kWh | D57: 0.0154 | E57: 0.0139 | F57: 0.0082 | G57: 0.0042 | H57: 0 | I57: 0 | J57: kWh
B58: General Service < 50 kW | C58: $ per kWh | D58: 0.0106 | E58: 0.0146 | F58: 0.0151 | G58: 0.0155 | H58: 0.0161 | I58: 0.0166 | J58: kWh
B59: General Service 50 to 4999 kW | C59: $ per kW | D59: 2.0063 | E59: 2.9849 | F59: 3.101 | G59: 3.213 | H59: 3.3261 | I59: 3.4096 | J59: kW
B60: Large Use | C60: $ per kW | D60: 1.0535 | E60: 1.1548 | F60: 1.216 | G60: 1.275 | H60: 1.3339 | I60: 1.377 | J60: kW
B61: Unmetered Scattered Load | C61: $ per kWh | D61: 0.0141 | E61: 0.0115 | F61: 0.0118 | G61: 0.0121 | H61: 0.0125 | I61: 0.0128 | J61: kWh
B62: Street Lighting | C62: $ per kW | D62: 4.675 | E62: 9.952 | F62: 11.891 | G62: 14.0417 | H62: 14.5188 | I62: 14.8695 | J62: kW
B63: Standby Power | C63: Continued

Sheet Summary Tables Resi
B1: Summary of Residential Bill Impacts at Various Consumption Levels
A2: A | B2: Distribution -sub-total A (excluding pass through charges) | G2: TEST YEAR 2 - 2017
B3: Customer Class | C3: Billing Determinant | D3: Consumption per customer | E3: Load per customer | G3: Monthly Distribution Charge Impact
D4: kwh | E4: kW | G4: $ | H4: %
B5: Residential | C5: kWh | D5: 100 | G5: ='Bill Impact Resi 100kWh'!$M$39 -> -0.02 | H5: ='Bill Impact Resi 100kWh'!$N$39 -> -0.001031991744
C6: kWh | D6: 204 | G6: ='Bill Impact Resi 204kWh'!$M$39 -> -0.6856 | H6: ='Bill Impact Resi 204kWh'!$N$39 -> -0.03280633924
C7: kWh | D7: 250 | G7: ='Bill Impact Resi 250kWh'!$M$39 -> -0.98 | H7: ='Bill Impact Resi 250kWh'!$N$39 -> -0.04543347242
C8: kWh | D8: 500 | E8: 250 | G8: ='Bill Impact Resi 500kWh'!$M$39 -> -2.58 | H8: ='Bill Impact Resi 500kWh'!$N$39 -> -0.1022997621
C9: kWh | D9: 750 | E9: 7350 | G9: ='Bill Impact Resi 750kWh'!$M$39 -> -4.18 | H9: ='Bill Impact Resi 750kWh'!$N$39 -> -0.1447869761
C10: kWh | D10: 1000 | G10: ='Bill Impact Resi 1000kWh'!$M$39 -> -5.78 | H10: ='Bill Impact Resi 1000kWh'!$N$39 -> -0.1777367774
C11: kWh | D11: 1500 | E11: 1 | G11: ='Bill Impact Resi 1500kWh'!$M$39 -> -8.98 | H11: ='Bill Impact Resi 1500kWh'!$N$39 -> -0.2255148167
C12: kWh | D12: 2000 | E12: 1 | G12: ='Bill Impact Resi 2000kWh'!$M$39 -> -12.18 | H12: ='Bill Impact Resi 2000kWh'!$N$39 -> -0.2584889643
A13: B | B13: Distribution -sub-total B (includes sub-total A above)
B14: Customer Class | C14: Billing Determinant | D14: Consumption per customer | E14: Load per customer | G14: Monthly Delivery Charge Impact
D15: kwh | E15: kW | G15: $ | H15: %
B16: =B5 -> Residential | C16: =C5 -> kWh | D16: 100 | E16: 0 | G16: ='Bill Impact Resi 100kWh'!$M$50 -> 0.84 | H16: ='Bill Impact Resi 100kWh'!$N$50 -> 0.04260118213
C17: =C6 -> kWh | D17: 204 | E17: 0 | G17: ='Bill Impact Resi 204kWh'!$M$50 -> 1.0688 | H17: ='Bill Impact Resi 204kWh'!$N$50 -> 0.0514691537
B18: =B7 ->  | C18: kWh | D18: 250 | E18: 0 | G18: ='Bill Impact Resi 250kWh'!$M$50 -> 1.17 | H18: ='Bill Impact Resi 250kWh'!$N$50 -> 0.05511223247
C19: kWh | D19: 500 | E19: 250 | G19: ='Bill Impact Resi 500kWh'!$M$50 -> 1.72 | H19: ='Bill Impact Resi 500kWh'!$N$50 -> 0.07242467082
C20: =C9 -> kWh | D20: 750 | E20: 7350 | G20: ='Bill Impact Resi 750kWh'!$M$50 -> 2.27 | H20: ='Bill Impact Resi 750kWh'!$N$50 -> 0.08641620857
C21: =C10 -> kWh | D21: 1000 | E21: 0 | G21: ='Bill Impact Resi 1000kWh'!$M$50 -> 2.82 | H21: ='Bill Impact Resi 1000kWh'!$N$50 -> 0.09795875152
C22: =C11 -> kWh | D22: 1500 | E22: 1 | G22: ='Bill Impact Resi 1500kWh'!$M$50 -> 3.92 | H22: ='Bill Impact Resi 1500kWh'!$N$50 -> 0.1158856782
C23: =C12 -> kWh | D23: 2000 | E23: 1 | G23: ='Bill Impact Resi 2000kWh'!$M$50 -> 5.02 | H23: ='Bill Impact Resi 2000kWh'!$N$50 -> 0.1291642144
A24: C | B24: Delivery (Including sub-total B above)
B25: Customer Class | C25: Billing Determinant | D25: Consumption per customer | E25: Load per customer | G25: Total Monthly Bill Impact
D26: kwh | E26: kW | G26: $ | H26: %
B27: =B16 -> Residential | C27: =C16 -> kWh | D27: 100 | E27: 0 | G27: ='Bill Impact Resi 100kWh'!$M$53 -> 0.891965 | H27: ='Bill Impact Resi 100kWh'!$N$53 -> 0.04239846158
C28: =C17 -> kWh | D28: 204 | E28: 0 | G28: ='Bill Impact Resi 204kWh'!$M$53 -> 1.1748086 | H28: ='Bill Impact Resi 204kWh'!$N$53 -> 0.05008039245
B29: =B18 ->  | C29: kWh | D29: 250 | E29: 0 | G29: ='Bill Impact Resi 250kWh'!$M$53 -> 1.2999125 | H29: ='Bill Impact Resi 250kWh'!$N$53 -> 0.05299452631
C30: kWh | D30: 500 | E30: 250 | G30: ='Bill Impact Resi 500kWh'!$M$53 -> 1.979825 | H30: ='Bill Impact Resi 500kWh'!$N$53 -> 0.06523662055
C31: =C20 -> kWh | D31: 750 | E31: 7350 | G31: ='Bill Impact Resi 750kWh'!$M$53 -> 2.6597375 | H31: ='Bill Impact Resi 750kWh'!$N$53 -> 0.07353932732
C32: =C21 -> kWh | D32: 1000 | E32: 0 | G32: ='Bill Impact Resi 1000kWh'!$M$53 -> 3.33965 | H32: ='Bill Impact Resi 1000kWh'!$N$53 -> 0.07954059397
C33: =C22 -> kWh | D33: 1500 | E33: 1 | G33: ='Bill Impact Resi 1500kWh'!$M$53 -> 4.699475 | H33: ='Bill Impact Resi 1500kWh'!$N$53 -> 0.08763572502
C34: =C23 -> kWh | D34: 2000 | E34: 1 | G34: ='Bill Impact Resi 2000kWh'!$M$53 -> 6.0593 | H34: ='Bill Impact Resi 2000kWh'!$N$53 -> 0.09284366321
A35: D | B35: Total Bill (before taxes, no DRC and no OCEB for 2016 on)
B36: Customer Class | C36: Billing Determinant | D36: Consumption per customer | E36: Load per customer | G36: Total Monthly Bill Impact
D37: kwh | E37: kW | G37: $ | H37: %
B38: =B27 -> Residential | C38: =C27 -> kWh | D38: 100 | E38: 0 | G38: ='Bill Impact Resi 100kWh'!$M$66 -> 0.891965 | H38: ='Bill Impact Resi 100kWh'!$N$66 -> 0.02698814382
C39: =C28 -> kWh | D39: 204 | E39: 0 | G39: ='Bill Impact Resi 204kWh'!$M$66 -> 1.1748086 | H39: ='Bill Impact Resi 204kWh'!$N$66 -> 0.02462698527
B40: =B29 ->  | C40: kWh | D40: 250 | E40: 0 | G40: ='Bill Impact Resi 250kWh'!$M$66 -> 1.2999125 | H40: ='Bill Impact Resi 250kWh'!$N$66 -> 0.02398998402
C41: kWh | D41: 500 | E41: 250 | G41: ='Bill Impact Resi 500kWh'!$M$66 -> 1.979825 | H41: ='Bill Impact Resi 500kWh'!$N$66 -> 0.02214290249
C42: =C31 -> kWh | D42: 750 | E42: 7350 | G42: ='Bill Impact Resi 750kWh'!$M$66 -> 2.6597375 | H42: ='Bill Impact Resi 750kWh'!$N$66 -> 0.02133988764
C43: =C32 -> kWh | D43: 1000 | E43: 0 | G43: ='Bill Impact Resi 1000kWh'!$M$66 -> 3.33965 | H43: ='Bill Impact Resi 1000kWh'!$N$66 -> 0.02089076067
C44: =C33 -> kWh | D44: 1500 | E44: 1 | G44: ='Bill Impact Resi 1500kWh'!$M$66 -> 4.699475 | H44: ='Bill Impact Resi 1500kWh'!$N$66 -> 0.02040466046
C45: =C34 -> kWh | D45: 2000 | E45: 1 | G45: ='Bill Impact Resi 2000kWh'!$M$66 -> 6.0593 | H45: ='Bill Impact Resi 2000kWh'!$N$66 -> 0.02014628866

Sheet Summary Tables - All Classes
B1: Summary of Bill Impacts
A3: A | B3: Distribution Charge (excluding pass-through) | F3: YEAR 2 UPDATE - 2017
B4: Customer Class | C4: Billing Determinant | D4: Consumption per customer | E4: Load per customer | F4: Monthly Distribution Charge Impact
D5: kwh | E5: kW | F5: $ | G5: %
B6: Residential | C6: kWh | D6: ='Bill Impact Resi 750kWh'!E18 -> 750 | E6: 0 | F6: ='Bill Impact Resi 750kWh'!M39 -> -4.18 | G6: ='Bill Impact Resi 750kWh'!N39 -> -0.1447869761
B7: GS<50 kW | C7: kWh | D7: ='Bill Impact GS < 50 2000kWh'!E18 -> 2000 | E7: 0 | F7: ='Bill Impact GS < 50 2000kWh'!M39 -> -7.51 | G7: ='Bill Impact GS < 50 2000kWh'!N39 -> -0.1435946463
B8: GS>50 to 4,999 kW | C8: kW | D8: ='Bill Impact GS50-4999 60kW'!E18 -> 40000 | E8: ='Bill Impact GS50-4999 60kW'!E19 -> 60 | F8: ='Bill Impact GS50-4999 60kW'!M39 -> 4.678 | G8: ='Bill Impact GS50-4999 60kW'!N39 -> 0.01619402365
B9: Large Use | C9: kW | D9: ='Bill Impact Large Use 8000kW'!E18 -> 5000000 | E9: ='Bill Impact Large Use 8000kW'!E19 -> 8000 | F9: ='Bill Impact Large Use 8000kW'!M39 -> 112.8 | G9: ='Bill Impact Large Use 8000kW'!N39 -> 0.007632348165
B10: Unmetered Scattered Load | C10: kWh | D10: ='Bill Impact USL 750kWh'!E18 -> 750 | F10: ='Bill Impact USL 750kWh'!M39 -> 0.245 | G10: ='Bill Impact USL 750kWh'!N39 -> 0.01683270354
B11: Street Lighting | C11: kW | D11: ='Bill Impact St Light 375kW'!E18 -> 150000 | E11: ='Bill Impact St Light 375kW'!E19 -> 375 | F11: ='Bill Impact St Light 375kW'!M39 -> -1150.5875 | G11: ='Bill Impact St Light 375kW'!N39 -> -0.1059500885
B12: Standby Power | C12: kW | D12: 0 | E12: 0
A14: B | B14: Distribution Charge (Distribution includes sub-total A above)
B15: Customer Class | C15: Billing Determinant | D15: Consumption per customer | E15: Load per customer | F15: Monthly Delivery Charge Impact
D16: kwh | E16: kW | F16: $ | G16: %
B17: =B6 -> Residential | C17: =C6 -> kWh | D17: =D6 -> 750 | E17: =E6 -> 0 | F17: ='Bill Impact Resi 750kWh'!M50 -> 2.27 | G17: ='Bill Impact Resi 750kWh'!N50 -> 0.08641620857
B18: =B7 -> GS<50 kW | C18: kWh | D18: 2000 | E18: 0 | F18: ='Bill Impact GS < 50 2000kWh'!M50 -> 3.29 | G18: ='Bill Impact GS < 50 2000kWh'!N50 -> 0.06547882114
B19: =B8 -> GS>50 to 4,999 kW | C19: kW | D19: 40000 | E19: 60 | F19: ='Bill Impact GS50-4999 60kW'!M51 -> 170.162 | G19: ='Bill Impact GS50-4999 60kW'!N51 -> 0.1963626712
B20: =B9 -> Large Use | C20: kW | D20: 5000000 | E20: 8000 | F20: ='Bill Impact Large Use 8000kW'!M50 -> 1444 | G20: ='Bill Impact Large Use 8000kW'!N50 -> 0.06637371527
B21: =B10 -> Unmetered Scattered Load | C21: kWh | D21: 750 | E21: 0 | F21: ='Bill Impact USL 750kWh'!M51 -> -1.555 | G21: ='Bill Impact USL 750kWh'!N51 -> -0.05254989494
B22: =B11 -> Street Lighting | C22: kW | D22: 150000 | E22: 375 | F22: ='Bill Impact St Light 375kW'!M51 -> -6097.3625 | G22: ='Bill Impact St Light 375kW'!N51 -> -0.3441814802
B23: =B12 -> Standby Power | C23: kW | D23: 0 | E23: 0
A25: C | B25: Delivery Charge (including sub-total B above)
B26: Customer Class | C26: Billing Determinant | D26: Consumption per customer | E26: Load per customer | F26: Monthly Delivery Charge Impact
D27: kwh | E27: kW | F27: $ | G27: %
B28: =B6 -> Residential | C28: kWh | D28: 750 | E28: 0 | F28: ='Bill Impact Resi 750kWh'!M53 -> 2.6597375 | G28: ='Bill Impact Resi 750kWh'!N53 -> 0.07353932732
B29: GS<50 kW | C29: kWh | D29: 2000 | E29: 0 | F29: ='Bill Impact GS < 50 2000kWh'!M53 -> 4.3293 | G29: ='Bill Impact GS < 50 2000kWh'!N53 -> 0.05855050359
B30: GS>50 to 4,999 kW | C30: kW | D30: 40000 | E30: 60 | F30: ='Bill Impact GS50-4999 60kW'!M54 -> 182.66 | G30: ='Bill Impact GS50-4999 60kW'!N54 -> 0.1565609727
B31: Large Use | C31: kW | D31: 5000000 | E31: 8000 | F31: ='Bill Impact Large Use 8000kW'!M53 -> 3451.2 | G31: ='Bill Impact Large Use 8000kW'!N53 -> 0.04932174032
B32: Unmetered Scattered Load | C32: kWh | D32: 750 | E32: 0 | F32: ='Bill Impact USL 750kWh'!M54 -> -1.1652625 | G32: ='Bill Impact USL 750kWh'!N54 -> -0.02950759437
B33: Street Lighting | C33: kW | D33: 150000 | E33: 375 | F33: ='Bill Impact St Light 375kW'!M54 -> -6040.925 | G33: ='Bill Impact St Light 375kW'!N54 -> -0.3167687508
B34: Standby Power | C34: kW | D34: 0 | E34: 0
A36: D | B36: Total Bill (before Taxes)
B37: Customer Class | C37: Billing Determinant | D37: Consumption per customer | E37: Load per customer | F37: Total Monthly Bill Impact
D38: kwh | E38: kW | F38: $ | G38: %
B39: =B28 -> Residential | C39: =C29 -> kWh | D39: 750 | E39: =E29 -> 0 | F39: ='Bill Impact Resi 750kWh'!M66 -> 2.6597375 | G39: ='Bill Impact Resi 750kWh'!N66 -> 0.02133988764
B40: =B29 -> GS<50 kW | C40: kWh | D40: 2000 | E40: 0 | F40: ='Bill Impact GS < 50 2000kWh'!M66 -> 4.3293 | G40: ='Bill Impact GS < 50 2000kWh'!N66 -> 0.01338505214
B41: GS>50 to 4,999 kW | C41: kW | D41: 40000 | E41: 60 | F41: ='Bill Impact GS50-4999 60kW'!M67 -> 182.66 | G41: ='Bill Impact GS50-4999 60kW'!N67 -> 0.02969123457
B42: Large Use | C42: kW | D42: 5000000 | E42: 8000 | F42: ='Bill Impact Large Use 8000kW'!M67 -> 3451.2 | G42: ='Bill Impact Large Use 8000kW'!N67 -> 0.00499922901
B43: Unmetered Scattered Load | C43: kWh | D43: 750 | E43: 0 | F43: ='Bill Impact USL 750kWh'!M67 -> -1.1652625 | G43: ='Bill Impact USL 750kWh'!N67 -> -0.008768108626
B44: Street Lighting | C44: kW | D44: 150000 | E44: 375 | F44: ='Bill Impact St Light 375kW'!M67 -> -6040.925 | G44: ='Bill Impact St Light 375kW'!N67 -> -0.1599627323
B45: Standby Power | C45: kW | D45: 0 | E45: 0
B46: Note: For Residential, no DRC and no OCEB for 2016 forward.

Sheet Bill Impact Resi 100kWh
K1: File Number: | M1: EB-2016-0087 | O1: 1
K3: Tab:
K4: Schedule:
K5: Page:
M7: Year 2 Custom Update
K8: Date: | M8: 2016-Aug-15
A11: Bill Impacts
A14: Customer Class: | C14: Residential | M14: =C14 -> Residential
A16: TOU / non-TOU: | C16: TOU
C18: Consumption | E18: 100 | F18: kWh
E20: 2016 Custom IR Year 1 Approved | I20: 2017 Custom IR Year 2 Proposed | M20: Impact 2017 vs. 2016
C21: Charge Unit | E21: Rate | F21: Volume | G21: Charge | I21: Rate | J21: Volume | K21: Charge | M21: $ Change | N21: % Change
E22: ($) | G22: ($) | I22: ($) | K22: ($)
A23: Monthly Service Charge | C23: Monthly | E23: 13.98 | F23: 1 | G23: =F23*E23 -> 13.98 | I23: ='Rates Summary'!$F$45 -> 18.54 | J23: 1 | K23: =J23*I23 -> 18.54 | M23: =K23-G23 -> 4.56 | N23: =IF((G23)=0,"",(M23/G23)) -> 0.3261802575
A25: Rate Rider Smart Meters Capital (2016) | C25: Monthly | E25: 0.25 | F25: 1 | G25: =F25*E25 -> 0.25 | I25: 0 | J25: 1 | K25: =J25*I25 -> 0 | M25: =K25-G25 -> -0.25 | N25: =IF((G25)=0,"",(M25/G25)) -> -1
A26: Rate Rider Recovery of Stranded Meters | C26: Monthly | E26: 3.69 | F26: 1 | G26: 3.69 | I26: 0 | J26: 1 | K26: 0 | M26: =K26-G26 -> -3.69 | N26: =IF((G26)=0,"",(M26/G26)) -> -1
F27: 1 | G27: 0 | J27: 1 | K27: 0 | M27: =K27-G27 -> 0 | N27: =IF((G27)=0,"",(M27/G27)) -> 
F28: 1 | G28: 0 | J28: 1 | K28: 0 | M28: =K28-G28 -> 0 | N28: =IF((G28)=0,"",(M28/G28)) -> 
A29: Distribution Volumetric Rate | C29: per kWh | E29: 0.0139 | F29: =$E$18 -> 100 | G29: 1.39 | I29: ='Rates Summary'!$F$57 -> 0.0082 | J29: =$E$18 -> 100 | K29: 0.82 | M29: =K29-G29 -> -0.57 | N29: =IF((G29)=0,"",(M29/G29)) -> -0.4100719424
A31: LRAM VA (2016) | C31: per kWh | E31: 0.0003 | F31: =$E$18 -> 100 | G31: 0.03 | I31: 0 | J31: =$E$18 -> 100 | K31: 0 | M31: =K31-G31 -> -0.03 | N31: =IF((G31)=0,"",(M31/G31)) -> -1
A32: Rate Rider Incremental Capital 2012 True-Up (2016) | C32: per kWh | E32: 0.0004 | F32: 100 | G32: 0.04 | I32: 0 | J32: 100 | K32: 0 | M32: -0.04 | N32: -1
C33: per kWh | F33: =$E$19 -> 0 | G33: 0 | J33: =$E$19 -> 0 | K33: 0 | M33: 0
F34: 100 | G34: 0 | J34: 100 | K34: 0 | M34: 0
F35: 100 | G35: 0 | J35: 100 | K35: 0 | M35: 0
F36: 100 | G36: 0 | J36: 100 | K36: 0 | M36: 0
F37: 100 | G37: 0 | J37: 100 | K37: 0 | M37: 0
F38: 100 | G38: 0 | J38: 100 | K38: 0 | M38: 0
A39: Sub-Total A (excluding pass through) | G39: =SUM(G23:G38) -> 19.38 | K39: =SUM(K23:K38) -> 19.36 | M39: -0.02 | N39: -0.001031991744
A40: Deferral/Variance Account Disposition Rate Rider (2016) | C40: per kWh | E40: 0.0007 | F40: =$E$18 -> 100 | G40: =F40*E40 -> 0.07 | I40: 0 | J40: =$E$18 -> 100 | K40: =J40*I40 -> 0 | M40: -0.07 | N40: -1
A41: Deferral/Variance Account Disposition Rate Rider (2017) | E41: 0 | F41: =$E$18 -> 100 | G41: =F41*E41 -> 0 | I41: ='Rates Summary'!$C$4 -> 0.0027 | J41: =$E$18 -> 100 | K41: =J41*I41 -> 0.27 | M41: 0.27 | N41: 1
A42: Deferral/Variance Account Disposition Rate Rider - Non-WMP (2017) | E42: 0 | F42: 100 | G42: 0 | I42: ='Rates Summary'!$C$5 -> -0.0051 | J42: 100 | K42: -0.51 | M42: -0.51 | N42: 1
A43: Rate Rider CGAAP Account 1576 (2016) | C43: per kWh | E43: -0.0108 | F43: 100 | G43: -1.08 | I43: 0 | J43: 100 | K43: 0 | M43: 1.08 | N43: =IF((G43)=0,"",(M43/G43)) -> -1
A44: Deferral/Variance 1580 Sub-Account CBR Class B Disposition Rate Rider - Class B Non-WMP (2017) | C44: per kWh | E44: 0 | F44: 100 | G44: =F44*E44 -> 0 | I44: ='Rates Summary'!$C$7 -> 0.0003 | J44: 100 | K44: =J44*I44 -> 0.03 | M44: =K44-G44 -> 0.03 | N44: 1
A45: Disposition of Global Adjustment (2016) Applicable to Non-RPP Customers | C45: per kWh | E45: 0.0205 | F45: 0 | G45: 0 | I45: 0 | J45: 100 | K45: 0 | M45: =K45-G45 -> 0 | N45: =IF((G45)=0,"",(M45/G45)) -> 
A46: Disposition of Global Adjustment (2017) Applicable to Non-RPP Customers | C46: per kWh | E46: 0 | F46: 0 | G46: 0 | I46: ='Rates Summary'!$C$6 -> 0.0139 | J46: 0
A47: Low Voltage Service Charge | C47: per kWh | E47: 0.0012 | F47: 100 | G47: =F47*E47 -> 0.12 | I47: ='Rates Summary'!$C$21 -> 0.0018 | J47: 100 | K47: =J47*I47 -> 0.18 | M47: =K47-G47 -> 0.06 | N47: =IF((G47)=0,"",(M47/G47)) -> 0.5
A48: Line Losses on Cost of Power | C48: per kWh | E48: =IF(ISBLANK($C$16)=TRUE, 0, IF($C$16="TOU", 0.65*$E$60+0.17*$E$61+0.18*$E$62, IF(AND($C$16="non-TOU", F64>0), E64,E63))) -> 0.11139 | F48: =$E$18*(1+$E$79)-$E$18 -> 3.93 | G48: 0.4377627 | I48: =E48 -> 0.11139 | J48: =$E$18*(1+$E$79)-$E$18 -> 3.93 | K48: =J48*I48 -> 0.4377627 | M48: 0 | N48: 0
A49: Smart Meter Entity Charge | C49: Monthly | E49: 0.79 | F49: 1 | G49: =F49*E49 -> 0.79 | I49: 0.79 | J49: 1 | K49: =J49*I49 -> 0.79 | M49: 0 | N49: 0
A50: Sub-Total B - Distribution (includes Sub-Total A) | G50: =SUM(G40:G49)+G39 -> 19.7177627 | K50: =SUM(K40:K49)+K39 -> 20.5577627 | M50: 0.84 | N50: 0.04260118213
A51: RTSR - Network | C51: per kWh | E51: 0.0071 | F51: =$E$18*(1+$E$79) -> 103.93 | G51: =F51*E51 -> 0.737903 | I51: ='Rates Summary'!$C$23 -> 0.0073 | J51: =$E$18*(1+I79) -> 103.93 | K51: =J51*I51 -> 0.758689 | M51: 0.020786 | N51: 0.02816901408
A52: RTSR - Line and Transformation Connection | C52: per kWh | E52: 0.0056 | F52: =F51 -> 103.93 | G52: =F52*E52 -> 0.582008 | I52: ='Rates Summary'!$C$24 -> 0.0059 | J52: =J51 -> 103.93 | K52: =J52*I52 -> 0.613187 | M52: 0.031179 | N52: 0.05357142857
A53: Sub-Total C - Delivery (including Sub-Total B) | G53: =SUM(G50:G52) -> 21.0376737 | K53: =SUM(K50:K52) -> 21.9296387 | M53: 0.891965 | N53: 0.04239846158
A54: Wholesale Market Service Charge (WMSC) | C54: per kWh | E54: 0.0032 | F54: =F52 -> 103.93 | G54: =F54*E54 -> 0.332576 | I54: ='Rates Summary'!$C$25 -> 0.0032 | J54: =J52 -> 103.93 | K54: =J54*I54 -> 0.332576 | M54: 0 | N54: 0
A55: Capacity Based Recovery Charge (CBR) | C55: per kWh | E55: 0.0004 | F55: =F54 -> 103.93 | G55: 0.041572 | I55: ='Rates Summary'!$C$26 -> 0.0004 | J55: =J54 -> 103.93 | K55: 0.041572 | M55: 0 | N55: 0
A56: Ontario Electricity Support Program (OESP) | C56: per kWh | E56: 0.0011 | F56: =F51 -> 103.93 | G56: 0.114323 | I56: ='Rates Summary'!$C$27 -> 0.0011 | J56: =J54 -> 103.93 | K56: 0.114323 | M56: 0 | N56: 0
A57: Rural and Remote Rate Protection (RRRP) | C57: per kWh | E57: 0.0013 | F57: =F52 -> 103.93 | G57: 0.135109 | I57: ='Rates Summary'!$C$28 -> 0.0013 | J57: =J52 -> 103.93 | K57: 0.135109 | M57: 0 | N57: 0
A58: Standard Supply Service Charge | C58: Monthly | E58: 0.25 | F58: 1 | G58: 0.25 | I58: ='Rates Summary'!$C$29 -> 0.25 | J58: 1 | K58: 0.25 | M58: 0 | N58: 0
A59: Debt Retirement Charge (DRC) | C59: per kWh | E59: 0 | F59: =E18 -> 100 | G59: 0 | I59: 0 | J59: =F59 -> 100 | K59: 0 | M59: 0
A60: TOU - Off Peak | C60: per kWh | E60: 0.087 | F60: =0.65*$E$18 -> 65 | G60: 5.655 | I60: =E60 -> 0.087 | J60: =0.65*$E$18 -> 65 | K60: 5.655 | M60: 0 | N60: 0
A61: TOU - Mid Peak | C61: per kWh | E61: 0.132 | F61: =0.17*$E$18 -> 17 | G61: 2.244 | I61: =E61 -> 0.132 | J61: =0.17*$E$18 -> 17 | K61: 2.244 | M61: 0 | N61: 0
A62: TOU - On Peak | C62: per kWh | E62: 0.18 | F62: =0.18*$E$18 -> 18 | G62: 3.24 | I62: =E62 -> 0.18 | J62: =0.18*$E$18 -> 18 | K62: 3.24 | M62: 0 | N62: 0
A63: Energy - RPP - Tier 1 | C63: per kWh | E63: 0.103 | F63: =IF(AND($O$1=1, $E$18>=600), 600, IF(AND($O$1=1, AND($E$18<600, $E$18>=0)), $E$18, IF(AND($O$1=2, $E$18>=1000), 1000, IF(AND($O$1=2, AND($E$18<1000, $E$18>=0)), $E$18)))) -> 100 | G63: =F63*E63 -> 10.3 | I63: =E63 -> 0.103 | J63: =IF(AND($O$1=1, $E$18>=600), 600, IF(AND($O$1=1, AND($E$18<600, $E$18>=0)), $E$18, IF(AND($O$1=2, $E$18>=1000), 1000, IF(AND($O$1=2, AND($E$18<1000, $E$18>=0)), $E$18)))) -> 100 | K63: =J63*I63 -> 10.3 | M63: 0 | N63: 0
A64: Energy - RPP - Tier 2 | C64: per kWh | E64: 0.121 | F64: =IF(AND($O$1=1, $E$18>=600), $E$18-600, IF(AND($O$1=1, AND($E$18<600, $E$18>=0)), 0, IF(AND($O$1=2, $E$18>=1000), $E$18-1000, IF(AND($O$1=2, AND($E$18<1000, $E$18>=0)), 0)))) -> 0 | G64: =F64*E64 -> 0 | I64: =E64 -> 0.121 | J64: =IF(AND($O$1=1, $E$18>=600), $E$18-600, IF(AND($O$1=1, AND($E$18<600, $E$18>=0)), 0, IF(AND($O$1=2, $E$18>=1000), $E$18-1000, IF(AND($O$1=2, AND($E$18<1000, $E$18>=0)), 0)))) -> 0 | K64: =J64*I64 -> 0 | M64: 0
A66: Total Bill on TOU (before Taxes) | G66: =SUM(G54:G62,G53) -> 33.0502537 | K66: =SUM(K54:K62,K53) -> 33.9422187 | M66: =K66-G66 -> 0.891965 | N66: 0.02698814382
A67: HST | E67: 0.13 | G67: =G66*E67 -> 4.296532981 | I67: 0.13 | K67: =K66*I67 -> 4.412488431 | M67: =K67-G67 -> 0.11595545 | N67: 0.02698814382
A68: Total Bill (including HST) | G68: =G66+G67 -> 37.34678668 | K68: =K66+K67 -> 38.35470713 | M68: =K68-G68 -> 1.00792045 | N68: 0.02698814382
A72: Total Bill on RPP (before Taxes) | G72: =SUM(G63:G64,G54:G59,G53) -> 32.2112537 | K72: =SUM(K63:K64,K54:K59,K53) -> 33.1032187 | M72: =K72-G72 -> 0.891965 | N72: 0.02769109853
A73: HST | E73: 0.13 | G73: =G72*E73 -> 4.187462981 | I73: 0.13 | K73: =K72*I73 -> 4.303418431 | M73: =K73-G73 -> 0.11595545 | N73: 0.02769109853
A74: Total Bill (including HST) | G74: =G72+G73 -> 36.39871668 | K74: =K72+K73 -> 37.40663713 | M74: =K74-G74 -> 1.00792045 | N74: 0.02769109853
A79: Loss Factor (%) | E79: 0.0393 | I79: 0.0393
B82: Residential (kWh) - 100, 250, 500, 750, 1000, 1500, 2000
B83: GS<50kW (kWh) - 1000, 2000, 5000, 10000, 15000
B84: GS>50kW (kW) - 60, 100, 500, 1000
B85: Large User - range appropriate for utility
B86: Lighting Classes and USL - 150 kWh and 1 kW, range appropriate for utility.
C88: Note that cells with the highlighted color shown to the left indicate quantities that are loss adjusted.

Sheet Bill Impact Resi 204kWh
K1: File Number: | M1: EB-2016-0087 | N1: 1
K3: Tab:
K4: Schedule:
K5: Page:
M7: Year 2 Custom Update
K8: Date: | M8: 2016-Aug-15
A11: Bill Impacts
A14: Customer Class: | C14: Residential | M14: =C14 -> Residential
A16: TOU / non-TOU: | C16: TOU
C18: Consumption | E18: 204 | F18: kWh
E20: 2016 Custom IR Year 1 Approved | I20: 2017 Custom IR Year 2 Proposed | M20: Impact 2017 vs. 2016
C21: Charge Unit | E21: Rate | F21: Volume | G21: Charge | I21: Rate | J21: Volume | K21: Charge | M21: $ Change | N21: % Change
E22: ($) | G22: ($) | I22: ($) | K22: ($)
A23: Monthly Service Charge | C23: Monthly | E23: 13.98 | F23: 1 | G23: =F23*E23 -> 13.98 | I23: ='Rates Summary'!$F$45 -> 18.54 | J23: 1 | K23: =J23*I23 -> 18.54 | M23: =K23-G23 -> 4.56 | N23: =IF((G23)=0,"",(M23/G23)) -> 0.3261802575
A25: Rate Rider Smart Meters Capital (2016) | C25: Monthly | E25: 0.25 | F25: 1 | G25: =F25*E25 -> 0.25 | I25: 0 | J25: 1 | K25: =J25*I25 -> 0 | M25: =K25-G25 -> -0.25 | N25: =IF((G25)=0,"",(M25/G25)) -> -1
A26: Rate Rider Recovery of Stranded Meters | C26: Monthly | E26: 3.69 | F26: 1 | G26: 3.69 | I26: 0 | J26: 1 | K26: 0 | M26: =K26-G26 -> -3.69 | N26: =IF((G26)=0,"",(M26/G26)) -> -1
A29: Distribution Volumetric Rate | C29: per kWh | E29: 0.0139 | F29: =$E$18 -> 204 | G29: 2.8356 | I29: ='Rates Summary'!$F$57 -> 0.0082 | J29: =$E$18 -> 204 | K29: 1.6728 | M29: =K29-G29 -> -1.1628 | N29: =IF((G29)=0,"",(M29/G29)) -> -0.4100719424
A31: LRAM VA (2016) | C31: per kWh | E31: 0.0003 | F31: =$E$18 -> 204 | G31: 0.0612 | I31: 0 | J31: =$E$18 -> 204 | K31: 0 | M31: =K31-G31 -> -0.0612 | N31: =IF((G31)=0,"",(M31/G31)) -> -1
A32: Rate Rider Incremental Capital 2012 True-Up (2016) | C32: per kWh | E32: 0.0004 | F32: 204 | G32: 0.0816 | I32: 0 | J32: 204 | K32: 0 | M32: -0.0816 | N32: -1
C33: per kWh | F33: =$E$19 -> 0 | G33: 0 | J33: =$E$19 -> 0 | K33: 0 | M33: 0
F34: 204 | G34: 0 | J34: 204 | K34: 0 | M34: 0
F35: 204 | G35: 0 | J35: 204 | K35: 0 | M35: 0
F36: 204 | G36: 0 | J36: 204 | K36: 0 | M36: 0
F37: 204 | G37: 0 | J37: 204 | K37: 0 | M37: 0
F38: 204 | G38: 0 | J38: 204 | K38: 0 | M38: 0
A39: Sub-Total A (excluding pass through) | G39: =SUM(G23:G38) -> 20.8984 | K39: =SUM(K23:K38) -> 20.2128 | M39: -0.6856 | N39: -0.03280633924
A40: Deferral/Variance Account Disposition Rate Rider (2016) | C40: per kWh | E40: 0.0007 | F40: =$E$18 -> 204 | G40: =F40*E40 -> 0.1428 | I40: 0 | J40: =$E$18 -> 204 | K40: =J40*I40 -> 0 | M40: -0.1428 | N40: -1
A41: Deferral/Variance Account Disposition Rate Rider (2017) | E41: 0 | F41: =$E$18 -> 204 | G41: =F41*E41 -> 0 | I41: ='Rates Summary'!$C$4 -> 0.0027 | J41: =$E$18 -> 204 | K41: =J41*I41 -> 0.5508 | M41: 0.5508 | N41: 1
A42: Deferral/Variance Account Disposition Rate Rider - Non-WMP (2017) | E42: 0 | F42: 204 | G42: =F42*E42 -> 0 | I42: ='Rates Summary'!$C$5 -> -0.0051 | J42: 204 | K42: =J42*I42 -> -1.0404 | M42: -1.0404 | N42: 1
A43: Rate Rider CGAAP Account 1576 (2016) | C43: per kWh | E43: -0.0108 | F43: 204 | G43: -2.2032 | I43: 0 | J43: 204 | K43: 0 | M43: 2.2032 | N43: =IF((G43)=0,"",(M43/G43)) -> -1
A44: Deferral/Variance 1580 Sub-Account CBR Class B Disposition Rate Rider - Class B Non-WMP (2017) | C44: per kWh | E44: 0 | F44: 204 | G44: 0 | I44: ='Rates Summary'!$C$7 -> 0.0003 | J44: 204 | K44: 0.0612 | M44: =K44-G44 -> 0.0612 | N44: 1
A45: Disposition of Global Adjustment (2016) Applicable to Non-RPP Customers | C45: per kWh | E45: 0.0205 | F45: 0 | G45: =F45*E45 -> 0 | I45: 0 | J45: 204 | K45: =J45*I45 -> 0 | M45: =K45-G45 -> 0 | N45: =IF((G45)=0,"",(M45/G45)) -> 
A46: Disposition of Global Adjustment (2017) Applicable to Non-RPP Customers | C46: per kWh | E46: 0 | F46: 0 | G46: =F46*E46 -> 0 | I46: ='Rates Summary'!$C$6 -> 0.0139 | J46: 0 | K46: =J46*I46 -> 0 | M46: =K46-G46 -> 0
A47: Low Voltage Service Charge | C47: per kWh | E47: 0.0012 | F47: 204 | G47: =F47*E47 -> 0.2448 | I47: ='Rates Summary'!$C$21 -> 0.0018 | J47: 204 | K47: =J47*I47 -> 0.3672 | M47: =K47-G47 -> 0.1224 | N47: =IF((G47)=0,"",(M47/G47)) -> 0.5
A48: Line Losses on Cost of Power | C48: per kWh | E48: =IF(ISBLANK($C$16)=TRUE, 0, IF($C$16="TOU", 0.65*$E$60+0.17*$E$61+0.18*$E$62, IF(AND($C$16="non-TOU", F64>0), E64,E63))) -> 0.11139 | F48: =$E$18*(1+$E$79)-$E$18 -> 8.0172 | G48: 0.893035908 | I48: =E48 -> 0.11139 | J48: =$E$18*(1+$E$79)-$E$18 -> 8.0172 | K48: =J48*I48 -> 0.893035908 | M48: 0 | N48: 0
A49: Smart Meter Entity Charge | C49: Monthly | E49: 0.79 | F49: 1 | G49: =F49*E49 -> 0.79 | I49: 0.79 | J49: 1 | K49: =J49*I49 -> 0.79 | M49: 0 | N49: 0
A50: Sub-Total B - Distribution (includes Sub-Total A) | G50: =SUM(G40:G49)+G39 -> 20.76583591 | K50: =SUM(K40:K49)+K39 -> 21.83463591 | M50: 1.0688 | N50: 0.0514691537
A51: RTSR - Network | C51: per kWh | E51: 0.0071 | F51: =$E$18*(1+$E$79) -> 212.0172 | G51: =F51*E51 -> 1.50532212 | I51: ='Rates Summary'!$C$23 -> 0.0073 | J51: =$E$18*(1+I79) -> 212.0172 | K51: =J51*I51 -> 1.54772556 | M51: 0.04240344 | N51: 0.02816901408
A52: RTSR - Line and Transformation Connection | C52: per kWh | E52: 0.0056 | F52: =F51 -> 212.0172 | G52: =F52*E52 -> 1.18729632 | I52: ='Rates Summary'!$C$24 -> 0.0059 | J52: =J51 -> 212.0172 | K52: =J52*I52 -> 1.25090148 | M52: 0.06360516 | N52: 0.05357142857
A53: Sub-Total C - Delivery (including Sub-Total B) | G53: =SUM(G50:G52) -> 23.45845435 | K53: =SUM(K50:K52) -> 24.63326295 | M53: 1.1748086 | N53: 0.05008039245
A54: Wholesale Market Service Charge (WMSC) | C54: per kWh | E54: 0.0032 | F54: =F52 -> 212.0172 | G54: =F54*E54 -> 0.67845504 | I54: ='Rates Summary'!$C$25 -> 0.0032 | J54: =J52 -> 212.0172 | K54: =J54*I54 -> 0.67845504 | M54: 0 | N54: 0
A55: Capacity Based Recovery Charge (CBR) | C55: per kWh | E55: 0.0004 | F55: =F54 -> 212.0172 | G55: =F55*E55 -> 0.08480688 | I55: ='Rates Summary'!$C$26 -> 0.0004 | J55: =J54 -> 212.0172 | K55: =J55*I55 -> 0.08480688 | M55: 0 | N55: 0
A56: Ontario Electricity Support Program (OESP) | C56: per kWh | E56: 0.0011 | F56: =F51 -> 212.0172 | G56: =F56*E56 -> 0.23321892 | I56: ='Rates Summary'!$C$27 -> 0.0011 | J56: =J54 -> 212.0172 | K56: 0.23321892 | M56: 0 | N56: 0
A57: Rural and Remote Rate Protection (RRRP) | C57: per kWh | E57: 0.0013 | F57: =F52 -> 212.0172 | G57: 0.27562236 | I57: ='Rates Summary'!$C$28 -> 0.0013 | J57: =J52 -> 212.0172 | K57: 0.27562236 | M57: 0 | N57: 0
A58: Standard Supply Service Charge | C58: Monthly | E58: 0.25 | F58: 1 | G58: 0.25 | I58: ='Rates Summary'!$C$29 -> 0.25 | J58: 1 | K58: 0.25 | M58: 0 | N58: 0
A59: Debt Retirement Charge (DRC) | C59: per kWh | E59: 0 | F59: =E18 -> 204 | G59: 0 | I59: 0 | J59: =F59 -> 204 | K59: 0 | M59: 0
A60: TOU - Off Peak | C60: per kWh | E60: 0.087 | F60: =0.65*$E$18 -> 132.6 | G60: 11.5362 | I60: =E60 -> 0.087 | J60: =0.65*$E$18 -> 132.6 | K60: 11.5362 | M60: 0 | N60: 0
A61: TOU - Mid Peak | C61: per kWh | E61: 0.132 | F61: =0.17*$E$18 -> 34.68 | G61: 4.57776 | I61: =E61 -> 0.132 | J61: =0.17*$E$18 -> 34.68 | K61: 4.57776 | M61: 0 | N61: 0
A62: TOU - On Peak | C62: per kWh | E62: 0.18 | F62: =0.18*$E$18 -> 36.72 | G62: 6.6096 | I62: =E62 -> 0.18 | J62: =0.18*$E$18 -> 36.72 | K62: 6.6096 | M62: 0 | N62: 0
A63: Energy - RPP - Tier 1 | C63: per kWh | E63: 0.103 | F63: =IF(AND($N$1=1, $E$18>=600), 600, IF(AND($N$1=1, AND($E$18<600, $E$18>=0)), $E$18, IF(AND($N$1=2, $E$18>=1000), 1000, IF(AND($N$1=2, AND($E$18<1000, $E$18>=0)), $E$18)))) -> 204 | G63: =F63*E63 -> 21.012 | I63: =E63 -> 0.103 | J63: =IF(AND($N$1=1, $E$18>=600), 600, IF(AND($N$1=1, AND($E$18<600, $E$18>=0)), $E$18, IF(AND($N$1=2, $E$18>=1000), 1000, IF(AND($N$1=2, AND($E$18<1000, $E$18>=0)), $E$18)))) -> 204 | K63: =J63*I63 -> 21.012 | M63: 0 | N63: 0
A64: Energy - RPP - Tier 2 | C64: per kWh | E64: 0.121 | F64: =IF(AND($N$1=1, $E$18>=600), $E$18-600, IF(AND($N$1=1, AND($E$18<600, $E$18>=0)), 0, IF(AND($N$1=2, $E$18>=1000), $E$18-1000, IF(AND($N$1=2, AND($E$18<1000, $E$18>=0)), 0)))) -> 0 | G64: =F64*E64 -> 0 | I64: =E64 -> 0.121 | J64: =IF(AND($N$1=1, $E$18>=600), $E$18-600, IF(AND($N$1=1, AND($E$18<600, $E$18>=0)), 0, IF(AND($N$1=2, $E$18>=1000), $E$18-1000, IF(AND($N$1=2, AND($E$18<1000, $E$18>=0)), 0)))) -> 0 | K64: =J64*I64 -> 0 | M64: 0
A66: Total Bill on TOU (before Taxes) | G66: =SUM(G54:G62,G53) -> 47.70411755 | K66: =SUM(K54:K62,K53) -> 48.87892615 | M66: =K66-G66 -> 1.1748086 | N66: 0.02462698527
A67: HST | E67: 0.13 | G67: =G66*E67 -> 6.201535281 | I67: 0.13 | K67: =K66*I67 -> 6.354260399 | M67: =K67-G67 -> 0.152725118 | N67: 0.02462698527
A68: Total Bill (including HST) | G68: =G66+G67 -> 53.90565283 | K68: =K66+K67 -> 55.23318655 | M68: =K68-G68 -> 1.327533718 | N68: 0.02462698527
A69: Ontario Clean Energy Benefit 1 | G69: 0 | K69: 0 | M69: =K69-G69 -> 0
A70: Total Bill on TOU (including OCEB) | G70: =G68+G69 -> 53.90565283 | K70: =K68+K69 -> 55.23318655 | M70: =K70-G70 -> 1.327533718 | N70: 0.02462698527
A72: Total Bill on RPP (before Taxes) | G72: =SUM(G63:G64,G54:G59,G53) -> 45.99255755 | K72: =SUM(K63:K64,K54:K59,K53) -> 47.16736615 | M72: =K72-G72 -> 1.1748086 | N72: 0.02554345013
A73: HST | E73: 0.13 | G73: =G72*E73 -> 5.979032481 | I73: 0.13 | K73: =K72*I73 -> 6.131757599 | M73: =K73-G73 -> 0.152725118 | N73: 0.02554345013
A74: Total Bill (including HST) | G74: =G72+G73 -> 51.97159003 | K74: =K72+K73 -> 53.29912375 | M74: =K74-G74 -> 1.327533718 | N74: 0.02554345013
A75: Ontario Clean Energy Benefit 1 | G75: 0 | K75: 0 | M75: =K75-G75 -> 0
A76: Total Bill on RPP (including OCEB) | G76: =SUM(G74:G75) -> 51.97159003 | K76: =SUM(K74:K75) -> 53.29912375 | M76: =K76-G76 -> 1.327533718 | N76: 0.02554345013
A79: Loss Factor (%) | E79: 0.0393 | I79: 0.0393
B82: Residential (kWh) - 100, 250, 500, 750, 1000, 1500, 2000
B83: GS<50kW (kWh) - 1000, 2000, 5000, 10000, 15000
B84: GS>50kW (kW) - 60, 100, 500, 1000
B85: Large User - range appropriate for utility
B86: Lighting Classes and USL - 150 kWh and 1 kW, range appropriate for utility.
C88: Note that cells with the highlighted color shown to the left indicate quantities that are loss adjusted.

Sheet Bill Impact Resi 250kWh
K1: File Number: | M1: EB-2016-0087 | O1: 1
K3: Tab:
K4: Schedule:
K5: Page:
M7: Year 2 Custom Update
K8: Date: | M8: 2016-Aug-15
A11: Bill Impacts
A14: Customer Class: | C14: Residential | M14: =C14 -> Residential
A16: TOU / non-TOU: | C16: TOU
C18: Consumption | E18: 250 | F18: kWh
E20: 2016 Custom IR Year 1 Approved | I20: 2017 Custom IR Year 2 Proposed | M20: Impact 2017 vs. 2016
C21: Charge Unit | E21: Rate | F21: Volume | G21: Charge | I21: Rate | J21: Volume | K21: Charge | M21: $ Change | N21: % Change
E22: ($) | G22: ($) | I22: ($) | K22: ($)
A23: Monthly Service Charge | C23: Monthly | E23: 13.98 | F23: 1 | G23: =F23*E23 -> 13.98 | I23: ='Rates Summary'!$F$45 -> 18.54 | J23: 1 | K23: =J23*I23 -> 18.54 | M23: =K23-G23 -> 4.56 | N23: =IF((G23)=0,"",(M23/G23)) -> 0.3261802575
A25: Rate Rider Smart Meters Capital (2016) | C25: Monthly | E25: 0.25 | F25: 1 | G25: =F25*E25 -> 0.25 | I25: 0 | J25: 1 | K25: =J25*I25 -> 0 | M25: =K25-G25 -> -0.25 | N25: =IF((G25)=0,"",(M25/G25)) -> -1
A26: Rate Rider Recovery of Stranded Meters | C26: Monthly | E26: 3.69 | F26: 1 | G26: 3.69 | I26: 0 | J26: 1 | K26: 0 | M26: =K26-G26 -> -3.69 | N26: =IF((G26)=0,"",(M26/G26)) -> -1
A29: Distribution Volumetric Rate | C29: per kWh | E29: 0.0139 | F29: =$E$18 -> 250 | G29: 3.475 | I29: ='Rates Summary'!$F$57 -> 0.0082 | J29: =$E$18 -> 250 | K29: 2.05 | M29: =K29-G29 -> -1.425 | N29: =IF((G29)=0,"",(M29/G29)) -> -0.4100719424
A31: LRAM VA (2016) | C31: per kWh | E31: 0.0003 | F31: =$E$18 -> 250 | G31: 0.075 | I31: 0 | J31: =$E$18 -> 250 | K31: 0 | M31: =K31-G31 -> -0.075 | N31: =IF((G31)=0,"",(M31/G31)) -> -1
A32: Rate Rider Incremental Capital 2012 True-Up (2016) | C32: per kWh | E32: 0.0004 | F32: 250 | G32: 0.1 | I32: 0 | J32: 250 | K32: 0 | M32: -0.1 | N32: -1
C33: per kWh | F33: =$E$19 -> 0 | G33: 0 | J33: =$E$19 -> 0 | K33: 0 | M33: 0
F34: 250 | G34: 0 | J34: 250 | K34: 0 | M34: 0
F35: 250 | G35: 0 | J35: 250 | K35: 0 | M35: 0
F36: 250 | G36: 0 | J36: 250 | K36: 0 | M36: 0
F37: 250 | G37: 0 | J37: 250 | K37: 0 | M37: 0
F38: 250 | G38: 0 | J38: 250 | K38: 0 | M38: 0
A39: Sub-Total A (excluding pass through) | G39: =SUM(G23:G38) -> 21.57 | K39: =SUM(K23:K38) -> 20.59 | M39: -0.98 | N39: -0.04543347242
A40: Deferral/Variance Account Disposition Rate Rider (2016) | C40: per kWh | E40: 0.0007 | F40: =$E$18 -> 250 | G40: =F40*E40 -> 0.175 | I40: 0 | J40: =$E$18 -> 250 | K40: =J40*I40 -> 0 | M40: -0.175 | N40: -1
A41: Deferral/Variance Account Disposition Rate Rider (2017) | E41: 0 | F41: =$E$18 -> 250 | G41: =F41*E41 -> 0 | I41: ='Rates Summary'!$C$4 -> 0.0027 | J41: =$E$18 -> 250 | K41: =J41*I41 -> 0.675 | M41: 0.675 | N41: 1
A42: Deferral/Variance Account Disposition Rate Rider - Non-WMP (2017) | E42: 0 | F42: 250 | G42: 0 | I42: ='Rates Summary'!$C$5 -> -0.0051 | J42: 250 | K42: -1.275 | M42: -1.275 | N42: 1
A43: Rate Rider CGAAP Account 1576 (2016) | C43: per kWh | E43: -0.0108 | F43: 250 | G43: -2.7 | I43: 0 | J43: 250 | K43: 0 | M43: 2.7 | N43: =IF((G43)=0,"",(M43/G43)) -> -1
A44: Deferral/Variance 1580 Sub-Account CBR Class B Disposition Rate Rider - Class B Non-WMP (2017) | C44: per kWh | E44: 0 | F44: 250 | G44: =F44*E44 -> 0 | I44: ='Rates Summary'!$C$7 -> 0.0003 | J44: 250 | K44: =J44*I44 -> 0.075 | M44: =K44-G44 -> 0.075 | N44: 1
A45: Disposition of Global Adjustment (2016) Applicable to Non-RPP Customers | C45: per kWh | E45: 0.0205 | F45: 0 | G45: 0 | I45: 0 | J45: 250 | K45: 0 | M45: =K45-G45 -> 0 | N45: =IF((G45)=0,"",(M45/G45)) -> 
A46: Disposition of Global Adjustment (2017) Applicable to Non-RPP Customers | C46: per kWh | E46: 0 | F46: 0 | G46: 0 | I46: ='Rates Summary'!$C$6 -> 0.0139 | J46: 0
A47: Low Voltage Service Charge | C47: per kWh | E47: 0.0012 | F47: 250 | G47: =F47*E47 -> 0.3 | I47: ='Rates Summary'!$C$21 -> 0.0018 | J47: 250 | K47: =J47*I47 -> 0.45 | M47: =K47-G47 -> 0.15 | N47: =IF((G47)=0,"",(M47/G47)) -> 0.5
A48: Line Losses on Cost of Power | C48: per kWh | E48: =IF(ISBLANK($C$16)=TRUE, 0, IF($C$16="TOU", 0.65*$E$60+0.17*$E$61+0.18*$E$62, IF(AND($C$16="non-TOU", F64>0), E64,E63))) -> 0.11139 | F48: =$E$18*(1+$E$79)-$E$18 -> 9.825 | G48: 1.09440675 | I48: =E48 -> 0.11139 | J48: =$E$18*(1+$E$79)-$E$18 -> 9.825 | K48: =J48*I48 -> 1.09440675 | M48: 0 | N48: 0
A49: Smart Meter Entity Charge | C49: Monthly | E49: 0.79 | F49: 1 | G49: =F49*E49 -> 0.79 | I49: 0.79 | J49: 1 | K49: =J49*I49 -> 0.79 | M49: 0 | N49: 0
A50: Sub-Total B - Distribution (includes Sub-Total A) | G50: =SUM(G40:G49)+G39 -> 21.22940675 | K50: =SUM(K40:K49)+K39 -> 22.39940675 | M50: 1.17 | N50: 0.05511223247
A51: RTSR - Network | C51: per kWh | E51: 0.0071 | F51: =$E$18*(1+$E$79) -> 259.825 | G51: =F51*E51 -> 1.8447575 | I51: ='Rates Summary'!$C$23 -> 0.0073 | J51: =$E$18*(1+I79) -> 259.825 | K51: =J51*I51 -> 1.8967225 | M51: 0.051965 | N51: 0.02816901408
A52: RTSR - Line and Transformation Connection | C52: per kWh | E52: 0.0056 | F52: =F51 -> 259.825 | G52: =F52*E52 -> 1.45502 | I52: ='Rates Summary'!$C$24 -> 0.0059 | J52: =J51 -> 259.825 | K52: =J52*I52 -> 1.5329675 | M52: 0.0779475 | N52: 0.05357142857
A53: Sub-Total C - Delivery (including Sub-Total B) | G53: =SUM(G50:G52) -> 24.52918425 | K53: =SUM(K50:K52) -> 25.82909675 | M53: 1.2999125 | N53: 0.05299452631
A54: Wholesale Market Service Charge (WMSC) | C54: per kWh | E54: 0.0032 | F54: =F52 -> 259.825 | G54: =F54*E54 -> 0.83144 | I54: ='Rates Summary'!$C$25 -> 0.0032 | J54: =J52 -> 259.825 | K54: =J54*I54 -> 0.83144 | M54: 0 | N54: 0
A55: Capacity Based Recovery Charge (CBR) | C55: per kWh | E55: 0.0004 | F55: =F54 -> 259.825 | G55: 0.10393 | I55: ='Rates Summary'!$C$26 -> 0.0004 | J55: =J54 -> 259.825 | K55: 0.10393 | M55: 0 | N55: 0
A56: Ontario Electricity Support Program (OESP) | C56: per kWh | E56: 0.0011 | F56: =F51 -> 259.825 | G56: 0.2858075 | I56: ='Rates Summary'!$C$27 -> 0.0011 | J56: =J54 -> 259.825 | K56: 0.2858075 | M56: 0 | N56: 0
A57: Rural and Remote Rate Protection (RRRP) | C57: per kWh | E57: 0.0013 | F57: =F52 -> 259.825 | G57: 0.3377725 | I57: ='Rates Summary'!$C$28 -> 0.0013 | J57: =J52 -> 259.825 | K57: 0.3377725 | M57: 0 | N57: 0
A58: Standard Supply Service Charge | C58: Monthly | E58: 0.25 | F58: 1 | G58: 0.25 | I58: ='Rates Summary'!$C$29 -> 0.25 | J58: 1 | K58: 0.25 | M58: 0 | N58: 0
A59: Debt Retirement Charge (DRC) | C59: per kWh | E59: 0 | F59: =E18 -> 250 | G59: 0 | I59: 0 | J59: =F59 -> 250 | K59: 0 | M59: 0
A60: TOU - Off Peak | C60: per kWh | E60: 0.087 | F60: =0.65*$E$18 -> 162.5 | G60: 14.1375 | I60: =E60 -> 0.087 | J60: =0.65*$E$18 -> 162.5 | K60: 14.1375 | M60: 0 | N60: 0
A61: TOU - Mid Peak | C61: per kWh | E61: 0.132 | F61: =0.17*$E$18 -> 42.5 | G61: 5.61 | I61: =E61 -> 0.132 | J61: =0.17*$E$18 -> 42.5 | K61: 5.61 | M61: 0 | N61: 0
A62: TOU - On Peak | C62: per kWh | E62: 0.18 | F62: =0.18*$E$18 -> 45 | G62: 8.1 | I62: =E62 -> 0.18 | J62: =0.18*$E$18 -> 45 | K62: 8.1 | M62: 0 | N62: 0
A63: Energy - RPP - Tier 1 | C63: per kWh | E63: 0.103 | F63: =IF(AND($O$1=1, $E$18>=600), 600, IF(AND($O$1=1, AND($E$18<600, $E$18>=0)), $E$18, IF(AND($O$1=2, $E$18>=1000), 1000, IF(AND($O$1=2, AND($E$18<1000, $E$18>=0)), $E$18)))) -> 250 | G63: =F63*E63 -> 25.75 | I63: =E63 -> 0.103 | J63: =IF(AND($O$1=1, $E$18>=600), 600, IF(AND($O$1=1, AND($E$18<600, $E$18>=0)), $E$18, IF(AND($O$1=2, $E$18>=1000), 1000, IF(AND($O$1=2, AND($E$18<1000, $E$18>=0)), $E$18)))) -> 250 | K63: =J63*I63 -> 25.75 | M63: 0 | N63: 0
A64: Energy - RPP - Tier 2 | C64: per kWh | E64: 0.121 | F64: =IF(AND($O$1=1, $E$18>=600), $E$18-600, IF(AND($O$1=1, AND($E$18<600, $E$18>=0)), 0, IF(AND($O$1=2, $E$18>=1000), $E$18-1000, IF(AND($O$1=2, AND($E$18<1000, $E$18>=0)), 0)))) -> 0 | G64: =F64*E64 -> 0 | I64: =E64 -> 0.121 | J64: =IF(AND($O$1=1, $E$18>=600), $E$18-600, IF(AND($O$1=1, AND($E$18<600, $E$18>=0)), 0, IF(AND($O$1=2, $E$18>=1000), $E$18-1000, IF(AND($O$1=2, AND($E$18<1000, $E$18>=0)), 0)))) -> 0 | K64: =J64*I64 -> 0 | M64: 0
A66: Total Bill on TOU (before Taxes) | G66: =SUM(G54:G62,G53) -> 54.18563425 | K66: =SUM(K54:K62,K53) -> 55.48554675 | M66: =K66-G66 -> 1.2999125 | N66: 0.02398998402
A67: HST | E67: 0.13 | G67: =G66*E67 -> 7.044132453 | I67: 0.13 | K67: =K66*I67 -> 7.213121078 | M67: =K67-G67 -> 0.168988625 | N67: 0.02398998402
A68: Total Bill (including HST) | G68: =G66+G67 -> 61.2297667 | K68: =K66+K67 -> 62.69866783 | M68: =K68-G68 -> 1.468901125 | N68: 0.02398998402
N71: =IF((G71)=0,"",(M71/G71)) -> 
A72: Total Bill on RPP (before Taxes) | G72: =SUM(G63:G64,G54:G59,G53) -> 52.08813425 | K72: =SUM(K63:K64,K54:K59,K53) -> 53.38804675 | M72: =K72-G72 -> 1.2999125 | N72: =IF((G72)=0,"",(M72/G72)) -> 0.02495601961
A73: HST | E73: 0.13 | G73: =G72*E73 -> 6.771457453 | I73: 0.13 | K73: =K72*I73 -> 6.940446078 | M73: =K73-G73 -> 0.168988625 | N73: =IF((G73)=0,"",(M73/G73)) -> 0.02495601961
A74: Total Bill (including HST) | G74: =G72+G73 -> 58.8595917 | K74: =K72+K73 -> 60.32849283 | M74: =K74-G74 -> 1.468901125 | N74: =IF((G74)=0,"",(M74/G74)) -> 0.02495601961
A79: Loss Factor (%) | E79: 0.0393 | I79: 0.0393
B82: Residential (kWh) - 100, 250, 500, 750, 1000, 1500, 2000
B83: GS<50kW (kWh) - 1000, 2000, 5000, 10000, 15000
B84: GS>50kW (kW) - 60, 100, 500, 1000
B85: Large User - range appropriate for utility
B86: Lighting Classes and USL - 150 kWh and 1 kW, range appropriate for utility.
C88: Note that cells with the highlighted color shown to the left indicate quantities that are loss adjusted.

Sheet Bill Impact Resi 500kWh
K1: File Number: | M1: EB-2016-0087 | N1: 1
K3: Tab:
K4: Schedule:
K5: Page:
M7: Year 2 Custom Update
K8: Date: | M8: 2016-Aug-15
A11: Bill Impacts
A14: Customer Class: | C14: Residential | M14: =C14 -> Residential
A16: TOU / non-TOU: | C16: TOU
C18: Consumption | E18: 500 | F18: kWh
E20: 2016 Custom IR Year 1 Approved | I20: 2017 Custom IR Year 2 Proposed | M20: Impact 2017 vs. 2016
C21: Charge Unit | E21: Rate | F21: Volume | G21: Charge | I21: Rate | J21: Volume | K21: Charge | M21: $ Change | N21: % Change
E22: ($) | G22: ($) | I22: ($) | K22: ($)
A23: Monthly Service Charge | C23: Monthly | E23: 13.98 | F23: 1 | G23: =F23*E23 -> 13.98 | I23: ='Rates Summary'!$F$45 -> 18.54 | J23: 1 | K23: =J23*I23 -> 18.54 | M23: =K23-G23 -> 4.56 | N23: =IF((G23)=0,"",(M23/G23)) -> 0.3261802575
A25: Rate Rider Smart Meters Capital (2016) | C25: Monthly | E25: 0.25 | F25: 1 | G25: =F25*E25 -> 0.25 | I25: 0 | J25: 1 | K25: =J25*I25 -> 0 | M25: =K25-G25 -> -0.25 | N25: =IF((G25)=0,"",(M25/G25)) -> -1
A26: Rate Rider Recovery of Stranded Meters | C26: Monthly | E26: 3.69 | F26: 1 | G26: 3.69 | I26: 0 | J26: 1 | K26: 0 | M26: =K26-G26 -> -3.69 | N26: =IF((G26)=0,"",(M26/G26)) -> -1
F27: 1 | G27: 0 | J27: 1 | K27: 0 | M27: =K27-G27 -> 0 | N27: =IF((G27)=0,"",(M27/G27)) -> 
F28: 1 | G28: 0 | J28: 1 | K28: 0 | M28: =K28-G28 -> 0 | N28: =IF((G28)=0,"",(M28/G28)) -> 
A29: Distribution Volumetric Rate | C29: per kWh | E29: 0.0139 | F29: =$E$18 -> 500 | G29: 6.95 | I29: ='Rates Summary'!$F$57 -> 0.0082 | J29: =$E$18 -> 500 | K29: 4.1 | M29: =K29-G29 -> -2.85 | N29: =IF((G29)=0,"",(M29/G29)) -> -0.4100719424
A31: LRAM VA (2016) | C31: per kWh | E31: 0.0003 | F31: =$E$18 -> 500 | G31: 0.15 | I31: 0 | J31: =$E$18 -> 500 | K31: 0 | M31: =K31-G31 -> -0.15 | N31: =IF((G31)=0,"",(M31/G31)) -> -1
A32: Rate Rider Incremental Capital 2012 True-Up (2016) | C32: per kWh | E32: 0.0004 | F32: =$E$18 -> 500 | G32: 0.2 | I32: 0 | J32: =$E$18 -> 500 | K32: 0 | M32: -0.2 | N32: -1
C33: per kWh | F33: =$E$19 -> 0 | G33: 0 | J33: =$E$19 -> 0 | K33: 0 | M33: 0
F34: =$E$18 -> 500 | G34: 0 | J34: =$E$18 -> 500 | K34: 0 | M34: 0
F35: =$E$18 -> 500 | G35: 0 | J35: =$E$18 -> 500 | K35: 0 | M35: 0
F36: =$E$18 -> 500 | G36: 0 | J36: =$E$18 -> 500 | K36: 0 | M36: 0
F37: =$E$18 -> 500 | G37: 0 | J37: =$E$18 -> 500 | K37: 0 | M37: 0
F38: =$E$18 -> 500 | G38: 0 | J38: =$E$18 -> 500 | K38: 0 | M38: 0
A39: Sub-Total A (excluding pass through) | G39: =SUM(G23:G38) -> 25.22 | K39: =SUM(K23:K38) -> 22.64 | M39: -2.58 | N39: -0.1022997621
A40: Deferral/Variance Account Disposition Rate Rider (2016) | C40: per kWh | E40: 0.0007 | F40: =$E$18 -> 500 | G40: =F40*E40 -> 0.35 | I40: 0 | J40: =$E$18 -> 500 | K40: =J40*I40 -> 0 | M40: -0.35 | N40: -1
A41: Deferral/Variance Account Disposition Rate Rider (2017) | E41: 0 | F41: =$E$18 -> 500 | G41: =F41*E41 -> 0 | I41: ='Rates Summary'!$C$4 -> 0.0027 | J41: 500 | K41: =J41*I41 -> 1.35 | M41: 1.35 | N41: 1
A42: Deferral/Variance Account Disposition Rate Rider - Non-WMP (2017) | E42: 0 | F42: =$E$18 -> 500 | G42: 0 | I42: ='Rates Summary'!$C$5 -> -0.0051 | J42: 500 | K42: -2.55 | M42: -2.55 | N42: 1
A43: Rate Rider CGAAP Account 1576 (2016) | C43: per kWh | E43: -0.0108 | F43: =$E$18 -> 500 | G43: -5.4 | I43: 0 | J43: 500 | K43: 0 | M43: 5.4 | N43: =IF((G43)=0,"",(M43/G43)) -> -1
A44: Deferral/Variance 1580 Sub-Account CBR Class B Disposition Rate Rider - Class B Non-WMP (2017) | C44: per kWh | E44: 0 | F44: =$E$18 -> 500 | G44: =F44*E44 -> 0 | I44: ='Rates Summary'!$C$7 -> 0.0003 | J44: 500 | K44: =J44*I44 -> 0.15 | M44: =K44-G44 -> 0.15 | N44: 1
A45: Disposition of Global Adjustment (2016) Applicable to Non-RPP Customers | C45: per kWh | E45: 0.0205 | F45: 0 | G45: 0 | I45: 0 | J45: 500 | K45: 0 | M45: =K45-G45 -> 0 | N45: =IF((G45)=0,"",(M45/G45)) -> 
A46: Disposition of Global Adjustment (2017) Applicable to Non-RPP Customers | C46: per kWh | E46: 0 | F46: 0 | G46: 0 | I46: ='Rates Summary'!$C$6 -> 0.0139 | J46: 0 | K46: =J46*I46 -> 0 | M46: =K46-G46 -> 0
A47: Low Voltage Service Charge | C47: per kWh | E47: 0.0012 | F47: =$E$18 -> 500 | G47: =F47*E47 -> 0.6 | I47: ='Rates Summary'!$C$21 -> 0.0018 | J47: =$E$18 -> 500 | K47: =J47*I47 -> 0.9 | M47: =K47-G47 -> 0.3 | N47: =IF((G47)=0,"",(M47/G47)) -> 0.5
A48: Line Losses on Cost of Power | C48: per kWh | E48: =IF(ISBLANK($C$16)=TRUE, 0, IF($C$16="TOU", 0.65*$E$60+0.17*$E$61+0.18*$E$62, IF(AND($C$16="non-TOU", F64>0), E64,E63))) -> 0.11139 | F48: =$E$18*(1+$E$79)-$E$18 -> 19.65 | G48: 2.1888135 | I48: =E48 -> 0.11139 | J48: =$E$18*(1+$E$79)-$E$18 -> 19.65 | K48: =J48*I48 -> 2.1888135 | M48: 0 | N48: 0
A49: Smart Meter Entity Charge | C49: Monthly | E49: 0.79 | F49: 1 | G49: =F49*E49 -> 0.79 | I49: 0.79 | J49: 1 | K49: =J49*I49 -> 0.79 | M49: 0 | N49: 0
A50: Sub-Total B - Distribution (includes Sub-Total A) | G50: =SUM(G40:G49)+G39 -> 23.7488135 | K50: =SUM(K40:K49)+K39 -> 25.4688135 | M50: 1.72 | N50: 0.07242467082
A51: RTSR - Network | C51: per kWh | E51: 0.0071 | F51: =$E$18*(1+$E$79) -> 519.65 | G51: =F51*E51 -> 3.689515 | I51: ='Rates Summary'!$C$23 -> 0.0073 | J51: =$E$18*(1+I79) -> 519.65 | K51: =J51*I51 -> 3.793445 | M51: 0.10393 | N51: 0.02816901408
A52: RTSR - Line and Transformation Connection | C52: per kWh | E52: 0.0056 | F52: =F51 -> 519.65 | G52: =F52*E52 -> 2.91004 | I52: ='Rates Summary'!$C$24 -> 0.0059 | J52: =J51 -> 519.65 | K52: =J52*I52 -> 3.065935 | M52: 0.155895 | N52: 0.05357142857
A53: Sub-Total C - Delivery (including Sub-Total B) | G53: =SUM(G50:G52) -> 30.3483685 | K53: =SUM(K50:K52) -> 32.3281935 | M53: 1.979825 | N53: 0.06523662055
A54: Wholesale Market Service Charge (WMSC) | C54: per kWh | E54: 0.0032 | F54: =F52 -> 519.65 | G54: =F54*E54 -> 1.66288 | I54: ='Rates Summary'!$C$25 -> 0.0032 | J54: =J52 -> 519.65 | K54: =J54*I54 -> 1.66288 | M54: 0 | N54: 0
A55: Capacity Based Recovery Charge (CBR) | C55: per kWh | E55: 0.0004 | F55: =F54 -> 519.65 | G55: 0.20786 | I55: ='Rates Summary'!$C$26 -> 0.0004 | J55: =J54 -> 519.65 | K55: 0.20786 | M55: 0 | N55: 0
A56: Ontario Electricity Support Program (OESP) | C56: per kWh | E56: 0.0011 | F56: =F51 -> 519.65 | G56: 0.571615 | I56: ='Rates Summary'!$C$27 -> 0.0011 | J56: =J54 -> 519.65 | K56: 0.571615 | M56: 0 | N56: 0
A57: Rural and Remote Rate Protection (RRRP) | C57: per kWh | E57: 0.0013 | F57: =F52 -> 519.65 | G57: 0.675545 | I57: ='Rates Summary'!$C$28 -> 0.0013 | J57: =J52 -> 519.65 | K57: 0.675545 | M57: 0 | N57: 0
A58: Standard Supply Service Charge | C58: Monthly | E58: 0.25 | F58: 1 | G58: 0.25 | I58: ='Rates Summary'!$C$29 -> 0.25 | J58: 1 | K58: 0.25 | M58: 0 | N58: 0
A59: Debt Retirement Charge (DRC) | C59: per kWh | E59: 0 | F59: =E18 -> 500 | G59: 0 | I59: 0 | J59: =F59 -> 500 | K59: 0 | M59: 0
A60: TOU - Off Peak | C60: per kWh | E60: 0.087 | F60: =0.65*$E$18 -> 325 | G60: 28.275 | I60: =E60 -> 0.087 | J60: =0.65*$E$18 -> 325 | K60: 28.275 | M60: 0 | N60: 0
A61: TOU - Mid Peak | C61: per kWh | E61: 0.132 | F61: =0.17*$E$18 -> 85 | G61: 11.22 | I61: =E61 -> 0.132 | J61: =0.17*$E$18 -> 85 | K61: 11.22 | M61: 0 | N61: 0
A62: TOU - On Peak | C62: per kWh | E62: 0.18 | F62: =0.18*$E$18 -> 90 | G62: 16.2 | I62: =E62 -> 0.18 | J62: =0.18*$E$18 -> 90 | K62: 16.2 | M62: 0 | N62: 0
A63: Energy - RPP - Tier 1 | C63: per kWh | E63: 0.103 | F63: =IF(AND($N$1=1, $E$18>=600), 600, IF(AND($N$1=1, AND($E$18<600, $E$18>=0)), $E$18, IF(AND($N$1=2, $E$18>=1000), 1000, IF(AND($N$1=2, AND($E$18<1000, $E$18>=0)), $E$18)))) -> 500 | G63: =F63*E63 -> 51.5 | I63: =E63 -> 0.103 | J63: =IF(AND($N$1=1, $E$18>=600), 600, IF(AND($N$1=1, AND($E$18<600, $E$18>=0)), $E$18, IF(AND($N$1=2, $E$18>=1000), 1000, IF(AND($N$1=2, AND($E$18<1000, $E$18>=0)), $E$18)))) -> 500 | K63: =J63*I63 -> 51.5 | M63: 0 | N63: 0
A64: Energy - RPP - Tier 2 | C64: per kWh | E64: 0.121 | F64: =IF(AND($N$1=1, $E$18>=600), $E$18-600, IF(AND($N$1=1, AND($E$18<600, $E$18>=0)), 0, IF(AND($N$1=2, $E$18>=1000), $E$18-1000, IF(AND($N$1=2, AND($E$18<1000, $E$18>=0)), 0)))) -> 0 | G64: =F64*E64 -> 0 | I64: =E64 -> 0.121 | J64: =IF(AND($N$1=1, $E$18>=600), $E$18-600, IF(AND($N$1=1, AND($E$18<600, $E$18>=0)), 0, IF(AND($N$1=2, $E$18>=1000), $E$18-1000, IF(AND($N$1=2, AND($E$18<1000, $E$18>=0)), 0)))) -> 0 | K64: =J64*I64 -> 0 | M64: 0
A66: Total Bill on TOU (before Taxes) | G66: =SUM(G54:G62,G53) -> 89.4112685 | K66: =SUM(K54:K62,K53) -> 91.3910935 | M66: =K66-G66 -> 1.979825 | N66: 0.02214290249
A67: HST | E67: 0.13 | G67: =G66*E67 -> 11.6234649 | I67: 0.13 | K67: =K66*I67 -> 11.88084215 | M67: =K67-G67 -> 0.25737725 | N67: 0.02214290249
A68: Total Bill (including HST) | G68: =G66+G67 -> 101.0347334 | K68: =K66+K67 -> 103.2719357 | M68: =K68-G68 -> 2.23720225 | N68: 0.02214290249
N71: =IF((G71)=0,"",(M71/G71)) -> 
A72: Total Bill on RPP (before Taxes) | G72: =SUM(G63:G64,G54:G59,G53) -> 85.2162685 | K72: =SUM(K63:K64,K54:K59,K53) -> 87.1960935 | M72: =K72-G72 -> 1.979825 | N72: =IF((G72)=0,"",(M72/G72)) -> 0.02323294642
A73: HST | E73: 0.13 | G73: =G72*E73 -> 11.0781149 | I73: 0.13 | K73: =K72*I73 -> 11.33549215 | M73: =K73-G73 -> 0.25737725 | N73: =IF((G73)=0,"",(M73/G73)) -> 0.02323294642
A74: Total Bill (including HST) | G74: =G72+G73 -> 96.2943834 | K74: =K72+K73 -> 98.53158565 | M74: =K74-G74 -> 2.23720225 | N74: =IF((G74)=0,"",(M74/G74)) -> 0.02323294642
A79: Loss Factor (%) | E79: 0.0393 | I79: 0.0393
B82: Residential (kWh) - 100, 250, 500, 750, 1000, 1500, 2000
B83: GS<50kW (kWh) - 1000, 2000, 5000, 10000, 15000
B84: GS>50kW (kW) - 60, 100, 500, 1000
B85: Large User - range appropriate for utility
B86: Lighting Classes and USL - 150 kWh and 1 kW, range appropriate for utility.
C88: Note that cells with the highlighted color shown to the left indicate quantities that are loss adjusted.

Sheet Bill Impact Resi 750kWh
K1: File Number: | M1: EB-2016-0087 | N1: 1
K3: Tab:
K4: Schedule:
K5: Page:
M7: Year 2 Custom Update
K8: Date: | M8: 2016-Aug-15
A11: Bill Impacts
A14: Customer Class: | C14: Residential | M14: =C14 -> Residential
A16: TOU / non-TOU: | C16: TOU
C18: Consumption | E18: 750 | F18: kWh
E20: 2016 Custom IR Year 1 Approved | I20: 2017 Custom IR Year 2 Proposed | M20: Impact 2017 vs. 2016
C21: Charge Unit | E21: Rate | F21: Volume | G21: Charge | I21: Rate | J21: Volume | K21: Charge | M21: $ Change | N21: % Change
E22: ($) | G22: ($) | I22: ($) | K22: ($)
A23: Monthly Service Charge | C23: Monthly | E23: 13.98 | F23: 1 | G23: =F23*E23 -> 13.98 | I23: ='Rates Summary'!$F$45 -> 18.54 | J23: 1 | K23: =J23*I23 -> 18.54 | M23: =K23-G23 -> 4.56 | N23: =IF((G23)=0,"",(M23/G23)) -> 0.3261802575
A25: Rate Rider Smart Meters Capital (2016) | C25: Monthly | E25: 0.25 | F25: 1 | G25: =F25*E25 -> 0.25 | I25: 0 | J25: 1 | K25: =J25*I25 -> 0 | M25: =K25-G25 -> -0.25 | N25: =IF((G25)=0,"",(M25/G25)) -> -1
A26: Rate Rider Recovery of Stranded Meters | C26: Monthly | E26: 3.69 | F26: 1 | G26: 3.69 | I26: 0 | J26: 1 | K26: 0 | M26: =K26-G26 -> -3.69 | N26: =IF((G26)=0,"",(M26/G26)) -> -1
F27: 1 | G27: 0 | J27: 1 | K27: 0 | M27: =K27-G27 -> 0 | N27: =IF((G27)=0,"",(M27/G27)) -> 
F28: 1 | G28: 0 | J28: 1 | K28: 0 | M28: =K28-G28 -> 0 | N28: =IF((G28)=0,"",(M28/G28)) -> 
A29: Distribution Volumetric Rate | C29: per kWh | E29: 0.0139 | F29: =$E$18 -> 750 | G29: 10.425 | I29: ='Rates Summary'!$F$57 -> 0.0082 | J29: =$E$18 -> 750 | K29: 6.15 | M29: =K29-G29 -> -4.275 | N29: =IF((G29)=0,"",(M29/G29)) -> -0.4100719424
A31: LRAM VA (2016) | C31: per kWh | E31: 0.0003 | F31: =$E$18 -> 750 | G31: 0.225 | I31: 0 | J31: =$E$18 -> 750 | K31: 0 | M31: =K31-G31 -> -0.225 | N31: =IF((G31)=0,"",(M31/G31)) -> -1
A32: Rate Rider Incremental Capital 2012 True-Up (2016) | C32: per kWh | E32: 0.0004 | F32: =$E$18 -> 750 | G32: 0.3 | I32: 0 | J32: =$E$18 -> 750 | K32: 0 | M32: -0.3 | N32: -1
C33: per kWh | F33: =$E$19 -> 0 | G33: 0 | J33: =$E$19 -> 0 | K33: 0 | M33: 0
F34: =$E$18 -> 750 | G34: 0 | J34: =$E$18 -> 750 | K34: 0 | M34: 0
F35: =$E$18 -> 750 | G35: 0 | J35: =$E$18 -> 750 | K35: 0 | M35: 0
F36: =$E$18 -> 750 | G36: 0 | J36: =$E$18 -> 750 | K36: 0 | M36: 0
F37: =$E$18 -> 750 | G37: 0 | J37: =$E$18 -> 750 | K37: 0 | M37: 0
F38: =$E$18 -> 750 | G38: 0 | J38: =$E$18 -> 750 | K38: 0 | M38: 0
A39: Sub-Total A (excluding pass through) | G39: =SUM(G23:G38) -> 28.87 | K39: =SUM(K23:K38) -> 24.69 | M39: -4.18 | N39: -0.1447869761
A40: Deferral/Variance Account Disposition Rate Rider (2016) | C40: per kWh | E40: 0.0007 | F40: =$E$18 -> 750 | G40: =F40*E40 -> 0.525 | I40: 0 | J40: =$E$18 -> 750 | K40: =J40*I40 -> 0 | M40: -0.525 | N40: -1
A41: Deferral/Variance Account Disposition Rate Rider (2017) | E41: 0 | F41: =$E$18 -> 750 | G41: =F41*E41 -> 0 | I41: ='Rates Summary'!$C$4 -> 0.0027 | J41: 750 | K41: =J41*I41 -> 2.025 | M41: 2.025 | N41: 1
A42: Deferral/Variance Account Disposition Rate Rider - Non-WMP (2017) | E42: 0 | F42: =$E$18 -> 750 | G42: 0 | I42: ='Rates Summary'!$C$5 -> -0.0051 | J42: 750 | K42: -3.825 | M42: -3.825 | N42: 1
A43: Rate Rider CGAAP Account 1576 (2016) | C43: per kWh | E43: -0.0108 | F43: =$E$18 -> 750 | G43: -8.1 | I43: 0 | J43: 750 | K43: 0 | M43: 8.1 | N43: =IF((G43)=0,"",(M43/G43)) -> -1
A44: Deferral/Variance 1580 Sub-Account CBR Class B Disposition Rate Rider - Class B Non-WMP (2017) | C44: per kWh | E44: 0 | F44: =$E$18 -> 750 | G44: =F44*E44 -> 0 | I44: ='Rates Summary'!$C$7 -> 0.0003 | J44: 750 | K44: =J44*I44 -> 0.225 | M44: =K44-G44 -> 0.225 | N44: 1
A45: Disposition of Global Adjustment (2016) Applicable to Non-RPP Customers | C45: per kWh | E45: 0.0205 | F45: 0 | G45: 0 | I45: 0 | J45: 750 | K45: 0 | M45: =K45-G45 -> 0 | N45: =IF((G45)=0,"",(M45/G45)) -> 
A46: Disposition of Global Adjustment (2017) Applicable to Non-RPP Customers | C46: per kWh | E46: 0 | F46: 0 | G46: 0 | I46: ='Rates Summary'!$C$6 -> 0.0139 | J46: 0
A47: Low Voltage Service Charge | C47: per kWh | E47: 0.0012 | F47: =$E$18 -> 750 | G47: =F47*E47 -> 0.9 | I47: ='Rates Summary'!$C$21 -> 0.0018 | J47: =$E$18 -> 750 | K47: =J47*I47 -> 1.35 | M47: =K47-G47 -> 0.45 | N47: =IF((G47)=0,"",(M47/G47)) -> 0.5
A48: Line Losses on Cost of Power | C48: per kWh | E48: =IF(ISBLANK($C$16)=TRUE, 0, IF($C$16="TOU", 0.65*$E$60+0.17*$E$61+0.18*$E$62, IF(AND($C$16="non-TOU", F64>0), E64,E63))) -> 0.11139 | F48: =$E$18*(1+$E$79)-$E$18 -> 29.475 | G48: 3.28322025 | I48: =E48 -> 0.11139 | J48: =$E$18*(1+$E$79)-$E$18 -> 29.475 | K48: =J48*I48 -> 3.28322025 | M48: 0 | N48: 0
A49: Smart Meter Entity Charge | C49: Monthly | E49: 0.79 | F49: 1 | G49: =F49*E49 -> 0.79 | I49: 0.79 | J49: 1 | K49: =J49*I49 -> 0.79 | M49: 0 | N49: 0
A50: Sub-Total B - Distribution (includes Sub-Total A) | G50: =SUM(G40:G49)+G39 -> 26.26822025 | K50: =SUM(K40:K49)+K39 -> 28.53822025 | M50: 2.27 | N50: 0.08641620857
A51: RTSR - Network | C51: per kWh | E51: 0.0071 | F51: =$E$18*(1+$E$79) -> 779.475 | G51: =F51*E51 -> 5.5342725 | I51: ='Rates Summary'!$C$23 -> 0.0073 | J51: =$E$18*(1+I79) -> 779.475 | K51: =J51*I51 -> 5.6901675 | M51: 0.155895 | N51: 0.02816901408
A52: RTSR - Line and Transformation Connection | C52: per kWh | E52: 0.0056 | F52: =F51 -> 779.475 | G52: =F52*E52 -> 4.36506 | I52: ='Rates Summary'!$C$24 -> 0.0059 | J52: =J51 -> 779.475 | K52: =J52*I52 -> 4.5989025 | M52: 0.2338425 | N52: 0.05357142857
A53: Sub-Total C - Delivery (including Sub-Total B) | G53: =SUM(G50:G52) -> 36.16755275 | K53: =SUM(K50:K52) -> 38.82729025 | M53: 2.6597375 | N53: 0.07353932732
A54: Wholesale Market Service Charge (WMSC) | C54: per kWh | E54: 0.0032 | F54: =F52 -> 779.475 | G54: =F54*E54 -> 2.49432 | I54: ='Rates Summary'!$C$25 -> 0.0032 | J54: =J52 -> 779.475 | K54: =J54*I54 -> 2.49432 | M54: 0 | N54: 0
A55: Capacity Based Recovery Charge (CBR) | C55: per kWh | E55: 0.0004 | F55: =F54 -> 779.475 | G55: 0.31179 | I55: ='Rates Summary'!$C$26 -> 0.0004 | J55: =J54 -> 779.475 | K55: 0.31179 | M55: 0 | N55: 0
A56: Ontario Electricity Support Program (OESP) | C56: per kWh | E56: 0.0011 | F56: =F51 -> 779.475 | G56: 0.8574225 | I56: ='Rates Summary'!$C$27 -> 0.0011 | J56: =J54 -> 779.475 | K56: 0.8574225 | M56: 0 | N56: 0
A57: Rural and Remote Rate Protection (RRRP) | C57: per kWh | E57: 0.0013 | F57: =F52 -> 779.475 | G57: 1.0133175 | I57: ='Rates Summary'!$C$28 -> 0.0013 | J57: =J52 -> 779.475 | K57: 1.0133175 | M57: 0 | N57: 0
A58: Standard Supply Service Charge | C58: Monthly | E58: 0.25 | F58: 1 | G58: 0.25 | I58: ='Rates Summary'!$C$29 -> 0.25 | J58: 1 | K58: 0.25 | M58: 0 | N58: 0
A59: Debt Retirement Charge (DRC) | C59: per kWh | E59: 0 | F59: =E18 -> 750 | G59: 0 | I59: 0 | J59: =F59 -> 750 | K59: 0 | M59: 0
A60: TOU - Off Peak | C60: per kWh | E60: 0.087 | F60: =0.65*$E$18 -> 487.5 | G60: 42.4125 | I60: =E60 -> 0.087 | J60: =0.65*$E$18 -> 487.5 | K60: 42.4125 | M60: 0 | N60: 0
A61: TOU - Mid Peak | C61: per kWh | E61: 0.132 | F61: =0.17*$E$18 -> 127.5 | G61: 16.83 | I61: =E61 -> 0.132 | J61: =0.17*$E$18 -> 127.5 | K61: 16.83 | M61: 0 | N61: 0
A62: TOU - On Peak | C62: per kWh | E62: 0.18 | F62: =0.18*$E$18 -> 135 | G62: 24.3 | I62: =E62 -> 0.18 | J62: =0.18*$E$18 -> 135 | K62: 24.3 | M62: 0 | N62: 0
A63: Energy - RPP - Tier 1 | C63: per kWh | E63: 0.103 | F63: =IF(AND($N$1=1, $E$18>=600), 600, IF(AND($N$1=1, AND($E$18<600, $E$18>=0)), $E$18, IF(AND($N$1=2, $E$18>=1000), 1000, IF(AND($N$1=2, AND($E$18<1000, $E$18>=0)), $E$18)))) -> 600 | G63: =F63*E63 -> 61.8 | I63: =E63 -> 0.103 | J63: =IF(AND($N$1=1, $E$18>=600), 600, IF(AND($N$1=1, AND($E$18<600, $E$18>=0)), $E$18, IF(AND($N$1=2, $E$18>=1000), 1000, IF(AND($N$1=2, AND($E$18<1000, $E$18>=0)), $E$18)))) -> 600 | K63: =J63*I63 -> 61.8 | M63: 0 | N63: 0
A64: Energy - RPP - Tier 2 | C64: per kWh | E64: 0.121 | F64: =IF(AND($N$1=1, $E$18>=600), $E$18-600, IF(AND($N$1=1, AND($E$18<600, $E$18>=0)), 0, IF(AND($N$1=2, $E$18>=1000), $E$18-1000, IF(AND($N$1=2, AND($E$18<1000, $E$18>=0)), 0)))) -> 150 | G64: =F64*E64 -> 18.15 | I64: =E64 -> 0.121 | J64: =IF(AND($N$1=1, $E$18>=600), $E$18-600, IF(AND($N$1=1, AND($E$18<600, $E$18>=0)), 0, IF(AND($N$1=2, $E$18>=1000), $E$18-1000, IF(AND($N$1=2, AND($E$18<1000, $E$18>=0)), 0)))) -> 150 | K64: =J64*I64 -> 18.15 | M64: 0 | N64: 0
A66: Total Bill on TOU (before Taxes) | G66: =SUM(G54:G62,G53) -> 124.6369027 | K66: =SUM(K54:K62,K53) -> 127.2966402 | M66: =K66-G66 -> 2.6597375 | N66: 0.02133988764
A67: HST | E67: 0.13 | G67: =G66*E67 -> 16.20279736 | I67: 0.13 | K67: =K66*I67 -> 16.54856323 | M67: =K67-G67 -> 0.345765875 | N67: 0.02133988764
A68: Total Bill (including HST) | G68: =G66+G67 -> 140.8397001 | K68: =K66+K67 -> 143.8452035 | M68: =K68-G68 -> 3.005503375 | N68: 0.02133988764
N71: =IF((G71)=0,"",(M71/G71)) -> 
A72: Total Bill on RPP (before Taxes) | G72: =SUM(G63:G64,G54:G59,G53) -> 121.0444027 | K72: =SUM(K63:K64,K54:K59,K53) -> 123.7041402 | M72: =K72-G72 -> 2.6597375 | N72: =IF((G72)=0,"",(M72/G72)) -> 0.02197323825
A73: HST | E73: 0.13 | G73: =G72*E73 -> 15.73577236 | I73: 0.13 | K73: =K72*I73 -> 16.08153823 | M73: =K73-G73 -> 0.345765875 | N73: =IF((G73)=0,"",(M73/G73)) -> 0.02197323825
A74: Total Bill (including HST) | G74: =G72+G73 -> 136.7801751 | K74: =K72+K73 -> 139.7856785 | M74: =K74-G74 -> 3.005503375 | N74: =IF((G74)=0,"",(M74/G74)) -> 0.02197323825
A79: Loss Factor (%) | E79: 0.0393 | I79: 0.0393
B82: Residential (kWh) - 100, 250, 500, 750, 1000, 1500, 2000
B83: GS<50kW (kWh) - 1000, 2000, 5000, 10000, 15000
B84: GS>50kW (kW) - 60, 100, 500, 1000
B85: Large User - range appropriate for utility
B86: Lighting Classes and USL - 150 kWh and 1 kW, range appropriate for utility.
C88: Note that cells with the highlighted color shown to the left indicate quantities that are loss adjusted.

Sheet Bill Impact Resi 1000kWh
K1: File Number: | M1: EB-2016-0087 | N1: 1
K3: Tab:
K4: Schedule:
K5: Page:
M7: Year 2 Custom Update
K8: Date: | M8: 2016-Aug-15
A11: Bill Impacts
A14: Customer Class: | C14: Residential | M14: =C14 -> Residential
A16: TOU / non-TOU: | C16: TOU
C18: Consumption | E18: 1000 | F18: kWh
E20: 2016 Custom IR Year 1 Approved | I20: 2017 Custom IR Year 2 Proposed | M20: Impact 2017 vs. 2016
C21: Charge Unit | E21: Rate | F21: Volume | G21: Charge | I21: Rate | J21: Volume | K21: Charge | M21: $ Change | N21: % Change
E22: ($) | G22: ($) | I22: ($) | K22: ($)
A23: Monthly Service Charge | C23: Monthly | E23: 13.98 | F23: 1 | G23: =F23*E23 -> 13.98 | I23: ='Rates Summary'!$F$45 -> 18.54 | J23: 1 | K23: =J23*I23 -> 18.54 | M23: =K23-G23 -> 4.56 | N23: =IF((G23)=0,"",(M23/G23)) -> 0.3261802575
A25: Rate Rider Smart Meters Capital (2016) | C25: Monthly | E25: 0.25 | F25: 1 | G25: =F25*E25 -> 0.25 | I25: 0 | J25: 1 | K25: =J25*I25 -> 0 | M25: =K25-G25 -> -0.25 | N25: =IF((G25)=0,"",(M25/G25)) -> -1
A26: Rate Rider Recovery of Stranded Meters | C26: Monthly | E26: 3.69 | F26: 1 | G26: 3.69 | I26: 0 | J26: 1 | K26: 0 | M26: =K26-G26 -> -3.69 | N26: =IF((G26)=0,"",(M26/G26)) -> -1
F27: 1 | G27: 0 | J27: 1 | K27: 0 | M27: =K27-G27 -> 0 | N27: =IF((G27)=0,"",(M27/G27)) -> 
F28: 1 | G28: 0 | J28: 1 | K28: 0 | M28: =K28-G28 -> 0 | N28: =IF((G28)=0,"",(M28/G28)) -> 
A29: Distribution Volumetric Rate | C29: per kWh | E29: 0.0139 | F29: =$E$18 -> 1000 | G29: 13.9 | I29: ='Rates Summary'!$F$57 -> 0.0082 | J29: =$E$18 -> 1000 | K29: 8.2 | M29: =K29-G29 -> -5.7 | N29: =IF((G29)=0,"",(M29/G29)) -> -0.4100719424
A31: LRAM VA (2016) | C31: per kWh | E31: 0.0003 | F31: =$E$18 -> 1000 | G31: 0.3 | I31: 0 | J31: =$E$18 -> 1000 | K31: 0 | M31: =K31-G31 -> -0.3 | N31: =IF((G31)=0,"",(M31/G31)) -> -1
A32: Rate Rider Incremental Capital 2012 True-Up (2016) | C32: per kWh | E32: 0.0004 | F32: =$E$18 -> 1000 | G32: 0.4 | I32: 0 | J32: =$E$18 -> 1000 | K32: 0 | M32: -0.4 | N32: -1
C33: per kWh | F33: =$E$19 -> 0 | G33: 0 | J33: =$E$19 -> 0 | K33: 0 | M33: 0
F34: =$E$18 -> 1000 | G34: 0 | J34: =$E$18 -> 1000 | K34: 0 | M34: 0
F35: =$E$18 -> 1000 | G35: 0 | J35: =$E$18 -> 1000 | K35: 0 | M35: 0
F36: =$E$18 -> 1000 | G36: 0 | J36: =$E$18 -> 1000 | K36: 0 | M36: 0
F37: =$E$18 -> 1000 | G37: 0 | J37: =$E$18 -> 1000 | K37: 0 | M37: 0
F38: =$E$18 -> 1000 | G38: 0 | J38: =$E$18 -> 1000 | K38: 0 | M38: 0
A39: Sub-Total A (excluding pass through) | G39: =SUM(G23:G38) -> 32.52 | K39: =SUM(K23:K38) -> 26.74 | M39: -5.78 | N39: -0.1777367774
A40: Deferral/Variance Account Disposition Rate Rider (2016) | C40: per kWh | E40: 0.0007 | F40: =$E$18 -> 1000 | G40: =F40*E40 -> 0.7 | I40: 0 | J40: =$E$18 -> 1000 | K40: =J40*I40 -> 0 | M40: -0.7 | N40: -1
A41: Deferral/Variance Account Disposition Rate Rider (2017) | E41: 0 | F41: =$E$18 -> 1000 | G41: =F41*E41 -> 0 | I41: ='Rates Summary'!$C$4 -> 0.0027 | J41: 1000 | K41: =J41*I41 -> 2.7 | M41: 2.7 | N41: 1
A42: Deferral/Variance Account Disposition Rate Rider - Non-WMP (2017) | E42: 0 | F42: =$E$18 -> 1000 | G42: 0 | I42: ='Rates Summary'!$C$5 -> -0.0051 | J42: 1000 | K42: -5.1 | M42: -5.1 | N42: 1
A43: Rate Rider CGAAP Account 1576 (2016) | C43: per kWh | E43: -0.0108 | F43: =$E$18 -> 1000 | G43: -10.8 | I43: 0 | J43: 1000 | K43: 0 | M43: 10.8 | N43: =IF((G43)=0,"",(M43/G43)) -> -1
A44: Deferral/Variance 1580 Sub-Account CBR Class B Disposition Rate Rider - Class B Non-WMP (2017) | C44: per kWh | E44: 0 | F44: =$E$18 -> 1000 | G44: =F44*E44 -> 0 | I44: ='Rates Summary'!$C$7 -> 0.0003 | J44: 1000 | K44: =J44*I44 -> 0.3 | M44: =K44-G44 -> 0.3 | N44: 1
A45: Disposition of Global Adjustment (2016) Applicable to Non-RPP Customers | C45: per kWh | E45: 0.0205 | F45: 0 | G45: 0 | I45: 0 | J45: 1000 | K45: 0 | M45: =K45-G45 -> 0 | N45: =IF((G45)=0,"",(M45/G45)) -> 
A46: Disposition of Global Adjustment (2017) Applicable to Non-RPP Customers | C46: per kWh | E46: 0 | F46: 0 | G46: 0 | I46: ='Rates Summary'!$C$6 -> 0.0139 | J46: 0 | K46: =J46*I46 -> 0 | M46: =K46-G46 -> 0
A47: Low Voltage Service Charge | C47: per kWh | E47: 0.0012 | F47: =$E$18 -> 1000 | G47: =F47*E47 -> 1.2 | I47: ='Rates Summary'!$C$21 -> 0.0018 | J47: =$E$18 -> 1000 | K47: =J47*I47 -> 1.8 | M47: =K47-G47 -> 0.6 | N47: =IF((G47)=0,"",(M47/G47)) -> 0.5
A48: Line Losses on Cost of Power | C48: per kWh | E48: =IF(ISBLANK($C$16)=TRUE, 0, IF($C$16="TOU", 0.65*$E$60+0.17*$E$61+0.18*$E$62, IF(AND($C$16="non-TOU", F64>0), E64,E63))) -> 0.11139 | F48: =$E$18*(1+$E$79)-$E$18 -> 39.3 | G48: 4.377627 | I48: =E48 -> 0.11139 | J48: =$E$18*(1+$E$79)-$E$18 -> 39.3 | K48: =J48*I48 -> 4.377627 | M48: 0 | N48: 0
A49: Smart Meter Entity Charge | C49: Monthly | E49: 0.79 | F49: 1 | G49: =F49*E49 -> 0.79 | I49: 0.79 | J49: 1 | K49: =J49*I49 -> 0.79 | M49: 0 | N49: 0
A50: Sub-Total B - Distribution (includes Sub-Total A) | G50: =SUM(G40:G49)+G39 -> 28.787627 | K50: =SUM(K40:K49)+K39 -> 31.607627 | M50: 2.82 | N50: 0.09795875152
A51: RTSR - Network | C51: per kWh | E51: 0.0071 | F51: =$E$18*(1+$E$79) -> 1039.3 | G51: =F51*E51 -> 7.37903 | I51: ='Rates Summary'!$C$23 -> 0.0073 | J51: =$E$18*(1+I79) -> 1039.3 | K51: =J51*I51 -> 7.58689 | M51: 0.20786 | N51: 0.02816901408
A52: RTSR - Line and Transformation Connection | C52: per kWh | E52: 0.0056 | F52: =F51 -> 1039.3 | G52: =F52*E52 -> 5.82008 | I52: ='Rates Summary'!$C$24 -> 0.0059 | J52: =J51 -> 1039.3 | K52: =J52*I52 -> 6.13187 | M52: 0.31179 | N52: 0.05357142857
A53: Sub-Total C - Delivery (including Sub-Total B) | G53: =SUM(G50:G52) -> 41.986737 | K53: =SUM(K50:K52) -> 45.326387 | M53: 3.33965 | N53: 0.07954059397
A54: Wholesale Market Service Charge (WMSC) | C54: per kWh | E54: 0.0032 | F54: =F52 -> 1039.3 | G54: =F54*E54 -> 3.32576 | I54: ='Rates Summary'!$C$25 -> 0.0032 | J54: =J52 -> 1039.3 | K54: =J54*I54 -> 3.32576 | M54: 0 | N54: 0
A55: Capacity Based Recovery Charge (CBR) | C55: per kWh | E55: 0.0004 | F55: =F54 -> 1039.3 | G55: 0.41572 | I55: ='Rates Summary'!$C$26 -> 0.0004 | J55: =J54 -> 1039.3 | K55: 0.41572 | M55: 0 | N55: 0
A56: Ontario Electricity Support Program (OESP) | C56: per kWh | E56: 0.0011 | F56: =F51 -> 1039.3 | G56: 1.14323 | I56: ='Rates Summary'!$C$27 -> 0.0011 | J56: =J54 -> 1039.3 | K56: 1.14323 | M56: 0 | N56: 0
A57: Rural and Remote Rate Protection (RRRP) | C57: per kWh | E57: 0.0013 | F57: =F52 -> 1039.3 | G57: 1.35109 | I57: ='Rates Summary'!$C$28 -> 0.0013 | J57: =J52 -> 1039.3 | K57: 1.35109 | M57: 0 | N57: 0
A58: Standard Supply Service Charge | C58: Monthly | E58: 0.25 | F58: 1 | G58: 0.25 | I58: ='Rates Summary'!$C$29 -> 0.25 | J58: 1 | K58: 0.25 | M58: 0 | N58: 0
A59: Debt Retirement Charge (DRC) | C59: per kWh | E59: 0 | F59: =E18 -> 1000 | G59: 0 | I59: 0 | J59: =F59 -> 1000 | K59: 0 | M59: 0
A60: TOU - Off Peak | C60: per kWh | E60: 0.087 | F60: =0.65*$E$18 -> 650 | G60: 56.55 | I60: =E60 -> 0.087 | J60: =0.65*$E$18 -> 650 | K60: 56.55 | M60: 0 | N60: 0
A61: TOU - Mid Peak | C61: per kWh | E61: 0.132 | F61: =0.17*$E$18 -> 170 | G61: 22.44 | I61: =E61 -> 0.132 | J61: =0.17*$E$18 -> 170 | K61: 22.44 | M61: 0 | N61: 0
A62: TOU - On Peak | C62: per kWh | E62: 0.18 | F62: =0.18*$E$18 -> 180 | G62: 32.4 | I62: =E62 -> 0.18 | J62: =0.18*$E$18 -> 180 | K62: 32.4 | M62: 0 | N62: 0
A63: Energy - RPP - Tier 1 | C63: per kWh | E63: 0.103 | F63: =IF(AND($N$1=1, $E$18>=600), 600, IF(AND($N$1=1, AND($E$18<600, $E$18>=0)), $E$18, IF(AND($N$1=2, $E$18>=1000), 1000, IF(AND($N$1=2, AND($E$18<1000, $E$18>=0)), $E$18)))) -> 600 | G63: =F63*E63 -> 61.8 | I63: =E63 -> 0.103 | J63: =IF(AND($N$1=1, $E$18>=600), 600, IF(AND($N$1=1, AND($E$18<600, $E$18>=0)), $E$18, IF(AND($N$1=2, $E$18>=1000), 1000, IF(AND($N$1=2, AND($E$18<1000, $E$18>=0)), $E$18)))) -> 600 | K63: =J63*I63 -> 61.8 | M63: 0 | N63: 0
A64: Energy - RPP - Tier 2 | C64: per kWh | E64: 0.121 | F64: =IF(AND($N$1=1, $E$18>=600), $E$18-600, IF(AND($N$1=1, AND($E$18<600, $E$18>=0)), 0, IF(AND($N$1=2, $E$18>=1000), $E$18-1000, IF(AND($N$1=2, AND($E$18<1000, $E$18>=0)), 0)))) -> 400 | G64: =F64*E64 -> 48.4 | I64: =E64 -> 0.121 | J64: =IF(AND($N$1=1, $E$18>=600), $E$18-600, IF(AND($N$1=1, AND($E$18<600, $E$18>=0)), 0, IF(AND($N$1=2, $E$18>=1000), $E$18-1000, IF(AND($N$1=2, AND($E$18<1000, $E$18>=0)), 0)))) -> 400 | K64: =J64*I64 -> 48.4 | M64: 0 | N64: 0
A66: Total Bill on TOU (before Taxes) | G66: =SUM(G54:G62,G53) -> 159.862537 | K66: =SUM(K54:K62,K53) -> 163.202187 | M66: =K66-G66 -> 3.33965 | N66: 0.02089076067
A67: HST | E67: 0.13 | G67: =G66*E67 -> 20.78212981 | I67: 0.13 | K67: =K66*I67 -> 21.21628431 | M67: =K67-G67 -> 0.4341545 | N67: 0.02089076067
A68: Total Bill (including HST) | G68: =G66+G67 -> 180.6446668 | K68: =K66+K67 -> 184.4184713 | M68: =K68-G68 -> 3.7738045 | N68: 0.02089076067
N71: =IF((G71)=0,"",(M71/G71)) -> 
A72: Total Bill on RPP (before Taxes) | G72: =SUM(G63:G64,G54:G59,G53) -> 158.672537 | K72: =SUM(K63:K64,K54:K59,K53) -> 162.012187 | M72: =K72-G72 -> 3.33965 | N72: =IF((G72)=0,"",(M72/G72)) -> 0.02104743557
A73: HST | E73: 0.13 | G73: =G72*E73 -> 20.62742981 | I73: 0.13 | K73: =K72*I73 -> 21.06158431 | M73: =K73-G73 -> 0.4341545 | N73: =IF((G73)=0,"",(M73/G73)) -> 0.02104743557
A74: Total Bill (including HST) | G74: =G72+G73 -> 179.2999668 | K74: =K72+K73 -> 183.0737713 | M74: =K74-G74 -> 3.7738045 | N74: =IF((G74)=0,"",(M74/G74)) -> 0.02104743557
A79: Loss Factor (%) | E79: 0.0393 | I79: 0.0393
B82: Residential (kWh) - 100, 250, 500, 750, 1000, 1500, 2000
B83: GS<50kW (kWh) - 1000, 2000, 5000, 10000, 15000
B84: GS>50kW (kW) - 60, 100, 500, 1000
B85: Large User - range appropriate for utility
B86: Lighting Classes and USL - 150 kWh and 1 kW, range appropriate for utility.
C88: Note that cells with the highlighted color shown to the left indicate quantities that are loss adjusted.

Sheet Bill Impact Resi 1500kWh
K1: File Number: | M1: EB-2016-0087 | N1: 1
K3: Tab:
K4: Schedule:
K5: Page:
M7: Year 2 Custom Update
K8: Date: | M8: 2016-Aug-15
A11: Bill Impacts
A14: Customer Class: | C14: Residential | M14: =C14 -> Residential
A16: TOU / non-TOU: | C16: TOU
C18: Consumption | E18: 1500 | F18: kWh
E20: 2016 Custom IR Year 1 Approved | I20: 2017 Custom IR Year 2 Proposed | M20: Impact 2017 vs. 2016
C21: Charge Unit | E21: Rate | F21: Volume | G21: Charge | I21: Rate | J21: Volume | K21: Charge | M21: $ Change | N21: % Change
E22: ($) | G22: ($) | I22: ($) | K22: ($)
A23: Monthly Service Charge | C23: Monthly | E23: 13.98 | F23: 1 | G23: =F23*E23 -> 13.98 | I23: ='Rates Summary'!$F$45 -> 18.54 | J23: 1 | K23: =J23*I23 -> 18.54 | M23: =K23-G23 -> 4.56 | N23: =IF((G23)=0,"",(M23/G23)) -> 0.3261802575
A25: Rate Rider Smart Meters Capital (2016) | C25: Monthly | E25: 0.25 | F25: 1 | G25: =F25*E25 -> 0.25 | I25: 0 | J25: 1 | K25: =J25*I25 -> 0 | M25: =K25-G25 -> -0.25 | N25: =IF((G25)=0,"",(M25/G25)) -> -1
A26: Rate Rider Recovery of Stranded Meters | C26: Monthly | E26: 3.69 | F26: 1 | G26: 3.69 | I26: 0 | J26: 1 | K26: 0 | M26: =K26-G26 -> -3.69 | N26: =IF((G26)=0,"",(M26/G26)) -> -1
F27: 1 | G27: 0 | J27: 1 | K27: 0 | M27: =K27-G27 -> 0 | N27: =IF((G27)=0,"",(M27/G27)) -> 
F28: 1 | G28: 0 | J28: 1 | K28: 0 | M28: =K28-G28 -> 0 | N28: =IF((G28)=0,"",(M28/G28)) -> 
A29: Distribution Volumetric Rate | C29: per kWh | E29: 0.0139 | F29: =$E$18 -> 1500 | G29: 20.85 | I29: ='Rates Summary'!$F$57 -> 0.0082 | J29: =$E$18 -> 1500 | K29: 12.3 | M29: =K29-G29 -> -8.55 | N29: =IF((G29)=0,"",(M29/G29)) -> -0.4100719424
A31: LRAM VA (2016) | C31: per kWh | E31: 0.0003 | F31: =$E$18 -> 1500 | G31: 0.45 | I31: 0 | J31: =$E$18 -> 1500 | K31: 0 | M31: =K31-G31 -> -0.45 | N31: =IF((G31)=0,"",(M31/G31)) -> -1
A32: Rate Rider Incremental Capital 2012 True-Up (2016) | C32: per kWh | E32: 0.0004 | F32: =$E$18 -> 1500 | G32: 0.6 | I32: 0 | J32: =$E$18 -> 1500 | K32: 0 | M32: -0.6 | N32: -1
C33: per kWh | F33: =$E$19 -> 0 | G33: 0 | J33: =$E$19 -> 0 | K33: 0 | M33: 0
F34: =$E$18 -> 1500 | G34: 0 | J34: =$E$18 -> 1500 | K34: 0 | M34: 0
F35: =$E$18 -> 1500 | G35: 0 | J35: =$E$18 -> 1500 | K35: 0 | M35: 0
F36: =$E$18 -> 1500 | G36: 0 | J36: =$E$18 -> 1500 | K36: 0 | M36: 0
F37: =$E$18 -> 1500 | G37: 0 | J37: =$E$18 -> 1500 | K37: 0 | M37: 0
F38: =$E$18 -> 1500 | G38: 0 | J38: =$E$18 -> 1500 | K38: 0 | M38: 0
A39: Sub-Total A (excluding pass through) | G39: =SUM(G23:G38) -> 39.82 | K39: =SUM(K23:K38) -> 30.84 | M39: -8.98 | N39: -0.2255148167
A40: Deferral/Variance Account Disposition Rate Rider (2016) | C40: per kWh | E40: 0.0007 | F40: =$E$18 -> 1500 | G40: =F40*E40 -> 1.05 | I40: 0 | J40: =$E$18 -> 1500 | K40: =J40*I40 -> 0 | M40: -1.05 | N40: -1
A41: Deferral/Variance Account Disposition Rate Rider (2017) | E41: 0 | F41: =$E$18 -> 1500 | G41: =F41*E41 -> 0 | I41: ='Rates Summary'!$C$4 -> 0.0027 | J41: 1500 | K41: =J41*I41 -> 4.05 | M41: 4.05 | N41: 1
A42: Deferral/Variance Account Disposition Rate Rider - Non-WMP (2017) | E42: 0 | F42: =$E$18 -> 1500 | G42: 0 | I42: ='Rates Summary'!$C$5 -> -0.0051 | J42: 1500 | K42: -7.65 | M42: -7.65 | N42: 1
A43: Rate Rider CGAAP Account 1576 (2016) | C43: per kWh | E43: -0.0108 | F43: =$E$18 -> 1500 | G43: -16.2 | I43: 0 | J43: 1500 | K43: 0 | M43: 16.2 | N43: =IF((G43)=0,"",(M43/G43)) -> -1
A44: Deferral/Variance 1580 Sub-Account CBR Class B Disposition Rate Rider - Class B Non-WMP (2017) | C44: per kWh | E44: 0 | F44: =$E$18 -> 1500 | G44: =F44*E44 -> 0 | I44: ='Rates Summary'!$C$7 -> 0.0003 | J44: 1500 | K44: =J44*I44 -> 0.45 | M44: =K44-G44 -> 0.45 | N44: 1
A45: Disposition of Global Adjustment (2016) Applicable to Non-RPP Customers | C45: per kWh | E45: 0.0205 | F45: 0 | G45: 0 | I45: 0 | J45: 1500 | K45: 0 | M45: =K45-G45 -> 0 | N45: =IF((G45)=0,"",(M45/G45)) -> 
A46: Disposition of Global Adjustment (2017) Applicable to Non-RPP Customers | C46: per kWh | E46: 0 | F46: 0 | G46: 0 | I46: ='Rates Summary'!$C$6 -> 0.0139 | J46: 0 | K46: =J46*I46 -> 0 | M46: =K46-G46 -> 0
A47: Low Voltage Service Charge | C47: per kWh | E47: 0.0012 | F47: =$E$18 -> 1500 | G47: =F47*E47 -> 1.8 | I47: ='Rates Summary'!$C$21 -> 0.0018 | J47: =$E$18 -> 1500 | K47: =J47*I47 -> 2.7 | M47: =K47-G47 -> 0.9 | N47: =IF((G47)=0,"",(M47/G47)) -> 0.5
A48: Line Losses on Cost of Power | C48: per kWh | E48: =IF(ISBLANK($C$16)=TRUE, 0, IF($C$16="TOU", 0.65*$E$60+0.17*$E$61+0.18*$E$62, IF(AND($C$16="non-TOU", F64>0), E64,E63))) -> 0.11139 | F48: =$E$18*(1+$E$79)-$E$18 -> 58.95 | G48: 6.5664405 | I48: =E48 -> 0.11139 | J48: =$E$18*(1+$E$79)-$E$18 -> 58.95 | K48: =J48*I48 -> 6.5664405 | M48: 0 | N48: 0
A49: Smart Meter Entity Charge | C49: Monthly | E49: 0.79 | F49: 1 | G49: =F49*E49 -> 0.79 | I49: 0.79 | J49: 1 | K49: =J49*I49 -> 0.79 | M49: 0 | N49: 0
A50: Sub-Total B - Distribution (includes Sub-Total A) | G50: =SUM(G40:G49)+G39 -> 33.8264405 | K50: =SUM(K40:K49)+K39 -> 37.7464405 | M50: 3.92 | N50: 0.1158856782
A51: RTSR - Network | C51: per kWh | E51: 0.0071 | F51: =$E$18*(1+$E$79) -> 1558.95 | G51: =F51*E51 -> 11.068545 | I51: ='Rates Summary'!$C$23 -> 0.0073 | J51: =$E$18*(1+I79) -> 1558.95 | K51: =J51*I51 -> 11.380335 | M51: 0.31179 | N51: 0.02816901408
A52: RTSR - Line and Transformation Connection | C52: per kWh | E52: 0.0056 | F52: =F51 -> 1558.95 | G52: =F52*E52 -> 8.73012 | I52: ='Rates Summary'!$C$24 -> 0.0059 | J52: =J51 -> 1558.95 | K52: =J52*I52 -> 9.197805 | M52: 0.467685 | N52: 0.05357142857
A53: Sub-Total C - Delivery (including Sub-Total B) | G53: =SUM(G50:G52) -> 53.6251055 | K53: =SUM(K50:K52) -> 58.3245805 | M53: 4.699475 | N53: 0.08763572502
A54: Wholesale Market Service Charge (WMSC) | C54: per kWh | E54: 0.0032 | F54: =F52 -> 1558.95 | G54: =F54*E54 -> 4.98864 | I54: ='Rates Summary'!$C$25 -> 0.0032 | J54: =J52 -> 1558.95 | K54: =J54*I54 -> 4.98864 | M54: 0 | N54: 0
A55: Capacity Based Recovery Charge (CBR) | C55: per kWh | E55: 0.0004 | F55: =F54 -> 1558.95 | G55: 0.62358 | I55: ='Rates Summary'!$C$26 -> 0.0004 | J55: =J54 -> 1558.95 | K55: 0.62358 | M55: 0 | N55: 0
A56: Ontario Electricity Support Program (OESP) | C56: per kWh | E56: 0.0011 | F56: =F51 -> 1558.95 | G56: 1.714845 | I56: ='Rates Summary'!$C$27 -> 0.0011 | J56: =J54 -> 1558.95 | K56: 1.714845 | M56: 0 | N56: 0
A57: Rural and Remote Rate Protection (RRRP) | C57: per kWh | E57: 0.0013 | F57: =F52 -> 1558.95 | G57: 2.026635 | I57: ='Rates Summary'!$C$28 -> 0.0013 | J57: =J52 -> 1558.95 | K57: 2.026635 | M57: 0 | N57: 0
A58: Standard Supply Service Charge | C58: Monthly | E58: 0.25 | F58: 1 | G58: 0.25 | I58: ='Rates Summary'!$C$29 -> 0.25 | J58: 1 | K58: 0.25 | M58: 0 | N58: 0
A59: Debt Retirement Charge (DRC) | C59: per kWh | E59: 0 | F59: =E18 -> 1500 | G59: 0 | I59: 0 | J59: =F59 -> 1500 | K59: 0 | M59: 0
A60: TOU - Off Peak | C60: per kWh | E60: 0.087 | F60: =0.65*$E$18 -> 975 | G60: 84.825 | I60: =E60 -> 0.087 | J60: =0.65*$E$18 -> 975 | K60: 84.825 | M60: 0 | N60: 0
A61: TOU - Mid Peak | C61: per kWh | E61: 0.132 | F61: =0.17*$E$18 -> 255 | G61: 33.66 | I61: =E61 -> 0.132 | J61: =0.17*$E$18 -> 255 | K61: 33.66 | M61: 0 | N61: 0
A62: TOU - On Peak | C62: per kWh | E62: 0.18 | F62: =0.18*$E$18 -> 270 | G62: 48.6 | I62: =E62 -> 0.18 | J62: =0.18*$E$18 -> 270 | K62: 48.6 | M62: 0 | N62: 0
A63: Energy - RPP - Tier 1 | C63: per kWh | E63: 0.103 | F63: =IF(AND($N$1=1, $E$18>=600), 600, IF(AND($N$1=1, AND($E$18<600, $E$18>=0)), $E$18, IF(AND($N$1=2, $E$18>=1000), 1000, IF(AND($N$1=2, AND($E$18<1000, $E$18>=0)), $E$18)))) -> 600 | G63: =F63*E63 -> 61.8 | I63: =E63 -> 0.103 | J63: =IF(AND($N$1=1, $E$18>=600), 600, IF(AND($N$1=1, AND($E$18<600, $E$18>=0)), $E$18, IF(AND($N$1=2, $E$18>=1000), 1000, IF(AND($N$1=2, AND($E$18<1000, $E$18>=0)), $E$18)))) -> 600 | K63: =J63*I63 -> 61.8 | M63: 0 | N63: 0
A64: Energy - RPP - Tier 2 | C64: per kWh | E64: 0.121 | F64: =IF(AND($N$1=1, $E$18>=600), $E$18-600, IF(AND($N$1=1, AND($E$18<600, $E$18>=0)), 0, IF(AND($N$1=2, $E$18>=1000), $E$18-1000, IF(AND($N$1=2, AND($E$18<1000, $E$18>=0)), 0)))) -> 900 | G64: =F64*E64 -> 108.9 | I64: =E64 -> 0.121 | J64: =IF(AND($N$1=1, $E$18>=600), $E$18-600, IF(AND($N$1=1, AND($E$18<600, $E$18>=0)), 0, IF(AND($N$1=2, $E$18>=1000), $E$18-1000, IF(AND($N$1=2, AND($E$18<1000, $E$18>=0)), 0)))) -> 900 | K64: =J64*I64 -> 108.9 | M64: 0 | N64: 0
A66: Total Bill on TOU (before Taxes) | G66: =SUM(G54:G62,G53) -> 230.3138055 | K66: =SUM(K54:K62,K53) -> 235.0132805 | M66: =K66-G66 -> 4.699475 | N66: 0.02040466046
A67: HST | E67: 0.13 | G67: =G66*E67 -> 29.94079471 | I67: 0.13 | K67: =K66*I67 -> 30.55172646 | M67: =K67-G67 -> 0.61093175 | N67: 0.02040466046
A68: Total Bill (including HST) | G68: =G66+G67 -> 260.2546002 | K68: =K66+K67 -> 265.565007 | M68: =K68-G68 -> 5.31040675 | N68: 0.02040466046
N71: =IF((G71)=0,"",(M71/G71)) -> 
A72: Total Bill on RPP (before Taxes) | G72: =SUM(G63:G64,G54:G59,G53) -> 233.9288055 | K72: =SUM(K63:K64,K54:K59,K53) -> 238.6282805 | M72: =K72-G72 -> 4.699475 | N72: =IF((G72)=0,"",(M72/G72)) -> 0.02008933868
A73: HST | E73: 0.13 | G73: =G72*E73 -> 30.41074471 | I73: 0.13 | K73: =K72*I73 -> 31.02167646 | M73: =K73-G73 -> 0.61093175 | N73: =IF((G73)=0,"",(M73/G73)) -> 0.02008933868
A74: Total Bill (including HST) | G74: =G72+G73 -> 264.3395502 | K74: =K72+K73 -> 269.649957 | M74: =K74-G74 -> 5.31040675 | N74: =IF((G74)=0,"",(M74/G74)) -> 0.02008933868
A79: Loss Factor (%) | E79: 0.0393 | I79: 0.0393
B82: Residential (kWh) - 100, 250, 500, 750, 1000, 1500, 2000
B83: GS<50kW (kWh) - 1000, 2000, 5000, 10000, 15000
B84: GS>50kW (kW) - 60, 100, 500, 1000
B85: Large User - range appropriate for utility
B86: Lighting Classes and USL - 150 kWh and 1 kW, range appropriate for utility.
C88: Note that cells with the highlighted color shown to the left indicate quantities that are loss adjusted.

Sheet Bill Impact Resi 2000kWh
K1: File Number: | M1: EB-2016-0087 | N1: 1
K3: Tab:
K4: Schedule:
K5: Page:
M7: Year 2 Custom Update
K8: Date: | M8: 2016-Aug-15
A11: Bill Impacts
A14: Customer Class: | C14: Residential | M14: =C14 -> Residential
A16: TOU / non-TOU: | C16: TOU
C18: Consumption | E18: 2000 | F18: kWh
E20: 2016 Custom IR Year 1 Approved | I20: 2017 Custom IR Year 2 Proposed | M20: Impact 2017 vs. 2016
C21: Charge Unit | E21: Rate | F21: Volume | G21: Charge | I21: Rate | J21: Volume | K21: Charge | M21: $ Change | N21: % Change
E22: ($) | G22: ($) | I22: ($) | K22: ($)
A23: Monthly Service Charge | C23: Monthly | E23: 13.98 | F23: 1 | G23: =F23*E23 -> 13.98 | I23: ='Rates Summary'!$F$45 -> 18.54 | J23: 1 | K23: =J23*I23 -> 18.54 | M23: =K23-G23 -> 4.56 | N23: =IF((G23)=0,"",(M23/G23)) -> 0.3261802575
A25: Rate Rider Smart Meters Capital (2016) | C25: Monthly | E25: 0.25 | F25: 1 | G25: =F25*E25 -> 0.25 | I25: 0 | J25: 1 | K25: =J25*I25 -> 0 | M25: =K25-G25 -> -0.25 | N25: =IF((G25)=0,"",(M25/G25)) -> -1
A26: Rate Rider Recovery of Stranded Meters | C26: Monthly | E26: 3.69 | F26: 1 | G26: 3.69 | I26: 0 | J26: 1 | K26: 0 | M26: =K26-G26 -> -3.69 | N26: =IF((G26)=0,"",(M26/G26)) -> -1
F27: 1 | G27: 0 | J27: 1 | K27: 0 | M27: =K27-G27 -> 0 | N27: =IF((G27)=0,"",(M27/G27)) -> 
F28: 1 | G28: 0 | J28: 1 | K28: 0 | M28: =K28-G28 -> 0 | N28: =IF((G28)=0,"",(M28/G28)) -> 
A29: Distribution Volumetric Rate | C29: per kWh | E29: 0.0139 | F29: =$E$18 -> 2000 | G29: 27.8 | I29: ='Rates Summary'!$F$57 -> 0.0082 | J29: =$E$18 -> 2000 | K29: 16.4 | M29: =K29-G29 -> -11.4 | N29: =IF((G29)=0,"",(M29/G29)) -> -0.4100719424
A31: LRAM VA (2016) | C31: per kWh | E31: 0.0003 | F31: =$E$18 -> 2000 | G31: 0.6 | I31: 0 | J31: =$E$18 -> 2000 | K31: 0 | M31: =K31-G31 -> -0.6 | N31: =IF((G31)=0,"",(M31/G31)) -> -1
A32: Rate Rider Incremental Capital 2012 True-Up (2016) | C32: per kWh | E32: 0.0004 | F32: 2000 | G32: 0.8 | I32: 0 | J32: 2000 | K32: 0 | M32: -0.8 | N32: -1
C33: per kWh | F33: =$E$19 -> 0 | G33: 0 | J33: =$E$19 -> 0 | K33: 0 | M33: 0
F34: 2000 | G34: 0 | J34: 2000 | K34: 0 | M34: 0
F35: 2000 | G35: 0 | J35: 2000 | K35: 0 | M35: 0
F36: 2000 | G36: 0 | J36: 2000 | K36: 0 | M36: 0
F37: 2000 | G37: 0 | J37: 2000 | K37: 0 | M37: 0
F38: 2000 | G38: 0 | J38: 2000 | K38: 0 | M38: 0
A39: Sub-Total A (excluding pass through) | G39: =SUM(G23:G38) -> 47.12 | K39: =SUM(K23:K38) -> 34.94 | M39: -12.18 | N39: -0.2584889643
A40: Deferral/Variance Account Disposition Rate Rider (2016) | C40: per kWh | E40: 0.0007 | F40: =$E$18 -> 2000 | G40: =F40*E40 -> 1.4 | I40: 0 | J40: =$E$18 -> 2000 | K40: =J40*I40 -> 0 | M40: -1.4 | N40: -1
A41: Deferral/Variance Account Disposition Rate Rider (2017) | E41: 0 | F41: =$E$18 -> 2000 | G41: =F41*E41 -> 0 | I41: ='Rates Summary'!$C$4 -> 0.0027 | J41: =$E$18 -> 2000 | K41: =J41*I41 -> 5.4 | M41: 5.4 | N41: 1
A42: Deferral/Variance Account Disposition Rate Rider - Non-WMP (2017) | E42: 0 | F42: 2000 | G42: 0 | I42: ='Rates Summary'!$C$5 -> -0.0051 | J42: 2000 | K42: -10.2 | M42: -10.2 | N42: 1
A43: Rate Rider CGAAP Account 1576 (2016) | C43: per kWh | E43: -0.0108 | F43: 2000 | G43: -21.6 | I43: 0 | J43: 2000 | K43: 0 | M43: 21.6 | N43: =IF((G43)=0,"",(M43/G43)) -> -1
A44: Deferral/Variance 1580 Sub-Account CBR Class B Disposition Rate Rider - Class B Non-WMP (2017) | C44: per kWh | E44: 0 | F44: 2000 | G44: =F44*E44 -> 0 | I44: ='Rates Summary'!$C$7 -> 0.0003 | J44: 2000 | K44: =J44*I44 -> 0.6 | M44: =K44-G44 -> 0.6 | N44: 1
A45: Disposition of Global Adjustment (2016) Applicable to Non-RPP Customers | C45: per kWh | E45: 0.0205 | F45: 0 | G45: 0 | I45: 0 | J45: 2000 | K45: 0 | M45: =K45-G45 -> 0 | N45: =IF((G45)=0,"",(M45/G45)) -> 
A46: Disposition of Global Adjustment (2017) Applicable to Non-RPP Customers | C46: per kWh | E46: 0 | F46: 0 | G46: 0 | I46: ='Rates Summary'!$C$6 -> 0.0139 | J46: 0 | K46: =J46*I46 -> 0 | M46: =K46-G46 -> 0
A47: Low Voltage Service Charge | C47: per kWh | E47: 0.0012 | F47: 2000 | G47: =F47*E47 -> 2.4 | I47: ='Rates Summary'!$C$21 -> 0.0018 | J47: 2000 | K47: =J47*I47 -> 3.6 | M47: =K47-G47 -> 1.2 | N47: =IF((G47)=0,"",(M47/G47)) -> 0.5
A48: Line Losses on Cost of Power | C48: per kWh | E48: =IF(ISBLANK($C$16)=TRUE, 0, IF($C$16="TOU", 0.65*$E$60+0.17*$E$61+0.18*$E$62, IF(AND($C$16="non-TOU", F64>0), E64,E63))) -> 0.11139 | F48: =$E$18*(1+$E$79)-$E$18 -> 78.6 | G48: 8.755254 | I48: =E48 -> 0.11139 | J48: =$E$18*(1+$E$79)-$E$18 -> 78.6 | K48: =J48*I48 -> 8.755254 | M48: 0 | N48: 0
A49: Smart Meter Entity Charge | C49: Monthly | E49: 0.79 | F49: 1 | G49: =F49*E49 -> 0.79 | I49: 0.79 | J49: 1 | K49: =J49*I49 -> 0.79 | M49: 0 | N49: 0
A50: Sub-Total B - Distribution (includes Sub-Total A) | G50: =SUM(G40:G49)+G39 -> 38.865254 | K50: =SUM(K40:K49)+K39 -> 43.885254 | M50: 5.02 | N50: 0.1291642144
A51: RTSR - Network | C51: per kWh | E51: 0.0071 | F51: =$E$18*(1+$E$79) -> 2078.6 | G51: =F51*E51 -> 14.75806 | I51: ='Rates Summary'!$C$23 -> 0.0073 | J51: =$E$18*(1+I79) -> 2078.6 | K51: =J51*I51 -> 15.17378 | M51: 0.41572 | N51: 0.02816901408
A52: RTSR - Line and Transformation Connection | C52: per kWh | E52: 0.0056 | F52: =F51 -> 2078.6 | G52: =F52*E52 -> 11.64016 | I52: ='Rates Summary'!$C$24 -> 0.0059 | J52: =J51 -> 2078.6 | K52: =J52*I52 -> 12.26374 | M52: 0.62358 | N52: 0.05357142857
A53: Sub-Total C - Delivery (including Sub-Total B) | G53: =SUM(G50:G52) -> 65.263474 | K53: =SUM(K50:K52) -> 71.322774 | M53: 6.0593 | N53: 0.09284366321
A54: Wholesale Market Service Charge (WMSC) | C54: per kWh | E54: 0.0032 | F54: =F52 -> 2078.6 | G54: =F54*E54 -> 6.65152 | I54: ='Rates Summary'!$C$25 -> 0.0032 | J54: =J52 -> 2078.6 | K54: =J54*I54 -> 6.65152 | M54: 0 | N54: 0
A55: Capacity Based Recovery Charge (CBR) | C55: per kWh | E55: 0.0004 | F55: =F54 -> 2078.6 | G55: 0.83144 | I55: ='Rates Summary'!$C$26 -> 0.0004 | J55: =J54 -> 2078.6 | K55: 0.83144 | M55: 0 | N55: 0
A56: Ontario Electricity Support Program (OESP) | C56: per kWh | E56: 0.0011 | F56: =F51 -> 2078.6 | G56: 2.28646 | I56: ='Rates Summary'!$C$27 -> 0.0011 | J56: =J54 -> 2078.6 | K56: 2.28646 | M56: 0 | N56: 0
A57: Rural and Remote Rate Protection (RRRP) | C57: per kWh | E57: 0.0013 | F57: =F52 -> 2078.6 | G57: 2.70218 | I57: ='Rates Summary'!$C$28 -> 0.0013 | J57: =J52 -> 2078.6 | K57: 2.70218 | M57: 0 | N57: 0
A58: Standard Supply Service Charge | C58: Monthly | E58: 0.25 | F58: 1 | G58: 0.25 | I58: ='Rates Summary'!$C$29 -> 0.25 | J58: 1 | K58: 0.25 | M58: 0 | N58: 0
A59: Debt Retirement Charge (DRC) | C59: per kWh | E59: 0 | F59: =E18 -> 2000 | G59: 0 | I59: 0 | J59: =F59 -> 2000 | K59: 0 | M59: 0
A60: TOU - Off Peak | C60: per kWh | E60: 0.087 | F60: =0.65*$E$18 -> 1300 | G60: 113.1 | I60: =E60 -> 0.087 | J60: =0.65*$E$18 -> 1300 | K60: 113.1 | M60: 0 | N60: 0
A61: TOU - Mid Peak | C61: per kWh | E61: 0.132 | F61: =0.17*$E$18 -> 340 | G61: 44.88 | I61: =E61 -> 0.132 | J61: =0.17*$E$18 -> 340 | K61: 44.88 | M61: 0 | N61: 0
A62: TOU - On Peak | C62: per kWh | E62: 0.18 | F62: =0.18*$E$18 -> 360 | G62: 64.8 | I62: =E62 -> 0.18 | J62: =0.18*$E$18 -> 360 | K62: 64.8 | M62: 0 | N62: 0
A63: Energy - RPP - Tier 1 | C63: per kWh | E63: 0.103 | F63: =IF(AND($N$1=1, $E$18>=600), 600, IF(AND($N$1=1, AND($E$18<600, $E$18>=0)), $E$18, IF(AND($N$1=2, $E$18>=1000), 1000, IF(AND($N$1=2, AND($E$18<1000, $E$18>=0)), $E$18)))) -> 600 | G63: =F63*E63 -> 61.8 | I63: =E63 -> 0.103 | J63: =IF(AND($N$1=1, $E$18>=600), 600, IF(AND($N$1=1, AND($E$18<600, $E$18>=0)), $E$18, IF(AND($N$1=2, $E$18>=1000), 1000, IF(AND($N$1=2, AND($E$18<1000, $E$18>=0)), $E$18)))) -> 600 | K63: =J63*I63 -> 61.8 | M63: 0 | N63: 0
A64: Energy - RPP - Tier 2 | C64: per kWh | E64: 0.121 | F64: =IF(AND($N$1=1, $E$18>=600), $E$18-600, IF(AND($N$1=1, AND($E$18<600, $E$18>=0)), 0, IF(AND($N$1=2, $E$18>=1000), $E$18-1000, IF(AND($N$1=2, AND($E$18<1000, $E$18>=0)), 0)))) -> 1400 | G64: =F64*E64 -> 169.4 | I64: =E64 -> 0.121 | J64: =IF(AND($N$1=1, $E$18>=600), $E$18-600, IF(AND($N$1=1, AND($E$18<600, $E$18>=0)), 0, IF(AND($N$1=2, $E$18>=1000), $E$18-1000, IF(AND($N$1=2, AND($E$18<1000, $E$18>=0)), 0)))) -> 1400 | K64: =J64*I64 -> 169.4 | M64: 0 | N64: 0
A66: Total Bill on TOU (before Taxes) | G66: =SUM(G54:G62,G53) -> 300.765074 | K66: =SUM(K54:K62,K53) -> 306.824374 | M66: =K66-G66 -> 6.0593 | N66: 0.02014628866
A67: HST | E67: 0.13 | G67: =G66*E67 -> 39.09945962 | I67: 0.13 | K67: =K66*I67 -> 39.88716862 | M67: =K67-G67 -> 0.787709 | N67: 0.02014628866
A68: Total Bill (including HST) | G68: =G66+G67 -> 339.8645336 | K68: =K66+K67 -> 346.7115426 | M68: =K68-G68 -> 6.847009 | N68: 0.02014628866
N71: =IF((G71)=0,"",(M71/G71)) -> 
A72: Total Bill on RPP (before Taxes) | G72: =SUM(G63:G64,G54:G59,G53) -> 309.185074 | K72: =SUM(K63:K64,K54:K59,K53) -> 315.244374 | M72: =K72-G72 -> 6.0593 | N72: =IF((G72)=0,"",(M72/G72)) -> 0.0195976472
A73: HST | E73: 0.13 | G73: =G72*E73 -> 40.19405962 | I73: 0.13 | K73: =K72*I73 -> 40.98176862 | M73: =K73-G73 -> 0.787709 | N73: =IF((G73)=0,"",(M73/G73)) -> 0.0195976472
A74: Total Bill (including HST) | G74: =G72+G73 -> 349.3791336 | K74: =K72+K73 -> 356.2261426 | M74: =K74-G74 -> 6.847009 | N74: =IF((G74)=0,"",(M74/G74)) -> 0.0195976472
A79: Loss Factor (%) | E79: 0.0393 | I79: 0.0393
B82: Residential (kWh) - 100, 250, 500, 750, 1000, 1500, 2000
B83: GS<50kW (kWh) - 1000, 2000, 5000, 10000, 15000
B84: GS>50kW (kW) - 60, 100, 500, 1000
B85: Large User - range appropriate for utility
B86: Lighting Classes and USL - 150 kWh and 1 kW, range appropriate for utility.
C88: Note that cells with the highlighted color shown to the left indicate quantities that are loss adjusted.

Sheet Bill Impact GS < 50 2000kWh
K1: File Number: | M1: EB-2016-0087 | O1: 1
K3: Tab:
K4: Schedule:
K5: Page:
M7: Year 2 Custom IR Update
K8: Date: | M8: 2016-Aug-15
A11: Bill Impacts
A14: Customer Class: | C14: General Service Less Than 50 kW
A16: TOU / non-TOU: | C16: TOU
C18: Consumption | E18: 2000 | F18: kWh
E20: 2016 Custom IR Year 1 Approved | I20: 2017 Custom IR Year 2 Proposed | M20: Impact 2017 vs. 2016
C21: Charge Unit | E21: Rate | F21: Volume | G21: Charge | I21: Rate | J21: Volume | K21: Charge | M21: $ Change | N21: % Change
E22: ($) | G22: ($) | I22: ($) | K22: ($)
A23: Monthly Service Charge | C23: Monthly | E23: 14.27 | F23: 1 | G23: =F23*E23 -> 14.27 | I23: ='Rates Summary'!$F$46 -> 14.59 | J23: 1 | K23: =J23*I23 -> 14.59 | M23: =K23-G23 -> 0.32 | N23: =IF((G23)=0,"",(M23/G23)) -> 0.02242466713
A25: Rate Rider Smart Meters Capital (2016) | C25: Monthly | E25: 0.43 | F25: 1 | G25: 0.43 | I25: 0 | J25: 1 | K25: 0 | M25: =K25-G25 -> -0.43 | N25: =IF((G25)=0,"",(M25/G25)) -> -1
A26: Rate Rider Recovery of Stranded Meters (2016) | C26: Monthly | E26: 6.4 | F26: 1 | G26: 6.4 | I26: 0 | J26: 1 | K26: 0 | M26: =K26-G26 -> -6.4 | N26: =IF((G26)=0,"",(M26/G26)) -> -1
E27: 0 | F27: 1 | G27: 0 | I27: 0 | J27: 1 | K27: 0 | M27: =K27-G27 -> 0 | N27: =IF((G27)=0,"",(M27/G27)) -> 
E28: 0 | F28: 1 | G28: 0 | I28: 0 | J28: 1 | K28: 0 | M28: =K28-G28 -> 0 | N28: =IF((G28)=0,"",(M28/G28)) -> 
A29: Distribution Volumetric Rate | C29: per kWh | E29: 0.0146 | F29: =$E$18 -> 2000 | G29: =F29*E29 -> 29.2 | I29: ='Rates Summary'!$F$58 -> 0.0151 | J29: =$E$18 -> 2000 | K29: =J29*I29 -> 30.2 | M29: =K29-G29 -> 1 | N29: =IF((G29)=0,"",(M29/G29)) -> 0.03424657534
A31: LRAM VA (2016) | C31: per kWh | E31: 0.0008 | F31: =$E$18 -> 2000 | G31: 1.6 | I31: 0 | J31: =$E$18 -> 2000 | K31: 0 | M31: =K31-G31 -> -1.6 | N31: =IF((G31)=0,"",(M31/G31)) -> -1
A32: Rate Rider Incremental Capital 2012 True-Up (2016) | C32: per kWh | E32: 0.0002 | F32: 2000 | G32: 0.4 | I32: 0 | J32: 2000 | K32: 0 | M32: -0.4 | N32: -1
C33: per kWh | F33: 2000 | G33: =F33*E33 -> 0 | J33: 2000 | K33: =J33*I33 -> 0 | M33: 0
C34: per kWh | F34: 2000 | G34: 0 | J34: 2000 | K34: 0 | M34: 0
F35: 2000 | G35: 0 | J35: 2000 | K35: 0 | M35: 0
F36: 2000 | G36: 0 | J36: 2000 | K36: 0 | M36: 0
F37: 2000 | G37: 0 | J37: 2000 | K37: 0 | M37: 0
F38: 2000 | G38: 0 | J38: 2000 | K38: 0 | M38: 0
A39: Sub-Total A (excluding pass through) | G39: =SUM(G23:G38) -> 52.3 | K39: =SUM(K23:K38) -> 44.79 | M39: -7.51 | N39: -0.1435946463
A40: Deferral/Variance Account Disposition Rate Rider (2016) | C40: per kWh | E40: -0.0007 | F40: =$E$18 -> 2000 | G40: =F40*E40 -> -1.4 | I40: 0 | J40: =$E$18 -> 2000 | K40: =J40*I40 -> 0 | M40: 1.4 | N40: -1
A41: Deferral/Variance Account Disposition Rate Rider (2017) | E41: 0 | F41: =$E$18 -> 2000 | G41: =F41*E41 -> 0 | I41: ='Rates Summary'!$D$4 -> 0.0028 | J41: =$E$18 -> 2000 | K41: =J41*I41 -> 5.6 | M41: 5.6 | N41: 1
A42: Deferral/Variance Account Disposition - NON-WMP Rate Rider (2017) | E42: 0 | F42: =$E$18 -> 2000 | G42: =F42*E42 -> 0 | I42: ='Rates Summary'!$D$5 -> -0.0051 | J42: =$E$18 -> 2000 | K42: =J42*I42 -> -10.2 | M42: -10.2 | N42: 1
A43: Rate Rider CGAAP Account 1576 (2016) | C43: per kWh | E43: -0.0062 | F43: =$E$18 -> 2000 | G43: -12.4 | I43: 0 | J43: =$E$18 -> 2000 | K43: 0 | M43: 12.4 | N43: =IF((G43)=0,"",(M43/G43)) -> -1
A44: Deferral/Variance 1580 Sub-Account CBR Class B Disposition Rate Rider - Class B Non-WMP (2017) | C44: per kWh | E44: 0 | F44: =$E$18 -> 2000 | G44: 0 | I44: ='Rates Summary'!$D$7 -> 0.0003 | J44: =$E$18 -> 2000 | K44: 0.6 | M44: =K44-G44 -> 0.6 | N44: 1
A45: Disposition of Global Adjustment (2016) Applicable to Non-RPP Customers | C45: per kWh | E45: 0.0205 | F45: 0 | G45: 0 | I45: 0 | J45: 0 | K45: 0 | M45: =K45-G45 -> 0 | N45: =IF((G45)=0,"",(M45/G45)) -> 
A46: Disposition of Global Adjustment (2017) Applicable to Non-RPP Customers | C46: per kWh | E46: 0 | F46: 0 | G46: =F46*E46 -> 0 | I46: ='Rates Summary'!$D$6 -> 0.0139 | J46: 0 | K46: =J46*I46 -> 0 | M46: 0
A47: Low Voltage Service Charge | C47: per kWh | E47: 0.0011 | F47: =$E$18 -> 2000 | G47: =F47*E47 -> 2.2 | I47: ='Rates Summary'!$D$21 -> 0.0016 | J47: =$E$18 -> 2000 | K47: =J47*I47 -> 3.2 | M47: 1 | N47: 0.4545454545
A48: Line Losses on Cost of Power | C48: per kWh | E48: =IF(ISBLANK($C$16)=TRUE, 0, IF($C$16="TOU", 0.65*$E$60+0.17*$E$61+0.18*$E$62, IF(AND($C$16="non-TOU", F64>0), E64,E63))) -> 0.11139 | F48: =$E$18*(1+$E$79)-$E$18 -> 78.6 | G48: 8.755254 | I48: =E48 -> 0.11139 | J48: =$E$18*(1+$E$79)-$E$18 -> 78.6 | K48: =J48*I48 -> 8.755254 | M48: 0 | N48: 0
A49: Smart Meter Entity Charge | C49: Monthly | E49: 0.79 | F49: 1 | G49: =F49*E49 -> 0.79 | I49: 0.79 | J49: 1 | K49: =J49*I49 -> 0.79 | M49: 0 | N49: 0
A50: Sub-Total B - Distribution (includes Sub-Total A) | G50: =SUM(G40:G49)+G39 -> 50.245254 | K50: =SUM(K40:K49)+K39 -> 53.535254 | M50: 3.29 | N50: 0.06547882114
A51: RTSR - Network | C51: per kWh | E51: 0.0063 | F51: =$E$18*(1+$E$79) -> 2078.6 | G51: =F51*E51 -> 13.09518 | I51: ='Rates Summary'!$D$23 -> 0.0065 | J51: =$E$18*(1+I79) -> 2078.6 | K51: =J51*I51 -> 13.5109 | M51: 0.41572 | N51: 0.03174603175
A52: RTSR - Line and Transformation Connection | C52: per kWh | E52: 0.0051 | F52: =F51 -> 2078.6 | G52: =F52*E52 -> 10.60086 | I52: ='Rates Summary'!$D$24 -> 0.0054 | J52: =J51 -> 2078.6 | K52: =J52*I52 -> 11.22444 | M52: 0.62358 | N52: 0.05882352941
A53: Sub-Total C - Delivery (including Sub-Total B) | G53: =SUM(G50:G52) -> 73.941294 | K53: =SUM(K50:K52) -> 78.270594 | M53: 4.3293 | N53: 0.05855050359
A54: Wholesale Market Service Charge (WMSC) | C54: per kWh | E54: 0.0032 | F54: =F52 -> 2078.6 | G54: =F54*E54 -> 6.65152 | I54: ='Rates Summary'!$D$25 -> 0.0032 | J54: =J52 -> 2078.6 | K54: =J54*I54 -> 6.65152 | M54: 0 | N54: 0
A55: Capacity Based Recovery Charge (CBR) | C55: per kWh | E55: 0.0004 | F55: =F51 -> 2078.6 | G55: =F55*E55 -> 0.83144 | I55: ='Rates Summary'!$D$26 -> 0.0004 | J55: =J51 -> 2078.6 | K55: =J55*I55 -> 0.83144 | M55: 0 | N55: 0
A56: Ontario Electricity Support Program (OESP) | C56: per kWh | E56: 0.0011 | F56: =F52 -> 2078.6 | G56: =F56*E56 -> 2.28646 | I56: ='Rates Summary'!$D$27 -> 0.0011 | J56: =J52 -> 2078.6 | K56: =J56*I56 -> 2.28646 | M56: 0 | N56: 0
A57: Rural and Remote Rate Protection (RRRP) | C57: per kWh | E57: 0.0013 | F57: =F52 -> 2078.6 | G57: 2.70218 | I57: ='Rates Summary'!$D$28 -> 0.0013 | J57: =J52 -> 2078.6 | K57: 2.70218 | M57: 0 | N57: 0
A58: Standard Supply Service Charge | C58: Monthly | E58: 0.25 | F58: 1 | G58: 0.25 | I58: ='Rates Summary'!$D$29 -> 0.25 | J58: 1 | K58: 0.25 | M58: 0 | N58: 0
A59: Debt Retirement Charge (DRC) | C59: per kWh | E59: 0.007 | F59: =E18 -> 2000 | G59: 14 | I59: =E59 -> 0.007 | J59: =F59 -> 2000 | K59: 14 | M59: 0 | N59: 0
A60: TOU - Off Peak | C60: per kWh | E60: 0.087 | F60: =0.65*$E$18 -> 1300 | G60: 113.1 | I60: =E60 -> 0.087 | J60: =0.65*$E$18 -> 1300 | K60: 113.1 | M60: 0 | N60: 0
A61: TOU - Mid Peak | C61: per kWh | E61: 0.132 | F61: =0.17*$E$18 -> 340 | G61: 44.88 | I61: =E61 -> 0.132 | J61: =0.17*$E$18 -> 340 | K61: 44.88 | M61: 0 | N61: 0
A62: TOU - On Peak | C62: per kWh | E62: 0.18 | F62: =0.18*$E$18 -> 360 | G62: 64.8 | I62: =E62 -> 0.18 | J62: =0.18*$E$18 -> 360 | K62: 64.8 | M62: 0 | N62: 0
A63: Energy - RPP - Tier 1 | C63: per kWh | E63: 0.103 | F63: =IF(AND($O$1=1, $E$18>=750), 750, IF(AND($O$1=1, AND($E$18<750, $E$18>=0)), $E$18, IF(AND($O$1=2, $E$18>=1000), 1000, IF(AND($O$1=2, AND($E$18<1000, $E$18>=0)), $E$18)))) -> 750 | G63: =F63*E63 -> 77.25 | I63: =E63 -> 0.103 | J63: =IF(AND($O$1=1, $E$18>=750), 750, IF(AND($O$1=1, AND($E$18<750, $E$18>=0)), $E$18, IF(AND($O$1=2, $E$18>=1000), 1000, IF(AND($O$1=2, AND($E$18<1000, $E$18>=0)), $E$18)))) -> 750 | K63: =J63*I63 -> 77.25 | M63: 0 | N63: 0
A64: Energy - RPP - Tier 2 | C64: per kWh | E64: 0.121 | F64: =IF(AND($O$1=1, $E$18>=600), $E$18-600, IF(AND($O$1=1, AND($E$18<600, $E$18>=0)), 0, IF(AND($O$1=2, $E$18>=1000), $E$18-1000, IF(AND($O$1=2, AND($E$18<1000, $E$18>=0)), 0)))) -> 1400 | G64: =F64*E64 -> 169.4 | I64: =E64 -> 0.121 | J64: =IF(AND($O$1=1, $E$18>=600), $E$18-600, IF(AND($O$1=1, AND($E$18<600, $E$18>=0)), 0, IF(AND($O$1=2, $E$18>=1000), $E$18-1000, IF(AND($O$1=2, AND($E$18<1000, $E$18>=0)), 0)))) -> 1400 | K64: =J64*I64 -> 169.4 | M64: 0 | N64: 0
A66: Total Bill on TOU (before Taxes) | G66: =SUM(G54:G62,G53) -> 323.442894 | K66: =SUM(K54:K62,K53) -> 327.772194 | M66: =K66-G66 -> 4.3293 | N66: 0.01338505214
A67: HST | E67: 0.13 | G67: =G66*E67 -> 42.04757622 | I67: 0.13 | K67: =K66*I67 -> 42.61038522 | M67: =K67-G67 -> 0.562809 | N67: 0.01338505214
A68: Total Bill (including HST) | G68: =G66+G67 -> 365.4904702 | K68: =K66+K67 -> 370.3825792 | M68: =K68-G68 -> 4.892109 | N68: 0.01338505214
N71: =IF((G71)=0,"",(M71/G71)) -> 
A72: Total Bill on RPP (before Taxes) | G72: =SUM(G64:G65,G53,G54:G59) -> 270.062894 | K72: =SUM(K64:K65,K53,K54:K59) -> 274.392194 | M72: =K72-G72 -> 4.3293 | N72: =IF((G72)=0,"",(M72/G72)) -> 0.01603071024
A73: HST | E73: 0.13 | G73: =G72*E73 -> 35.10817622 | I73: 0.13 | K73: =K72*I73 -> 35.67098522 | M73: =K73-G73 -> 0.562809 | N73: =IF((G73)=0,"",(M73/G73)) -> 0.01603071024
A74: Total Bill (including HST) | G74: =G72+G73 -> 305.1710702 | K74: =K72+K73 -> 310.0631792 | M74: =K74-G74 -> 4.892109 | N74: =IF((G74)=0,"",(M74/G74)) -> 0.01603071024
A79: Loss Factor (%) | E79: 0.0393 | I79: 0.0393
B83: Residential (kWh) - 100, 250, 500, 750, 1000, 1500, 2000
B84: GS<50kW (kWh) - 1000, 2000, 5000, 10000, 15000
B85: GS>50kW (kW) - 60, 100, 500, 1000
B86: Large User - range appropriate for utility
B87: Lighting Classes and USL - 150 kWh and 1 kW, range appropriate for utility.
C89: Note that cells with the highlighted color shown to the left indicate quantities that are loss adjusted.

Sheet Bill Impact GS < 50 1000kWh
K1: File Number: | M1: EB-2016-0087 | O1: 1
K3: Tab:
K4: Schedule:
K5: Page:
M7: Year 2 Custom IR Update
K8: Date: | M8: 2016-Aug-15
A11: Bill Impacts
A14: Customer Class: | C14: General Service Less Than 50 kW
A16: TOU / non-TOU: | C16: TOU
C18: Consumption | E18: 1000 | F18: kWh
E20: 2016 Custom IR Year 1 Approved | I20: 2017 Custom IR Year 2 Proposed | M20: Impact 2017 vs. 2016
C21: Charge Unit | E21: Rate | F21: Volume | G21: Charge | I21: Rate | J21: Volume | K21: Charge | M21: $ Change | N21: % Change
E22: ($) | G22: ($) | I22: ($) | K22: ($)
A23: Monthly Service Charge | C23: Monthly | E23: 14.27 | F23: 1 | G23: =F23*E23 -> 14.27 | I23: ='Rates Summary'!$F$46 -> 14.59 | J23: 1 | K23: =J23*I23 -> 14.59 | M23: =K23-G23 -> 0.32 | N23: =IF((G23)=0,"",(M23/G23)) -> 0.02242466713
A25: Rate Rider Smart Meters Capital (2016) | C25: Monthly | E25: 0.43 | F25: 1 | G25: 0.43 | I25: 0 | J25: 1 | K25: 0 | M25: =K25-G25 -> -0.43 | N25: =IF((G25)=0,"",(M25/G25)) -> -1
A26: Rate Rider Recovery of Stranded Meters (2016) | C26: Monthly | E26: 6.4 | F26: 1 | G26: 6.4 | I26: 0 | J26: 1 | K26: 0 | M26: =K26-G26 -> -6.4 | N26: =IF((G26)=0,"",(M26/G26)) -> -1
E27: 0 | F27: 1 | G27: 0 | I27: 0 | J27: 1 | K27: 0 | M27: =K27-G27 -> 0 | N27: =IF((G27)=0,"",(M27/G27)) -> 
E28: 0 | F28: 1 | G28: 0 | I28: 0 | J28: 1 | K28: 0 | M28: =K28-G28 -> 0 | N28: =IF((G28)=0,"",(M28/G28)) -> 
A29: Distribution Volumetric Rate | C29: per kWh | E29: 0.0146 | F29: =$E$18 -> 1000 | G29: 14.6 | I29: ='Rates Summary'!$F$58 -> 0.0151 | J29: =$E$18 -> 1000 | K29: 15.1 | M29: =K29-G29 -> 0.5 | N29: =IF((G29)=0,"",(M29/G29)) -> 0.03424657534
A31: LRAM VA (2016) | C31: per kWh | E31: 0.0008 | F31: =$E$18 -> 1000 | G31: 0.8 | I31: 0 | J31: =$E$18 -> 1000 | K31: 0 | M31: =K31-G31 -> -0.8 | N31: =IF((G31)=0,"",(M31/G31)) -> -1
A32: Rate Rider Incremental Capital 2012 True-Up (2016) | C32: per kWh | E32: 0.0002 | F32: 1000 | G32: 0.2 | I32: 0 | J32: 1000 | K32: 0 | M32: -0.2 | N32: -1
C33: per kWh | F33: 1000 | G33: 0 | J33: 1000 | K33: 0 | M33: 0
C34: per kWh | F34: 1000 | G34: 0 | J34: 1000 | K34: 0 | M34: 0
F35: 1000 | G35: 0 | J35: 1000 | K35: 0 | M35: 0
F36: 1000 | G36: 0 | J36: 1000 | K36: 0 | M36: 0
F37: 1000 | G37: 0 | J37: 1000 | K37: 0 | M37: 0
F38: 1000 | G38: 0 | J38: 1000 | K38: 0 | M38: 0
A39: Sub-Total A (excluding pass through) | G39: =SUM(G23:G38) -> 36.7 | K39: =SUM(K23:K38) -> 29.69 | M39: -7.01 | N39: -0.1910081744
A40: Deferral/Variance Account Disposition Rate Rider (2016) | C40: per kWh | E40: -0.0007 | F40: =$E$18 -> 1000 | G40: =F40*E40 -> -0.7 | I40: 0 | J40: =$E$18 -> 1000 | K40: =J40*I40 -> 0 | M40: 0.7 | N40: -1
A41: Deferral/Variance Account Disposition Rate Rider (2017) | E41: 0 | F41: =$E$18 -> 1000 | G41: =F41*E41 -> 0 | I41: ='Rates Summary'!$D$4 -> 0.0028 | J41: =$E$18 -> 1000 | K41: =J41*I41 -> 2.8 | M41: 2.8 | N41: 1
A42: Deferral/Variance Account Disposition - NON-WMP Rate Rider (2017) | E42: 0 | F42: =$E$18 -> 1000 | G42: 0 | I42: ='Rates Summary'!$D$5 -> -0.0051 | J42: =$E$18 -> 1000 | K42: -5.1 | M42: -5.1 | N42: 1
A43: Rate Rider CGAAP Account 1576 (2016) | C43: per kWh | E43: -0.0062 | F43: =$E$18 -> 1000 | G43: -6.2 | I43: 0 | J43: =$E$18 -> 1000 | K43: 0 | M43: 6.2 | N43: =IF((G43)=0,"",(M43/G43)) -> -1
A44: Deferral/Variance 1580 Sub-Account CBR Class B Disposition Rate Rider - Class B Non-WMP (2017) | C44: per kWh | E44: 0 | F44: =$E$18 -> 1000 | G44: =F44*E44 -> 0 | I44: ='Rates Summary'!$D$7 -> 0.0003 | J44: =$E$18 -> 1000 | K44: =J44*I44 -> 0.3 | M44: =K44-G44 -> 0.3 | N44: 1
A45: Disposition of Global Adjustment (2016) Applicable to Non-RPP Customers | C45: per kWh | E45: 0.0205 | F45: 0 | G45: 0 | I45: 0 | J45: 0 | K45: 0 | M45: =K45-G45 -> 0 | N45: =IF((G45)=0,"",(M45/G45)) -> 
A46: Disposition of Global Adjustment (2017) Applicable to Non-RPP Customers | C46: per kWh | E46: 0 | F46: 0 | G46: 0 | I46: ='Rates Summary'!$D$6 -> 0.0139 | J46: 0 | K46: 0 | M46: 0
A47: Low Voltage Service Charge | C47: per kWh | E47: 0.0011 | F47: =$E$18 -> 1000 | G47: =F47*E47 -> 1.1 | I47: ='Rates Summary'!$D$21 -> 0.0016 | J47: =$E$18 -> 1000 | K47: =J47*I47 -> 1.6 | M47: 0.5 | N47: 0.4545454545
A48: Line Losses on Cost of Power | C48: per kWh | E48: =IF(ISBLANK($C$16)=TRUE, 0, IF($C$16="TOU", 0.65*$E$60+0.17*$E$61+0.18*$E$62, IF(AND($C$16="non-TOU", F64>0), E64,E63))) -> 0.11139 | F48: =$E$18*(1+$E$79)-$E$18 -> 39.3 | G48: 4.377627 | I48: =E48 -> 0.11139 | J48: =$E$18*(1+$E$79)-$E$18 -> 39.3 | K48: =J48*I48 -> 4.377627 | M48: 0 | N48: 0
A49: Smart Meter Entity Charge | C49: Monthly | E49: 0.79 | F49: 1 | G49: =F49*E49 -> 0.79 | I49: 0.79 | J49: 1 | K49: =J49*I49 -> 0.79 | M49: 0 | N49: 0
A50: Sub-Total B - Distribution (includes Sub-Total A) | G50: =SUM(G40:G49)+G39 -> 36.067627 | K50: =SUM(K40:K49)+K39 -> 34.457627 | M50: -1.61 | N50: -0.04463836781
A51: RTSR - Network | C51: per kWh | E51: 0.0063 | F51: =$E$18*(1+$E$79) -> 1039.3 | G51: =F51*E51 -> 6.54759 | I51: ='Rates Summary'!$D$23 -> 0.0065 | J51: =$E$18*(1+I79) -> 1039.3 | K51: =J51*I51 -> 6.75545 | M51: 0.20786 | N51: 0.03174603175
A52: RTSR - Line and Transformation Connection | C52: per kWh | E52: 0.0051 | F52: =F51 -> 1039.3 | G52: =F52*E52 -> 5.30043 | I52: ='Rates Summary'!$D$24 -> 0.0054 | J52: =J51 -> 1039.3 | K52: =J52*I52 -> 5.61222 | M52: 0.31179 | N52: 0.05882352941
A53: Sub-Total C - Delivery (including Sub-Total B) | G53: =SUM(G50:G52) -> 47.915647 | K53: =SUM(K50:K52) -> 46.825297 | M53: -1.09035 | N53: -0.02275561467
A54: Wholesale Market Service Charge (WMSC) | C54: per kWh | E54: 0.0032 | F54: =F52 -> 1039.3 | G54: =F54*E54 -> 3.32576 | I54: ='Rates Summary'!$D$25 -> 0.0032 | J54: =J52 -> 1039.3 | K54: =J54*I54 -> 3.32576 | M54: 0 | N54: 0
A55: Capacity Based Recovery Charge (CBR) | C55: per kWh | E55: 0.0004 | F55: =F51 -> 1039.3 | G55: 0.41572 | I55: ='Rates Summary'!$D$26 -> 0.0004 | J55: =J51 -> 1039.3 | K55: 0.41572 | M55: 0 | N55: 0
A56: Ontario Electricity Support Program (OESP) | C56: per kWh | E56: 0.0011 | F56: =F52 -> 1039.3 | G56: 1.14323 | I56: ='Rates Summary'!$D$27 -> 0.0011 | J56: =J52 -> 1039.3 | K56: 1.14323 | M56: 0 | N56: 0
A57: Rural and Remote Rate Protection (RRRP) | C57: per kWh | E57: 0.0013 | F57: =F52 -> 1039.3 | G57: 1.35109 | I57: ='Rates Summary'!$D$28 -> 0.0013 | J57: =J52 -> 1039.3 | K57: 1.35109 | M57: 0 | N57: 0
A58: Standard Supply Service Charge | C58: Monthly | E58: 0.25 | F58: 1 | G58: 0.25 | I58: ='Rates Summary'!$D$29 -> 0.25 | J58: 1 | K58: 0.25 | M58: 0 | N58: 0
A59: Debt Retirement Charge (DRC) | C59: per kWh | E59: 0.007 | F59: =E18 -> 1000 | G59: 7 | I59: =E59 -> 0.007 | J59: =F59 -> 1000 | K59: 7 | M59: 0 | N59: 0
A60: TOU - Off Peak | C60: per kWh | E60: 0.087 | F60: =0.65*$E$18 -> 650 | G60: 56.55 | I60: =E60 -> 0.087 | J60: =0.65*$E$18 -> 650 | K60: 56.55 | M60: 0 | N60: 0
A61: TOU - Mid Peak | C61: per kWh | E61: 0.132 | F61: =0.17*$E$18 -> 170 | G61: 22.44 | I61: =E61 -> 0.132 | J61: =0.17*$E$18 -> 170 | K61: 22.44 | M61: 0 | N61: 0
A62: TOU - On Peak | C62: per kWh | E62: 0.18 | F62: =0.18*$E$18 -> 180 | G62: 32.4 | I62: =E62 -> 0.18 | J62: =0.18*$E$18 -> 180 | K62: 32.4 | M62: 0 | N62: 0
A63: Energy - RPP - Tier 1 | C63: per kWh | E63: 0.103 | F63: =IF(AND($O$1=1, $E$18>=750), 750, IF(AND($O$1=1, AND($E$18<750, $E$18>=0)), $E$18, IF(AND($O$1=2, $E$18>=1000), 1000, IF(AND($O$1=2, AND($E$18<1000, $E$18>=0)), $E$18)))) -> 750 | G63: =F63*E63 -> 77.25 | I63: =E63 -> 0.103 | J63: =IF(AND($O$1=1, $E$18>=750), 750, IF(AND($O$1=1, AND($E$18<750, $E$18>=0)), $E$18, IF(AND($O$1=2, $E$18>=1000), 1000, IF(AND($O$1=2, AND($E$18<1000, $E$18>=0)), $E$18)))) -> 750 | K63: =J63*I63 -> 77.25 | M63: 0 | N63: 0
A64: Energy - RPP - Tier 2 | C64: per kWh | E64: 0.121 | F64: =IF(AND($O$1=1, $E$18>=600), $E$18-600, IF(AND($O$1=1, AND($E$18<600, $E$18>=0)), 0, IF(AND($O$1=2, $E$18>=1000), $E$18-1000, IF(AND($O$1=2, AND($E$18<1000, $E$18>=0)), 0)))) -> 400 | G64: =F64*E64 -> 48.4 | I64: =E64 -> 0.121 | J64: =IF(AND($O$1=1, $E$18>=600), $E$18-600, IF(AND($O$1=1, AND($E$18<600, $E$18>=0)), 0, IF(AND($O$1=2, $E$18>=1000), $E$18-1000, IF(AND($O$1=2, AND($E$18<1000, $E$18>=0)), 0)))) -> 400 | K64: =J64*I64 -> 48.4 | M64: 0 | N64: 0
A66: Total Bill on TOU (before Taxes) | G66: =SUM(G54:G62,G53) -> 172.791447 | K66: =SUM(K54:K62,K53) -> 171.701097 | M66: =K66-G66 -> -1.09035 | N66: -0.006310208167
A67: HST | E67: 0.13 | G67: =G66*E67 -> 22.46288811 | I67: 0.13 | K67: =K66*I67 -> 22.32114261 | M67: =K67-G67 -> -0.1417455 | N67: -0.006310208167
A68: Total Bill (including HST) | G68: =G66+G67 -> 195.2543351 | K68: =K66+K67 -> 194.0222396 | M68: =K68-G68 -> -1.2320955 | N68: -0.006310208167
N71: =IF((G71)=0,"",(M71/G71)) -> 
A72: Total Bill on RPP (before Taxes) | G72: =SUM(G64:G65,G53,G54:G59) -> 109.801447 | K72: =SUM(K64:K65,K53,K54:K59) -> 108.711097 | M72: =K72-G72 -> -1.09035 | N72: =IF((G72)=0,"",(M72/G72)) -> -0.009930197004
A73: HST | E73: 0.13 | G73: =G72*E73 -> 14.27418811 | I73: 0.13 | K73: =K72*I73 -> 14.13244261 | M73: =K73-G73 -> -0.1417455 | N73: =IF((G73)=0,"",(M73/G73)) -> -0.009930197004
A74: Total Bill (including HST) | G74: =G72+G73 -> 124.0756351 | K74: =K72+K73 -> 122.8435396 | M74: =K74-G74 -> -1.2320955 | N74: =IF((G74)=0,"",(M74/G74)) -> -0.009930197004
A79: Loss Factor (%) | E79: 0.0393 | I79: 0.0393
B83: Residential (kWh) - 100, 250, 500, 750, 1000, 1500, 2000
B84: GS<50kW (kWh) - 1000, 2000, 5000, 10000, 15000
B85: GS>50kW (kW) - 60, 100, 500, 1000
B86: Large User - range appropriate for utility
B87: Lighting Classes and USL - 150 kWh and 1 kW, range appropriate for utility.
C89: Note that cells with the highlighted color shown to the left indicate quantities that are loss adjusted.

Sheet Bill Impact GS < 50 5000kWh
K1: File Number: | M1: EB-2016-0087 | N1: 1
K3: Tab:
K4: Schedule:
K5: Page:
M7: Year 2 Custom IR Update
K8: Date: | M8: 2016-Aug-15
A11: Bill Impacts
A14: Customer Class: | C14: General Service Less Than 50 kW
A16: TOU / non-TOU: | C16: TOU
C18: Consumption | E18: 5000 | F18: kWh
E20: 2016 Custom IR Year 1 Approved | I20: 2017 Custom IR Year 2 Proposed | M20: Impact 2017 vs. 2016
C21: Charge Unit | E21: Rate | F21: Volume | G21: Charge | I21: Rate | J21: Volume | K21: Charge | M21: $ Change | N21: % Change
E22: ($) | G22: ($) | I22: ($) | K22: ($)
A23: Monthly Service Charge | C23: Monthly | E23: 14.27 | F23: 1 | G23: =F23*E23 -> 14.27 | I23: ='Rates Summary'!$F$46 -> 14.59 | J23: 1 | K23: =J23*I23 -> 14.59 | M23: =K23-G23 -> 0.32 | N23: =IF((G23)=0,"",(M23/G23)) -> 0.02242466713
A25: Rate Rider Smart Meters Capital (2016) | C25: Monthly | E25: 0.43 | F25: 1 | G25: 0.43 | I25: 0 | J25: 1 | K25: 0 | M25: =K25-G25 -> -0.43 | N25: =IF((G25)=0,"",(M25/G25)) -> -1
A26: Rate Rider Recovery of Stranded Meters (2016) | C26: Monthly | E26: 6.4 | F26: 1 | G26: 6.4 | I26: 0 | J26: 1 | K26: 0 | M26: =K26-G26 -> -6.4 | N26: =IF((G26)=0,"",(M26/G26)) -> -1
E27: 0 | F27: 1 | G27: 0 | I27: 0 | J27: 1 | K27: 0 | M27: =K27-G27 -> 0 | N27: =IF((G27)=0,"",(M27/G27)) -> 
E28: 0 | F28: 1 | G28: 0 | I28: 0 | J28: 1 | K28: 0 | M28: =K28-G28 -> 0 | N28: =IF((G28)=0,"",(M28/G28)) -> 
A29: Distribution Volumetric Rate | C29: per kWh | E29: 0.0146 | F29: =$E$18 -> 5000 | G29: 73 | I29: ='Rates Summary'!$F$58 -> 0.0151 | J29: =$E$18 -> 5000 | K29: 75.5 | M29: =K29-G29 -> 2.5 | N29: =IF((G29)=0,"",(M29/G29)) -> 0.03424657534
A31: LRAM VA (2016) | C31: per kWh | E31: 0.0008 | F31: 5000 | G31: 4 | I31: 0 | J31: 5000 | K31: 0 | M31: =K31-G31 -> -4 | N31: =IF((G31)=0,"",(M31/G31)) -> -1
A32: Rate Rider Incremental Capital 2012 True-Up (2016) | C32: per kWh | E32: 0.0002 | F32: 5000 | G32: 1 | I32: 0 | J32: 5000 | K32: 0 | M32: -1 | N32: -1
C33: per kWh | F33: 5000 | G33: 0 | J33: 5000 | K33: 0 | M33: 0
C34: per kWh | F34: 5000 | G34: 0 | J34: 5000 | K34: 0 | M34: 0
F35: 5000 | G35: 0 | J35: 5000 | K35: 0 | M35: 0
F36: 5000 | G36: 0 | J36: 5000 | K36: 0 | M36: 0
F37: 5000 | G37: 0 | J37: 5000 | K37: 0 | M37: 0
F38: 5000 | G38: 0 | J38: 5000 | K38: 0 | M38: 0
A39: Sub-Total A (excluding pass through) | G39: =SUM(G23:G38) -> 99.1 | K39: =SUM(K23:K38) -> 90.09 | M39: -9.01 | N39: -0.09091826438
A40: Deferral/Variance Account Disposition Rate Rider (2016) | C40: per kWh | E40: -0.0007 | F40: =$E$18 -> 5000 | G40: =F40*E40 -> -3.5 | I40: 0 | J40: =$E$18 -> 5000 | K40: =J40*I40 -> 0 | M40: 3.5 | N40: -1
A41: Deferral/Variance Account Disposition Rate Rider (2017) | E41: 0 | F41: =$E$18 -> 5000 | G41: =F41*E41 -> 0 | I41: ='Rates Summary'!$D$4 -> 0.0028 | J41: =$E$18 -> 5000 | K41: =J41*I41 -> 14 | M41: 14 | N41: 1
A42: Deferral/Variance Account Disposition - NON-WMP Rate Rider (2017) | E42: 0 | F42: =$E$18 -> 5000 | G42: 0 | I42: ='Rates Summary'!$D$5 -> -0.0051 | J42: =$E$18 -> 5000 | K42: -25.5 | M42: -25.5 | N42: 1
A43: Rate Rider CGAAP Account 1576 (2016) | C43: per kWh | E43: -0.0062 | F43: =$E$18 -> 5000 | G43: -31 | I43: 0 | J43: =$E$18 -> 5000 | K43: 0 | M43: 31 | N43: =IF((G43)=0,"",(M43/G43)) -> -1
A44: Deferral/Variance 1580 Sub-Account CBR Class B Disposition Rate Rider - Class B Non-WMP (2017) | E44: 0 | F44: =$E$18 -> 5000 | G44: =F44*E44 -> 0 | I44: ='Rates Summary'!$D$7 -> 0.0003 | J44: =$E$18 -> 5000 | K44: =J44*I44 -> 1.5 | M44: =K44-G44 -> 1.5 | N44: 1
A45: Disposition of Global Adjustment (2016) Applicable to Non-RPP Customers | C45: per kWh | E45: 0.0205 | F45: 0 | G45: 0 | I45: 0 | J45: 0 | K45: 0 | M45: =K45-G45 -> 0 | N45: =IF((G45)=0,"",(M45/G45)) -> 
A46: Disposition of Global Adjustment (2017) Applicable to Non-RPP Customers | C46: per kWh | E46: 0 | F46: 0 | G46: 0 | I46: ='Rates Summary'!$D$6 -> 0.0139 | J46: 0 | K46: 0 | M46: 0
A47: Low Voltage Service Charge | C47: per kWh | E47: 0.0011 | F47: =$E$18 -> 5000 | G47: =F47*E47 -> 5.5 | I47: ='Rates Summary'!$D$21 -> 0.0016 | J47: =$E$18 -> 5000 | K47: =J47*I47 -> 8 | M47: 2.5 | N47: 0.4545454545
A48: Line Losses on Cost of Power | C48: per kWh | E48: =IF(ISBLANK($C$16)=TRUE, 0, IF($C$16="TOU", 0.65*$E$60+0.17*$E$61+0.18*$E$62, IF(AND($C$16="non-TOU", F64>0), E64,E63))) -> 0.11139 | F48: =$E$18*(1+$E$79)-$E$18 -> 196.5 | G48: 21.888135 | I48: =E48 -> 0.11139 | J48: =$E$18*(1+$E$79)-$E$18 -> 196.5 | K48: =J48*I48 -> 21.888135 | M48: 0 | N48: 0
A49: Smart Meter Entity Charge | C49: Monthly | E49: 0.79 | F49: 1 | G49: =F49*E49 -> 0.79 | I49: 0.79 | J49: 1 | K49: =J49*I49 -> 0.79 | M49: 0 | N49: 0
A50: Sub-Total B - Distribution (includes Sub-Total A) | G50: =SUM(G40:G49)+G39 -> 92.778135 | K50: =SUM(K40:K49)+K39 -> 110.768135 | M50: 17.99 | N50: 0.193903445
A51: RTSR - Network | C51: per kWh | E51: 0.0063 | F51: =$E$18*(1+$E$79) -> 5196.5 | G51: =F51*E51 -> 32.73795 | I51: ='Rates Summary'!$D$23 -> 0.0065 | J51: =$E$18*(1+I79) -> 5196.5 | K51: =J51*I51 -> 33.77725 | M51: 1.0393 | N51: 0.03174603175
A52: RTSR - Line and Transformation Connection | C52: per kWh | E52: 0.0051 | F52: =F51 -> 5196.5 | G52: =F52*E52 -> 26.50215 | I52: ='Rates Summary'!$D$24 -> 0.0054 | J52: =J51 -> 5196.5 | K52: =J52*I52 -> 28.0611 | M52: 1.55895 | N52: 0.05882352941
A53: Sub-Total C - Delivery (including Sub-Total B) | G53: =SUM(G50:G52) -> 152.018235 | K53: =SUM(K50:K52) -> 172.606485 | M53: 20.58825 | N53: 0.1354327657
A54: Wholesale Market Service Charge (WMSC) | C54: per kWh | E54: 0.0032 | F54: =F52 -> 5196.5 | G54: =F54*E54 -> 16.6288 | I54: ='Rates Summary'!$D$25 -> 0.0032 | J54: =J52 -> 5196.5 | K54: =J54*I54 -> 16.6288 | M54: 0 | N54: 0
A55: Capacity Based Recovery Charge (CBR) | C55: per kWh | E55: 0.0004 | F55: =F51 -> 5196.5 | G55: 2.0786 | I55: ='Rates Summary'!$D$26 -> 0.0004 | J55: =J51 -> 5196.5 | K55: 2.0786 | M55: 0 | N55: 0
A56: Ontario Electricity Support Program (OESP) | C56: per kWh | E56: 0.0011 | F56: =F52 -> 5196.5 | G56: 5.71615 | I56: ='Rates Summary'!$D$27 -> 0.0011 | J56: =J52 -> 5196.5 | K56: 5.71615 | M56: 0 | N56: 0
A57: Rural and Remote Rate Protection (RRRP) | C57: per kWh | E57: 0.0013 | F57: =F52 -> 5196.5 | G57: 6.75545 | I57: ='Rates Summary'!$D$28 -> 0.0013 | J57: =J52 -> 5196.5 | K57: 6.75545 | M57: 0 | N57: 0
A58: Standard Supply Service Charge | C58: Monthly | E58: 0.25 | F58: 1 | G58: 0.25 | I58: ='Rates Summary'!$D$29 -> 0.25 | J58: 1 | K58: 0.25 | M58: 0 | N58: 0
A59: Debt Retirement Charge (DRC) | C59: per kWh | E59: 0.007 | F59: =E18 -> 5000 | G59: 35 | I59: =E59 -> 0.007 | J59: =F59 -> 5000 | K59: 35 | M59: 0 | N59: 0
A60: TOU - Off Peak | C60: per kWh | E60: 0.087 | F60: =0.65*$E$18 -> 3250 | G60: 282.75 | I60: =E60 -> 0.087 | J60: =0.65*$E$18 -> 3250 | K60: 282.75 | M60: 0 | N60: 0
A61: TOU - Mid Peak | C61: per kWh | E61: 0.132 | F61: =0.17*$E$18 -> 850 | G61: 112.2 | I61: =E61 -> 0.132 | J61: =0.17*$E$18 -> 850 | K61: 112.2 | M61: 0 | N61: 0
A62: TOU - On Peak | C62: per kWh | E62: 0.18 | F62: =0.18*$E$18 -> 900 | G62: 162 | I62: =E62 -> 0.18 | J62: =0.18*$E$18 -> 900 | K62: 162 | M62: 0 | N62: 0
A63: Energy - RPP - Tier 1 | C63: per kWh | E63: 0.103 | F63: =IF(AND($N$1=1, $E$18>=750), 750, IF(AND($N$1=1, AND($E$18<750, $E$18>=0)), $E$18, IF(AND($N$1=2, $E$18>=1000), 1000, IF(AND($N$1=2, AND($E$18<1000, $E$18>=0)), $E$18)))) -> 750 | G63: =F63*E63 -> 77.25 | I63: =E63 -> 0.103 | J63: =IF(AND($N$1=1, $E$18>=750), 750, IF(AND($N$1=1, AND($E$18<750, $E$18>=0)), $E$18, IF(AND($N$1=2, $E$18>=1000), 1000, IF(AND($N$1=2, AND($E$18<1000, $E$18>=0)), $E$18)))) -> 750 | K63: =J63*I63 -> 77.25 | M63: 0 | N63: 0
A64: Energy - RPP - Tier 2 | C64: per kWh | E64: 0.121 | F64: =IF(AND($N$1=1, $E$18>=600), $E$18-600, IF(AND($N$1=1, AND($E$18<600, $E$18>=0)), 0, IF(AND($N$1=2, $E$18>=1000), $E$18-1000, IF(AND($N$1=2, AND($E$18<1000, $E$18>=0)), 0)))) -> 4400 | G64: =F64*E64 -> 532.4 | I64: =E64 -> 0.121 | J64: =IF(AND($N$1=1, $E$18>=600), $E$18-600, IF(AND($N$1=1, AND($E$18<600, $E$18>=0)), 0, IF(AND($N$1=2, $E$18>=1000), $E$18-1000, IF(AND($N$1=2, AND($E$18<1000, $E$18>=0)), 0)))) -> 4400 | K64: =J64*I64 -> 532.4 | M64: 0 | N64: 0
A66: Total Bill on TOU (before Taxes) | G66: =SUM(G54:G62,G53) -> 775.397235 | K66: =SUM(K54:K62,K53) -> 795.985485 | M66: =K66-G66 -> 20.58825 | N66: 0.02655187441
A67: HST | E67: 0.13 | G67: =G66*E67 -> 100.8016405 | I67: 0.13 | K67: =K66*I67 -> 103.478113 | M67: =K67-G67 -> 2.6764725 | N67: 0.02655187441
A68: Total Bill (including HST) | G68: =G66+G67 -> 876.1988755 | K68: =K66+K67 -> 899.463598 | M68: =K68-G68 -> 23.2647225 | N68: 0.02655187441
N71: =IF((G71)=0,"",(M71/G71)) -> 
A72: Total Bill on RPP (before Taxes) | G72: =SUM(G64:G65,G53,G54:G59) -> 750.847235 | K72: =SUM(K64:K65,K53,K54:K59) -> 771.435485 | M72: =K72-G72 -> 20.58825 | N72: =IF((G72)=0,"",(M72/G72)) -> 0.02742002506
A73: HST | E73: 0.13 | G73: =G72*E73 -> 97.61014055 | I73: 0.13 | K73: =K72*I73 -> 100.286613 | M73: =K73-G73 -> 2.6764725 | N73: =IF((G73)=0,"",(M73/G73)) -> 0.02742002506
A74: Total Bill (including HST) | G74: =G72+G73 -> 848.4573755 | K74: =K72+K73 -> 871.722098 | M74: =K74-G74 -> 23.2647225 | N74: =IF((G74)=0,"",(M74/G74)) -> 0.02742002506
A79: Loss Factor (%) | E79: 0.0393 | I79: 0.0393
B83: Residential (kWh) - 100, 250, 500, 750, 1000, 1500, 2000
B84: GS<50kW (kWh) - 1000, 2000, 5000, 10000, 15000
B85: GS>50kW (kW) - 60, 100, 500, 1000
B86: Large User - range appropriate for utility
B87: Lighting Classes and USL - 150 kWh and 1 kW, range appropriate for utility.
C89: Note that cells with the highlighted color shown to the left indicate quantities that are loss adjusted.

Sheet Bill Impact GS < 50 10000kWh
K1: File Number: | M1: EB-2016-0087 | O1: 1
K3: Tab:
K4: Schedule:
K5: Page:
M7: Year 2 Custom IR Update
K8: Date: | M8: 2016-Aug-15
A11: Bill Impacts
A14: Customer Class: | C14: General Service Less Than 50 kW
A16: TOU / non-TOU: | C16: TOU
C18: Consumption | E18: 10000 | F18: kWh
E20: 2016 Custom IR Year 1 Approved | I20: 2017 Custom IR Year 2 Proposed | M20: Impact 2017 vs. 2016
C21: Charge Unit | E21: Rate | F21: Volume | G21: Charge | I21: Rate | J21: Volume | K21: Charge | M21: $ Change | N21: % Change
E22: ($) | G22: ($) | I22: ($) | K22: ($)
A23: Monthly Service Charge | C23: Monthly | E23: 14.27 | F23: 1 | G23: =F23*E23 -> 14.27 | I23: ='Rates Summary'!$F$46 -> 14.59 | J23: 1 | K23: =J23*I23 -> 14.59 | M23: =K23-G23 -> 0.32 | N23: =IF((G23)=0,"",(M23/G23)) -> 0.02242466713
A25: Rate Rider Smart Meters Capital (2016) | C25: Monthly | E25: 0.43 | F25: 1 | G25: 0.43 | I25: 0 | J25: 1 | K25: 0 | M25: =K25-G25 -> -0.43 | N25: =IF((G25)=0,"",(M25/G25)) -> -1
A26: Rate Rider Recovery of Stranded Meters (2016) | C26: Monthly | E26: 6.4 | F26: 1 | G26: 6.4 | I26: 0 | J26: 1 | K26: 0 | M26: =K26-G26 -> -6.4 | N26: =IF((G26)=0,"",(M26/G26)) -> -1
E27: 0 | F27: 1 | G27: 0 | I27: 0 | J27: 1 | K27: 0 | M27: =K27-G27 -> 0 | N27: =IF((G27)=0,"",(M27/G27)) -> 
E28: 0 | F28: 1 | G28: 0 | I28: 0 | J28: 1 | K28: 0 | M28: =K28-G28 -> 0 | N28: =IF((G28)=0,"",(M28/G28)) -> 
A29: Distribution Volumetric Rate | C29: per kWh | E29: 0.0146 | F29: =$E$18 -> 10000 | G29: 146 | I29: ='Rates Summary'!$F$58 -> 0.0151 | J29: =$E$18 -> 10000 | K29: 151 | M29: =K29-G29 -> 5 | N29: =IF((G29)=0,"",(M29/G29)) -> 0.03424657534
A31: LRAM VA (2016) | C31: per kWh | E31: 0.0008 | F31: 10000 | G31: 8 | I31: 0 | J31: 10000 | K31: 0 | M31: =K31-G31 -> -8 | N31: =IF((G31)=0,"",(M31/G31)) -> -1
A32: Rate Rider Incremental Capital 2012 True-Up (2016) | C32: per kWh | E32: 0.0002 | F32: 10000 | G32: 2 | I32: 0 | J32: 10000 | K32: 0 | M32: -2 | N32: -1
C33: per kWh | F33: 10000 | G33: 0 | J33: 10000 | K33: 0 | M33: 0
C34: per kWh | F34: 10000 | G34: 0 | J34: 10000 | K34: 0 | M34: 0
F35: 10000 | G35: 0 | J35: 10000 | K35: 0 | M35: 0
F36: 10000 | G36: 0 | J36: 10000 | K36: 0 | M36: 0
F37: 10000 | G37: 0 | J37: 10000 | K37: 0 | M37: 0
F38: 10000 | G38: 0 | J38: 10000 | K38: 0 | M38: 0
A39: Sub-Total A (excluding pass through) | G39: =SUM(G23:G38) -> 177.1 | K39: =SUM(K23:K38) -> 165.59 | M39: -11.51 | N39: -0.06499153021
A40: Deferral/Variance Account Disposition Rate Rider (2016) | C40: per kWh | E40: -0.0007 | F40: =$E$18 -> 10000 | G40: =F40*E40 -> -7 | I40: 0 | J40: =$E$18 -> 10000 | K40: =J40*I40 -> 0 | M40: 7 | N40: -1
A41: Deferral/Variance Account Disposition Rate Rider (2017) | E41: 0 | F41: =$E$18 -> 10000 | G41: =F41*E41 -> 0 | I41: ='Rates Summary'!$D$4 -> 0.0028 | J41: =$E$18 -> 10000 | K41: =J41*I41 -> 28 | M41: 28 | N41: 1
A42: Deferral/Variance Account Disposition - NON-WMP Rate Rider (2017) | E42: 0 | F42: =$E$18 -> 10000 | G42: 0 | I42: ='Rates Summary'!$D$5 -> -0.0051 | J42: =$E$18 -> 10000 | K42: -51 | M42: -51 | N42: 1
A43: Rate Rider CGAAP Account 1576 (2016) | C43: per kWh | E43: -0.0062 | F43: =$E$18 -> 10000 | G43: -62 | I43: 0 | J43: =$E$18 -> 10000 | K43: 0 | M43: 62 | N43: =IF((G43)=0,"",(M43/G43)) -> -1
A44: Deferral/Variance 1580 Sub-Account CBR Class B Disposition Rate Rider - Class B Non-WMP (2017) | E44: 0 | F44: =$E$18 -> 10000 | G44: =F44*E44 -> 0 | I44: ='Rates Summary'!$D$7 -> 0.0003 | J44: =$E$18 -> 10000 | K44: =J44*I44 -> 3 | M44: =K44-G44 -> 3 | N44: 1
A45: Disposition of Global Adjustment (2016) Applicable to Non-RPP Customers | C45: per kWh | E45: 0.0205 | F45: 0 | G45: 0 | I45: 0 | J45: 0 | K45: 0 | M45: =K45-G45 -> 0 | N45: =IF((G45)=0,"",(M45/G45)) -> 
A46: Disposition of Global Adjustment (2017) Applicable to Non-RPP Customers | C46: per kWh | E46: 0 | F46: 0 | G46: 0 | I46: ='Rates Summary'!$D$6 -> 0.0139 | J46: 0 | K46: 0 | M46: 0
A47: Low Voltage Service Charge | C47: per kWh | E47: 0.0011 | F47: =$E$18 -> 10000 | G47: =F47*E47 -> 11 | I47: ='Rates Summary'!$D$21 -> 0.0016 | J47: =$E$18 -> 10000 | K47: =J47*I47 -> 16 | M47: 5 | N47: 0.4545454545
A48: Line Losses on Cost of Power | C48: per kWh | E48: =IF(ISBLANK($C$16)=TRUE, 0, IF($C$16="TOU", 0.65*$E$60+0.17*$E$61+0.18*$E$62, IF(AND($C$16="non-TOU", F64>0), E64,E63))) -> 0.11139 | F48: =$E$18*(1+$E$79)-$E$18 -> 393 | G48: 43.77627 | I48: =E48 -> 0.11139 | J48: =$E$18*(1+$E$79)-$E$18 -> 393 | K48: =J48*I48 -> 43.77627 | M48: 0 | N48: 0
A49: Smart Meter Entity Charge | C49: Monthly | E49: 0.79 | F49: 1 | G49: =F49*E49 -> 0.79 | I49: 0.79 | J49: 1 | K49: =J49*I49 -> 0.79 | M49: 0 | N49: 0
A50: Sub-Total B - Distribution (includes Sub-Total A) | G50: =SUM(G40:G49)+G39 -> 163.66627 | K50: =SUM(K40:K49)+K39 -> 206.15627 | M50: 42.49 | N50: 0.2596136638
A51: RTSR - Network | C51: per kWh | E51: 0.0063 | F51: =$E$18*(1+$E$79) -> 10393 | G51: =F51*E51 -> 65.4759 | I51: ='Rates Summary'!$D$23 -> 0.0065 | J51: =$E$18*(1+I79) -> 10393 | K51: =J51*I51 -> 67.5545 | M51: 2.0786 | N51: 0.03174603175
A52: RTSR - Line and Transformation Connection | C52: per kWh | E52: 0.0051 | F52: =F51 -> 10393 | G52: =F52*E52 -> 53.0043 | I52: ='Rates Summary'!$D$24 -> 0.0054 | J52: =J51 -> 10393 | K52: =J52*I52 -> 56.1222 | M52: 3.1179 | N52: 0.05882352941
A53: Sub-Total C - Delivery (including Sub-Total B) | G53: =SUM(G50:G52) -> 282.14647 | K53: =SUM(K50:K52) -> 329.83297 | M53: 47.6865 | N53: 0.1690132788
A54: Wholesale Market Service Charge (WMSC) | C54: per kWh | E54: 0.0032 | F54: =F52 -> 10393 | G54: =F54*E54 -> 33.2576 | I54: ='Rates Summary'!$D$25 -> 0.0032 | J54: =J52 -> 10393 | K54: =J54*I54 -> 33.2576 | M54: 0 | N54: 0
A55: Capacity Based Recovery Charge (CBR) | C55: per kWh | E55: 0.0004 | F55: =F51 -> 10393 | G55: 4.1572 | I55: ='Rates Summary'!$D$26 -> 0.0004 | J55: =J51 -> 10393 | K55: 4.1572 | M55: 0 | N55: 0
A56: Ontario Electricity Support Program (OESP) | C56: per kWh | E56: 0.0011 | F56: =F52 -> 10393 | G56: 11.4323 | I56: ='Rates Summary'!$D$27 -> 0.0011 | J56: =J52 -> 10393 | K56: 11.4323 | M56: 0 | N56: 0
A57: Rural and Remote Rate Protection (RRRP) | C57: per kWh | E57: 0.0013 | F57: =F52 -> 10393 | G57: 13.5109 | I57: ='Rates Summary'!$D$28 -> 0.0013 | J57: =J52 -> 10393 | K57: 13.5109 | M57: 0 | N57: 0
A58: Standard Supply Service Charge | C58: Monthly | E58: 0.25 | F58: 1 | G58: 0.25 | I58: ='Rates Summary'!$D$29 -> 0.25 | J58: 1 | K58: 0.25 | M58: 0 | N58: 0
A59: Debt Retirement Charge (DRC) | C59: per kWh | E59: 0.007 | F59: =E18 -> 10000 | G59: 70 | I59: =E59 -> 0.007 | J59: =F59 -> 10000 | K59: 70 | M59: 0 | N59: 0
A60: TOU - Off Peak | C60: per kWh | E60: 0.087 | F60: =0.65*$E$18 -> 6500 | G60: 565.5 | I60: =E60 -> 0.087 | J60: =0.65*$E$18 -> 6500 | K60: 565.5 | M60: 0 | N60: 0
A61: TOU - Mid Peak | C61: per kWh | E61: 0.132 | F61: =0.17*$E$18 -> 1700 | G61: 224.4 | I61: =E61 -> 0.132 | J61: =0.17*$E$18 -> 1700 | K61: 224.4 | M61: 0 | N61: 0
A62: TOU - On Peak | C62: per kWh | E62: 0.18 | F62: =0.18*$E$18 -> 1800 | G62: 324 | I62: =E62 -> 0.18 | J62: =0.18*$E$18 -> 1800 | K62: 324 | M62: 0 | N62: 0
A63: Energy - RPP - Tier 1 | C63: per kWh | E63: 0.103 | F63: =IF(AND($O$1=1, $E$18>=750), 750, IF(AND($O$1=1, AND($E$18<750, $E$18>=0)), $E$18, IF(AND($O$1=2, $E$18>=1000), 1000, IF(AND($O$1=2, AND($E$18<1000, $E$18>=0)), $E$18)))) -> 750 | G63: =F63*E63 -> 77.25 | I63: =E63 -> 0.103 | J63: =IF(AND($O$1=1, $E$18>=750), 750, IF(AND($O$1=1, AND($E$18<750, $E$18>=0)), $E$18, IF(AND($O$1=2, $E$18>=1000), 1000, IF(AND($O$1=2, AND($E$18<1000, $E$18>=0)), $E$18)))) -> 750 | K63: =J63*I63 -> 77.25 | M63: 0 | N63: 0
A64: Energy - RPP - Tier 2 | C64: per kWh | E64: 0.121 | F64: =IF(AND($O$1=1, $E$18>=600), $E$18-600, IF(AND($O$1=1, AND($E$18<600, $E$18>=0)), 0, IF(AND($O$1=2, $E$18>=1000), $E$18-1000, IF(AND($O$1=2, AND($E$18<1000, $E$18>=0)), 0)))) -> 9400 | G64: =F64*E64 -> 1137.4 | I64: =E64 -> 0.121 | J64: =IF(AND($O$1=1, $E$18>=600), $E$18-600, IF(AND($O$1=1, AND($E$18<600, $E$18>=0)), 0, IF(AND($O$1=2, $E$18>=1000), $E$18-1000, IF(AND($O$1=2, AND($E$18<1000, $E$18>=0)), 0)))) -> 9400 | K64: =J64*I64 -> 1137.4 | M64: 0 | N64: 0
A66: Total Bill on TOU (before Taxes) | G66: =SUM(G54:G62,G53) -> 1528.65447 | K66: =SUM(K54:K62,K53) -> 1576.34097 | M66: =K66-G66 -> 47.6865 | N66: 0.03119508099
A67: HST | E67: 0.13 | G67: =G66*E67 -> 198.7250811 | I67: 0.13 | K67: =K66*I67 -> 204.9243261 | M67: =K67-G67 -> 6.199245 | N67: 0.03119508099
A68: Total Bill (including HST) | G68: =G66+G67 -> 1727.379551 | K68: =K66+K67 -> 1781.265296 | M68: =K68-G68 -> 53.885745 | N68: 0.03119508099
N71: =IF((G71)=0,"",(M71/G71)) -> 
A72: Total Bill on RPP (before Taxes) | G72: =SUM(G64:G65,G53,G54:G59) -> 1552.15447 | K72: =SUM(K64:K65,K53,K54:K59) -> 1599.84097 | M72: =K72-G72 -> 47.6865 | N72: =IF((G72)=0,"",(M72/G72)) -> 0.0307227798
A73: HST | E73: 0.13 | G73: =G72*E73 -> 201.7800811 | I73: 0.13 | K73: =K72*I73 -> 207.9793261 | M73: =K73-G73 -> 6.199245 | N73: =IF((G73)=0,"",(M73/G73)) -> 0.0307227798
A74: Total Bill (including HST) | G74: =G72+G73 -> 1753.934551 | K74: =K72+K73 -> 1807.820296 | M74: =K74-G74 -> 53.885745 | N74: =IF((G74)=0,"",(M74/G74)) -> 0.0307227798
A79: Loss Factor (%) | E79: 0.0393 | I79: 0.0393
B83: Residential (kWh) - 100, 250, 500, 750, 1000, 1500, 2000
B84: GS<50kW (kWh) - 1000, 2000, 5000, 10000, 15000
B85: GS>50kW (kW) - 60, 100, 500, 1000
B86: Large User - range appropriate for utility
B87: Lighting Classes and USL - 150 kWh and 1 kW, range appropriate for utility.
C89: Note that cells with the highlighted color shown to the left indicate quantities that are loss adjusted.

Sheet Bill Impact GS < 50 15000kWh
K1: File Number: | M1: EB-2016-0087 | O1: 1
K3: Tab:
K4: Schedule:
K5: Page:
M7: Year 2 Custom IR Update
K8: Date: | M8: 2016-Aug-15
A11: Bill Impacts
A14: Customer Class: | C14: General Service Less Than 50 kW
A16: TOU / non-TOU: | C16: TOU
C18: Consumption | E18: 15000 | F18: kWh
E20: 2016 Custom IR Year 1 Approved | I20: 2017 Custom IR Year 2 Proposed | M20: Impact 2017 vs. 2016
C21: Charge Unit | E21: Rate | F21: Volume | G21: Charge | I21: Rate | J21: Volume | K21: Charge | M21: $ Change | N21: % Change
E22: ($) | G22: ($) | I22: ($) | K22: ($)
A23: Monthly Service Charge | C23: Monthly | E23: 14.27 | F23: 1 | G23: =F23*E23 -> 14.27 | I23: ='Rates Summary'!$F$46 -> 14.59 | J23: 1 | K23: =J23*I23 -> 14.59 | M23: =K23-G23 -> 0.32 | N23: =IF((G23)=0,"",(M23/G23)) -> 0.02242466713
A25: Rate Rider Smart Meters Capital (2016) | C25: Monthly | E25: 0.43 | F25: 1 | G25: 0.43 | I25: 0 | J25: 1 | K25: 0 | M25: =K25-G25 -> -0.43 | N25: =IF((G25)=0,"",(M25/G25)) -> -1
A26: Rate Rider Recovery of Stranded Meters (2016) | C26: Monthly | E26: 6.4 | F26: 1 | G26: 6.4 | I26: 0 | J26: 1 | K26: 0 | M26: =K26-G26 -> -6.4 | N26: =IF((G26)=0,"",(M26/G26)) -> -1
A29: Distribution Volumetric Rate | C29: per kWh | E29: 0.0146 | F29: =$E$18 -> 15000 | G29: 219 | I29: ='Rates Summary'!$F$58 -> 0.0151 | J29: =$E$18 -> 15000 | K29: 226.5 | M29: =K29-G29 -> 7.5 | N29: =IF((G29)=0,"",(M29/G29)) -> 0.03424657534
A31: LRAM VA (2016) | C31: per kWh | E31: 0.0008 | F31: 15000 | G31: 12 | I31: 0 | J31: 15000 | K31: 0 | M31: =K31-G31 -> -12 | N31: =IF((G31)=0,"",(M31/G31)) -> -1
A32: Rate Rider Incremental Capital 2012 True-Up (2016) | C32: per kWh | E32: 0.0002 | F32: 15000 | G32: 3 | I32: 0 | J32: 15000 | K32: 0 | M32: -3 | N32: -1
C33: per kWh | F33: 15000 | G33: 0 | J33: 15000 | K33: 0 | M33: 0
C34: per kWh | F34: 15000 | G34: 0 | J34: 15000 | K34: 0 | M34: 0
F35: 15000 | G35: 0 | J35: 15000 | K35: 0 | M35: 0
F36: 15000 | G36: 0 | J36: 15000 | K36: 0 | M36: 0
F37: 15000 | G37: 0 | J37: 15000 | K37: 0 | M37: 0
F38: 15000 | G38: 0 | J38: 15000 | K38: 0 | M38: 0
A39: Sub-Total A (excluding pass through) | G39: =SUM(G23:G38) -> 255.1 | K39: =SUM(K23:K38) -> 241.09 | M39: -14.01 | N39: -0.05491963936
A40: Deferral/Variance Account Disposition Rate Rider (2016) | C40: per kWh | E40: -0.0007 | F40: =$E$18 -> 15000 | G40: =F40*E40 -> -10.5 | I40: 0 | J40: =$E$18 -> 15000 | K40: =J40*I40 -> 0 | M40: 10.5 | N40: -1
A41: Deferral/Variance Account Disposition Rate Rider (2017) | E41: 0 | F41: =$E$18 -> 15000 | G41: =F41*E41 -> 0 | I41: ='Rates Summary'!$D$4 -> 0.0028 | J41: =$E$18 -> 15000 | K41: =J41*I41 -> 42 | M41: 42 | N41: 1
A42: Deferral/Variance Account Disposition - NON-WMP Rate Rider (2017) | E42: 0 | F42: =$E$18 -> 15000 | G42: 0 | I42: ='Rates Summary'!$D$5 -> -0.0051 | J42: =$E$18 -> 15000 | K42: -76.5 | M42: -76.5 | N42: 1
A43: Rate Rider CGAAP Account 1576 (2016) | C43: per kWh | E43: -0.0062 | F43: =$E$18 -> 15000 | G43: -93 | I43: 0 | J43: =$E$18 -> 15000 | K43: 0 | M43: 93 | N43: =IF((G43)=0,"",(M43/G43)) -> -1
A44: Deferral/Variance 1580 Sub-Account CBR Class B Disposition Rate Rider - Class B Non-WMP (2017) | E44: 0 | F44: =$E$18 -> 15000 | G44: =F44*E44 -> 0 | I44: ='Rates Summary'!$D$7 -> 0.0003 | J44: =$E$18 -> 15000 | K44: =J44*I44 -> 4.5 | M44: =K44-G44 -> 4.5 | N44: 1
A45: Disposition of Global Adjustment (2016) Applicable to Non-RPP Customers | C45: per kWh | E45: 0.0205 | F45: 0 | G45: 0 | I45: 0 | J45: 0 | K45: 0 | M45: =K45-G45 -> 0 | N45: =IF((G45)=0,"",(M45/G45)) -> 
A46: Disposition of Global Adjustment (2017) Applicable to Non-RPP Customers | C46: per kWh | E46: 0 | F46: 0 | G46: 0 | I46: ='Rates Summary'!$D$6 -> 0.0139 | J46: 0 | K46: 0 | M46: 0
A47: Low Voltage Service Charge | C47: per kWh | E47: 0.0011 | F47: =$E$18 -> 15000 | G47: =F47*E47 -> 16.5 | I47: ='Rates Summary'!$D$21 -> 0.0016 | J47: =$E$18 -> 15000 | K47: =J47*I47 -> 24 | M47: 7.5 | N47: 0.4545454545
A48: Line Losses on Cost of Power | C48: per kWh | E48: =IF(ISBLANK($C$16)=TRUE, 0, IF($C$16="TOU", 0.65*$E$60+0.17*$E$61+0.18*$E$62, IF(AND($C$16="non-TOU", F64>0), E64,E63))) -> 0.11139 | F48: =$E$18*(1+$E$79)-$E$18 -> 589.5 | G48: 65.664405 | I48: =E48 -> 0.11139 | J48: =$E$18*(1+$E$79)-$E$18 -> 589.5 | K48: =J48*I48 -> 65.664405 | M48: 0 | N48: 0
A49: Smart Meter Entity Charge | C49: Monthly | E49: 0.79 | F49: 1 | G49: =F49*E49 -> 0.79 | I49: 0.79 | J49: 1 | K49: =J49*I49 -> 0.79 | M49: 0 | N49: 0
A50: Sub-Total B - Distribution (includes Sub-Total A) | G50: =SUM(G40:G49)+G39 -> 234.554405 | K50: =SUM(K40:K49)+K39 -> 301.544405 | M50: 66.99 | N50: 0.2856053801
A51: RTSR - Network | C51: per kWh | E51: 0.0063 | F51: =$E$18*(1+$E$79) -> 15589.5 | G51: =F51*E51 -> 98.21385 | I51: ='Rates Summary'!$D$23 -> 0.0065 | J51: =$E$18*(1+I79) -> 15589.5 | K51: =J51*I51 -> 101.33175 | M51: 3.1179 | N51: 0.03174603175
A52: RTSR - Line and Transformation Connection | C52: per kWh | E52: 0.0051 | F52: =F51 -> 15589.5 | G52: =F52*E52 -> 79.50645 | I52: ='Rates Summary'!$D$24 -> 0.0054 | J52: =J51 -> 15589.5 | K52: =J52*I52 -> 84.1833 | M52: 4.67685 | N52: 0.05882352941
A53: Sub-Total C - Delivery (including Sub-Total B) | G53: =SUM(G50:G52) -> 412.274705 | K53: =SUM(K50:K52) -> 487.059455 | M53: 74.78475 | N53: 0.1813954363
A54: Wholesale Market Service Charge (WMSC) | C54: per kWh | E54: 0.0032 | F54: =F52 -> 15589.5 | G54: =F54*E54 -> 49.8864 | I54: ='Rates Summary'!$D$25 -> 0.0032 | J54: =J52 -> 15589.5 | K54: =J54*I54 -> 49.8864 | M54: 0 | N54: 0
A55: Capacity Based Recovery Charge (CBR) | C55: per kWh | E55: 0.0004 | F55: =F51 -> 15589.5 | G55: 6.2358 | I55: ='Rates Summary'!$D$26 -> 0.0004 | J55: =J51 -> 15589.5 | K55: 6.2358 | M55: 0 | N55: 0
A56: Ontario Electricity Support Program (OESP) | C56: per kWh | E56: 0.0011 | F56: =F52 -> 15589.5 | G56: 17.14845 | I56: ='Rates Summary'!$D$27 -> 0.0011 | J56: =J52 -> 15589.5 | K56: 17.14845 | M56: 0 | N56: 0
A57: Rural and Remote Rate Protection (RRRP) | C57: per kWh | E57: 0.0013 | F57: =F52 -> 15589.5 | G57: 20.26635 | I57: ='Rates Summary'!$D$28 -> 0.0013 | J57: =J52 -> 15589.5 | K57: 20.26635 | M57: 0 | N57: 0
A58: Standard Supply Service Charge | C58: Monthly | E58: 0.25 | F58: 1 | G58: 0.25 | I58: ='Rates Summary'!$D$29 -> 0.25 | J58: 1 | K58: 0.25 | M58: 0 | N58: 0
A59: Debt Retirement Charge (DRC) | C59: per kWh | E59: 0.007 | F59: =E18 -> 15000 | G59: 105 | I59: =E59 -> 0.007 | J59: =F59 -> 15000 | K59: 105 | M59: 0 | N59: 0
A60: TOU - Off Peak | C60: per kWh | E60: 0.087 | F60: =0.65*$E$18 -> 9750 | G60: 848.25 | I60: =E60 -> 0.087 | J60: =0.65*$E$18 -> 9750 | K60: 848.25 | M60: 0 | N60: 0
A61: TOU - Mid Peak | C61: per kWh | E61: 0.132 | F61: =0.17*$E$18 -> 2550 | G61: 336.6 | I61: =E61 -> 0.132 | J61: =0.17*$E$18 -> 2550 | K61: 336.6 | M61: 0 | N61: 0
A62: TOU - On Peak | C62: per kWh | E62: 0.18 | F62: =0.18*$E$18 -> 2700 | G62: 486 | I62: =E62 -> 0.18 | J62: =0.18*$E$18 -> 2700 | K62: 486 | M62: 0 | N62: 0
A63: Energy - RPP - Tier 1 | C63: per kWh | E63: 0.103 | F63: =IF(AND($O$1=1, $E$18>=750), 750, IF(AND($O$1=1, AND($E$18<750, $E$18>=0)), $E$18, IF(AND($O$1=2, $E$18>=1000), 1000, IF(AND($O$1=2, AND($E$18<1000, $E$18>=0)), $E$18)))) -> 750 | G63: =F63*E63 -> 77.25 | I63: =E63 -> 0.103 | J63: =IF(AND($O$1=1, $E$18>=750), 750, IF(AND($O$1=1, AND($E$18<750, $E$18>=0)), $E$18, IF(AND($O$1=2, $E$18>=1000), 1000, IF(AND($O$1=2, AND($E$18<1000, $E$18>=0)), $E$18)))) -> 750 | K63: =J63*I63 -> 77.25 | M63: 0 | N63: 0
A64: Energy - RPP - Tier 2 | C64: per kWh | E64: 0.121 | F64: =IF(AND($O$1=1, $E$18>=600), $E$18-600, IF(AND($O$1=1, AND($E$18<600, $E$18>=0)), 0, IF(AND($O$1=2, $E$18>=1000), $E$18-1000, IF(AND($O$1=2, AND($E$18<1000, $E$18>=0)), 0)))) -> 14400 | G64: =F64*E64 -> 1742.4 | I64: =E64 -> 0.121 | J64: =IF(AND($O$1=1, $E$18>=600), $E$18-600, IF(AND($O$1=1, AND($E$18<600, $E$18>=0)), 0, IF(AND($O$1=2, $E$18>=1000), $E$18-1000, IF(AND($O$1=2, AND($E$18<1000, $E$18>=0)), 0)))) -> 14400 | K64: =J64*I64 -> 1742.4 | M64: 0 | N64: 0
A66: Total Bill on TOU (before Taxes) | G66: =SUM(G54:G62,G53) -> 2281.911705 | K66: =SUM(K54:K62,K53) -> 2356.696455 | M66: =K66-G66 -> 74.78475 | N66: 0.03277284999
A67: HST | E67: 0.13 | G67: =G66*E67 -> 296.6485216 | I67: 0.13 | K67: =K66*I67 -> 306.3705391 | M67: =K67-G67 -> 9.7220175 | N67: 0.03277284999
A68: Total Bill (including HST) | G68: =G66+G67 -> 2578.560227 | K68: =K66+K67 -> 2663.066994 | M68: =K68-G68 -> 84.5067675 | N68: 0.03277284999
N71: =IF((G71)=0,"",(M71/G71)) -> 
A72: Total Bill on RPP (before Taxes) | G72: =SUM(G64:G65,G53,G54:G59) -> 2353.461705 | K72: =SUM(K64:K65,K53,K54:K59) -> 2428.246455 | M72: =K72-G72 -> 74.78475 | N72: =IF((G72)=0,"",(M72/G72)) -> 0.03177648901
A73: HST | E73: 0.13 | G73: =G72*E73 -> 305.9500216 | I73: 0.13 | K73: =K72*I73 -> 315.6720391 | M73: =K73-G73 -> 9.7220175 | N73: =IF((G73)=0,"",(M73/G73)) -> 0.03177648901
A74: Total Bill (including HST) | G74: =G72+G73 -> 2659.411727 | K74: =K72+K73 -> 2743.918494 | M74: =K74-G74 -> 84.5067675 | N74: =IF((G74)=0,"",(M74/G74)) -> 0.03177648901
A79: Loss Factor (%) | E79: 0.0393 | I79: 0.0393
B83: Residential (kWh) - 100, 250, 500, 750, 1000, 1500, 2000
B84: GS<50kW (kWh) - 1000, 2000, 5000, 10000, 15000
B85: GS>50kW (kW) - 60, 100, 500, 1000
B86: Large User - range appropriate for utility
B87: Lighting Classes and USL - 150 kWh and 1 kW, range appropriate for utility.
C89: Note that cells with the highlighted color shown to the left indicate quantities that are loss adjusted.

Sheet Bill Impact GS50-4999 60kW
K1: File Number: | M1: EB-2016-0087 | O1: 1
K3: Tab:
K4: Schedule:
K5: Page:
M7: Year 2 Custom IR Update
K8: Date: | M8: 2016-Aug-15
A11: Bill Impacts
A14: Customer Class: | C14: General Service 50 to 4,999 kW
A16: TOU / non-TOU: | C16: non-TOU
C18: Consumption | E18: 40000 | F18: kWh
C19: Load | E19: 60 | F19: kW
E20: 2016 Custom IR Year 1 Approved | I20: 2017 Custom IR Year 2 Proposed | M20: Impact 2017 vs. 2016
C21: Charge Unit | E21: Rate | F21: Volume | G21: Charge | I21: Rate | J21: Volume | K21: Charge | M21: $ Change | N21: % Change
E22: ($) | G22: ($) | I22: ($) | K22: ($)
A23: Monthly Service Charge | C23: Monthly | E23: 105.62 | F23: 1 | G23: =F23*E23 -> 105.62 | I23: ='Rates Summary'!$F$47 -> 107.49 | J23: 1 | K23: =J23*I23 -> 107.49 | M23: =K23-G23 -> 1.87 | N23: =IF((G23)=0,"",(M23/G23)) -> 0.01770498012
A25: Rate Rider Smart Meters Capital (2016) | C25: Monthly | E25: 0 | F25: 1 | G25: =F25*E25 -> 0 | I25: 0 | J25: 1 | K25: =J25*I25 -> 0 | M25: =K25-G25 -> 0 | N25: =IF((G25)=0,"",(M25/G25)) -> 
A26: Rate Rider Recovery of Stranded Meters | C26: Monthly | E26: 0 | F26: 1 | G26: 0 | I26: 0 | J26: 1 | K26: 0 | M26: =K26-G26 -> 0 | N26: =IF((G26)=0,"",(M26/G26)) -> 
A29: Distribution Volumetric Rate | C29: per kW | E29: 2.9849 | F29: =$E$19 -> 60 | G29: 179.094 | I29: ='Rates Summary'!$F$59 -> 3.101 | J29: =$E$19 -> 60 | K29: 186.06 | M29: =K29-G29 -> 6.966 | N29: =IF((G29)=0,"",(M29/G29)) -> 0.0388957754
A31: LRAM VA (2016) | C31: per kW | E31: 0.0293 | F31: 60 | G31: 1.758 | I31: 0 | J31: 60 | K31: 0 | M31: =K31-G31 -> -1.758 | N31: =IF((G31)=0,"",(M31/G31)) -> -1
A32: Rate Rider Incremental Capital 2012 True-Up (2016) | C32: per kW | E32: 0.04 | F32: 60 | G32: 2.4 | I32: 0 | J32: 60 | K32: 0 | M32: -2.4 | N32: -1
F33: 60 | G33: =F33*E33 -> 0 | J33: 60 | K33: =J33*I33 -> 0 | M33: 0
F34: 60 | G34: 0 | J34: 60 | K34: 0 | M34: 0
F35: 60 | G35: 0 | J35: 60 | K35: 0 | M35: 0
F36: 60 | G36: 0 | J36: 60 | K36: 0 | M36: 0
F37: 60 | G37: 0 | J37: 60 | K37: 0 | M37: 0
F38: 60 | G38: 0 | J38: 60 | K38: 0 | M38: 0
A39: Sub-Total A (excluding pass through) | G39: =SUM(G23:G38) -> 288.872 | K39: =SUM(K23:K38) -> 293.55 | M39: 4.678 | N39: 0.01619402365
A40: Deferral/Variance Account Disposition Rate Rider (2016) | C40: per kW | E40: 0.7048 | F40: =$E$19 -> 60 | G40: =F40*E40 -> 42.288 | I40: 0 | J40: =$E$19 -> 60 | K40: =J40*I40 -> 0 | M40: -42.288 | N40: -1
A41: Deferral/Variance Account Disposition Rate Rider (2016), excluding Wholesale Market Participants | C41: per kW | E41: -1.0947 | F41: 60 | G41: =F41*E41 -> -65.682 | I41: 0 | J41: 60 | K41: =J41*I41 -> 0 | M41: 65.682 | N41: -1
A42: Deferral/Variance Account Disposition Rate Rider (2017) | C42: per kW | F42: 60 | G42: =F42*E42 -> 0 | I42: ='Rates Summary'!$E$4 -> 1.0369 | J42: 60 | K42: =J42*I42 -> 62.214 | M42: 62.214 | N42: 1
A43: Deferral/Variance Account Disposition Rate Rider (2017), NON-WMP | C43: per kW | F43: 60 | G43: =F43*E43 -> 0 | I43: ='Rates Summary'!$E$5 -> -1.8545 | J43: 60 | K43: =J43*I43 -> -111.27 | M43: -111.27 | N43: 1
A44: Rate Rider CGAAP Account 1576 (2016) | C44: per kW | E44: -1.0875 | F44: 60 | G44: -65.25 | I44: 0 | J44: 60 | K44: 0 | M44: 65.25 | N44: =IF((G44)=0,"",(M44/G44)) -> -1
A45: Deferral/Variance 1580 Sub-Account CBR Class B Disposition Rate Rider - Class B Non-WMP (2017) | C45: per kW | F45: 60 | G45: 0 | I45: ='Rates Summary'!$E$7 -> 0.0918 | J45: 60 | K45: 5.508 | M45: =K45-G45 -> 5.508 | N45: 1
A46: Disposition of Global Adjustment (2016) Applicable to Non-RPP Customers, excluding Wholesale Market Participants | C46: per kW | E46: 7.4692 | F46: 60 | G46: =F46*E46 -> 448.152 | I46: 0 | J46: 60 | K46: =J46*I46 -> 0 | M46: =K46-G46 -> -448.152 | N46: =IF((G46)=0,"",(M46/G46)) -> -1
A47: Disposition of Global Adjustment (2017) Applicable to Non-RPP Customers, excluding Wholesale Market Participants | C47: per kWh | F47: 60 | G47: =F47*E47 -> 0 | I47: ='Rates Summary'!$E$6 -> 0.0139 | J47: =E18 -> 40000 | K47: =J47*I47 -> 556 | M47: 556 | N47: 1
A48: Low Voltage Service Charge | C48: per kW | E48: 0.4663 | F48: 60 | G48: =F48*E48 -> 27.978 | I48: ='Rates Summary'!$E$21 -> 0.6753 | J48: =$E$19 -> 60 | K48: =J48*I48 -> 40.518 | M48: 12.54 | N48: =IF((G48)=0,"",(M48/G48)) -> 0.4482093073
A49: Line Losses on Cost of Power | C49: per kWh | E49: =IF(ISBLANK($C$16)=TRUE, 0, IF($C$16="TOU", 0.65*$E$60+0.17*$E$61+0.18*$E$62, IF(AND($C$16="non-TOU", F65>0), E65,E64))) -> 0.121 | F49: =$E$18*(1+$E$80)-$E$18 -> 1572 | G49: 190.212 | I49: =E49 -> 0.121 | J49: =$E$18*(1+$E$80)-$E$18 -> 1572 | K49: =J49*I49 -> 190.212 | M49: 0 | N49: 0
A50: Smart Meter Entity Charge | E50: 0 | F50: 1 | G50: =F50*E50 -> 0 | I50: 0 | J50: 1 | K50: =J50*I50 -> 0 | M50: 0
A51: Sub-Total B - Distribution (includes Sub-Total A) | G51: =SUM(G40:G50)+G39 -> 866.57 | K51: =SUM(K40:K50)+K39 -> 1036.732 | M51: 170.162 | N51: 0.1963626712
A52: RTSR - Network | C52: per kW | E52: 2.7797 | F52: =$E$19 -> 60 | G52: =F52*E52 -> 166.782 | I52: ='Rates Summary'!$E$23 -> 2.871 | J52: =$E$19 -> 60 | K52: =J52*I52 -> 172.26 | M52: 5.478 | N52: 0.03284527107
A53: RTSR - Line and Transformation Connection | C53: per kW | E53: 2.2225 | F53: =$E$19 -> 60 | G53: =F53*E53 -> 133.35 | I53: ='Rates Summary'!$E$24 -> 2.3395 | J53: =$E$19 -> 60 | K53: =J53*I53 -> 140.37 | M53: 7.02 | N53: 0.05264341957
A54: Sub-Total C - Delivery (including Sub-Total B) | G54: =SUM(G51:G53) -> 1166.702 | K54: =SUM(K51:K53) -> 1349.362 | M54: 182.66 | N54: 0.1565609727
A55: Wholesale Market Service Charge (WMSC) | C55: per kWh | E55: 0.0032 | F55: =$E$18*(1+E80) -> 41572 | G55: =F55*E55 -> 133.0304 | I55: ='Rates Summary'!$E$25 -> 0.0032 | J55: =$E$18*(1+I80) -> 41572 | K55: =J55*I55 -> 133.0304 | M55: 0 | N55: 0
A56: Capacity Based Recovery Charge (CBR) - Class B | C56: per kWh | E56: 0.0004 | F56: =$E$18*(1+E80) -> 41572 | G56: =F56*E56 -> 16.6288 | I56: ='Rates Summary'!$E$26 -> 0.0004 | J56: =$E$18*(1+I80) -> 41572 | K56: =J56*I56 -> 16.6288 | M56: 0 | N56: 0
A57: Ontario Electricity Support Program (OESP) | C57: per kWh | E57: 0.0011 | F57: =$E$18*(1+E80) -> 41572 | G57: 45.7292 | I57: ='Rates Summary'!$E$27 -> 0.0011 | J57: =$E$18*(1+I80) -> 41572 | K57: 45.7292 | M57: 0 | N57: 0
A58: Rural and Remote Rate Protection (RRRP) | C58: per kWh | E58: 0.0013 | F58: =$E$18*(1+E80) -> 41572 | G58: 54.0436 | I58: ='Rates Summary'!$E$28 -> 0.0013 | J58: =$E$18*(1+I80) -> 41572 | K58: 54.0436 | M58: 0 | N58: 0
A59: Standard Supply Service Charge | C59: Monthly | E59: 0.25 | F59: 1 | G59: 0.25 | I59: ='Rates Summary'!$E$29 -> 0.25 | J59: 1 | K59: 0.25 | M59: 0 | N59: 0
A60: Debt Retirement Charge (DRC) | C60: per kWh | E60: 0.007 | F60: =E18 -> 40000 | G60: 280 | I60: =E60 -> 0.007 | J60: =F60 -> 40000 | K60: 280 | M60: 0 | N60: 0
A61: TOU - Off Peak | C61: per kWh | E61: 0.087 | F61: =0.65*$E$18 -> 26000 | G61: 2262 | I61: =E61 -> 0.087 | J61: =0.65*$E$18 -> 26000 | K61: 2262 | M61: 0 | N61: 0
A62: TOU - Mid Peak | C62: per kWh | E62: 0.132 | F62: =0.17*$E$18 -> 6800 | G62: 897.6 | I62: =E62 -> 0.132 | J62: =0.17*$E$18 -> 6800 | K62: 897.6 | M62: 0 | N62: 0
A63: TOU - On Peak | C63: per kWh | E63: 0.18 | F63: =0.18*$E$18 -> 7200 | G63: 1296 | I63: =E63 -> 0.18 | J63: =0.18*$E$18 -> 7200 | K63: 1296 | M63: 0 | N63: 0
A64: Energy - RPP - Tier 1 | C64: per kWh | E64: 0.103 | F64: =IF(AND($O$1=1, $E$18>=750), 750, IF(AND($O$1=1, AND($E$18<750, $E$18>=0)), $E$18, IF(AND($O$1=2, $E$18>=1000), 1000, IF(AND($O$1=2, AND($E$18<1000, $E$18>=0)), $E$18)))) -> 750 | G64: =F64*E64 -> 77.25 | I64: =E64 -> 0.103 | J64: =IF(AND($O$1=1, $E$18>=750), 750, IF(AND($O$1=1, AND($E$18<750, $E$18>=0)), $E$18, IF(AND($O$1=2, $E$18>=1000), 1000, IF(AND($O$1=2, AND($E$18<1000, $E$18>=0)), $E$18)))) -> 750 | K64: =J64*I64 -> 77.25 | M64: 0 | N64: 0
A65: Energy - RPP - Tier 2 | C65: per kWh | E65: 0.121 | F65: =IF(AND($O$1=1, $E$18>=750), $E$18-750, IF(AND($O$1=1, AND($E$18<750, $E$18>=0)), 0, IF(AND($O$1=2, $E$18>=1000), $E$18-1000, IF(AND($O$1=2, AND($E$18<1000, $E$18>=0)), 0)))) -> 39250 | G65: =F65*E65 -> 4749.25 | I65: =E65 -> 0.121 | J65: =IF(AND($O$1=1, $E$18>=750), $E$18-750, IF(AND($O$1=1, AND($E$18<750, $E$18>=0)), 0, IF(AND($O$1=2, $E$18>=1000), $E$18-1000, IF(AND($O$1=2, AND($E$18<1000, $E$18>=0)), 0)))) -> 39250 | K65: =J65*I65 -> 4749.25 | M65: 0 | N65: 0
A67: Total Bill on TOU (before Taxes) | G67: =SUM(G55:G63,G54) -> 6151.984 | K67: =SUM(K55:K63,K54) -> 6334.644 | M67: =K67-G67 -> 182.66 | N67: 0.02969123457
A68: HST | E68: 0.13 | G68: =G67*E68 -> 799.75792 | I68: 0.13 | K68: =K67*I68 -> 823.50372 | M68: =K68-G68 -> 23.7458 | N68: 0.02969123457
A69: Total Bill (including HST) | G69: =G67+G68 -> 6951.74192 | K69: =K67+K68 -> 7158.14772 | M69: =K69-G69 -> 206.4058 | N69: 0.02969123457
N72: =IF((G72)=0,"",(M72/G72)) -> 
A73: Total Bill on RPP (before Taxes) | G73: =SUM(G65:G66,G54,G55:G60) -> 6445.634 | K73: =SUM(K65:K66,K54,K55:K60) -> 6628.294 | M73: =K73-G73 -> 182.66 | N73: =IF((G73)=0,"",(M73/G73)) -> 0.0283385622
A74: HST | E74: 0.13 | G74: =G73*E74 -> 837.93242 | I74: 0.13 | K74: =K73*I74 -> 861.67822 | M74: =K74-G74 -> 23.7458 | N74: =IF((G74)=0,"",(M74/G74)) -> 0.0283385622
A75: Total Bill (including HST) | G75: =G73+G74 -> 7283.56642 | K75: =K73+K74 -> 7489.97222 | M75: =K75-G75 -> 206.4058 | N75: =IF((G75)=0,"",(M75/G75)) -> 0.0283385622
A80: Loss Factor (%) | E80: 0.0393 | I80: 0.0393
B83: Residential (kWh) - 100, 250, 500, 750, 1000, 1500, 2000
B84: GS<50kW (kWh) - 1000, 2000, 5000, 10000, 15000
B85: GS>50kW (kW) - 60, 100, 500, 1000
B86: Large User - range appropriate for utility
B87: Lighting Classes and USL - 150 kWh and 1 kW, range appropriate for utility.
C89: Note that cells with the highlighted color shown to the left indicate quantities that are loss adjusted.

Sheet Bill Impact GS50-4999 70kW
K1: File Number: | M1: EB-2016-0087 | O1: 1
K3: Tab:
K4: Schedule:
K5: Page:
M7: Year 2 Custom IR Update
K8: Date: | M8: 2016-Aug-15
A11: Bill Impacts
A14: Customer Class: | C14: General Service 50 to 4,999 kW
A16: TOU / non-TOU: | C16: non-TOU
C18: Consumption | E18: 100000 | F18: kWh
C19: Load | E19: 70 | F19: kW
E20: 2016 Custom IR Year 1 Approved | I20: 2017 Custom IR Year 2 Proposed | M20: Impact 2017 vs. 2016
C21: Charge Unit | E21: Rate | F21: Volume | G21: Charge | I21: Rate | J21: Volume | K21: Charge | M21: $ Change | N21: % Change
E22: ($) | G22: ($) | I22: ($) | K22: ($)
A23: Monthly Service Charge | C23: Monthly | E23: 105.62 | F23: 1 | G23: =F23*E23 -> 105.62 | I23: ='Rates Summary'!$F$47 -> 107.49 | J23: 1 | K23: =J23*I23 -> 107.49 | M23: =K23-G23 -> 1.87 | N23: =IF((G23)=0,"",(M23/G23)) -> 0.01770498012
A25: Rate Rider Smart Meters Capital (2016) | C25: Monthly | E25: 0 | F25: 1 | G25: =F25*E25 -> 0 | I25: 0 | J25: 1 | K25: =J25*I25 -> 0 | M25: =K25-G25 -> 0 | N25: =IF((G25)=0,"",(M25/G25)) -> 
A26: Rate Rider Recovery of Stranded Meters | C26: Monthly | E26: 0 | F26: 1 | G26: 0 | I26: 0 | J26: 1 | K26: 0 | M26: =K26-G26 -> 0 | N26: =IF((G26)=0,"",(M26/G26)) -> 
A29: Distribution Volumetric Rate | C29: per kW | E29: 2.9849 | F29: =$E$19 -> 70 | G29: 208.943 | I29: ='Rates Summary'!$F$59 -> 3.101 | J29: =$E$19 -> 70 | K29: 217.07 | M29: =K29-G29 -> 8.127 | N29: =IF((G29)=0,"",(M29/G29)) -> 0.0388957754
A31: LRAM VA (2016) | C31: per kW | E31: 0.0293 | F31: 70 | G31: 2.051 | I31: 0 | J31: 70 | K31: 0 | M31: =K31-G31 -> -2.051 | N31: =IF((G31)=0,"",(M31/G31)) -> -1
A32: Rate Rider Incremental Capital 2012 True-Up (2016) | C32: per kW | E32: 0.04 | F32: 70 | G32: 2.8 | I32: 0 | J32: 70 | K32: 0 | M32: -2.8 | N32: -1
F33: 70 | G33: 0 | J33: 70 | K33: 0 | M33: 0
F34: 70 | G34: 0 | J34: 70 | K34: 0 | M34: 0
F35: 70 | G35: 0 | J35: 70 | K35: 0 | M35: 0
F36: 70 | G36: 0 | J36: 70 | K36: 0 | M36: 0
F37: 70 | G37: 0 | J37: 70 | K37: 0 | M37: 0
F38: 70 | G38: 0 | J38: 70 | K38: 0 | M38: 0
A39: Sub-Total A (excluding pass through) | G39: =SUM(G23:G38) -> 319.414 | K39: =SUM(K23:K38) -> 324.56 | M39: 5.146 | N39: 0.01611075282
A40: Deferral/Variance Account Disposition Rate Rider (2016) | C40: per kW | E40: 0.7048 | F40: =$E$19 -> 70 | G40: =F40*E40 -> 49.336 | I40: 0 | J40: =$E$19 -> 70 | K40: =J40*I40 -> 0 | M40: -49.336 | N40: -1
A41: Deferral/Variance Account Disposition Rate Rider (2016), excluding Wholesale Market Participants | C41: per kW | E41: -1.0947 | F41: 70 | G41: =F41*E41 -> -76.629 | I41: 0 | J41: 70 | K41: =J41*I41 -> 0 | M41: 76.629 | N41: -1
A42: Deferral/Variance Account Disposition Rate Rider (2017) | C42: per kW | F42: 70 | G42: =F42*E42 -> 0 | I42: ='Rates Summary'!$E$4 -> 1.0369 | J42: 70 | K42: =J42*I42 -> 72.583 | M42: 72.583 | N42: 1
A43: Deferral/Variance Account Disposition Rate Rider (2017), NON-WMP | C43: per kW | F43: 70 | G43: =F43*E43 -> 0 | I43: ='Rates Summary'!$E$5 -> -1.8545 | J43: 70 | K43: =J43*I43 -> -129.815 | M43: -129.815 | N43: 1
A44: Rate Rider CGAAP Account 1576 (2016) | C44: per kW | E44: -1.0875 | F44: 70 | G44: -76.125 | I44: 0 | J44: 70 | K44: 0 | M44: 76.125 | N44: =IF((G44)=0,"",(M44/G44)) -> -1
A45: Deferral/Variance 1580 Sub-Account CBR Class B Disposition Rate Rider - Class B Non-WMP (2017) | C45: per kW | F45: 70 | G45: 0 | I45: ='Rates Summary'!$E$7 -> 0.0918 | J45: 70 | K45: 6.426 | M45: =K45-G45 -> 6.426 | N45: 1
A46: Disposition of Global Adjustment (2016) Applicable to Non-RPP Customers, excluding Wholesale Market Participants | C46: per kW | E46: 7.4692 | F46: 70 | G46: 522.844 | I46: 0 | J46: 70 | K46: 0 | M46: =K46-G46 -> -522.844 | N46: =IF((G46)=0,"",(M46/G46)) -> -1
A47: Disposition of Global Adjustment (2017) Applicable to Non-RPP Customers, excluding Wholesale Market Participants | C47: per kWh | E47: 0 | F47: 70 | G47: 0 | I47: ='Rates Summary'!$E$6 -> 0.0139 | J47: =E18 -> 100000 | K47: 1390 | M47: 1390 | N47: 1
A48: Low Voltage Service Charge | C48: per kW | E48: 0.4663 | F48: 70 | G48: =F48*E48 -> 32.641 | I48: ='Rates Summary'!$E$21 -> 0.6753 | J48: =$E$19 -> 70 | K48: =J48*I48 -> 47.271 | M48: 14.63 | N48: =IF((G48)=0,"",(M48/G48)) -> 0.4482093073
A49: Line Losses on Cost of Power | C49: per kWh | E49: =IF(ISBLANK($C$16)=TRUE, 0, IF($C$16="TOU", 0.65*$E$60+0.17*$E$61+0.18*$E$62, IF(AND($C$16="non-TOU", F65>0), E65,E64))) -> 0.121 | F49: =$E$18*(1+$E$80)-$E$18 -> 3930 | G49: 475.53 | I49: =E49 -> 0.121 | J49: =$E$18*(1+$E$80)-$E$18 -> 3930 | K49: =J49*I49 -> 475.53 | M49: 0 | N49: 0
A50: Smart Meter Entity Charge | E50: 0 | F50: 1 | G50: =F50*E50 -> 0 | I50: 0 | J50: 1 | K50: =J50*I50 -> 0 | M50: 0
A51: Sub-Total B - Distribution (includes Sub-Total A) | G51: =SUM(G40:G50)+G39 -> 1247.011 | K51: =SUM(K40:K50)+K39 -> 2186.555 | M51: 939.544 | N51: 0.7534368181
A52: RTSR - Network | C52: per kW | E52: 2.7797 | F52: =$E$19 -> 70 | G52: =F52*E52 -> 194.579 | I52: ='Rates Summary'!$E$23 -> 2.871 | J52: =$E$19 -> 70 | K52: =J52*I52 -> 200.97 | M52: 6.391 | N52: 0.03284527107
A53: RTSR - Line and Transformation Connection | C53: per kW | E53: 2.2225 | F53: =$E$19 -> 70 | G53: =F53*E53 -> 155.575 | I53: ='Rates Summary'!$E$24 -> 2.3395 | J53: =$E$19 -> 70 | K53: =J53*I53 -> 163.765 | M53: 8.19 | N53: 0.05264341957
A54: Sub-Total C - Delivery (including Sub-Total B) | G54: =SUM(G51:G53) -> 1597.165 | K54: =SUM(K51:K53) -> 2551.29 | M54: 954.125 | N54: 0.5973866194
A55: Wholesale Market Service Charge (WMSC) | C55: per kWh | E55: 0.0032 | F55: =$E$18*(1+E80) -> 103930 | G55: =F55*E55 -> 332.576 | I55: ='Rates Summary'!$E$25 -> 0.0032 | J55: =$E$18*(1+I80) -> 103930 | K55: =J55*I55 -> 332.576 | M55: 0 | N55: 0
A56: Capacity Based Recovery Charge (CBR) - Class B | C56: per kWh | E56: 0.0004 | F56: =$E$18*(1+E80) -> 103930 | G56: 41.572 | I56: ='Rates Summary'!$E$26 -> 0.0004 | J56: =$E$18*(1+I80) -> 103930 | K56: 41.572 | M56: 0 | N56: 0
A57: Ontario Electricity Support Program (OESP) | C57: per kWh | E57: 0.0011 | F57: =$E$18*(1+E80) -> 103930 | G57: 114.323 | I57: ='Rates Summary'!$E$27 -> 0.0011 | J57: =$E$18*(1+I80) -> 103930 | K57: 114.323 | M57: 0 | N57: 0
A58: Rural and Remote Rate Protection (RRRP) | C58: per kWh | E58: 0.0013 | F58: =$E$18*(1+E80) -> 103930 | G58: 135.109 | I58: ='Rates Summary'!$E$28 -> 0.0013 | J58: =$E$18*(1+I80) -> 103930 | K58: 135.109 | M58: 0 | N58: 0
A59: Standard Supply Service Charge | C59: Monthly | E59: 0.25 | F59: 1 | G59: 0.25 | I59: ='Rates Summary'!$E$29 -> 0.25 | J59: 1 | K59: 0.25 | M59: 0 | N59: 0
A60: Debt Retirement Charge (DRC) | C60: per kWh | E60: 0.007 | F60: =E18 -> 100000 | G60: 700 | I60: =E60 -> 0.007 | J60: =F60 -> 100000 | K60: 700 | M60: 0 | N60: 0
A61: TOU - Off Peak | C61: per kWh | E61: 0.087 | F61: =0.65*$E$18 -> 65000 | G61: 5655 | I61: =E61 -> 0.087 | J61: =0.65*$E$18 -> 65000 | K61: 5655 | M61: 0 | N61: 0
A62: TOU - Mid Peak | C62: per kWh | E62: 0.132 | F62: =0.17*$E$18 -> 17000 | G62: 2244 | I62: =E62 -> 0.132 | J62: =0.17*$E$18 -> 17000 | K62: 2244 | M62: 0 | N62: 0
A63: TOU - On Peak | C63: per kWh | E63: 0.18 | F63: =0.18*$E$18 -> 18000 | G63: 3240 | I63: =E63 -> 0.18 | J63: =0.18*$E$18 -> 18000 | K63: 3240 | M63: 0 | N63: 0
A64: Energy - RPP - Tier 1 | C64: per kWh | E64: 0.103 | F64: =IF(AND($O$1=1, $E$18>=750), 750, IF(AND($O$1=1, AND($E$18<750, $E$18>=0)), $E$18, IF(AND($O$1=2, $E$18>=1000), 1000, IF(AND($O$1=2, AND($E$18<1000, $E$18>=0)), $E$18)))) -> 750 | G64: =F64*E64 -> 77.25 | I64: =E64 -> 0.103 | J64: =IF(AND($O$1=1, $E$18>=750), 750, IF(AND($O$1=1, AND($E$18<750, $E$18>=0)), $E$18, IF(AND($O$1=2, $E$18>=1000), 1000, IF(AND($O$1=2, AND($E$18<1000, $E$18>=0)), $E$18)))) -> 750 | K64: =J64*I64 -> 77.25 | M64: 0 | N64: 0
A65: Energy - RPP - Tier 2 | C65: per kWh | E65: 0.121 | F65: =IF(AND($O$1=1, $E$18>=750), $E$18-750, IF(AND($O$1=1, AND($E$18<750, $E$18>=0)), 0, IF(AND($O$1=2, $E$18>=1000), $E$18-1000, IF(AND($O$1=2, AND($E$18<1000, $E$18>=0)), 0)))) -> 99250 | G65: =F65*E65 -> 12009.25 | I65: =E65 -> 0.121 | J65: =IF(AND($O$1=1, $E$18>=750), $E$18-750, IF(AND($O$1=1, AND($E$18<750, $E$18>=0)), 0, IF(AND($O$1=2, $E$18>=1000), $E$18-1000, IF(AND($O$1=2, AND($E$18<1000, $E$18>=0)), 0)))) -> 99250 | K65: =J65*I65 -> 12009.25 | M65: 0 | N65: 0
A67: Total Bill on TOU (before Taxes) | G67: =SUM(G55:G63,G54) -> 14059.995 | K67: =SUM(K55:K63,K54) -> 15014.12 | M67: =K67-G67 -> 954.125 | N67: 0.06786097719
A68: HST | E68: 0.13 | G68: =G67*E68 -> 1827.79935 | I68: 0.13 | K68: =K67*I68 -> 1951.8356 | M68: =K68-G68 -> 124.03625 | N68: 0.06786097719
A69: Total Bill (including HST) | G69: =G67+G68 -> 15887.79435 | K69: =K67+K68 -> 16965.9556 | M69: =K69-G69 -> 1078.16125 | N69: 0.06786097719
N72: =IF((G72)=0,"",(M72/G72)) -> 
A73: Total Bill on RPP (before Taxes) | G73: =SUM(G65:G66,G54,G55:G60) -> 14930.245 | K73: =SUM(K65:K66,K54,K55:K60) -> 15884.37 | M73: =K73-G73 -> 954.125 | N73: =IF((G73)=0,"",(M73/G73)) -> 0.06390551528
A74: HST | E74: 0.13 | G74: =G73*E74 -> 1940.93185 | I74: 0.13 | K74: =K73*I74 -> 2064.9681 | M74: =K74-G74 -> 124.03625 | N74: =IF((G74)=0,"",(M74/G74)) -> 0.06390551528
A75: Total Bill (including HST) | G75: =G73+G74 -> 16871.17685 | K75: =K73+K74 -> 17949.3381 | M75: =K75-G75 -> 1078.16125 | N75: =IF((G75)=0,"",(M75/G75)) -> 0.06390551528
A80: Loss Factor (%) | E80: 0.0393 | I80: 0.0393
B83: Residential (kWh) - 100, 250, 500, 750, 1000, 1500, 2000
B84: GS<50kW (kWh) - 1000, 2000, 5000, 10000, 15000
B85: GS>50kW (kW) - 60, 100, 500, 1000
B86: Large User - range appropriate for utility
B87: Lighting Classes and USL - 150 kWh and 1 kW, range appropriate for utility.
C89: Note that cells with the highlighted color shown to the left indicate quantities that are loss adjusted.

Sheet Bill Impact GS50-4999 500kW
K1: File Number: | M1: EB-2016-0087 | O1: 1
K3: Tab:
K4: Schedule:
K5: Page:
M7: Year 2 Custom IR Update
K8: Date: | M8: 2016-Aug-15
A11: Bill Impacts
A14: Customer Class: | C14: General Service 50 to 4,999 kW
A16: TOU / non-TOU: | C16: non-TOU
C18: Consumption | E18: 350000 | F18: kWh
C19: Load | E19: 500 | F19: kW
E20: 2016 Custom IR Year 1 Approved | I20: 2017 Custom IR Year 2 Proposed | M20: Impact 2017 vs. 2016
C21: Charge Unit | E21: Rate | F21: Volume | G21: Charge | I21: Rate | J21: Volume | K21: Charge | M21: $ Change | N21: % Change
E22: ($) | G22: ($) | I22: ($) | K22: ($)
A23: Monthly Service Charge | C23: Monthly | E23: 105.62 | F23: 1 | G23: =F23*E23 -> 105.62 | I23: ='Rates Summary'!$F$47 -> 107.49 | J23: 1 | K23: =J23*I23 -> 107.49 | M23: =K23-G23 -> 1.87 | N23: =IF((G23)=0,"",(M23/G23)) -> 0.01770498012
A25: Rate Rider Smart Meters Capital (2016) | C25: Monthly | E25: 0 | F25: 1 | G25: =F25*E25 -> 0 | I25: 0 | J25: 1 | K25: =J25*I25 -> 0 | M25: =K25-G25 -> 0 | N25: =IF((G25)=0,"",(M25/G25)) -> 
A26: Rate Rider Recovery of Stranded Meters | C26: Monthly | E26: 0 | F26: 1 | G26: 0 | I26: 0 | J26: 1 | K26: 0 | M26: =K26-G26 -> 0 | N26: =IF((G26)=0,"",(M26/G26)) -> 
A29: Distribution Volumetric Rate | C29: per kW | E29: 2.9849 | F29: =$E$19 -> 500 | G29: 1492.45 | I29: ='Rates Summary'!$F$59 -> 3.101 | J29: =$E$19 -> 500 | K29: 1550.5 | M29: =K29-G29 -> 58.05 | N29: =IF((G29)=0,"",(M29/G29)) -> 0.0388957754
A31: LRAM VA (2016) | C31: per kW | E31: 0.0293 | F31: 500 | G31: 14.65 | I31: 0 | J31: 500 | K31: 0 | M31: =K31-G31 -> -14.65 | N31: =IF((G31)=0,"",(M31/G31)) -> -1
A32: Rate Rider Incremental Capital 2012 True-Up (2016) | C32: per kW | E32: 0.04 | F32: 500 | G32: 20 | I32: 0 | J32: 500 | K32: 0 | M32: -20 | N32: -1
F33: 500 | G33: 0 | J33: 500 | K33: 0 | M33: 0
F34: 500 | G34: 0 | J34: 500 | K34: 0 | M34: 0
F35: 500 | G35: 0 | J35: 500 | K35: 0 | M35: 0
F36: 500 | G36: 0 | J36: 500 | K36: 0 | M36: 0
F37: 500 | G37: 0 | J37: 500 | K37: 0 | M37: 0
F38: 500 | G38: 0 | J38: 500 | K38: 0 | M38: 0
A39: Sub-Total A (excluding pass through) | G39: =SUM(G23:G38) -> 1632.72 | K39: =SUM(K23:K38) -> 1657.99 | M39: 25.27 | N39: 0.01547724043
A40: Deferral/Variance Account Disposition Rate Rider (2016) | C40: per kW | E40: 0.7048 | F40: =$E$19 -> 500 | G40: =F40*E40 -> 352.4 | I40: 0 | J40: =$E$19 -> 500 | K40: =J40*I40 -> 0 | M40: -352.4 | N40: -1
A41: Deferral/Variance Account Disposition Rate Rider (2016), excluding Wholesale Market Participants | C41: per kW | E41: -1.0947 | F41: 500 | G41: =F41*E41 -> -547.35 | I41: 0 | J41: 500 | K41: =J41*I41 -> 0 | M41: 547.35 | N41: -1
A42: Deferral/Variance Account Disposition Rate Rider (2017) | C42: per kW | F42: 500 | G42: =F42*E42 -> 0 | I42: ='Rates Summary'!$E$4 -> 1.0369 | J42: 500 | K42: =J42*I42 -> 518.45 | M42: 518.45 | N42: 1
A43: Deferral/Variance Account Disposition Rate Rider (2017), NON-WMP | C43: per kW | F43: 500 | G43: =F43*E43 -> 0 | I43: ='Rates Summary'!$E$5 -> -1.8545 | J43: 500 | K43: =J43*I43 -> -927.25 | M43: -927.25 | N43: 1
A44: Rate Rider CGAAP Account 1576 (2016) | C44: per kW | E44: -1.0875 | F44: 500 | G44: -543.75 | I44: 0 | J44: 500 | K44: 0 | M44: 543.75 | N44: =IF((G44)=0,"",(M44/G44)) -> -1
A45: Deferral/Variance 1580 Sub-Account CBR Class B Disposition Rate Rider - Class B Non-WMP (2017) | C45: per kW | F45: 500 | G45: 0 | I45: ='Rates Summary'!$E$7 -> 0.0918 | J45: 500 | K45: 45.9 | M45: =K45-G45 -> 45.9 | N45: 1
A46: Disposition of Global Adjustment (2016) Applicable to Non-RPP Customers, excluding Wholesale Market Participants | C46: per kW | E46: 7.4692 | F46: 500 | G46: 3734.6 | I46: 0 | J46: 500 | K46: 0 | M46: =K46-G46 -> -3734.6 | N46: =IF((G46)=0,"",(M46/G46)) -> -1
A47: Disposition of Global Adjustment (2017) Applicable to Non-RPP Customers, excluding Wholesale Market Participants | C47: per kWh | F47: 500 | G47: 0 | I47: ='Rates Summary'!$E$6 -> 0.0139 | J47: =E18 -> 350000 | K47: 4865 | M47: 4865 | N47: 1
A48: Low Voltage Service Charge | C48: per kW | E48: 0.4663 | F48: 500 | G48: =F48*E48 -> 233.15 | I48: ='Rates Summary'!$E$21 -> 0.6753 | J48: =$E$19 -> 500 | K48: =J48*I48 -> 337.65 | M48: 104.5 | N48: =IF((G48)=0,"",(M48/G48)) -> 0.4482093073
A49: Line Losses on Cost of Power | C49: per kWh | E49: =IF(ISBLANK($C$16)=TRUE, 0, IF($C$16="TOU", 0.65*$E$60+0.17*$E$61+0.18*$E$62, IF(AND($C$16="non-TOU", F65>0), E65,E64))) -> 0.121 | F49: =$E$18*(1+$E$80)-$E$18 -> 13755 | G49: 1664.355 | I49: =E49 -> 0.121 | J49: =$E$18*(1+$E$80)-$E$18 -> 13755 | K49: =J49*I49 -> 1664.355 | M49: 0 | N49: 0
A50: Smart Meter Entity Charge | E50: 0 | F50: 1 | G50: =F50*E50 -> 0 | I50: 0 | J50: 1 | K50: =J50*I50 -> 0 | M50: 0
A51: Sub-Total B - Distribution (includes Sub-Total A) | G51: =SUM(G40:G50)+G39 -> 6526.125 | K51: =SUM(K40:K50)+K39 -> 8162.095 | M51: 1635.97 | N51: 0.2506801509
A52: RTSR - Network | C52: per kW | E52: 2.7797 | F52: =$E$19 -> 500 | G52: =F52*E52 -> 1389.85 | I52: ='Rates Summary'!$E$23 -> 2.871 | J52: =$E$19 -> 500 | K52: =J52*I52 -> 1435.5 | M52: 45.65 | N52: 0.03284527107
A53: RTSR - Line and Transformation Connection | C53: per kW | E53: 2.2225 | F53: =$E$19 -> 500 | G53: =F53*E53 -> 1111.25 | I53: ='Rates Summary'!$E$24 -> 2.3395 | J53: =$E$19 -> 500 | K53: =J53*I53 -> 1169.75 | M53: 58.5 | N53: 0.05264341957
A54: Sub-Total C - Delivery (including Sub-Total B) | G54: =SUM(G51:G53) -> 9027.225 | K54: =SUM(K51:K53) -> 10767.345 | M54: 1740.12 | N54: 0.1927635569
A55: Wholesale Market Service Charge (WMSC) | C55: per kWh | E55: 0.0032 | F55: =$E$18*(1+E80) -> 363755 | G55: =F55*E55 -> 1164.016 | I55: ='Rates Summary'!$E$25 -> 0.0032 | J55: =$E$18*(1+I80) -> 363755 | K55: =J55*I55 -> 1164.016 | M55: 0 | N55: 0
A56: Capacity Based Recovery Charge (CBR) - Class B | C56: per kWh | E56: 0.0004 | F56: =$E$18*(1+E80) -> 363755 | G56: 145.502 | I56: ='Rates Summary'!$E$26 -> 0.0004 | J56: =$E$18*(1+I80) -> 363755 | K56: 145.502 | M56: 0 | N56: 0
A57: Ontario Electricity Support Program (OESP) | C57: per kWh | E57: 0.0011 | F57: =$E$18*(1+E80) -> 363755 | G57: 400.1305 | I57: ='Rates Summary'!$E$27 -> 0.0011 | J57: =$E$18*(1+I80) -> 363755 | K57: 400.1305 | M57: 0 | N57: 0
A58: Rural and Remote Rate Protection (RRRP) | C58: per kWh | E58: 0.0013 | F58: =$E$18*(1+E80) -> 363755 | G58: 472.8815 | I58: ='Rates Summary'!$E$28 -> 0.0013 | J58: =$E$18*(1+I80) -> 363755 | K58: 472.8815 | M58: 0 | N58: 0
A59: Standard Supply Service Charge | C59: Monthly | E59: 0.25 | F59: 1 | G59: 0.25 | I59: ='Rates Summary'!$E$29 -> 0.25 | J59: 1 | K59: 0.25 | M59: 0 | N59: 0
A60: Debt Retirement Charge (DRC) | C60: per kWh | E60: 0.007 | F60: =E18 -> 350000 | G60: 2450 | I60: =E60 -> 0.007 | J60: =F60 -> 350000 | K60: 2450 | M60: 0 | N60: 0
A61: TOU - Off Peak | C61: per kWh | E61: 0.087 | F61: =0.65*$E$18 -> 227500 | G61: 19792.5 | I61: =E61 -> 0.087 | J61: =0.65*$E$18 -> 227500 | K61: 19792.5 | M61: 0 | N61: 0
A62: TOU - Mid Peak | C62: per kWh | E62: 0.132 | F62: =0.17*$E$18 -> 59500 | G62: 7854 | I62: =E62 -> 0.132 | J62: =0.17*$E$18 -> 59500 | K62: 7854 | M62: 0 | N62: 0
A63: TOU - On Peak | C63: per kWh | E63: 0.18 | F63: =0.18*$E$18 -> 63000 | G63: 11340 | I63: =E63 -> 0.18 | J63: =0.18*$E$18 -> 63000 | K63: 11340 | M63: 0 | N63: 0
A64: Energy - RPP - Tier 1 | C64: per kWh | E64: 0.103 | F64: =IF(AND($O$1=1, $E$18>=750), 750, IF(AND($O$1=1, AND($E$18<750, $E$18>=0)), $E$18, IF(AND($O$1=2, $E$18>=1000), 1000, IF(AND($O$1=2, AND($E$18<1000, $E$18>=0)), $E$18)))) -> 750 | G64: =F64*E64 -> 77.25 | I64: =E64 -> 0.103 | J64: =IF(AND($O$1=1, $E$18>=750), 750, IF(AND($O$1=1, AND($E$18<750, $E$18>=0)), $E$18, IF(AND($O$1=2, $E$18>=1000), 1000, IF(AND($O$1=2, AND($E$18<1000, $E$18>=0)), $E$18)))) -> 750 | K64: =J64*I64 -> 77.25 | M64: 0 | N64: 0
A65: Energy - RPP - Tier 2 | C65: per kWh | E65: 0.121 | F65: =IF(AND($O$1=1, $E$18>=750), $E$18-750, IF(AND($O$1=1, AND($E$18<750, $E$18>=0)), 0, IF(AND($O$1=2, $E$18>=1000), $E$18-1000, IF(AND($O$1=2, AND($E$18<1000, $E$18>=0)), 0)))) -> 349250 | G65: =F65*E65 -> 42259.25 | I65: =E65 -> 0.121 | J65: =IF(AND($O$1=1, $E$18>=750), $E$18-750, IF(AND($O$1=1, AND($E$18<750, $E$18>=0)), 0, IF(AND($O$1=2, $E$18>=1000), $E$18-1000, IF(AND($O$1=2, AND($E$18<1000, $E$18>=0)), 0)))) -> 349250 | K65: =J65*I65 -> 42259.25 | M65: 0 | N65: 0
A67: Total Bill on TOU (before Taxes) | G67: =SUM(G55:G63,G54) -> 52646.505 | K67: =SUM(K55:K63,K54) -> 54386.625 | M67: =K67-G67 -> 1740.12 | N67: 0.03305290636
A68: HST | E68: 0.13 | G68: =G67*E68 -> 6844.04565 | I68: 0.13 | K68: =K67*I68 -> 7070.26125 | M68: =K68-G68 -> 226.2156 | N68: 0.03305290636
A69: Total Bill (including HST) | G69: =G67+G68 -> 59490.55065 | K69: =K67+K68 -> 61456.88625 | M69: =K69-G69 -> 1966.3356 | N69: 0.03305290636
N72: =IF((G72)=0,"",(M72/G72)) -> 
A73: Total Bill on RPP (before Taxes) | G73: =SUM(G65:G66,G54,G55:G60) -> 55919.255 | K73: =SUM(K65:K66,K54,K55:K60) -> 57659.375 | M73: =K73-G73 -> 1740.12 | N73: =IF((G73)=0,"",(M73/G73)) -> 0.03111844033
A74: HST | E74: 0.13 | G74: =G73*E74 -> 7269.50315 | I74: 0.13 | K74: =K73*I74 -> 7495.71875 | M74: =K74-G74 -> 226.2156 | N74: =IF((G74)=0,"",(M74/G74)) -> 0.03111844033
A75: Total Bill (including HST) | G75: =G73+G74 -> 63188.75815 | K75: =K73+K74 -> 65155.09375 | M75: =K75-G75 -> 1966.3356 | N75: =IF((G75)=0,"",(M75/G75)) -> 0.03111844033
A80: Loss Factor (%) | E80: 0.0393 | I80: 0.0393
B83: Residential (kWh) - 100, 250, 500, 750, 1000, 1500, 2000
B84: GS<50kW (kWh) - 1000, 2000, 5000, 10000, 15000
B85: GS>50kW (kW) - 60, 100, 500, 1000
B86: Large User - range appropriate for utility
B87: Lighting Classes and USL - 150 kWh and 1 kW, range appropriate for utility.
C89: Note that cells with the highlighted color shown to the left indicate quantities that are loss adjusted.

Sheet Bill Impact GS50-4999 1000kW
K1: File Number: | M1: EB-2016-0087 | O1: 1
K3: Tab:
K4: Schedule:
K5: Page:
M7: Year 2 Custom IR Update
K8: Date: | M8: 2016-Aug-15
A11: Bill Impacts
A14: Customer Class: | C14: General Service 50 to 4,999 kW
A16: TOU / non-TOU: | C16: non-TOU
C18: Consumption | E18: 800000 | F18: kWh
C19: Load | E19: 1000 | F19: kW
E20: 2016 Custom IR Year 1 Approved | I20: 2017 Custom IR Year 2 Proposed | M20: Impact 2017 vs. 2016
C21: Charge Unit | E21: Rate | F21: Volume | G21: Charge | I21: Rate | J21: Volume | K21: Charge | M21: $ Change | N21: % Change
E22: ($) | G22: ($) | I22: ($) | K22: ($)
A23: Monthly Service Charge | C23: Monthly | E23: 105.62 | F23: 1 | G23: =F23*E23 -> 105.62 | I23: ='Rates Summary'!$F$47 -> 107.49 | J23: 1 | K23: =J23*I23 -> 107.49 | M23: =K23-G23 -> 1.87 | N23: =IF((G23)=0,"",(M23/G23)) -> 0.01770498012
A25: Rate Rider Smart Meters Capital (2016) | C25: Monthly | E25: 0 | F25: 1 | G25: =F25*E25 -> 0 | I25: 0 | J25: 1 | K25: =J25*I25 -> 0 | M25: =K25-G25 -> 0 | N25: =IF((G25)=0,"",(M25/G25)) -> 
A26: Rate Rider Recovery of Stranded Meters | C26: Monthly | E26: 0 | F26: 1 | G26: 0 | I26: 0 | J26: 1 | K26: 0 | M26: =K26-G26 -> 0 | N26: =IF((G26)=0,"",(M26/G26)) -> 
A29: Distribution Volumetric Rate | C29: per kW | E29: 2.9849 | F29: =$E$19 -> 1000 | G29: 2984.9 | I29: ='Rates Summary'!$F$59 -> 3.101 | J29: =$E$19 -> 1000 | K29: 3101 | M29: =K29-G29 -> 116.1 | N29: =IF((G29)=0,"",(M29/G29)) -> 0.0388957754
A31: LRAM VA (2016) | C31: per kW | E31: 0.0293 | F31: 1000 | G31: 29.3 | I31: 0 | J31: 1000 | K31: 0 | M31: =K31-G31 -> -29.3 | N31: =IF((G31)=0,"",(M31/G31)) -> -1
A32: Rate Rider Incremental Capital 2012 True-Up (2016) | C32: per kW | E32: 0.04 | F32: 1000 | G32: 40 | I32: 0 | J32: 1000 | K32: 0 | M32: -40 | N32: -1
F33: 1000 | G33: 0 | J33: 1000 | K33: 0 | M33: 0
F34: 1000 | G34: 0 | J34: 1000 | K34: 0 | M34: 0
F35: 1000 | G35: 0 | J35: 1000 | K35: 0 | M35: 0
F36: 1000 | G36: 0 | J36: 1000 | K36: 0 | M36: 0
F37: 1000 | G37: 0 | J37: 1000 | K37: 0 | M37: 0
F38: 1000 | G38: 0 | J38: 1000 | K38: 0 | M38: 0
A39: Sub-Total A (excluding pass through) | G39: =SUM(G23:G38) -> 3159.82 | K39: =SUM(K23:K38) -> 3208.49 | M39: 48.67 | N39: 0.01540277611
A40: Deferral/Variance Account Disposition Rate Rider (2016) | C40: per kW | E40: 0.7048 | F40: =$E$19 -> 1000 | G40: =F40*E40 -> 704.8 | I40: 0 | J40: =$E$19 -> 1000 | K40: =J40*I40 -> 0 | M40: -704.8 | N40: -1
A41: Deferral/Variance Account Disposition Rate Rider (2016), excluding Wholesale Market Participants | C41: per kW | E41: -1.0947 | F41: 1000 | G41: =F41*E41 -> -1094.7 | I41: 0 | J41: 1000 | K41: =J41*I41 -> 0 | M41: 1094.7 | N41: -1
A42: Deferral/Variance Account Disposition Rate Rider (2017) | C42: per kW | F42: 1000 | G42: =F42*E42 -> 0 | I42: ='Rates Summary'!$E$4 -> 1.0369 | J42: 1000 | K42: =J42*I42 -> 1036.9 | M42: 1036.9 | N42: 1
A43: Deferral/Variance Account Disposition Rate Rider (2017), NON-WMP | C43: per kW | F43: 1000 | G43: =F43*E43 -> 0 | I43: ='Rates Summary'!$E$5 -> -1.8545 | J43: 1000 | K43: =J43*I43 -> -1854.5 | M43: -1854.5 | N43: 1
A44: Rate Rider CGAAP Account 1576 (2016) | C44: per kW | E44: -1.0875 | F44: 1000 | G44: -1087.5 | I44: 0 | J44: 1000 | K44: 0 | M44: 1087.5 | N44: =IF((G44)=0,"",(M44/G44)) -> -1
A45: Deferral/Variance 1580 Sub-Account CBR Class B Disposition Rate Rider - Class B Non-WMP (2017) | C45: per kW | F45: 1000 | G45: 0 | I45: ='Rates Summary'!$E$7 -> 0.0918 | J45: 1000 | K45: 91.8 | M45: =K45-G45 -> 91.8 | N45: 1
A46: Disposition of Global Adjustment (2016) Applicable to Non-RPP Customers, excluding Wholesale Market Participants | C46: per kW | E46: 7.4692 | F46: 1000 | G46: 7469.2 | I46: 0 | J46: 1000 | K46: 0 | M46: =K46-G46 -> -7469.2 | N46: =IF((G46)=0,"",(M46/G46)) -> -1
A47: Disposition of Global Adjustment (2017) Applicable to Non-RPP Customers, excluding Wholesale Market Participants | C47: per kWh | F47: 1000 | G47: 0 | I47: ='Rates Summary'!$E$6 -> 0.0139 | J47: =E18 -> 800000 | K47: 11120 | M47: 11120 | N47: 1
A48: Low Voltage Service Charge | C48: per kW | E48: 0.4663 | F48: 1000 | G48: =F48*E48 -> 466.3 | I48: ='Rates Summary'!$E$21 -> 0.6753 | J48: =$E$19 -> 1000 | K48: =J48*I48 -> 675.3 | M48: 209 | N48: =IF((G48)=0,"",(M48/G48)) -> 0.4482093073
A49: Line Losses on Cost of Power | C49: per kWh | E49: =IF(ISBLANK($C$16)=TRUE, 0, IF($C$16="TOU", 0.65*$E$60+0.17*$E$61+0.18*$E$62, IF(AND($C$16="non-TOU", F65>0), E65,E64))) -> 0.121 | F49: =$E$18*(1+$E$80)-$E$18 -> 31440 | G49: 3804.24 | I49: =E49 -> 0.121 | J49: =$E$18*(1+$E$80)-$E$18 -> 31440 | K49: =J49*I49 -> 3804.24 | M49: 0 | N49: 0
A50: Smart Meter Entity Charge | E50: 0 | F50: 1 | G50: =F50*E50 -> 0 | I50: 0 | J50: 1 | K50: =J50*I50 -> 0 | M50: 0
A51: Sub-Total B - Distribution (includes Sub-Total A) | G51: =SUM(G40:G50)+G39 -> 13422.16 | K51: =SUM(K40:K50)+K39 -> 18082.23 | M51: 4660.07 | N51: 0.3471922552
A52: RTSR - Network | C52: per kW | E52: 2.7797 | F52: =$E$19 -> 1000 | G52: =F52*E52 -> 2779.7 | I52: ='Rates Summary'!$E$23 -> 2.871 | J52: =$E$19 -> 1000 | K52: =J52*I52 -> 2871 | M52: 91.3 | N52: 0.03284527107
A53: RTSR - Line and Transformation Connection | C53: per kW | E53: 2.2225 | F53: =$E$19 -> 1000 | G53: =F53*E53 -> 2222.5 | I53: ='Rates Summary'!$E$24 -> 2.3395 | J53: =$E$19 -> 1000 | K53: =J53*I53 -> 2339.5 | M53: 117 | N53: 0.05264341957
A54: Sub-Total C - Delivery (including Sub-Total B) | G54: =SUM(G51:G53) -> 18424.36 | K54: =SUM(K51:K53) -> 23292.73 | M54: 4868.37 | N54: 0.2642355013
A55: Wholesale Market Service Charge (WMSC) | C55: per kWh | E55: 0.0032 | F55: =$E$18*(1+E80) -> 831440 | G55: =F55*E55 -> 2660.608 | I55: ='Rates Summary'!$E$25 -> 0.0032 | J55: =$E$18*(1+I80) -> 831440 | K55: =J55*I55 -> 2660.608 | M55: 0 | N55: 0
A56: Capacity Based Recovery Charge (CBR) - Class B | C56: per kWh | E56: 0.0004 | F56: =$E$18*(1+E80) -> 831440 | G56: 332.576 | I56: ='Rates Summary'!$E$26 -> 0.0004 | J56: =$E$18*(1+I80) -> 831440 | K56: 332.576 | M56: 0 | N56: 0
A57: Ontario Electricity Support Program (OESP) | C57: per kWh | E57: 0.0011 | F57: =$E$18*(1+E80) -> 831440 | G57: 914.584 | I57: ='Rates Summary'!$E$27 -> 0.0011 | J57: =$E$18*(1+I80) -> 831440 | K57: 914.584 | M57: 0 | N57: 0
A58: Rural and Remote Rate Protection (RRRP) | C58: per kWh | E58: 0.0013 | F58: =$E$18*(1+E80) -> 831440 | G58: 1080.872 | I58: ='Rates Summary'!$E$28 -> 0.0013 | J58: =$E$18*(1+I80) -> 831440 | K58: 1080.872 | M58: 0 | N58: 0
A59: Standard Supply Service Charge | C59: Monthly | E59: 0.25 | F59: 1 | G59: 0.25 | I59: ='Rates Summary'!$E$29 -> 0.25 | J59: 1 | K59: 0.25 | M59: 0 | N59: 0
A60: Debt Retirement Charge (DRC) | C60: per kWh | E60: 0.007 | F60: =E18 -> 800000 | G60: 5600 | I60: =E60 -> 0.007 | J60: =F60 -> 800000 | K60: 5600 | M60: 0 | N60: 0
A61: TOU - Off Peak | C61: per kWh | E61: 0.087 | F61: =0.65*$E$18 -> 520000 | G61: 45240 | I61: =E61 -> 0.087 | J61: =0.65*$E$18 -> 520000 | K61: 45240 | M61: 0 | N61: 0
A62: TOU - Mid Peak | C62: per kWh | E62: 0.132 | F62: =0.17*$E$18 -> 136000 | G62: 17952 | I62: =E62 -> 0.132 | J62: =0.17*$E$18 -> 136000 | K62: 17952 | M62: 0 | N62: 0
A63: TOU - On Peak | C63: per kWh | E63: 0.18 | F63: =0.18*$E$18 -> 144000 | G63: 25920 | I63: =E63 -> 0.18 | J63: =0.18*$E$18 -> 144000 | K63: 25920 | M63: 0 | N63: 0
A64: Energy - RPP - Tier 1 | C64: per kWh | E64: 0.103 | F64: =IF(AND($O$1=1, $E$18>=750), 750, IF(AND($O$1=1, AND($E$18<750, $E$18>=0)), $E$18, IF(AND($O$1=2, $E$18>=1000), 1000, IF(AND($O$1=2, AND($E$18<1000, $E$18>=0)), $E$18)))) -> 750 | G64: =F64*E64 -> 77.25 | I64: =E64 -> 0.103 | J64: =IF(AND($O$1=1, $E$18>=750), 750, IF(AND($O$1=1, AND($E$18<750, $E$18>=0)), $E$18, IF(AND($O$1=2, $E$18>=1000), 1000, IF(AND($O$1=2, AND($E$18<1000, $E$18>=0)), $E$18)))) -> 750 | K64: =J64*I64 -> 77.25 | M64: 0 | N64: 0
A65: Energy - RPP - Tier 2 | C65: per kWh | E65: 0.121 | F65: =IF(AND($O$1=1, $E$18>=750), $E$18-750, IF(AND($O$1=1, AND($E$18<750, $E$18>=0)), 0, IF(AND($O$1=2, $E$18>=1000), $E$18-1000, IF(AND($O$1=2, AND($E$18<1000, $E$18>=0)), 0)))) -> 799250 | G65: =F65*E65 -> 96709.25 | I65: =E65 -> 0.121 | J65: =IF(AND($O$1=1, $E$18>=750), $E$18-750, IF(AND($O$1=1, AND($E$18<750, $E$18>=0)), 0, IF(AND($O$1=2, $E$18>=1000), $E$18-1000, IF(AND($O$1=2, AND($E$18<1000, $E$18>=0)), 0)))) -> 799250 | K65: =J65*I65 -> 96709.25 | M65: 0 | N65: 0
A67: Total Bill on TOU (before Taxes) | G67: =SUM(G55:G63,G54) -> 118125.25 | K67: =SUM(K55:K63,K54) -> 122993.62 | M67: =K67-G67 -> 4868.37 | N67: 0.04121362706
A68: HST | E68: 0.13 | G68: =G67*E68 -> 15356.2825 | I68: 0.13 | K68: =K67*I68 -> 15989.1706 | M68: =K68-G68 -> 632.8881 | N68: 0.04121362706
A69: Total Bill (including HST) | G69: =G67+G68 -> 133481.5325 | K69: =K67+K68 -> 138982.7906 | M69: =K69-G69 -> 5501.2581 | N69: 0.04121362706
N72: =IF((G72)=0,"",(M72/G72)) -> 
A73: Total Bill on RPP (before Taxes) | G73: =SUM(G65:G66,G54,G55:G60) -> 125722.5 | K73: =SUM(K65:K66,K54,K55:K60) -> 130590.87 | M73: =K73-G73 -> 4868.37 | N73: =IF((G73)=0,"",(M73/G73)) -> 0.03872314025
A74: HST | E74: 0.13 | G74: =G73*E74 -> 16343.925 | I74: 0.13 | K74: =K73*I74 -> 16976.8131 | M74: =K74-G74 -> 632.8881 | N74: =IF((G74)=0,"",(M74/G74)) -> 0.03872314025
A75: Total Bill (including HST) | G75: =G73+G74 -> 142066.425 | K75: =K73+K74 -> 147567.6831 | M75: =K75-G75 -> 5501.2581 | N75: =IF((G75)=0,"",(M75/G75)) -> 0.03872314025
A80: Loss Factor (%) | E80: 0.0393 | I80: 0.0393
B83: Residential (kWh) - 100, 250, 500, 750, 1000, 1500, 2000
B84: GS<50kW (kWh) - 1000, 2000, 5000, 10000, 15000
B85: GS>50kW (kW) - 60, 100, 500, 1000
B86: Large User - range appropriate for utility
B87: Lighting Classes and USL - 150 kWh and 1 kW, range appropriate for utility.
C89: Note that cells with the highlighted color shown to the left indicate quantities that are loss adjusted.

Sheet Bill Impact Large Use 8000kW
K1: File Number: | M1: EB-2016-0087 | O1: 1
K3: Tab:
K4: Schedule:
K5: Page:
M7: Year 2 Custom IR Update
K8: Date: | M8: 2016-Aug-15
A11: Bill Impacts
A14: Customer Class: | C14: Large Use
A16: TOU / non-TOU: | C16: non-TOU
C18: Consumption | E18: 5000000 | F18: kWh
C19: Load | E19: 8000 | F19: kW
E20: 2016 Custom IR Year 1 Approved | I20: 2017 Custom IR Year 2 Proposed | M20: Impact 2017 vs. 2016
C21: Charge Unit | E21: Rate | F21: Volume | G21: Charge | I21: Rate | J21: Volume | K21: Charge | M21: $ Change | N21: % Change
E22: ($) | G22: ($) | I22: ($) | K22: ($)
A23: Monthly Service Charge | C23: Monthly | E23: 5164 | F23: 1 | G23: =F23*E23 -> 5164 | I23: ='Rates Summary'!$F$48 -> 5164 | J23: 1 | K23: =J23*I23 -> 5164 | M23: =K23-G23 -> 0 | N23: =IF((G23)=0,"",(M23/G23)) -> 0
A25: Rate Rider Smart Meters Capital (2016) | E25: 0 | F25: 1 | G25: =F25*E25 -> 0 | I25: 0 | J25: 1 | K25: =J25*I25 -> 0 | M25: =K25-G25 -> 0 | N25: =IF((G25)=0,"",(M25/G25)) -> 
A26: Rate Rider Recovery of Stranded Meters | E26: 0 | F26: 1 | G26: 0 | I26: 0 | J26: 1 | K26: 0 | M26: =K26-G26 -> 0 | N26: =IF((G26)=0,"",(M26/G26)) -> 
A29: Distribution Volumetric Rate | C29: per kW | E29: 1.1548 | F29: =$E$19 -> 8000 | G29: 9238.4 | I29: ='Rates Summary'!$F$60 -> 1.216 | J29: =$E$19 -> 8000 | K29: 9728 | M29: =K29-G29 -> 489.6 | N29: =IF((G29)=0,"",(M29/G29)) -> 0.05299618982
A31: LRAM VA (2016) | C31: per kW | E31: 0.0268 | F31: 8000 | G31: 214.4 | I31: 0 | J31: 8000 | K31: 0 | M31: =K31-G31 -> -214.4 | N31: =IF((G31)=0,"",(M31/G31)) -> -1
A32: Rate Rider Incremental Capital 2012 True-Up (2016) | C32: per kW | E32: 0.0203 | F32: 8000 | G32: 162.4 | I32: 0 | J32: 8000 | K32: 0 | M32: -162.4 | N32: -1
F33: 8000 | G33: =F33*E33 -> 0 | J33: 8000 | K33: =J33*I33 -> 0 | M33: 0
F34: 8000 | G34: 0 | J34: 8000 | K34: 0 | M34: 0
F35: 8000 | G35: 0 | J35: 8000 | K35: 0 | M35: 0
F36: 8000 | G36: 0 | J36: 8000 | K36: 0 | M36: 0
F37: 8000 | G37: 0 | J37: 8000 | K37: 0 | M37: 0
F38: 8000 | G38: 0 | J38: 8000 | K38: 0 | M38: 0
A39: Sub-Total A (excluding pass through) | G39: =SUM(G23:G38) -> 14779.2 | K39: =SUM(K23:K38) -> 14892 | M39: 112.8 | N39: 0.007632348165
A40: Deferral/Variance Account Disposition Rate Rider (2016) | C40: per kW | E40: -0.5603 | F40: =$E$19 -> 8000 | G40: =F40*E40 -> -4482.4 | I40: 0 | J40: =$E$19 -> 8000 | K40: =J40*I40 -> 0 | M40: 4482.4 | N40: -1
A41: Deferral/Variance Account Disposition Rate Rider (2017) | F41: 8000 | G41: =F41*E41 -> 0 | I41: ='Rates Summary'!$F$4 -> 1.4963 | J41: 8000 | K41: =J41*I41 -> 11970.4 | M41: 11970.4 | N41: 1
A42: Deferral/Variance Account Disposition Rate Rider NON-WMP (2017) | C42: per kW | F42: 8000 | G42: =F42*E42 -> 0 | I42: ='Rates Summary'!$F$5 -> -2.6933 | J42: 8000 | K42: =J42*I42 -> -21546.4 | M42: -21546.4 | N42: 1
A43: Rate Rider CGAAP Account 1576 (2016) | C43: per kW | E43: -0.5513 | F43: 8000 | G43: -4410.4 | J43: 8000 | K43: 0 | M43: 4410.4 | N43: =IF((G43)=0,"",(M43/G43)) -> -1
A45: Disposition of Global Adjustment (2016) Applicable to Non-RPP Customers | C45: per kW | E45: 0 | F45: 8000 | G45: =F45*E45 -> 0 | I45: 0 | J45: 8000 | K45: =J45*I45 -> 0 | M45: =K45-G45 -> 0 | N45: =IF((G45)=0,"",(M45/G45)) -> 
A46: Disposition of Global Adjustment (2017) Applicable to Non-RPP Customers | C46: per kWh | E46: 0 | F46: 8000 | G46: =F46*E46 -> 0 | I46: ='Rates Summary'!$F$6 -> 0 | J46: =$E$18 -> 5000000 | K46: =J46*I46 -> 0 | M46: 0
A47: Low Voltage Service Charge | C47: per kW | E47: 0.5619 | F47: 8000 | G47: =F47*E47 -> 4495.2 | I47: ='Rates Summary'!$F$21 -> 0.8137 | J47: =$E$19 -> 8000 | K47: =J47*I47 -> 6509.6 | M47: 2014.4 | N47: 0.4481224417
A48: Line Losses on Cost of Power | C48: per kWh | E48: =IF(ISBLANK($C$16)=TRUE, 0, IF($C$16="TOU", 0.65*$E$61+0.17*$E$62+0.18*$E$63, IF(AND($C$16="non-TOU", F65>0), E65,E64))) -> 0.121 | F48: =$E$18*(1+$E$80)-$E$18 -> 94000 | G48: 11374 | I48: =E48 -> 0.121 | J48: =$E$18*(1+$E$80)-$E$18 -> 94000 | K48: =J48*I48 -> 11374 | M48: 0 | N48: 0
A49: Smart Meter Entity Charge | E49: 0 | F49: 1 | G49: =F49*E49 -> 0 | I49: 0 | J49: 1 | K49: =J49*I49 -> 0 | M49: 0
A50: Sub-Total B - Distribution (includes Sub-Total A) | G50: =SUM(G40:G49)+G39 -> 21755.6 | K50: =SUM(K40:K49)+K39 -> 23199.6 | M50: 1444 | N50: 0.06637371527
A51: RTSR - Network | C51: per kW | E51: 3.3492 | F51: =$E$19 -> 8000 | G51: =F51*E51 -> 26793.6 | I51: ='Rates Summary'!$F$23 -> 3.4592 | J51: =$E$19 -> 8000 | K51: =J51*I51 -> 27673.6 | M51: 880 | N51: 0.03284366416
A52: RTSR - Line and Transformation Connection | C52: per kW | E52: 2.678 | F52: =$E$19 -> 8000 | G52: =F52*E52 -> 21424 | I52: ='Rates Summary'!$F$24 -> 2.8189 | J52: =$E$19 -> 8000 | K52: =J52*I52 -> 22551.2 | M52: 1127.2 | N52: 0.05261389096
A53: Sub-Total C - Delivery (including Sub-Total B) | G53: =SUM(G50:G52) -> 69973.2 | K53: =SUM(K50:K52) -> 73424.4 | M53: 3451.2 | N53: 0.04932174032
A54: Wholesale Market Service Charge (WMSC) | C54: per kWh | E54: 0.0032 | F54: =$E$18*(1+E80) -> 5094000 | G54: =F54*E54 -> 16300.8 | I54: =E54 -> 0.0032 | J54: =$E$18*(1+I80) -> 5094000 | K54: =J54*I54 -> 16300.8 | M54: 0 | N54: 0
A55: Capacity Based Recovery Charge (CBR) - Class B | C55: per kWh | E55: 0.0004 | F55: 0 | G55: =F55*E55 -> 0 | I55: =E55 -> 0.0004 | J55: 0 | K55: =J55*I55 -> 0 | M55: 0
A56: CBR Class A - per customer Class A Peak Demand Factor Allocation
A57: Ontario Electricity Support Program (OESP) | C57: per kWh | E57: 0.0011 | F57: =$E$18*(1+E81) -> 5000000 | G57: =F57*E57 -> 5500 | I57: =E57 -> 0.0011 | J57: =$E$18*(1+I81) -> 5000000 | K57: =J57*I57 -> 5500 | M57: =K57-G57 -> 0 | N57: =IF((G57)=0,"",(M57/G57)) -> 0
A58: Rural and Remote Rate Protection (RRRP) | C58: per kWh | E58: 0.0013 | F58: =$E$18*(1+E80) -> 5094000 | G58: 6622.2 | I58: 0.0013 | J58: =$E$18*(1+I80) -> 5094000 | K58: 6622.2 | M58: 0 | N58: 0
A59: Standard Supply Service Charge | C59: Monthly | E59: 0.25 | F59: 1 | G59: 0.25 | I59: 0.25 | J59: 1 | K59: 0.25 | M59: 0 | N59: 0
A60: Debt Retirement Charge (DRC) | C60: per kWh | E60: 0.007 | F60: =E18 -> 5000000 | G60: 35000 | I60: 0.007 | J60: =F60 -> 5000000 | K60: 35000 | M60: 0 | N60: 0
A61: TOU - Off Peak | C61: per kWh | E61: 0.087 | F61: =0.65*$E$18 -> 3250000 | G61: 282750 | I61: 0.087 | J61: =0.65*$E$18 -> 3250000 | K61: 282750 | M61: 0 | N61: 0
A62: TOU - Mid Peak | C62: per kWh | E62: 0.132 | F62: =0.17*$E$18 -> 850000 | G62: 112200 | I62: 0.132 | J62: =0.17*$E$18 -> 850000 | K62: 112200 | M62: 0 | N62: 0
A63: TOU - On Peak | C63: per kWh | E63: 0.18 | F63: =0.18*$E$18 -> 900000 | G63: 162000 | I63: 0.18 | J63: =0.18*$E$18 -> 900000 | K63: 162000 | M63: 0 | N63: 0
A64: Energy - RPP - Tier 1 | C64: per kWh | E64: 0.103 | F64: =IF(AND($O$1=1, $E$18>=750), 750, IF(AND($O$1=1, AND($E$18<750, $E$18>=0)), $E$18, IF(AND($O$1=2, $E$18>=1000), 1000, IF(AND($O$1=2, AND($E$18<1000, $E$18>=0)), $E$18)))) -> 750 | G64: =F64*E64 -> 77.25 | I64: 0.103 | J64: =IF(AND($O$1=1, $E$18>=750), 750, IF(AND($O$1=1, AND($E$18<750, $E$18>=0)), $E$18, IF(AND($O$1=2, $E$18>=1000), 1000, IF(AND($O$1=2, AND($E$18<1000, $E$18>=0)), $E$18)))) -> 750 | K64: =J64*I64 -> 77.25 | M64: 0 | N64: 0
A65: Energy - RPP - Tier 2 | C65: per kWh | E65: 0.121 | F65: =IF(AND($O$1=1, $E$18>=750), $E$18-750, IF(AND($O$1=1, AND($E$18<750, $E$18>=0)), 0, IF(AND($O$1=2, $E$18>=1000), $E$18-1000, IF(AND($O$1=2, AND($E$18<1000, $E$18>=0)), 0)))) -> 4999250 | G65: =F65*E65 -> 604909.25 | I65: 0.121 | J65: =IF(AND($O$1=1, $E$18>=750), $E$18-750, IF(AND($O$1=1, AND($E$18<750, $E$18>=0)), 0, IF(AND($O$1=2, $E$18>=1000), $E$18-1000, IF(AND($O$1=2, AND($E$18<1000, $E$18>=0)), 0)))) -> 4999250 | K65: =J65*I65 -> 604909.25 | M65: 0 | N65: 0
A67: Total Bill on TOU (before Taxes) | G67: =SUM(G54:G63,G53) -> 690346.45 | K67: =SUM(K54:K63,K53) -> 693797.65 | M67: =K67-G67 -> 3451.2 | N67: 0.00499922901
A68: HST | E68: 0.13 | G68: =G67*E68 -> 89745.0385 | I68: 0.13 | K68: =K67*I68 -> 90193.6945 | M68: =K68-G68 -> 448.656 | N68: 0.00499922901
A69: Total Bill (including HST) | G69: =G67+G68 -> 780091.4885 | K69: =K67+K68 -> 783991.3445 | M69: =K69-G69 -> 3899.856 | N69: 0.00499922901
N72: =IF((G72)=0,"",(M72/G72)) -> 
A73: Total Bill on RPP (before Taxes) | G73: =SUM(G65:G66,G53,G54:G60) -> 738305.7 | K73: =SUM(K65:K66,K53,K54:K60) -> 741756.9 | M73: =K73-G73 -> 3451.2 | N73: =IF((G73)=0,"",(M73/G73)) -> 0.004674486463
A74: HST | E74: 0.13 | G74: =G73*E74 -> 95979.741 | I74: 0.13 | K74: =K73*I74 -> 96428.397 | M74: =K74-G74 -> 448.656 | N74: =IF((G74)=0,"",(M74/G74)) -> 0.004674486463
A75: Total Bill (including HST) | G75: =G73+G74 -> 834285.441 | K75: =K73+K74 -> 838185.297 | M75: =K75-G75 -> 3899.856 | N75: =IF((G75)=0,"",(M75/G75)) -> 0.004674486463
A80: Loss Factor (%) | E80: 0.0188 | I80: 0.0188
B83: Residential (kWh) - 100, 250, 500, 750, 1000, 1500, 2000
B84: GS<50kW (kWh) - 1000, 2000, 5000, 10000, 15000
B85: GS>50kW (kW) - 60, 100, 500, 1000
B86: Large User - range appropriate for utility
B87: Lighting Classes and USL - 150 kWh and 1 kW, range appropriate for utility.
C89: Note that cells with the highlighted color shown to the left indicate quantities that are loss adjusted.

Sheet Bill Impact Large Use 5500kW
K1: File Number: | M1: EB-2016-0087 | O1: 1
K3: Tab:
K4: Schedule:
K5: Page:
M7: Year 2 Custom IR Update
K8: Date: | M8: 2016-Aug-15
A11: Bill Impacts
A14: Customer Class: | C14: Large Use
A16: TOU / non-TOU: | C16: non-TOU
C18: Consumption | E18: 3450000 | F18: kWh
C19: Load | E19: 5500 | F19: kW
E20: 2016 Custom IR Year 1 Approved | I20: 2017 Custom IR Year 2 Proposed | M20: Impact 2017 vs. 2016
C21: Charge Unit | E21: Rate | F21: Volume | G21: Charge | I21: Rate | J21: Volume | K21: Charge | M21: $ Change | N21: % Change
E22: ($) | G22: ($) | I22: ($) | K22: ($)
A23: Monthly Service Charge | C23: Monthly | E23: 5164 | F23: 1 | G23: =F23*E23 -> 5164 | I23: ='Rates Summary'!$F$48 -> 5164 | J23: 1 | K23: =J23*I23 -> 5164 | M23: =K23-G23 -> 0 | N23: =IF((G23)=0,"",(M23/G23)) -> 0
A25: Rate Rider Smart Meters Capital (2016) | E25: 0 | F25: 1 | G25: =F25*E25 -> 0 | I25: 0 | J25: 1 | K25: =J25*I25 -> 0 | M25: =K25-G25 -> 0 | N25: =IF((G25)=0,"",(M25/G25)) -> 
A26: Rate Rider Recovery of Stranded Meters | E26: 0 | F26: 1 | G26: 0 | I26: 0 | J26: 1 | K26: 0 | M26: =K26-G26 -> 0 | N26: =IF((G26)=0,"",(M26/G26)) -> 
A29: Distribution Volumetric Rate | C29: per kW | E29: 1.1548 | F29: =$E$19 -> 5500 | G29: 6351.4 | I29: ='Rates Summary'!$F$60 -> 1.216 | J29: =$E$19 -> 5500 | K29: 6688 | M29: =K29-G29 -> 336.6 | N29: =IF((G29)=0,"",(M29/G29)) -> 0.05299618982
A31: LRAM VA (2016) | C31: per kW | E31: 0.0268 | F31: 5500 | G31: 147.4 | I31: 0 | J31: 5500 | K31: 0 | M31: =K31-G31 -> -147.4 | N31: =IF((G31)=0,"",(M31/G31)) -> -1
A32: Rate Rider Incremental Capital 2012 True-Up (2016) | C32: per kW | E32: 0.0203 | F32: 5500 | G32: 111.65 | I32: 0 | J32: 5500 | K32: 0 | M32: -111.65 | N32: -1
F33: 5500 | G33: 0 | J33: 5500 | K33: 0 | M33: 0
F34: 5500 | G34: 0 | J34: 5500 | K34: 0 | M34: 0
F35: 5500 | G35: 0 | J35: 5500 | K35: 0 | M35: 0
F36: 5500 | G36: 0 | J36: 5500 | K36: 0 | M36: 0
F37: 5500 | G37: 0 | J37: 5500 | K37: 0 | M37: 0
F38: 5500 | G38: 0 | J38: 5500 | K38: 0 | M38: 0
A39: Sub-Total A (excluding pass through) | G39: =SUM(G23:G38) -> 11774.45 | K39: =SUM(K23:K38) -> 11852 | M39: 77.55 | N39: 0.006586294901
A40: Deferral/Variance Account Disposition Rate Rider (2016) | C40: per kW | E40: -0.5603 | F40: =$E$19 -> 5500 | G40: =F40*E40 -> -3081.65 | I40: 0 | J40: =$E$19 -> 5500 | K40: =J40*I40 -> 0 | M40: 3081.65 | N40: -1
A41: Deferral/Variance Account Disposition Rate Rider (2017) | F41: 5500 | G41: =F41*E41 -> 0 | I41: ='Rates Summary'!$F$4 -> 1.4963 | J41: 5500 | K41: =J41*I41 -> 8229.65 | M41: 8229.65 | N41: 1
A42: Deferral/Variance Account Disposition Rate Rider NON-WMP (2017) | C42: per kW | F42: 5500 | G42: =F42*E42 -> 0 | I42: ='Rates Summary'!$F$5 -> -2.6933 | J42: 5500 | K42: =J42*I42 -> -14813.15 | M42: -14813.15 | N42: 1
A43: Rate Rider CGAAP Account 1576 (2016) | C43: per kW | E43: -0.5513 | F43: 5500 | G43: -3032.15 | J43: 5500 | K43: 0 | M43: 3032.15 | N43: =IF((G43)=0,"",(M43/G43)) -> -1
A45: Disposition of Global Adjustment (2016) Applicable to Non-RPP Customers | C45: per kW | E45: 0 | F45: 5500 | G45: 0 | I45: 0 | J45: 5500 | K45: 0 | M45: =K45-G45 -> 0 | N45: =IF((G45)=0,"",(M45/G45)) -> 
A46: Disposition of Global Adjustment (2017) Applicable to Non-RPP Customers | C46: per kWh | E46: 0 | F46: 5500 | G46: 0 | I46: ='Rates Summary'!$F$6 -> 0 | J46: =$E$18 -> 3450000 | K46: 0 | M46: 0
A47: Low Voltage Service Charge | C47: per kW | E47: 0.5619 | F47: 5500 | G47: =F47*E47 -> 3090.45 | I47: ='Rates Summary'!$F$21 -> 0.8137 | J47: =$E$19 -> 5500 | K47: =J47*I47 -> 4475.35 | M47: 1384.9 | N47: 0.4481224417
A48: Line Losses on Cost of Power | C48: per kWh | E48: =IF(ISBLANK($C$16)=TRUE, 0, IF($C$16="TOU", 0.65*$E$61+0.17*$E$62+0.18*$E$63, IF(AND($C$16="non-TOU", F65>0), E65,E64))) -> 0.121 | F48: =$E$18*(1+$E$80)-$E$18 -> 64860 | G48: 7848.06 | I48: =E48 -> 0.121 | J48: =$E$18*(1+$E$80)-$E$18 -> 64860 | K48: =J48*I48 -> 7848.06 | M48: 0 | N48: 0
A49: Smart Meter Entity Charge | E49: 0 | F49: 1 | G49: =F49*E49 -> 0 | I49: 0 | J49: 1 | K49: =J49*I49 -> 0 | M49: 0
A50: Sub-Total B - Distribution (includes Sub-Total A) | G50: =SUM(G40:G49)+G39 -> 16599.16 | K50: =SUM(K40:K49)+K39 -> 17591.91 | M50: 992.75 | N50: 0.05980724326
A51: RTSR - Network | C51: per kW | E51: 3.3492 | F51: =$E$19 -> 5500 | G51: =F51*E51 -> 18420.6 | I51: ='Rates Summary'!$F$23 -> 3.4592 | J51: =$E$19 -> 5500 | K51: =J51*I51 -> 19025.6 | M51: 605 | N51: 0.03284366416
A52: RTSR - Line and Transformation Connection | C52: per kW | E52: 2.678 | F52: =$E$19 -> 5500 | G52: =F52*E52 -> 14729 | I52: ='Rates Summary'!$F$24 -> 2.8189 | J52: =$E$19 -> 5500 | K52: =J52*I52 -> 15503.95 | M52: 774.95 | N52: 0.05261389096
A53: Sub-Total C - Delivery (including Sub-Total B) | G53: =SUM(G50:G52) -> 49748.76 | K53: =SUM(K50:K52) -> 52121.46 | M53: 2372.7 | N53: 0.04769365106
A54: Wholesale Market Service Charge (WMSC) | C54: per kWh | E54: 0.0032 | F54: =$E$18*(1+E80) -> 3514860 | G54: =F54*E54 -> 11247.552 | I54: =E54 -> 0.0032 | J54: =$E$18*(1+I80) -> 3514860 | K54: =J54*I54 -> 11247.552 | M54: 0 | N54: 0
A55: Capacity Based Recovery Charge (CBR) - Class B | C55: per kWh | E55: 0.0004 | F55: 0 | G55: 0 | I55: =E55 -> 0.0004 | J55: 0 | K55: 0 | M55: 0
A56: CBR Class A - per customer Class A Peak Demand Factor Allocation
A57: Ontario Electricity Support Program (OESP) | C57: per kWh | E57: 0.0011 | F57: =$E$18*(1+E81) -> 3450000 | G57: =F57*E57 -> 3795 | I57: =E57 -> 0.0011 | J57: =$E$18*(1+I81) -> 3450000 | K57: =J57*I57 -> 3795 | M57: =K57-G57 -> 0 | N57: =IF((G57)=0,"",(M57/G57)) -> 0
A58: Rural and Remote Rate Protection (RRRP) | C58: per kWh | E58: 0.0013 | F58: =$E$18*(1+E80) -> 3514860 | G58: 4569.318 | I58: 0.0013 | J58: =$E$18*(1+I80) -> 3514860 | K58: 4569.318 | M58: 0 | N58: 0
A59: Standard Supply Service Charge | C59: Monthly | E59: 0.25 | F59: 1 | G59: 0.25 | I59: 0.25 | J59: 1 | K59: 0.25 | M59: 0 | N59: 0
A60: Debt Retirement Charge (DRC) | C60: per kWh | E60: 0.007 | F60: =E18 -> 3450000 | G60: 24150 | I60: 0.007 | J60: =F60 -> 3450000 | K60: 24150 | M60: 0 | N60: 0
A61: TOU - Off Peak | C61: per kWh | E61: 0.087 | F61: =0.65*$E$18 -> 2242500 | G61: 195097.5 | I61: 0.087 | J61: =0.65*$E$18 -> 2242500 | K61: 195097.5 | M61: 0 | N61: 0
A62: TOU - Mid Peak | C62: per kWh | E62: 0.132 | F62: =0.17*$E$18 -> 586500 | G62: 77418 | I62: 0.132 | J62: =0.17*$E$18 -> 586500 | K62: 77418 | M62: 0 | N62: 0
A63: TOU - On Peak | C63: per kWh | E63: 0.18 | F63: =0.18*$E$18 -> 621000 | G63: 111780 | I63: 0.18 | J63: =0.18*$E$18 -> 621000 | K63: 111780 | M63: 0 | N63: 0
A64: Energy - RPP - Tier 1 | C64: per kWh | E64: 0.103 | F64: =IF(AND($O$1=1, $E$18>=750), 750, IF(AND($O$1=1, AND($E$18<750, $E$18>=0)), $E$18, IF(AND($O$1=2, $E$18>=1000), 1000, IF(AND($O$1=2, AND($E$18<1000, $E$18>=0)), $E$18)))) -> 750 | G64: =F64*E64 -> 77.25 | I64: 0.103 | J64: =IF(AND($O$1=1, $E$18>=750), 750, IF(AND($O$1=1, AND($E$18<750, $E$18>=0)), $E$18, IF(AND($O$1=2, $E$18>=1000), 1000, IF(AND($O$1=2, AND($E$18<1000, $E$18>=0)), $E$18)))) -> 750 | K64: =J64*I64 -> 77.25 | M64: 0 | N64: 0
A65: Energy - RPP - Tier 2 | C65: per kWh | E65: 0.121 | F65: =IF(AND($O$1=1, $E$18>=750), $E$18-750, IF(AND($O$1=1, AND($E$18<750, $E$18>=0)), 0, IF(AND($O$1=2, $E$18>=1000), $E$18-1000, IF(AND($O$1=2, AND($E$18<1000, $E$18>=0)), 0)))) -> 3449250 | G65: =F65*E65 -> 417359.25 | I65: 0.121 | J65: =IF(AND($O$1=1, $E$18>=750), $E$18-750, IF(AND($O$1=1, AND($E$18<750, $E$18>=0)), 0, IF(AND($O$1=2, $E$18>=1000), $E$18-1000, IF(AND($O$1=2, AND($E$18<1000, $E$18>=0)), 0)))) -> 3449250 | K65: =J65*I65 -> 417359.25 | M65: 0 | N65: 0
A67: Total Bill on TOU (before Taxes) | G67: =SUM(G54:G63,G53) -> 477806.38 | K67: =SUM(K54:K63,K53) -> 480179.08 | M67: =K67-G67 -> 2372.7 | N67: 0.004965819
A68: HST | E68: 0.13 | G68: =G67*E68 -> 62114.8294 | I68: 0.13 | K68: =K67*I68 -> 62423.2804 | M68: =K68-G68 -> 308.451 | N68: 0.004965819
A69: Total Bill (including HST) | G69: =G67+G68 -> 539921.2094 | K69: =K67+K68 -> 542602.3604 | M69: =K69-G69 -> 2681.151 | N69: 0.004965819
N72: =IF((G72)=0,"",(M72/G72)) -> 
A73: Total Bill on RPP (before Taxes) | G73: =SUM(G65:G66,G53,G54:G60) -> 510870.13 | K73: =SUM(K65:K66,K53,K54:K60) -> 513242.83 | M73: =K73-G73 -> 2372.7 | N73: =IF((G73)=0,"",(M73/G73)) -> 0.004644428908
A74: HST | E74: 0.13 | G74: =G73*E74 -> 66413.1169 | I74: 0.13 | K74: =K73*I74 -> 66721.5679 | M74: =K74-G74 -> 308.451 | N74: =IF((G74)=0,"",(M74/G74)) -> 0.004644428908
A75: Total Bill (including HST) | G75: =G73+G74 -> 577283.2469 | K75: =K73+K74 -> 579964.3979 | M75: =K75-G75 -> 2681.151 | N75: =IF((G75)=0,"",(M75/G75)) -> 0.004644428908
A80: Loss Factor (%) | E80: 0.0188 | I80: 0.0188
B83: Residential (kWh) - 100, 250, 500, 750, 1000, 1500, 2000
B84: GS<50kW (kWh) - 1000, 2000, 5000, 10000, 15000
B85: GS>50kW (kW) - 60, 100, 500, 1000
B86: Large User - range appropriate for utility
B87: Lighting Classes and USL - 150 kWh and 1 kW, range appropriate for utility.
C89: Note that cells with the highlighted color shown to the left indicate quantities that are loss adjusted.

Sheet Bill Impact USL 750kWh
K1: File Number: | M1: EB-2016-0087 | O1: 1
K3: Tab:
K4: Schedule:
K5: Page:
M7: Year 2 Custom IR Update
K8: Date: | M8: 2016-Aug-15
A11: Bill Impacts
A14: Customer Class: | C14: Unmetered Scattered Load
A16: TOU / non-TOU: | C16: non-TOU
C18: Consumption | E18: 750 | F18: kWh
E20: 2016 Custom IR Year 1 Approved | I20: 2017 Custom IR Year 2 Proposed | M20: Impact 2017 vs. 2016
C21: Charge Unit | E21: Rate | F21: Volume | G21: Charge | I21: Rate | J21: Volume | K21: Charge | M21: $ Change | N21: % Change
E22: ($) | G22: ($) | I22: ($) | K22: ($)
A23: Monthly Service Charge | C23: Monthly | E23: 5.78 | F23: 1 | G23: =F23*E23 -> 5.78 | I23: ='Rates Summary'!$F$49 -> 5.95 | J23: 1 | K23: =J23*I23 -> 5.95 | M23: =K23-G23 -> 0.17 | N23: =IF((G23)=0,"",(M23/G23)) -> 0.02941176471
A25: Rate Rider Smart Meters Capital (2016) | C25: Monthly | E25: 0 | F25: 1 | G25: =F25*E25 -> 0 | I25: 0 | J25: 1 | K25: =J25*I25 -> 0 | M25: =K25-G25 -> 0 | N25: =IF((G25)=0,"",(M25/G25)) -> 
A26: Rate Rider Recovery of Stranded Meters | C26: Monthly | E26: 0 | F26: 1 | G26: 0 | I26: 0 | J26: 1 | K26: 0 | M26: =K26-G26 -> 0 | N26: =IF((G26)=0,"",(M26/G26)) -> 
F27: 1 | G27: 0 | J27: 1 | K27: 0 | M27: =K27-G27 -> 0 | N27: =IF((G27)=0,"",(M27/G27)) -> 
F28: 1 | G28: 0 | J28: 1 | K28: 0 | M28: =K28-G28 -> 0 | N28: =IF((G28)=0,"",(M28/G28)) -> 
A29: Distribution Volumetric Rate | C29: per kWh | E29: 0.0115 | F29: =$E$18 -> 750 | G29: 8.625 | I29: ='Rates Summary'!$F$61 -> 0.0118 | J29: =$E$18 -> 750 | K29: 8.85 | M29: =K29-G29 -> 0.225 | N29: =IF((G29)=0,"",(M29/G29)) -> 0.02608695652
A31: LRAM VA (2016) | C31: per kWh | E31: 0 | F31: 750 | G31: 0 | I31: 0 | J31: 750 | K31: 0 | M31: =K31-G31 -> 0 | N31: =IF((G31)=0,"",(M31/G31)) -> 
A32: Rate Rider Incremental Capital 2012 True-Up (2016) | C32: per kWh | E32: 0.0002 | F32: 750 | G32: 0.15 | I32: 0 | J32: 750 | K32: 0 | M32: -0.15 | N32: -1
F33: 750 | G33: =F33*E33 -> 0 | J33: 750 | K33: =J33*I33 -> 0 | M33: 0
F34: 750 | G34: 0 | J34: 750 | K34: 0 | M34: 0
F35: 750 | G35: 0 | J35: 750 | K35: 0 | M35: 0
F36: 750 | G36: 0 | J36: 750 | K36: 0 | M36: 0
F37: 750 | G37: 0 | J37: 750 | K37: 0 | M37: 0
F38: 750 | G38: 0 | J38: 750 | K38: 0 | M38: 0
A39: Sub-Total A (excluding pass through) | G39: =SUM(G23:G38) -> 14.555 | K39: =SUM(K23:K38) -> 14.8 | M39: 0.245 | N39: 0.01683270354
A40: Deferral/Variance Account Disposition Rate Rider (2016) | C40: per kWh | E40: 0.0003 | F40: =$E$18 -> 750 | G40: =F40*E40 -> 0.225 | I40: 0 | J40: =$E$18 -> 750 | K40: =J40*I40 -> 0 | M40: -0.225 | N40: -1
A41: Deferral/Variance Account Disposition Rate Rider (2017) | C41: per kWh | F41: 750 | G41: =F41*E41 -> 0 | I41: ='Rates Summary'!$G$4 -> 0.0027 | J41: 750 | K41: =J41*I41 -> 2.025 | M41: 2.025 | N41: 1
A42: Deferral/Variance Account Disposition Rate Rider NON-WMP (2017) | C42: per kWh | F42: 750 | G42: =F42*E42 -> 0 | I42: ='Rates Summary'!$G$5 -> -0.0051 | J42: 750 | K42: =J42*I42 -> -3.825 | M42: -3.825 | N42: 1
F43: 750 | G43: =F43*E43 -> 0 | J43: 750 | K43: =J43*I43 -> 0 | M43: 0
A44: Rate Rider CGAAP Account 1576 (2016) | C44: per kWh | E44: -0.006 | F44: 750 | G44: -4.5 | I44: 0 | J44: 750 | K44: 0 | M44: 4.5 | N44: -1
A45: Deferral/Variance 1580 Sub-Account CBR Class B Disposition Rate Rider - Class B Non-WMP (2017) | C45: per kWh | F45: 750 | G45: =F45*E45 -> 0 | I45: ='Rates Summary'!$G$7 -> 0.0003 | J45: 750 | K45: =J45*I45 -> 0.225 | M45: =K45-G45 -> 0.225 | N45: 1
A46: Disposition of Global Adjustment (2016) Applicable to Non-RPP Customers | C46: per kWh | E46: 0.0205 | F46: =$E$18 -> 750 | G46: =F46*E46 -> 15.375 | I46: 0 | J46: 0 | K46: =J46*I46 -> 0 | M46: =K46-G46 -> -15.375 | N46: =IF((G46)=0,"",(M46/G46)) -> -1
A47: Disposition of Global Adjustment (2017) Applicable to Non-RPP Customers | C47: per kWh | E47: 0 | F47: 0 | G47: =F47*E47 -> 0 | I47: ='Rates Summary'!$G$6 -> 0.0139 | J47: =$E$18 -> 750 | K47: =J47*I47 -> 10.425 | M47: 10.425 | N47: 1
A48: Low Voltage Service Charge | C48: per kWh | E48: 0.0012 | F48: =$E$18 -> 750 | G48: =F48*E48 -> 0.9 | I48: ='Rates Summary'!$G$21 -> 0.0018 | J48: =$E$18 -> 750 | K48: =J48*I48 -> 1.35 | M48: 0.45 | N48: =IF((G48)=0,"",(M48/G48)) -> 0.5
A49: Line Losses on Cost of Power | C49: per kWh | E49: =IF(ISBLANK($C$16)=TRUE, 0, IF($C$16="TOU", 0.65*$E$61+0.17*$E$62+0.18*$E$63, IF(AND($C$16="non-TOU", F65>0), E66,E64))) -> 0.103 | F49: =$E$18*(1+$E$80)-$E$18 -> 29.475 | G49: 3.035925 | I49: =E49 -> 0.103 | J49: =$E$18*(1+$E$80)-$E$18 -> 29.475 | K49: =J49*I49 -> 3.035925 | M49: 0 | N49: 0
A50: Smart Meter Entity Charge | C50: Monthly | E50: 0 | F50: 1 | G50: =F50*E50 -> 0 | I50: 0 | J50: 1 | K50: =J50*I50 -> 0 | M50: 0
A51: Sub-Total B - Distribution (includes Sub-Total A) | G51: =SUM(G40:G50)+G39 -> 29.590925 | K51: =SUM(K40:K50)+K39 -> 28.035925 | M51: -1.555 | N51: -0.05254989494
A52: RTSR - Network | C52: per kWh | E52: 0.0071 | F52: =$E$18*(1+$E$80) -> 779.475 | G52: =F52*E52 -> 5.5342725 | I52: ='Rates Summary'!$G$23 -> 0.0073 | J52: =$E$18*(1+I80) -> 779.475 | K52: =J52*I52 -> 5.6901675 | M52: 0.155895 | N52: 0.02816901408
A53: RTSR - Line and Transformation Connection | C53: per kWh | E53: 0.0056 | F53: =F52 -> 779.475 | G53: =F53*E53 -> 4.36506 | I53: ='Rates Summary'!$G$24 -> 0.0059 | J53: =J52 -> 779.475 | K53: =J53*I53 -> 4.5989025 | M53: 0.2338425 | N53: 0.05357142857
A54: Sub-Total C - Delivery (including Sub-Total B) | G54: =SUM(G51:G53) -> 39.4902575 | K54: =SUM(K51:K53) -> 38.324995 | M54: -1.1652625 | N54: -0.02950759437
A55: Wholesale Market Service Charge (WMSC) | C55: per kWh | E55: 0.0032 | F55: =F53 -> 779.475 | G55: =F55*E55 -> 2.49432 | I55: ='Rates Summary'!$G$25 -> 0.0032 | J55: =J53 -> 779.475 | K55: =J55*I55 -> 2.49432 | M55: 0 | N55: 0
A56: Capacity Based Recovery (CBR) | C56: per kWh | E56: 0.0004 | F56: =F54 -> 0 | G56: =F56*E56 -> 0 | I56: ='Rates Summary'!$G$26 -> 0.0004 | J56: =J54 -> 0 | K56: =J56*I56 -> 0 | M56: 0
A57: Ontario Electricity Support Program (OESP) | C57: per kWh | E57: 0.0011 | F57: =F55 -> 779.475 | G57: =F57*E57 -> 0.8574225 | I57: ='Rates Summary'!$G$27 -> 0.0011 | J57: =J55 -> 779.475 | K57: =J57*I57 -> 0.8574225 | M57: 0 | N57: 0
A58: Rural and Remote Rate Protection (RRRP) | C58: per kWh | E58: 0.0013 | F58: =F53 -> 779.475 | G58: 1.0133175 | I58: ='Rates Summary'!$G$28 -> 0.0013 | J58: =J53 -> 779.475 | K58: 1.0133175 | M58: 0 | N58: 0
A59: Standard Supply Service Charge | C59: Monthly | E59: 0.25 | F59: 1 | G59: 0.25 | I59: ='Rates Summary'!$G$29 -> 0.25 | J59: 1 | K59: 0.25 | M59: 0 | N59: 0
A60: Debt Retirement Charge (DRC) | C60: per kWh | E60: 0.007 | F60: =E18 -> 750 | G60: 5.25 | I60: =E60 -> 0.007 | J60: =F60 -> 750 | K60: 5.25 | M60: 0 | N60: 0
A61: TOU - Off Peak | C61: per kWh | E61: 0.087 | F61: 487.5 | G61: 42.4125 | I61: =E61 -> 0.087 | J61: 487.5 | K61: 42.4125 | M61: 0 | N61: 0
A62: TOU - Mid Peak | C62: per kWh | E62: 0.132 | F62: 127.5 | G62: 16.83 | I62: =E62 -> 0.132 | J62: 127.5 | K62: 16.83 | M62: 0 | N62: 0
A63: TOU - On Peak | C63: per kWh | E63: 0.18 | F63: 135 | G63: 24.3 | I63: =E63 -> 0.18 | J63: 135 | K63: 24.3 | M63: 0 | N63: 0
A64: Energy - RPP - Tier 1 | C64: per kWh | E64: 0.103 | F64: =IF(AND($O$1=1, $E$18>=750), 750, IF(AND($O$1=1, AND($E$18<750, $E$18>=0)), $E$18, IF(AND($O$1=2, $E$18>=1000), 1000, IF(AND($O$1=2, AND($E$18<1000, $E$18>=0)), $E$18)))) -> 750 | G64: =F64*E64 -> 77.25 | I64: =E64 -> 0.103 | J64: =IF(AND($O$1=1, $E$18>=750), 750, IF(AND($O$1=1, AND($E$18<750, $E$18>=0)), $E$18, IF(AND($O$1=2, $E$18>=1000), 1000, IF(AND($O$1=2, AND($E$18<1000, $E$18>=0)), $E$18)))) -> 750 | K64: =J64*I64 -> 77.25 | M64: 0 | N64: 0
A65: Energy - RPP - Tier 2 | C65: per kWh | E65: 0.121 | F65: =IF(AND($O$1=1, $E$18>=750), $E$18-750, IF(AND($O$1=1, AND($E$18<750, $E$18>=0)), 0, IF(AND($O$1=2, $E$18>=1000), $E$18-1000, IF(AND($O$1=2, AND($E$18<1000, $E$18>=0)), 0)))) -> 0 | G65: =F65*E65 -> 0 | I65: =E65 -> 0.121 | J65: =IF(AND($O$1=1, $E$18>=750), $E$18-750, IF(AND($O$1=1, AND($E$18<750, $E$18>=0)), 0, IF(AND($O$1=2, $E$18>=1000), $E$18-1000, IF(AND($O$1=2, AND($E$18<1000, $E$18>=0)), 0)))) -> 0 | K65: =J65*I65 -> 0 | M65: 0
A67: Total Bill on TOU (before Taxes) | G67: =SUM(G55:G63,G54) -> 132.8978175 | K67: =SUM(K55:K63,K54) -> 131.732555 | M67: =K67-G67 -> -1.1652625 | N67: -0.008768108626
A68: HST | E68: 0.13 | G68: =G67*E68 -> 17.27671627 | I68: 0.13 | K68: =K67*I68 -> 17.12523215 | M68: =K68-G68 -> -0.151484125 | N68: -0.008768108626
A69: Total Bill (including HST) | G69: =G67+G68 -> 150.1745338 | K69: =K67+K68 -> 148.8577871 | M69: =K69-G69 -> -1.316746625 | N69: -0.008768108626
N72: =IF((G72)=0,"",(M72/G72)) -> 
A73: Total Bill on RPP (before Taxes) | G73: =SUM(G64:G65,G54,G55:G60) -> 126.6053175 | K73: =SUM(K64:K65,K54,K55:K60) -> 125.440055 | M73: =K73-G73 -> -1.1652625 | N73: =IF((G73)=0,"",(M73/G73)) -> -0.009203898565
A74: HST | E74: 0.13 | G74: =G73*E74 -> 16.45869127 | I74: 0.13 | K74: =K73*I74 -> 16.30720715 | M74: =K74-G74 -> -0.151484125 | N74: =IF((G74)=0,"",(M74/G74)) -> -0.009203898565
A75: Total Bill (including HST) | G75: =G73+G74 -> 143.0640088 | K75: =K73+K74 -> 141.7472621 | M75: =K75-G75 -> -1.316746625 | N75: =IF((G75)=0,"",(M75/G75)) -> -0.009203898565
A80: Loss Factor (%) | E80: 0.0393 | I80: 0.0393
B84: Residential (kWh) - 100, 250, 500, 750, 1000, 1500, 2000
B85: GS<50kW (kWh) - 1000, 2000, 5000, 10000, 15000
B86: GS>50kW (kW) - 60, 100, 500, 1000
B87: Large User - range appropriate for utility
B88: Lighting Classes and USL - 150 kWh and 1 kW, range appropriate for utility.
C90: Note that cells with the highlighted color shown to the left indicate quantities that are loss adjusted.

Sheet Bill Impact USL 150kWh
K1: File Number: | M1: EB-2016-0087 | O1: 1
K3: Tab:
K4: Schedule:
K5: Page:
M7: Year 2 Custom IR Update
K8: Date: | M8: 2016-Aug-15
A11: Bill Impacts
A14: Customer Class: | C14: Unmetered Scattered Load
A16: TOU / non-TOU: | C16: non-TOU
C18: Consumption | E18: 150 | F18: kWh
E20: 2016 Custom IR Year 1 Approved | I20: 2017 Custom IR Year 2 Proposed | M20: Impact 2017 vs. 2016
C21: Charge Unit | E21: Rate | F21: Volume | G21: Charge | I21: Rate | J21: Volume | K21: Charge | M21: $ Change | N21: % Change
E22: ($) | G22: ($) | I22: ($) | K22: ($)
A23: Monthly Service Charge | C23: Monthly | E23: 5.78 | F23: 1 | G23: =F23*E23 -> 5.78 | I23: ='Rates Summary'!$F$49 -> 5.95 | J23: 1 | K23: =J23*I23 -> 5.95 | M23: =K23-G23 -> 0.17 | N23: =IF((G23)=0,"",(M23/G23)) -> 0.02941176471
A25: Rate Rider Smart Meters Capital (2016) | C25: Monthly | E25: 0 | F25: 1 | G25: =F25*E25 -> 0 | I25: 0 | J25: 1 | K25: =J25*I25 -> 0 | M25: =K25-G25 -> 0 | N25: =IF((G25)=0,"",(M25/G25)) -> 
A26: Rate Rider Recovery of Stranded Meters | C26: Monthly | E26: 0 | F26: 1 | G26: 0 | I26: 0 | J26: 1 | K26: 0 | M26: =K26-G26 -> 0 | N26: =IF((G26)=0,"",(M26/G26)) -> 
F27: 1 | G27: 0 | J27: 1 | K27: 0 | M27: =K27-G27 -> 0 | N27: =IF((G27)=0,"",(M27/G27)) -> 
F28: 1 | G28: 0 | J28: 1 | K28: 0 | M28: =K28-G28 -> 0 | N28: =IF((G28)=0,"",(M28/G28)) -> 
A29: Distribution Volumetric Rate | C29: per kWh | E29: 0.0115 | F29: =$E$18 -> 150 | G29: 1.725 | I29: ='Rates Summary'!$F$61 -> 0.0118 | J29: =$E$18 -> 150 | K29: 1.77 | M29: =K29-G29 -> 0.045 | N29: =IF((G29)=0,"",(M29/G29)) -> 0.02608695652
A31: LRAM VA (2016) | C31: per kWh | E31: 0 | F31: 150 | G31: 0 | I31: 0 | J31: 150 | K31: 0 | M31: =K31-G31 -> 0 | N31: =IF((G31)=0,"",(M31/G31)) -> 
A32: Rate Rider Incremental Capital 2012 True-Up (2016) | C32: per kWh | E32: 0.0002 | F32: 150 | G32: 0.03 | I32: 0 | J32: 150 | K32: 0 | M32: -0.03 | N32: -1
F33: 150 | G33: 0 | J33: 150 | K33: 0 | M33: 0
F34: 150 | G34: 0 | J34: 150 | K34: 0 | M34: 0
F35: 150 | G35: 0 | J35: 150 | K35: 0 | M35: 0
F36: 150 | G36: 0 | J36: 150 | K36: 0 | M36: 0
F37: 150 | G37: 0 | J37: 150 | K37: 0 | M37: 0
F38: 150 | G38: 0 | J38: 150 | K38: 0 | M38: 0
A39: Sub-Total A (excluding pass through) | G39: =SUM(G23:G38) -> 7.535 | K39: =SUM(K23:K38) -> 7.72 | M39: 0.185 | N39: 0.02455209025
A40: Deferral/Variance Account Disposition Rate Rider (2016) | C40: per kWh | E40: 0.0003 | F40: =$E$18 -> 150 | G40: =F40*E40 -> 0.045 | I40: 0 | J40: =$E$18 -> 150 | K40: =J40*I40 -> 0 | M40: -0.045 | N40: -1
A41: Deferral/Variance Account Disposition Rate Rider (2017) | C41: per kWh | F41: 150 | G41: =F41*E41 -> 0 | I41: ='Rates Summary'!$G$4 -> 0.0027 | J41: 150 | K41: =J41*I41 -> 0.405 | M41: 0.405 | N41: 1
A42: Deferral/Variance Account Disposition Rate Rider NON-WMP (2017) | C42: per kWh | F42: 150 | G42: =F42*E42 -> 0 | I42: ='Rates Summary'!$G$5 -> -0.0051 | J42: 150 | K42: =J42*I42 -> -0.765 | M42: -0.765 | N42: 1
F43: 150 | G43: =F43*E43 -> 0 | J43: 150 | K43: =J43*I43 -> 0 | M43: 0
A44: Rate Rider CGAAP Account 1576 (2016) | C44: per kWh | E44: -0.006 | F44: 150 | G44: -0.9 | I44: 0 | J44: 150 | K44: 0 | M44: 0.9 | N44: -1
A45: Deferral/Variance 1580 Sub-Account CBR Class B Disposition Rate Rider - Class B Non-WMP (2017) | C45: per kWh | F45: 150 | G45: =F45*E45 -> 0 | I45: ='Rates Summary'!$G$7 -> 0.0003 | J45: 150 | K45: =J45*I45 -> 0.045 | M45: =K45-G45 -> 0.045 | N45: 1
A46: Disposition of Global Adjustment (2016) Applicable to Non-RPP Customers | C46: per kWh | E46: 0.0205 | F46: =$E$18 -> 150 | G46: 3.075 | I46: 0 | J46: 0 | K46: 0 | M46: =K46-G46 -> -3.075 | N46: =IF((G46)=0,"",(M46/G46)) -> -1
A47: Disposition of Global Adjustment (2017) Applicable to Non-RPP Customers | C47: per kWh | E47: 0 | F47: 0 | G47: 0 | I47: ='Rates Summary'!$G$6 -> 0.0139 | J47: =$E$18 -> 150 | K47: 2.085 | M47: 2.085 | N47: 1
A48: Low Voltage Service Charge | C48: per kWh | E48: 0.0012 | F48: =$E$18 -> 150 | G48: =F48*E48 -> 0.18 | I48: ='Rates Summary'!$G$21 -> 0.0018 | J48: =$E$18 -> 150 | K48: =J48*I48 -> 0.27 | M48: 0.09 | N48: =IF((G48)=0,"",(M48/G48)) -> 0.5
A49: Line Losses on Cost of Power | C49: per kWh | E49: =IF(ISBLANK($C$16)=TRUE, 0, IF($C$16="TOU", 0.65*$E$61+0.17*$E$62+0.18*$E$63, IF(AND($C$16="non-TOU", F65>0), E66,E64))) -> 0.103 | F49: =$E$18*(1+$E$80)-$E$18 -> 5.895 | G49: 0.607185 | I49: =E49 -> 0.103 | J49: =$E$18*(1+$E$80)-$E$18 -> 5.895 | K49: =J49*I49 -> 0.607185 | M49: 0 | N49: 0
A50: Smart Meter Entity Charge | C50: Monthly | E50: 0 | F50: 1 | G50: =F50*E50 -> 0 | I50: 0 | J50: 1 | K50: =J50*I50 -> 0 | M50: 0
A51: Sub-Total B - Distribution (includes Sub-Total A) | G51: =SUM(G40:G50)+G39 -> 10.542185 | K51: =SUM(K40:K50)+K39 -> 10.367185 | M51: -0.175 | N51: -0.01659997429
A52: RTSR - Network | C52: per kWh | E52: 0.0071 | F52: =$E$18*(1+$E$80) -> 155.895 | G52: =F52*E52 -> 1.1068545 | I52: ='Rates Summary'!$G$23 -> 0.0073 | J52: =$E$18*(1+I80) -> 155.895 | K52: =J52*I52 -> 1.1380335 | M52: 0.031179 | N52: 0.02816901408
A53: RTSR - Line and Transformation Connection | C53: per kWh | E53: 0.0056 | F53: =F52 -> 155.895 | G53: =F53*E53 -> 0.873012 | I53: ='Rates Summary'!$G$24 -> 0.0059 | J53: =J52 -> 155.895 | K53: =J53*I53 -> 0.9197805 | M53: 0.0467685 | N53: 0.05357142857
A54: Sub-Total C - Delivery (including Sub-Total B) | G54: =SUM(G51:G53) -> 12.5220515 | K54: =SUM(K51:K53) -> 12.424999 | M54: -0.0970525 | N54: -0.00775052714
A55: Wholesale Market Service Charge (WMSC) | C55: per kWh | E55: 0.0032 | F55: =F53 -> 155.895 | G55: =F55*E55 -> 0.498864 | I55: ='Rates Summary'!$G$25 -> 0.0032 | J55: =J53 -> 155.895 | K55: =J55*I55 -> 0.498864 | M55: 0 | N55: 0
A56: Capacity Based Recovery (CBR) | C56: per kWh | E56: 0.0004 | F56: =F55 -> 155.895 | G56: 0.062358 | I56: ='Rates Summary'!$G$26 -> 0.0004 | J56: =J55 -> 155.895 | K56: 0.062358 | M56: 0 | N56: 0
A57: Ontario Electricity Support Program (OESP) | C57: per kWh | E57: 0.0011 | F57: =F55 -> 155.895 | G57: 0.1714845 | I57: ='Rates Summary'!$G$27 -> 0.0011 | J57: =J55 -> 155.895 | K57: 0.1714845 | M57: 0 | N57: 0
A58: Rural and Remote Rate Protection (RRRP) | C58: per kWh | E58: 0.0013 | F58: =F53 -> 155.895 | G58: 0.2026635 | I58: ='Rates Summary'!$G$28 -> 0.0013 | J58: =J53 -> 155.895 | K58: 0.2026635 | M58: 0 | N58: 0
A59: Standard Supply Service Charge | C59: Monthly | E59: 0.25 | F59: 1 | G59: 0.25 | I59: ='Rates Summary'!$G$29 -> 0.25 | J59: 1 | K59: 0.25 | M59: 0 | N59: 0
A60: Debt Retirement Charge (DRC) | C60: per kWh | E60: 0.007 | F60: =E18 -> 150 | G60: 1.05 | I60: =E60 -> 0.007 | J60: =F60 -> 150 | K60: 1.05 | M60: 0 | N60: 0
A61: TOU - Off Peak | C61: per kWh | E61: 0.087 | F61: =0.65*$E$18 -> 97.5 | G61: 8.4825 | I61: =E61 -> 0.087 | J61: =0.65*$E$18 -> 97.5 | K61: 8.4825 | M61: 0 | N61: 0
A62: TOU - Mid Peak | C62: per kWh | E62: 0.132 | F62: =0.17*$E$18 -> 25.5 | G62: 3.366 | I62: =E62 -> 0.132 | J62: =0.17*$E$18 -> 25.5 | K62: 3.366 | M62: 0 | N62: 0
A63: TOU - On Peak | C63: per kWh | E63: 0.18 | F63: =0.18*$E$18 -> 27 | G63: 4.86 | I63: =E63 -> 0.18 | J63: =0.18*$E$18 -> 27 | K63: 4.86 | M63: 0 | N63: 0
A64: Energy - RPP - Tier 1 | C64: per kWh | E64: 0.103 | F64: =IF(AND($O$1=1, $E$18>=750), 750, IF(AND($O$1=1, AND($E$18<750, $E$18>=0)), $E$18, IF(AND($O$1=2, $E$18>=1000), 1000, IF(AND($O$1=2, AND($E$18<1000, $E$18>=0)), $E$18)))) -> 150 | G64: =F64*E64 -> 15.45 | I64: =E64 -> 0.103 | J64: =IF(AND($O$1=1, $E$18>=750), 750, IF(AND($O$1=1, AND($E$18<750, $E$18>=0)), $E$18, IF(AND($O$1=2, $E$18>=1000), 1000, IF(AND($O$1=2, AND($E$18<1000, $E$18>=0)), $E$18)))) -> 150 | K64: =J64*I64 -> 15.45 | M64: 0 | N64: 0
A65: Energy - RPP - Tier 2 | C65: per kWh | E65: 0.121 | F65: =IF(AND($O$1=1, $E$18>=750), $E$18-750, IF(AND($O$1=1, AND($E$18<750, $E$18>=0)), 0, IF(AND($O$1=2, $E$18>=1000), $E$18-1000, IF(AND($O$1=2, AND($E$18<1000, $E$18>=0)), 0)))) -> 0 | G65: =F65*E65 -> 0 | I65: =E65 -> 0.121 | J65: =IF(AND($O$1=1, $E$18>=750), $E$18-750, IF(AND($O$1=1, AND($E$18<750, $E$18>=0)), 0, IF(AND($O$1=2, $E$18>=1000), $E$18-1000, IF(AND($O$1=2, AND($E$18<1000, $E$18>=0)), 0)))) -> 0 | K65: =J65*I65 -> 0 | M65: 0
A67: Total Bill on TOU (before Taxes) | G67: =SUM(G55:G63,G54) -> 31.4659215 | K67: =SUM(K55:K63,K54) -> 31.368869 | M67: =K67-G67 -> -0.0970525 | N67: -0.003084368592
A68: HST | E68: 0.13 | G68: =G67*E68 -> 4.090569795 | I68: 0.13 | K68: =K67*I68 -> 4.07795297 | M68: =K68-G68 -> -0.012616825 | N68: -0.003084368592
A69: Total Bill (including HST) | G69: =G67+G68 -> 35.55649129 | K69: =K67+K68 -> 35.44682197 | M69: =K69-G69 -> -0.109669325 | N69: -0.003084368592
N72: =IF((G72)=0,"",(M72/G72)) -> 
A73: Total Bill on RPP (before Taxes) | G73: =SUM(G64:G65,G54,G55:G60) -> 30.2074215 | K73: =SUM(K64:K65,K54,K55:K60) -> 30.110369 | M73: =K73-G73 -> -0.0970525 | N73: =IF((G73)=0,"",(M73/G73)) -> -0.003212869394
A74: HST | E74: 0.13 | G74: =G73*E74 -> 3.926964795 | I74: 0.13 | K74: =K73*I74 -> 3.91434797 | M74: =K74-G74 -> -0.012616825 | N74: =IF((G74)=0,"",(M74/G74)) -> -0.003212869394
A75: Total Bill (including HST) | G75: =G73+G74 -> 34.13438629 | K75: =K73+K74 -> 34.02471697 | M75: =K75-G75 -> -0.109669325 | N75: =IF((G75)=0,"",(M75/G75)) -> -0.003212869394
A80: Loss Factor (%) | E80: 0.0393 | I80: 0.0393
B84: Residential (kWh) - 100, 250, 500, 750, 1000, 1500, 2000
B85: GS<50kW (kWh) - 1000, 2000, 5000, 10000, 15000
B86: GS>50kW (kW) - 60, 100, 500, 1000
B87: Large User - range appropriate for utility
B88: Lighting Classes and USL - 150 kWh and 1 kW, range appropriate for utility.
C90: Note that cells with the highlighted color shown to the left indicate quantities that are loss adjusted.

Sheet Bill Impact St Light 375kW
K1: File Number: | M1: EB-2016-0087 | O1: 1
K3: Tab:
K4: Schedule:
K5: Page:
M7: Year 2 Custom IR Update
K8: Date: | M8: 2016-Aug-15
A11: Bill Impacts
A14: Customer Class: | C14: Street Lighting
A16: TOU / non-TOU: | C16: non-TOU
C17: Connections | E17: 5000 | F17: number of
C18: Consumption | E18: 150000 | F18: kWh
C19: Load | E19: 375 | F19: kW
E20: 2016 Custom IR Year 1 Approved | I20: 2017 Custom IR Year 2 Proposed | M20: Impact 2017 vs. 2016
C21: Charge Unit | E21: Rate | F21: Volume | G21: Charge | I21: Rate | J21: Volume | K21: Charge | M21: $ Change | N21: % Change
E22: ($) | G22: ($) | I22: ($) | K22: ($)
A23: Monthly Service Charge (Connection) | C23: Monthly | E23: 0.88 | F23: =$E$17 -> 5000 | G23: =F23*E23 -> 4400 | I23: ='Rates Summary'!$F$50 -> 1.05 | J23: =$E$17 -> 5000 | K23: =J23*I23 -> 5250 | M23: =K23-G23 -> 850 | N23: =IF((G23)=0,"",(M23/G23)) -> 0.1931818182
A25: Rate Rider Smart Meters Capital (2016) | E25: 0 | F25: 1 | G25: =F25*E25 -> 0 | I25: 0 | J25: 1 | K25: =J25*I25 -> 0 | M25: =K25-G25 -> 0 | N25: =IF((G25)=0,"",(M25/G25)) -> 
A26: Rate Rider Recovery of Stranded Meters | E26: 0 | F26: 1 | G26: 0 | I26: 0 | J26: 1 | K26: 0 | M26: =K26-G26 -> 0 | N26: =IF((G26)=0,"",(M26/G26)) -> 
F27: 1 | G27: 0 | J27: 1 | K27: 0 | M27: =K27-G27 -> 0 | N27: =IF((G27)=0,"",(M27/G27)) -> 
F28: 1 | G28: 0 | J28: 1 | K28: 0 | M28: =K28-G28 -> 0 | N28: =IF((G28)=0,"",(M28/G28)) -> 
A29: Distribution Volumetric Rate | C29: per kW | E29: 9.952 | F29: =$E$19 -> 375 | G29: 3732 | I29: ='Rates Summary'!$F$62 -> 11.891 | J29: =$E$19 -> 375 | K29: 4459.125 | M29: =K29-G29 -> 727.125 | N29: =IF((G29)=0,"",(M29/G29)) -> 0.194835209
A31: LRAM VA (2016) | C31: per kW | E31: 7.0279 | F31: 375 | G31: 2635.4625 | I31: 0 | J31: 375 | K31: 0 | M31: =K31-G31 -> -2635.4625 | N31: =IF((G31)=0,"",(M31/G31)) -> -1
A32: Rate Rider Incremental Capital 2012 True-Up (2016) | C32: per kW | E32: 0.246 | F32: 375 | G32: 92.25 | I32: 0 | J32: 375 | K32: 0 | M32: -92.25 | N32: -1
F33: 375 | G33: =F33*E33 -> 0 | J33: 375 | K33: =J33*I33 -> 0 | M33: 0
F34: 375 | G34: 0 | J34: 375 | K34: 0 | M34: 0
F35: 375 | G35: 0 | J35: 375 | K35: 0 | M35: 0
F36: 375 | G36: 0 | J36: 375 | K36: 0 | M36: 0
F37: 375 | G37: 0 | J37: 375 | K37: 0 | M37: 0
F38: 375 | G38: 0 | J38: 375 | K38: 0 | M38: 0
A39: Sub-Total A (excluding pass through) | G39: =SUM(G23:G38) -> 10859.7125 | K39: =SUM(K23:K38) -> 9709.125 | M39: -1150.5875 | N39: -0.1059500885
A40: Deferral/Variance Account Disposition Rate Rider (2016) | C40: per kW | E40: 14.8985 | F40: =$E$19 -> 375 | G40: =F40*E40 -> 5586.9375 | I40: 0 | J40: 0 | K40: =J40*I40 -> 0 | M40: -5586.9375 | N40: -1
A41: Deferral/Variance Account Disposition Rate Rider (2017) | C41: per kW | E41: 0 | F41: 375 | G41: =F41*E41 -> 0 | I41: ='Rates Summary'!$H$4 -> 1.0375 | J41: =$E$19 -> 375 | K41: =J41*I41 -> 389.0625 | M41: 389.0625 | N41: 1
A42: Deferral/Variance Account Disposition Rate Rider NON-WMP (2017) | C42: per kW | E42: 0 | F42: 375 | G42: =F42*E42 -> 0 | I42: ='Rates Summary'!$H$5 -> -1.9483 | J42: =$E$19 -> 375 | K42: =J42*I42 -> -730.6125 | M42: -730.6125 | N42: 1
F43: 375 | G43: =F43*E43 -> 0 | J43: =$E$19 -> 375 | K43: =J43*I43 -> 0 | M43: 0 | N43: =IF((G43)=0,"",(M43/G43)) -> 
A44: Rate Rider CGAAP Account 1576 (2016) | C44: per kW | E44: -6.6952 | F44: 375 | G44: -2510.7 | I44: 0 | J44: 0 | K44: 0 | M44: 2510.7 | N44: =IF((G44)=0,"",(M44/G44)) -> -1
A45: Deferral/Variance 1580 Sub-Account CBR Class B Disposition Rate Rider - Class B Non-WMP (2017) | C45: per kW | E45: 0 | F45: 375 | G45: =F45*E45 -> 0 | I45: ='Rates Summary'!$H$5 -> -1.9483 | J45: =$E$19 -> 375 | K45: =J45*I45 -> -730.6125 | M45: =K45-G45 -> -730.6125 | N45: 1
A46: Disposition of Global Adjustment (2016) Applicable to Non-RPP Customers | C46: per kW | E46: 7.84 | F46: 375 | G46: 2940 | I46: 0 | J46: =$E$19 -> 375 | K46: 0 | M46: =K46-G46 -> -2940 | N46: =IF((G46)=0,"",(M46/G46)) -> -1
A47: Disposition of Global Adjustment (2017) Applicable to Non-RPP Customers | C47: per kWh | E47: 0 | F47: 0 | G47: =F47*E47 -> 0 | I47: ='Rates Summary'!$H$6 -> 0.0139 | J47: =$E$18 -> 150000 | K47: =J47*I47 -> 2085 | M47: 2085 | N47: 1
A48: Low Voltage Service Charge | C48: per kW | E48: 0.3368 | F48: =$E$19 -> 375 | G48: =F48*E48 -> 126.3 | I48: ='Rates Summary'!$H$21 -> 0.4878 | J48: =$E$19 -> 375 | K48: =J48*I48 -> 182.925 | M48: 56.625 | N48: =IF((G48)=0,"",(M48/G48)) -> 0.4483372922
A49: Line Losses on Cost of Power | C49: per kWh | E49: =IF(ISBLANK($C$16)=TRUE, 0, IF($C$16="TOU", 0.65*$E$61+0.17*$E$62+0.18*$E$63, IF(AND($C$16="non-TOU", F65>0), E65,E64))) -> 0.121 | F49: =$E$18*(1+$E$80)-$E$18 -> 5895 | G49: 713.295 | I49: =E49 -> 0.121 | J49: =$E$18*(1+$E$80)-$E$18 -> 5895 | K49: =J49*I49 -> 713.295 | M49: 0 | N49: 0
A50: Smart Meter Entity Charge | E50: 0 | F50: 1 | G50: =F50*E50 -> 0 | I50: 0 | J50: 1 | K50: =J50*I50 -> 0 | M50: 0
A51: Sub-Total B - Distribution (includes Sub-Total A) | G51: =SUM(G40:G50)+G39 -> 17715.545 | K51: =SUM(K40:K50)+K39 -> 11618.1825 | M51: -6097.3625 | N51: -0.3441814802
A52: RTSR - Network | C52: per kW | E52: 2.0078 | F52: =$E$19 -> 375 | G52: =F52*E52 -> 752.925 | I52: ='Rates Summary'!$H$23 -> 2.0738 | J52: =$E$19 -> 375 | K52: =J52*I52 -> 777.675 | M52: 24.75 | N52: 0.03287179998
A53: RTSR - Line and Transformation Connection | C53: per kW | E53: 1.6053 | F53: =$E$19 -> 375 | G53: =F53*E53 -> 601.9875 | I53: ='Rates Summary'!$H$24 -> 1.6898 | J53: =$E$19 -> 375 | K53: =J53*I53 -> 633.675 | M53: 31.6875 | N53: 0.05263813617
A54: Sub-Total C - Delivery (including Sub-Total B) | G54: =SUM(G51:G53) -> 19070.4575 | K54: =SUM(K51:K53) -> 13029.5325 | M54: -6040.925 | N54: -0.3167687508
A55: Wholesale Market Service Charge (WMSC) | C55: per kWh | E55: 0.0032 | F55: =$E$18*(1+E80) -> 155895 | G55: =F55*E55 -> 498.864 | I55: ='Rates Summary'!$H$25 -> 0.0032 | J55: =$E$18*(1+I80) -> 155895 | K55: =J55*I55 -> 498.864 | M55: 0 | N55: 0
A56: Capacity Based Recovery (CBR) Charge | C56: per kWh | E56: 0.0004 | F56: =$E$18*(1+E80) -> 155895 | G56: =F56*E56 -> 62.358 | I56: ='Rates Summary'!$H$26 -> 0.0004 | J56: =$E$18*(1+I80) -> 155895 | K56: =J56*I56 -> 62.358 | M56: 0 | N56: 0
A57: Ontario Electricity Support Program (OESP) Charge | C57: per kWh | E57: 0.0011 | F57: =$E$18*(1+E80) -> 155895 | G57: =F57*E57 -> 171.4845 | I57: ='Rates Summary'!$H$27 -> 0.0011 | J57: =$E$18*(1+I80) -> 155895 | K57: =J57*I57 -> 171.4845 | M57: 0 | N57: 0
A58: Rural and Remote Rate Protection (RRRP) | C58: per kWh | E58: 0.0013 | F58: =$E$18*(1+E80) -> 155895 | G58: 202.6635 | I58: ='Rates Summary'!$H$28 -> 0.0013 | J58: =$E$18*(1+I80) -> 155895 | K58: 202.6635 | M58: 0 | N58: 0
A59: Standard Supply Service Charge | C59: Monthly | E59: 0.25 | F59: 1 | G59: 0.25 | I59: ='Rates Summary'!$H$29 -> 0.25 | J59: 1 | K59: 0.25 | M59: 0 | N59: 0
A60: Debt Retirement Charge (DRC) | C60: per kWh | E60: 0.007 | F60: =E18 -> 150000 | G60: 1050 | I60: =E60 -> 0.007 | J60: =F60 -> 150000 | K60: 1050 | M60: 0 | N60: 0
A61: TOU - Off Peak | C61: per kWh | E61: 0.087 | F61: =0.65*$E$18 -> 97500 | G61: 8482.5 | I61: =E61 -> 0.087 | J61: =0.65*$E$18 -> 97500 | K61: 8482.5 | M61: 0 | N61: 0
A62: TOU - Mid Peak | C62: per kWh | E62: 0.132 | F62: =0.17*$E$18 -> 25500 | G62: 3366 | I62: =E62 -> 0.132 | J62: =0.17*$E$18 -> 25500 | K62: 3366 | M62: 0 | N62: 0
A63: TOU - On Peak | C63: per kWh | E63: 0.18 | F63: =0.18*$E$18 -> 27000 | G63: 4860 | I63: =E63 -> 0.18 | J63: =0.18*$E$18 -> 27000 | K63: 4860 | M63: 0 | N63: 0
A64: Energy - RPP - Tier 1 | C64: per kWh | E64: 0.103 | F64: =IF(AND($O$1=1, $E$18>=750), 750, IF(AND($O$1=1, AND($E$18<750, $E$18>=0)), $E$18, IF(AND($O$1=2, $E$18>=1000), 1000, IF(AND($O$1=2, AND($E$18<1000, $E$18>=0)), $E$18)))) -> 750 | G64: =F64*E64 -> 77.25 | I64: =E64 -> 0.103 | J64: =IF(AND($O$1=1, $E$18>=750), 750, IF(AND($O$1=1, AND($E$18<750, $E$18>=0)), $E$18, IF(AND($O$1=2, $E$18>=1000), 1000, IF(AND($O$1=2, AND($E$18<1000, $E$18>=0)), $E$18)))) -> 750 | K64: =J64*I64 -> 77.25 | M64: 0 | N64: 0
A65: Energy - RPP - Tier 2 | C65: per kWh | E65: 0.121 | F65: =IF(AND($O$1=1, $E$18>=750), $E$18-750, IF(AND($O$1=1, AND($E$18<750, $E$18>=0)), 0, IF(AND($O$1=2, $E$18>=1000), $E$18-1000, IF(AND($O$1=2, AND($E$18<1000, $E$18>=0)), 0)))) -> 149250 | G65: =F65*E65 -> 18059.25 | I65: =E65 -> 0.121 | J65: =IF(AND($O$1=1, $E$18>=750), $E$18-750, IF(AND($O$1=1, AND($E$18<750, $E$18>=0)), 0, IF(AND($O$1=2, $E$18>=1000), $E$18-1000, IF(AND($O$1=2, AND($E$18<1000, $E$18>=0)), 0)))) -> 149250 | K65: =J65*I65 -> 18059.25 | M65: 0 | N65: 0
A67: Total Bill on TOU (before Taxes) | G67: =SUM(G55:G63,G54) -> 37764.5775 | K67: =SUM(K55:K63,K54) -> 31723.6525 | M67: =K67-G67 -> -6040.925 | N67: -0.1599627323
A68: HST | E68: 0.13 | G68: =G67*E68 -> 4909.395075 | I68: 0.13 | K68: =K67*I68 -> 4124.074825 | M68: =K68-G68 -> -785.32025 | N68: -0.1599627323
A69: Total Bill (including HST) | G69: =G67+G68 -> 42673.97257 | K69: =K67+K68 -> 35847.72732 | M69: =K69-G69 -> -6826.24525 | N69: -0.1599627323
N72: =IF((G72)=0,"",(M72/G72)) -> 
A73: Total Bill on RPP (before Taxes) | G73: =SUM(G64:G65,G54,G55:G60) -> 39192.5775 | K73: =SUM(K64:K65,K54,K55:K60) -> 33151.6525 | M73: =K73-G73 -> -6040.925 | N73: =IF((G73)=0,"",(M73/G73)) -> -0.1541344149
A74: HST | E74: 0.13 | G74: =G73*E74 -> 5095.035075 | I74: 0.13 | K74: =K73*I74 -> 4309.714825 | M74: =K74-G74 -> -785.32025 | N74: =IF((G74)=0,"",(M74/G74)) -> -0.1541344149
A75: Total Bill (including HST) | G75: =G73+G74 -> 44287.61257 | K75: =K73+K74 -> 37461.36732 | M75: =K75-G75 -> -6826.24525 | N75: =IF((G75)=0,"",(M75/G75)) -> -0.1541344149
A80: Loss Factor (%) | E80: 0.0393 | I80: 0.0393
B84: Residential (kWh) - 100, 250, 500, 800, 1000, 1500, 2000
B85: GS<50kW (kWh) - 1000, 2000, 5000, 10000, 15000
B86: GS>50kW (kW) - 60, 100, 500, 1000
B87: Large User - range appropriate for utility
B88: Lighting Classes and USL - 150 kWh and 1 kW, range appropriate for utility.
C90: Note that cells with the highlighted color shown to the left indicate quantities that are loss adjusted.

Sheet Bill Impact St Light 1kW
K1: File Number: | M1: EB-2016-0087 | O1: 1
K3: Tab:
K4: Schedule:
K5: Page:
M7: Year 2 Custom IR Update
K8: Date: | M8: 2016-Aug-15
A11: Bill Impacts
A14: Customer Class: | C14: Street Lighting
A16: TOU / non-TOU: | C16: non-TOU
C17: Connections | E17: 15 | F17: number of
C18: Consumption | E18: 400 | F18: kWh
C19: Load | E19: 1 | F19: kW
E20: 2016 Custom IR Year 1 Approved | I20: 2017 Custom IR Year 2 Proposed | M20: Impact 2017 vs. 2016
C21: Charge Unit | E21: Rate | F21: Volume | G21: Charge | I21: Rate | J21: Volume | K21: Charge | M21: $ Change | N21: % Change
E22: ($) | G22: ($) | I22: ($) | K22: ($)
A23: Monthly Service Charge (Connection) | C23: Monthly | E23: 0.88 | F23: =$E$17 -> 15 | G23: =F23*E23 -> 13.2 | I23: ='Rates Summary'!$F$50 -> 1.05 | J23: =$E$17 -> 15 | K23: =J23*I23 -> 15.75 | M23: =K23-G23 -> 2.55 | N23: =IF((G23)=0,"",(M23/G23)) -> 0.1931818182
A25: Rate Rider Smart Meters Capital (2016) | E25: 0 | F25: 1 | G25: =F25*E25 -> 0 | I25: 0 | J25: 1 | K25: =J25*I25 -> 0 | M25: =K25-G25 -> 0 | N25: =IF((G25)=0,"",(M25/G25)) -> 
A26: Rate Rider Recovery of Stranded Meters | E26: 0 | F26: 1 | G26: 0 | I26: 0 | J26: 1 | K26: 0 | M26: =K26-G26 -> 0 | N26: =IF((G26)=0,"",(M26/G26)) -> 
F27: 1 | G27: 0 | J27: 1 | K27: 0 | M27: =K27-G27 -> 0 | N27: =IF((G27)=0,"",(M27/G27)) -> 
F28: 1 | G28: 0 | J28: 1 | K28: 0 | M28: =K28-G28 -> 0 | N28: =IF((G28)=0,"",(M28/G28)) -> 
A29: Distribution Volumetric Rate | C29: per kW | E29: 9.952 | F29: =$E$19 -> 1 | G29: 9.952 | I29: ='Rates Summary'!$F$62 -> 11.891 | J29: =$E$19 -> 1 | K29: 11.891 | M29: =K29-G29 -> 1.939 | N29: =IF((G29)=0,"",(M29/G29)) -> 0.194835209
A31: LRAM VA (2016) | C31: per kW | E31: 7.0279 | F31: 1 | G31: 7.0279 | I31: 0 | J31: 1 | K31: 0 | M31: =K31-G31 -> -7.0279 | N31: =IF((G31)=0,"",(M31/G31)) -> -1
A32: Rate Rider Incremental Capital 2012 True-Up (2016) | C32: per kW | E32: 0.246 | F32: 1 | G32: 0.246 | I32: 0 | J32: 1 | K32: 0 | M32: -0.246 | N32: -1
F33: 1 | G33: 0 | J33: 1 | K33: 0 | M33: 0
F34: 1 | G34: 0 | J34: 1 | K34: 0 | M34: 0
F35: 1 | G35: 0 | J35: 1 | K35: 0 | M35: 0
F36: 1 | G36: 0 | J36: 1 | K36: 0 | M36: 0
F37: 1 | G37: 0 | J37: 1 | K37: 0 | M37: 0
F38: 1 | G38: 0 | J38: 1 | K38: 0 | M38: 0
A39: Sub-Total A (excluding pass through) | G39: =SUM(G23:G38) -> 30.4259 | K39: =SUM(K23:K38) -> 27.641 | M39: -2.7849 | N39: -0.09153057099
A40: Deferral/Variance Account Disposition Rate Rider (2016) | C40: per kW | E40: 14.8985 | F40: =$E$19 -> 1 | G40: =F40*E40 -> 14.8985 | I40: 0 | J40: 0 | K40: =J40*I40 -> 0 | M40: -14.8985 | N40: -1
A41: Deferral/Variance Account Disposition Rate Rider (2017) | C41: per kW | E41: 0 | F41: 1 | G41: =F41*E41 -> 0 | I41: ='Rates Summary'!$H$4 -> 1.0375 | J41: =$E$19 -> 1 | K41: =J41*I41 -> 1.0375 | M41: 1.0375 | N41: 1
A42: Deferral/Variance Account Disposition Rate Rider NON-WMP (2017) | C42: per kW | E42: 0 | F42: 1 | G42: =F42*E42 -> 0 | I42: ='Rates Summary'!$H$5 -> -1.9483 | J42: =$E$19 -> 1 | K42: =J42*I42 -> -1.9483 | M42: -1.9483 | N42: 1
F43: 1 | G43: =F43*E43 -> 0 | J43: =$E$19 -> 1 | K43: =J43*I43 -> 0 | M43: 0 | N43: =IF((G43)=0,"",(M43/G43)) -> 
A44: Rate Rider CGAAP Account 1576 (2016) | C44: per kW | E44: -6.6952 | F44: 1 | G44: -6.6952 | I44: 0 | J44: 0 | K44: 0 | M44: 6.6952 | N44: =IF((G44)=0,"",(M44/G44)) -> -1
A45: Deferral/Variance 1580 Sub-Account CBR Class B Disposition Rate Rider - Class B Non-WMP (2017) | C45: per kW | E45: 0 | F45: 1 | G45: =F45*E45 -> 0 | I45: ='Rates Summary'!$H$7 -> 0.1178 | J45: =$E$19 -> 1 | K45: =J45*I45 -> 0.1178 | M45: =K45-G45 -> 0.1178 | N45: 1
A46: Disposition of Global Adjustment (2016) Applicable to Non-RPP Customers | C46: per kW | E46: 7.84 | F46: 1 | G46: 7.84 | I46: 0 | J46: =$E$19 -> 1 | K46: 0 | M46: =K46-G46 -> -7.84 | N46: =IF((G46)=0,"",(M46/G46)) -> -1
A47: Disposition of Global Adjustment (2017) Applicable to Non-RPP Customers | C47: per kWh | E47: 0 | F47: 0 | G47: 0 | I47: ='Rates Summary'!$H$6 -> 0.0139 | J47: =$E$18 -> 400 | K47: 5.56 | M47: 5.56 | N47: 1
A48: Low Voltage Service Charge | C48: per kW | E48: 0.3368 | F48: =$E$19 -> 1 | G48: =F48*E48 -> 0.3368 | I48: ='Rates Summary'!$H$21 -> 0.4878 | J48: =$E$19 -> 1 | K48: =J48*I48 -> 0.4878 | M48: 0.151 | N48: =IF((G48)=0,"",(M48/G48)) -> 0.4483372922
A49: Line Losses on Cost of Power | C49: per kWh | E49: =IF(ISBLANK($C$16)=TRUE, 0, IF($C$16="TOU", 0.65*$E$61+0.17*$E$62+0.18*$E$63, IF(AND($C$16="non-TOU", F65>0), E65,E64))) -> 0.103 | F49: =$E$18*(1+$E$80)-$E$18 -> 15.72 | G49: 1.61916 | I49: =E49 -> 0.103 | J49: =$E$18*(1+$E$80)-$E$18 -> 15.72 | K49: =J49*I49 -> 1.61916 | M49: 0 | N49: 0
A50: Smart Meter Entity Charge | E50: 0 | F50: 1 | G50: =F50*E50 -> 0 | I50: 0 | J50: 1 | K50: =J50*I50 -> 0 | M50: 0
A51: Sub-Total B - Distribution (includes Sub-Total A) | G51: =SUM(G40:G50)+G39 -> 48.42516 | K51: =SUM(K40:K50)+K39 -> 34.51496 | M51: -13.9102 | N51: -0.2872515031
A52: RTSR - Network | C52: per kW | E52: 2.0078 | F52: =$E$19 -> 1 | G52: =F52*E52 -> 2.0078 | I52: ='Rates Summary'!$H$23 -> 2.0738 | J52: =$E$19 -> 1 | K52: =J52*I52 -> 2.0738 | M52: 0.066 | N52: 0.03287179998
A53: RTSR - Line and Transformation Connection | C53: per kW | E53: 1.6053 | F53: =$E$19 -> 1 | G53: =F53*E53 -> 1.6053 | I53: ='Rates Summary'!$H$24 -> 1.6898 | J53: =$E$19 -> 1 | K53: =J53*I53 -> 1.6898 | M53: 0.0845 | N53: 0.05263813617
A54: Sub-Total C - Delivery (including Sub-Total B) | G54: =SUM(G51:G53) -> 52.03826 | K54: =SUM(K51:K53) -> 38.27856 | M54: -13.7597 | N54: -0.2644150669
A55: Wholesale Market Service Charge (WMSC) | C55: per kWh | E55: 0.0032 | F55: =$E$18*(1+E80) -> 415.72 | G55: =F55*E55 -> 1.330304 | I55: ='Rates Summary'!$H$25 -> 0.0032 | J55: =$E$18*(1+I80) -> 415.72 | K55: =J55*I55 -> 1.330304 | M55: 0 | N55: 0
A56: Capacity Based Recovery (CBR) Charge | C56: per kWh | E56: 0.0004 | F56: =$E$18*(1+E80) -> 415.72 | G56: 0.166288 | I56: ='Rates Summary'!$H$26 -> 0.0004 | J56: =$E$18*(1+I80) -> 415.72 | K56: 0.166288 | M56: 0 | N56: 0
A57: Ontario Electricity Support Program (OESP) Charge | C57: per kWh | E57: 0.0011 | F57: =$E$18*(1+E80) -> 415.72 | G57: 0.457292 | I57: ='Rates Summary'!$H$27 -> 0.0011 | J57: =$E$18*(1+I80) -> 415.72 | K57: 0.457292 | M57: 0 | N57: 0
A58: Rural and Remote Rate Protection (RRRP) | C58: per kWh | E58: 0.0013 | F58: =$E$18*(1+E80) -> 415.72 | G58: 0.540436 | I58: ='Rates Summary'!$H$28 -> 0.0013 | J58: =$E$18*(1+I80) -> 415.72 | K58: 0.540436 | M58: 0 | N58: 0
A59: Standard Supply Service Charge | C59: Monthly | E59: 0.25 | F59: 1 | G59: 0.25 | I59: ='Rates Summary'!$H$29 -> 0.25 | J59: 1 | K59: 0.25 | M59: 0 | N59: 0
A60: Debt Retirement Charge (DRC) | C60: per kWh | E60: 0.007 | F60: =E18 -> 400 | G60: 2.8 | I60: =E60 -> 0.007 | J60: =F60 -> 400 | K60: 2.8 | M60: 0 | N60: 0
A61: TOU - Off Peak | C61: per kWh | E61: 0.087 | F61: =0.65*$E$18 -> 260 | G61: 22.62 | I61: =E61 -> 0.087 | J61: =0.65*$E$18 -> 260 | K61: 22.62 | M61: 0 | N61: 0
A62: TOU - Mid Peak | C62: per kWh | E62: 0.132 | F62: =0.17*$E$18 -> 68 | G62: 8.976 | I62: =E62 -> 0.132 | J62: =0.17*$E$18 -> 68 | K62: 8.976 | M62: 0 | N62: 0
A63: TOU - On Peak | C63: per kWh | E63: 0.18 | F63: =0.18*$E$18 -> 72 | G63: 12.96 | I63: =E63 -> 0.18 | J63: =0.18*$E$18 -> 72 | K63: 12.96 | M63: 0 | N63: 0
A64: Energy - RPP - Tier 1 | C64: per kWh | E64: 0.103 | F64: =IF(AND($O$1=1, $E$18>=750), 750, IF(AND($O$1=1, AND($E$18<750, $E$18>=0)), $E$18, IF(AND($O$1=2, $E$18>=1000), 1000, IF(AND($O$1=2, AND($E$18<1000, $E$18>=0)), $E$18)))) -> 400 | G64: =F64*E64 -> 41.2 | I64: =E64 -> 0.103 | J64: =IF(AND($O$1=1, $E$18>=750), 750, IF(AND($O$1=1, AND($E$18<750, $E$18>=0)), $E$18, IF(AND($O$1=2, $E$18>=1000), 1000, IF(AND($O$1=2, AND($E$18<1000, $E$18>=0)), $E$18)))) -> 400 | K64: =J64*I64 -> 41.2 | M64: 0 | N64: 0
A65: Energy - RPP - Tier 2 | C65: per kWh | E65: 0.121 | F65: =IF(AND($O$1=1, $E$18>=750), $E$18-750, IF(AND($O$1=1, AND($E$18<750, $E$18>=0)), 0, IF(AND($O$1=2, $E$18>=1000), $E$18-1000, IF(AND($O$1=2, AND($E$18<1000, $E$18>=0)), 0)))) -> 0 | G65: =F65*E65 -> 0 | I65: =E65 -> 0.121 | J65: =IF(AND($O$1=1, $E$18>=750), $E$18-750, IF(AND($O$1=1, AND($E$18<750, $E$18>=0)), 0, IF(AND($O$1=2, $E$18>=1000), $E$18-1000, IF(AND($O$1=2, AND($E$18<1000, $E$18>=0)), 0)))) -> 0 | K65: =J65*I65 -> 0 | M65: 0
A67: Total Bill on TOU (before Taxes) | G67: =SUM(G55:G63,G54) -> 102.13858 | K67: =SUM(K55:K63,K54) -> 88.37888 | M67: =K67-G67 -> -13.7597 | N67: -0.1347159908
A68: HST | E68: 0.13 | G68: =G67*E68 -> 13.2780154 | I68: 0.13 | K68: =K67*I68 -> 11.4892544 | M68: =K68-G68 -> -1.788761 | N68: -0.1347159908
A69: Total Bill (including HST) | G69: =G67+G68 -> 115.4165954 | K69: =K67+K68 -> 99.8681344 | M69: =K69-G69 -> -15.548461 | N69: -0.1347159908
N72: =IF((G72)=0,"",(M72/G72)) -> 
A73: Total Bill on RPP (before Taxes) | G73: =SUM(G64:G65,G54,G55:G60) -> 98.78258 | K73: =SUM(K64:K65,K54,K55:K60) -> 85.02288 | M73: =K73-G73 -> -13.7597 | N73: =IF((G73)=0,"",(M73/G73)) -> -0.1392927781
A74: HST | E74: 0.13 | G74: =G73*E74 -> 12.8417354 | I74: 0.13 | K74: =K73*I74 -> 11.0529744 | M74: =K74-G74 -> -1.788761 | N74: =IF((G74)=0,"",(M74/G74)) -> -0.1392927781
A75: Total Bill (including HST) | G75: =G73+G74 -> 111.6243154 | K75: =K73+K74 -> 96.0758544 | M75: =K75-G75 -> -15.548461 | N75: =IF((G75)=0,"",(M75/G75)) -> -0.1392927781
A80: Loss Factor (%) | E80: 0.0393 | I80: 0.0393
B84: Residential (kWh) - 100, 250, 500, 800, 1000, 1500, 2000
B85: GS<50kW (kWh) - 1000, 2000, 5000, 10000, 15000
B86: GS>50kW (kW) - 60, 100, 500, 1000
B87: Large User - range appropriate for utility
B88: Lighting Classes and USL - 150 kWh and 1 kW, range appropriate for utility.
C90: Note that cells with the highlighted color shown to the left indicate quantities that are loss adjusted.

Sheet Consumption Levels
B2: kWh | D2: kWh | F2: kW | G2: kWh | I2: kW | J2: kWh | L2: kWh | N2: Lights | O2: kW | P2: kWh
A3: Residential | B3: 204 | C3: GS<50 kW | D3: 2000 | E3: GS 50 to 4999 | F3: 60 | G3: 40000 | H3: Large Use | I3: 8000 | J3: 5000000 | K3: USL | L3: 750 | M3: Street Lights | N3: 5000 | O3: 375 | P3: 150000
A4: Residential | B4: 100 | C4: GS<50 kW | D4: 1000 | E4: GS 50 to 4999 | F4: 100 | G4: 70000 | H4: Large Use | I4: 5500 | J4: 3450000 | K4: USL | L4: 150 | M4: Street Lights | N4: 15 | O4: 1 | P4: 400
A5: Residential | B5: 250 | C5: GS<50 kW | D5: 5000 | E5: GS 50 to 4999 | F5: 500 | G5: 350000
A6: Residential | B6: 500 | C6: GS<50 kW | D6: 10000 | E6: GS 50 to 4999 | F6: 1000 | G6: 800000
A7: Residential | B7: 750 | C7: GS<50 kW | D7: 15000
A8: Residential | B8: 1000
A9: Residential | B9: 1500
A10: Residential | B10: 2000

Sheet App. 2-Z_2017 Tariff
B1: File Number: | C1: EB-2016-0087
B2: Exhibit:
B3: Tab:
B4: Schedule:
B5: Page:
B7: Date: | C7: 2016-August-15
A8: Attachment B Proposed Tariff of Rates and Charges
A10: For each class, Applicants are required to copy and paste the class descriptions (located directly under the class name) and the description of the applicability of those rates (description is found under the class name and directly under the word "APPLICATION"). By using the drop-down lists located under the column labeled "Rate Description", please select the descriptions of the rates and charges that BEST MATCHES the descriptions on your most recent Board-Approved Tariff of Rates and Charges. If the description is not found in the drop-down list, please enter the description in the green shaded cells under the correct class exactly as it appears on the tariff. Please do not enter more than one "Service Charge" for each class for which a base monthly fixed charge applies. All rate rider descriptions should begin with "Rate Rider for...".
A11: Select the appropriate rate classes as they appear on your most recent Board-Approved Tariff of Rates and Charges, including the MicroFit Class.
A13: How many classes are listed on your most recent Board-Approved Tariff of Rates and Charges? | C13: 8
A15: Identify Your Rate Classes in the Blue Cells below. Rate class names can be selected from the pull-dwon menu. Please ensure that a rate class is assigned to each shaded cell.
A18: List of Rate Classes
A19: RESIDENTIAL
A20: GENERAL SERVICE LESS THAN 50 KW
A21: GENERAL SERVICE 50 TO 4,999 KW
A22: LARGE USE
A23: UNMETERED SCATTERED LOAD
A24: STANDBY POWER
A25: STREET LIGHTING
A26: MicroFIT
A35: Once all blue shaded cells above are filled out, press the following button to create your tariff template
A37: ='[2]LDC Info'!E14 -> Kingston Hydro Corporation
A38: TARIFF OF RATES AND CHARGES
A39: ="Effective and Implementation Date January 1, 2017" -> Effective and Implementation Date January 1, 2017
A41: This schedule supersedes and replaces all previously
A42: approved schedules of Rates, Charges and Loss Factors
A43: EB-2016-0087
A45: RESIDENTIAL SERVICE CLASSIFICATION
A47: This classification applies to an account taking electricity at 750 volts or less where the electricity is used exclusively in a separate metered living accommodation. Customers shall be residing in single-dwelling units that consist of a detached house or one unit of a semi-detached, duplex, triplex or quadruplex house, with a residential zoning. Separately metered dwellings within a town house complex or apartment building also qualify as residential customers. All customers are single-phase. Further servicing details are available in the distributor's Conditions of Service.
A48: APPLICATION
A50: The application of these rates and charges shall be in accordance with the Licence of the Distributor and any Code or Order of the Board, and amendments thereto as approved by the Board, which may be applicable to the administration of this schedule.
A51: No rates and charges for the distribution of electricity and charges to meet the costs of any work or service done or furnished for the purpose of the distribution of electricity shall be made except as permitted by this schedule, unless required by the Distributor's Licence or a Code or Order of the Board, and amendments thereto as approved by the Board, or as specified herein.
A52: Unless specifically noted, this schedule does not contain any charges for the electricity commodity, be it under the Regulated Price Plan, a contract with a retailer or the wholesale market price, as applicable. In addition, the charges in the MONTHLY RATES AND CHARGES - Regulatory Component of this schedule do not apply to a customer that is an embedded wholesale market participant.
A53: It should be noted that this schedule does not list any changes, assessments or credits that are required by law to be invoiced by a distributor and that are not subject to Board approval, such as the Debt Retirement Charge, the Global Adjustment, and the HST.
A55: MONTHLY RATES AND CHARGES - Delivery Component
A57: Service Charge | C57: $ | D57: ='Rates Summary'!$F$45 -> 18.54
A58: Rate Rider for Smart Metering Entity Charge - effective until October 31, 2018 | C58: $ | D58: ='Rates Summary'!$C$22 -> 0.788
A61: Distribution Volumetric Rate | C61: $/kWh | D61: ='Rates Summary'!$F$57 -> 0.0082
A62: Low Voltage Service Rate | C62: $/kWh | D62: ='Rates Summary'!$C$21 -> 0.0018
A63: Retail Transmission Rate - Network Service Rate | C63: $/kWh | D63: ='Rates Summary'!$C$23 -> 0.0073
A64: Retail Transmission Rate - Line and Transformation Connection Service Rate | C64: $/kWh | D64: ='Rates Summary'!$C$24 -> 0.0059
A65: Rate Rider for Disposition of Deferral/Variance Accounts (2017) - effective until December 31, 2017 | C65: $/kWh | D65: ='Rates Summary'!$C$4 -> 0.0027
A66: Rate Rider for Disposition of Deferral/Variance Accounts Non-WMP (2017) - effective until December 31, 2017 Applicable Only for Non-WMP | C66: $/kWh | D66: ='Rates Summary'!$C$5 -> -0.0051
A67: Rate Rider for Disposition of Global Adjustment Account (2017) - effective until December 31, 2017 Applicable Only for Non-RPP Customers | C67: $/kWh | D67: ='Rates Summary'!$C$6 -> 0.0139
A68: Rate Rider for Disposition of 1580 Sub-account CBR Class B (2017) - effective until December 31, 2017 Applicable Only for Class B Non-WMP | C68: $/kWh | D68: ='Rates Summary'!$C$7 -> 0.0003
A70: MONTHLY RATES AND CHARGES - Regulatory Component
A71: Wholesale Market Service Rate | C71: $/kWh | D71: ='Rates Summary'!$C$25 -> 0.0032
A72: Capacity Based Response (CBR) Charge | C72: $/kWh | D72: ='Rates Summary'!$C$26 -> 0.0004
A73: Rural or Remote Electricity Rate Protection Charge (RRRP) | C73: $/kWh | D73: ='Rates Summary'!$C$28 -> 0.0013
A74: Ontario Electricity Support Program Charge (OESP) | C74: $/kWh | D74: ='Rates Summary'!$C$27 -> 0.0011
A75: Standard Supply Service - Administrative Charge (if applicable) | C75: $ | D75: ='Rates Summary'!$C$29 -> 0.25
A77: ONTARIO ELECTRICITY SUPPORT PROGRAM RECIPIENTS
A78: In addition to the charges specified on page 1 of this tariff of rates and charges, the following credits are to be applied to eligible residential customers.
A79: APPLICATION
A81: The application of the credits is in accordance with the Distribution System Code (Section 9) and subsection 79.2 of the Ontario Energy Board Act, 1998.
A82: The application of these credits shall be in accordance with the Licence of the Distributor and any Code or Order of the Ontario Energy Board, and amendments thereto as approved by the Ontario Energy Board, which may be applicable to the administration of this schedule.
A83: In this class: “Aboriginal person” includes a person who is a First Nations person, a Métis person or an Inuit person; “account-holder” means a consumer who has an account with a distributor that falls within a residential-rate classification as specified in a rate order made by the Ontario Energy Board under section 78 of the Act, and who lives at the service address to which the account relates for at least six months in a year; “electricity-intensive medical device” means an oxygen concentrator, a mechanical ventilator, or such other device as may be specified by the Ontario Energy Board; “household” means the account-holder and any other people living at the accountholder’s service address for at least six months in a year, including people other than the account-holder’s spouse, children or other relatives; “household income” means the combined annual after-tax income of all members of a household aged 16 or over;
A85: MONTHLY RATES AND CHARGES
A86: Class A (a) account-holders with a household income of $28,000 or less living in a household of one or two persons; (b) account-holders with a household income of between $28,001 and $39,000 living in a household of three persons; (c) account-holders with a household income of between $39,001 and $48,000 living in a household of five persons; (d) account-holders with a household income of between $48,001 and $52,000 living in a household of seven or more persons; but does not include account-holders in Class E. OESP Credit | C86: $ | D86: -30
A87: Class B (a) account-holders with a household income of $28,000 or less living in a household of three persons; (b) account-holders with a household income of between $28,001 and $39,000 living in a household of four persons; (c) account-holders with a household income of between $39,001 and $48,000 living in a household of six persons; but does not include account-holders in Class F. OESP Credit | C87: $ | D87: -34
A88: Class C (a) account-holders with a household income of $28,000 or less living in a household of four persons; (b) account-holders with a household income of between $28,001 and $39,000 living in a household of five persons; (c) account-holders with a household income of between $39,001 and $48,000 living in a household of seven or more persons; but does not include account-holders in Class G. OESP Credit | C88: $ | D88: -38
A89: ONTARIO ELECTRICITY SUPPORT PROGRAM RECIPIENTS
A90: Class D (a) account-holders with a household income of $28,000 or less living in a household of five persons; (b) account-holders with a household income of between $28,001 and $39,000 living in a household of six persons; but does not include account-holders in Class H. OESP Credit | C90: $ | D90: -42
A91: Class E Class E comprises account-holders with a household income and household size described under Class A who also meet any of the following conditions: (a) he dwelling to which the account relates is heated primarily by electricity; (b) he account-holder or any member of the account-holder’s household is an Aboriginal person; or (c) he account-holder or any member of the account-holder’s household regularly uses, for medical purposes, an electricity-intensive medical device at the dwelling to which the account relates. OESP Credit | C91: $ | D91: -45
A92: Class F (a) account-holders with a household income of $28,000 or less living in a household of six or more persons; (b) account-holders with a household income of between $28,001 and $39,000 living in a household of seven or more persons; or (c) account-holders with a household income and household size described under Class B who also meet any of the following conditions: i. the dwelling to which the account relates is heated primarily by electricity; ii. the account-holder or any member of the account-holder’s household is an Aboriginal person; or iii. the account-holder or any member of the account-holder’s household regularly uses, for medical purposes, an electricity-intensive medical device at the dwelling to which the account relates. OESP Credit | C92: $ | D92: -50
A93: Class G Class G comprises account-holders with a household income and household size described under Class C who also meet any of the following conditions: (a) he dwelling to which the account relates is heated primarily by electricity; (b) he account-holder or any member of the account-holder’s household is an Aboriginal person; or (c) he account-holder or any member of the account-holder’s household regularly uses, for medical purposes, an electricity-intensive medical device at the dwelling to which the account relates. OESP Credit | C93: $ | D93: -55
A94: Class H Class H comprises account-holders with a household income and household size described under Class D who also meet any of the following conditions: (a) he dwelling to which the account relates is heated primarily by electricity; (b) he account-holder or any member of the account-holder’s household is an Aboriginal person; or (c) he account-holder or any member of the account-holder’s household regularly uses, for medical purposes, an electricity-intensive medical device at the dwelling to which the account relates. OESP Credit | C94: $ | D94: -60
A95: Class I Class I comprises account-holders with a household income and household size described under paragraphs (a) or (b) of Class F who also meet any of the following conditions: (a) he dwelling to which the account relates is heated primarily by electricity; (b) he account-holder or any member of the account-holder’s household is an Aboriginal person; or (c) he account-holder or any member of the account-holder’s household regularly uses, for medical purposes, an electricity-intensive medical device at the dwelling to which the account relates. OESP Credit | C95: $ | D95: -75
A98: GENERAL SERVICE LESS THAN 50 KW SERVICE CLASSIFICATION
A100: This classification refers to a non residential account taking electricity at 750 volts or less whose monthly average peak demand is less than, or is forecast to be less than, 50 kW. Further servicing details are available in the distributor's Conditions of Service.
A101: APPLICATION
A103: The application of these rates and charges shall be in accordance with the Licence of the Distributor and any Code or Order of the Board, and amendments thereto as approved by the Board, which may be applicable to the administration of this schedule.
A104: Unless specifically noted, this schedule does not contain any charges for the electricity commodity, be it under the Regulated Price Plan, a contract with a retailer or the wholesale market price, as applicable. In addition, the charges in the MONTHLY RATES AND CHARGES - Regulatory Component of this schedule do not apply to a customer that is an embedded wholesale market participant.
A105: It should be noted that this schedule does not list any changes, assessments or credits that are required by law to be invoiced by a distributor and that are not subject to Board approval, such as the Debt Retirement Charge, the Global Adjustment, and the HST.
A107: MONTHLY RATES AND CHARGES - Delivery Component
A109: Service Charge | C109: $ | D109: ='Rates Summary'!$F$46 -> 14.59
A110: Rate Rider for Smart Metering Entity Charge - effective until October 31, 2018 | C110: $ | D110: ='Rates Summary'!$D$22 -> 0.788
A113: Distribution Volumetric Rate | C113: $/kWh | D113: ='Rates Summary'!$F$58 -> 0.0151
A114: Low Voltage Service Rate | C114: $/kWh | D114: ='Rates Summary'!$D$21 -> 0.0016
A115: Retail Transmission Rate - Network Service Rate | C115: $/kWh | D115: ='Rates Summary'!$D$23 -> 0.0065
A116: Retail Transmission Rate - Line and Transformation Connection Service Rate | C116: $/kWh | D116: ='Rates Summary'!$D$24 -> 0.0054
A117: Rate Rider for Disposition of Deferral/Variance Accounts (2017) - effective until December 31, 2017 | C117: $/kWh | D117: ='Rates Summary'!$D$4 -> 0.0028
A118: Rate Rider for Disposition of Deferral/Variance Accounts Non-WMP (2017) - effective until December 31, 2017 Applicable Only for Non-WMP | C118: $/kWh | D118: ='Rates Summary'!$D$5 -> -0.0051
A119: Rate Rider for Disposition of Global Adjustment Account (2017) - effective until December 31, 2017 Applicable Only for Non-RPP Customers | C119: $/kWh | D119: ='Rates Summary'!$D$6 -> 0.0139
A120: Rate Rider for Disposition of 1580 Sub-account CBR Class B (2017) - effective until December 31, 2017 Applicable Only for Class B Non-WMP | C120: $/kWh | D120: ='Rates Summary'!$D$7 -> 0.0003
A123: MONTHLY RATES AND CHARGES - Regulatory Component
A125: Wholesale Market Service Rate | C125: $/kWh | D125: ='Rates Summary'!$D$25 -> 0.0032
A126: Capacity Based Response (CBR) Charge | C126: $/kWh | D126: ='Rates Summary'!$C$26 -> 0.0004
A127: Rural or Remote Electricity Rate Protection Charge (RRRP) | C127: $/kWh | D127: ='Rates Summary'!$D$28 -> 0.0013
A128: Ontario Electricity Support Program Charge (OESP) | C128: $/kWh | D128: ='Rates Summary'!$C$27 -> 0.0011
A129: Standard Supply Service - Administrative Charge (if applicable) | C129: $ | D129: ='Rates Summary'!$D$29 -> 0.25
A130: GENERAL SERVICE 50 TO 4,999 KW SERVICE CLASSIFICATION
A132: This classification refers to a non residential account whose monthly average peak demand is equal to or greater than, or is forecast to be equal to or greater than, 50 kW but less than 5,000 kW. Further servicing details are available in th distributor's Conditions of Service.
A133: APPLICATION
A135: The application of these rates and charges shall be in accordance with the Licence of the Distributor and any Code or Order of the Board, and amendments thereto as approved by the Board, which may be applicable to the administration of this schedule.
A136: No rates and charges for the distribution of electricity and charges to meet the costs of any work or service done or furnished for the purpose of the distribution of electricity shall be made except as permitted by this schedule, unless required by the Distributor's Licence or a Code or Order of the Board, and amendments thereto as approved by the Board, or as specified herein.
A137: Unless specifically noted, this schedule does not contain any charges for the electricity commodity, be it under the Regulated Price Plan, a contract with a retailer or the wholesale market price, as applicable. In addition, the charges in the MONTHLY RATES AND CHARGES - Regulatory Component of this schedule do not apply to a customer that is an embedded wholesale market participant.
A138: It should be noted that this schedule does not list any changes, assessments or credits that are required by law to be invoiced by a distributor and that are not subject to Board approval, such as the Debt Retirement Charge, the Global Adjustment, and the HST.
A140: MONTHLY RATES AND CHARGES - Delivery Component
A142: Service Charge | C142: $ | D142: ='Rates Summary'!$F$47 -> 107.49
A143: Distribution Volumetric Rate | C143: $/kW | D143: ='Rates Summary'!$F$59 -> 3.101
A144: Low Voltage Service Rate | C144: $/kW | D144: ='Rates Summary'!$E$21 -> 0.6753
A145: Retail Transmission Rate - Network Service Rate | C145: $/kW | D145: ='Rates Summary'!$E$23 -> 2.871
A146: Retail Transmission Rate - Line and Transformation Connection Service Rate | C146: $/kW | D146: ='Rates Summary'!$E$24 -> 2.3395
A147: Rate Rider for Disposition of Deferral/Variance Accounts (2017) - effective until December 31, 2017 | C147: $/kW | D147: ='Rates Summary'!$E$4 -> 1.0369
A148: Rate Rider for Disposition of Deferral/Variance Accounts Non-WMP (2017) - effective until December 31, 2017 Applicable Only for Non-WMP | C148: $/kW | D148: ='Rates Summary'!$E$5 -> -1.8545
A149: Rate Rider for Disposition of Global Adjustment Account (2017) - effective until December 31, 2017 Applicable Only for Non-RPP Customers | C149: $/kWh | D149: ='Rates Summary'!$E$6 -> 0.0139
A150: Rate Rider for Disposition of 1580 Sub-account CBR Class B (2017) - effective until December 31, 2017 Applicable Only for Class B Non-WMP | C150: $/kW | D150: ='Rates Summary'!$E$7 -> 0.0918
A153: MONTHLY RATES AND CHARGES - Regulatory Component
A155: Wholesale Market Service Rate | C155: $/kWh | D155: ='Rates Summary'!$E$25 -> 0.0032
A156: Capacity Based Response (CBR) Charge - Class B | C156: $/kWh | D156: ='Rates Summary'!$C$26 -> 0.0004
A157: Capacity Based Response (CBR) Charge - Class A - calculated using GA Peak Demand Factor allocation
A158: Rural or Remote Electricity Rate Protection Charge (RRRP) | C158: $/kWh | D158: ='Rates Summary'!$E$28 -> 0.0013
A159: Ontario Electricity Support Program Charge (OESP) | C159: $/kWh | D159: ='Rates Summary'!$C$27 -> 0.0011
A160: Standard Supply Service - Administrative Charge (if applicable) | C160: $ | D160: ='Rates Summary'!$E$29 -> 0.25
A161: LARGE USE SERVICE CLASSIFICATION
A163: This classification refers to an account whose monthly average peak demand is equal to or greater than, or is forecast to be equal to or greater than, 5,000 kW. Further servicing details are available in the distributor's Conditions of Service.
A164: APPLICATION
A166: The application of these rates and charges shall be in accordance with the Licence of the Distributor and any Code or Order of the Board, and amendments thereto as approved by the Board, which may be applicable to the administration of this schedule.
A167: No rates and charges for the distribution of electricity and charges to meet the costs of any work or service done or furnished for the purpose of the distribution of electricity shall be made except as permitted by this schedule, unless required by the Distributor's Licence or a Code or Order of the Board, and amendments thereto as approved by the Board, or as specified herein.
A168: Unless specifically noted, this schedule does not contain any charges for the electricity commodity, be it under the Regulated Price Plan, a contract with a retailer or the wholesale market price, as applicable. In addition, the charges in the MONTHLY RATES AND CHARGES - Regulatory Component of this schedule do not apply to a customer that is an embedded wholesale market participant.
A169: It should be noted that this schedule does not list any changes, assessments or credits that are required by law to be invoiced by a distributor and that are not subject to Board approval, such as the Debt Retirement Charge, the Global Adjustment, and the HST.
A171: MONTHLY RATES AND CHARGES - Delivery Component
A173: Service Charge | C173: $ | D173: ='Rates Summary'!$F$48 -> 5164
A174: Distribution Volumetric Rate | C174: $/kW | D174: ='Rates Summary'!$F$60 -> 1.216
A175: Low Voltage Service Rate | C175: $/kW | D175: ='Rates Summary'!$F$21 -> 0.8137
A176: Retail Transmission Rate - Network Service Rate | C176: $/kW | D176: ='Rates Summary'!$F$23 -> 3.4592
A177: Retail Transmission Rate - Line and Transformation Connection Service Rate | C177: $/kW | D177: ='Rates Summary'!$F$24 -> 2.8189
A178: Rate Rider for Disposition of Deferral/Variance Accounts (2017) - effective until December 31, 2017 | C178: $/kW | D178: ='Rates Summary'!$F$4 -> 1.4963
A179: Rate Rider for Disposition of Deferral/Variance Accounts Non-WMP (2017) - effective until December 31, 2017 Applicable Only for Non-WMP | C179: $/kW | D179: ='Rates Summary'!$F$5 -> -2.6933
A182: MONTHLY RATES AND CHARGES - Regulatory Component
A184: Wholesale Market Service Rate | C184: $/kWh | D184: ='Rates Summary'!$F$25 -> 0.0032
A185: Capacity Based Response (CBR) Charge - Class B | C185: $/kWh | D185: ='Rates Summary'!$C$26 -> 0.0004
A186: Capacity Based Response (CBR) Charge - Class A - calculated using GA Peak Demand Factor allocation
A187: Rural or Remote Electricity Rate Protection Charge (RRRP) | C187: $/kWh | D187: ='Rates Summary'!$F$28 -> 0.0013
A188: Ontario Electricity Support Program Charge (OESP) | C188: $/kWh | D188: ='Rates Summary'!$C$27 -> 0.0011
A189: Standard Supply Service - Administrative Charge (if applicable) | C189: $ | D189: ='Rates Summary'!$F$29 -> 0.25
A190: UNMETERED SCATTERED LOAD SERVICE CLASSIFICATION
A192: This classification refers to an account taking electricity at 750 volts or less whose monthly average peak demand is less than, or is forecast to be less than, 50 kW and the consumption is unmetered. Such connections include cable TV power packs, bus shelters, telephone booths, traffic lights, railway crossings, etc. The customer will provide detailed manufacturer information/documentation with regard to electrical demand/consumption of the proposed unmetered load. Further servicing details are available in the distributor's Conditons of Service.
A193: APPLICATION
A195: The application of these rates and charges shall be in accordance with the Licence of the Distributor and any Code or Order of the Board, and amendments thereto as approved by the Board, which may be applicable to the administration of this schedule.
A196: No rates and charges for the distribution of electricity and charges to meet the costs of any work or service done or furnished for the purpose of the distribution of electricity shall be made except as permitted by this schedule, unless required by the Distributor's Licence or a Code or Order of the Board, and amendments thereto as approved by the Board, or as specified herein.
A197: Unless specifically noted, this schedule does not contain any charges for the electricity commodity, be it under the Regulated Price Plan, a contract with a retailer or the wholesale market price, as applicable. In addition, the charges in the MONTHLY RATES AND CHARGES - Regulatory Component of this schedule do not apply to a customer that is an embedded wholesale market participant.
A198: It should be noted that this schedule does not list any changes, assessments or credits that are required by law to be invoiced by a distributor and that are not subject to Board approval, such as the Debt Retirement Charge, the Global Adjustment, and the HST.
A200: MONTHLY RATES AND CHARGES - Delivery Component
A202: Service Charge (per customer) | C202: $ | D202: ='Rates Summary'!$F$49 -> 5.95
A203: Distribution Volumetric Rate | C203: $/kWh | D203: ='Rates Summary'!$F$61 -> 0.0118
A204: Low Voltage Service Rate | C204: $/kWh | D204: ='Rates Summary'!$G$21 -> 0.0018
A205: Retail Transmission Rate - Network Service Rate | C205: $/kWh | D205: ='Rates Summary'!$G$23 -> 0.0073
A206: Retail Transmission Rate - Line and Transformation Connection Service Rate | C206: $/kWh | D206: ='Rates Summary'!$G$24 -> 0.0059
A207: Rate Rider for Disposition of Deferral/Variance Accounts (2017) - effective until December 31, 2017 | C207: $/kWh | D207: ='Rates Summary'!$G$4 -> 0.0027
A208: Rate Rider for Disposition of Deferral/Variance Accounts Non-WMP (2017) - effective until December 31, 2017 Applicable Only for Non-WMP | C208: $/kWh | D208: ='Rates Summary'!$G$5 -> -0.0051
A209: Rate Rider for Disposition of Global Adjustment Account (2017) - effective until December 31, 2017 Applicable Only for Non-RPP Customers | C209: $/kWh | D209: ='Rates Summary'!$G$6 -> 0.0139
A210: Rate Rider for Disposition of 1580 Sub-account CBR Class B (2017) - effective until December 31, 2017 Applicable Only for Class B Non-WMP | C210: $/kWh | D210: ='Rates Summary'!$G$7 -> 0.0003
A213: MONTHLY RATES AND CHARGES - Regulatory Component
A215: Wholesale Market Service Rate | C215: $/kWh | D215: ='Rates Summary'!$G$25 -> 0.0032
A216: Capacity Based Response (CBR) Charge - Class B | C216: $/kWh | D216: ='Rates Summary'!$C$26 -> 0.0004
A217: Rural or Remote Electricity Rate Protection Charge (RRRP) | C217: $/kWh | D217: ='Rates Summary'!$H$28 -> 0.0013
A218: Ontario Electricity Support Program Charge (OESP) | C218: $/kWh | D218: ='Rates Summary'!$C$27 -> 0.0011
A219: Standard Supply Service - Administrative Charge (if applicable) | C219: $ | D219: ='Rates Summary'!$H$29 -> 0.25
A220: STANDBY POWER SERVICE CLASSIFICATION
A222: This classification refers to an account that has Load Displacement Generation and requires Kingston Hydro Corporation to provide back-up service. Further servicing details are available in the distributors's Conditions of Service.
A223: APPLICATION
A225: The application of these rates and charges shall be in accordance with the Licence of the Distributor and any Code or Order of the Board, and amendments thereto as approved by the Board, which may be applicable to the administration of this schedule.
A226: No rates and charges for the distribution of electricity and charges to meet the costs of any work or service done or furnished for the purpose of the distribution of electricity shall be made except as permitted by this schedule, unless required by the Distributor's Licence or a Code or Order of the Board, and amendments thereto as approved by the Board, or as specified herein.
A227: Unless specifically noted, this schedule does not contain any charges for the electricity commodity, be it under the Regulated Price Plan, a contract with a retailer or the wholesale market price, as applicable. In addition, the charges in the MONTHLY RATES AND CHARGES - Regulatory Component of this schedule do not apply to a customer that is an embedded wholesale market participant.
A228: It should be noted that this schedule does not list any changes, assessments or credits that are required by law to be invoiced by a distributor and that are not subject to Board approval, such as the Debt Retirement Charge, the Global Adjustment, and the HST.
A230: MONTHLY RATES AND CHARGES - Delivery Component
A232: Standby Charges are to be applied to behind-the-meter generators that are not IESO market participants, FIT program participants, net-metered generators or retail generators, which have their own metering and settlement conventions as per regulation and legislation. Standby Charges are based on applicable applicable monthly General Service < 50kW, General Service > 50kW to 4,999 kW or Large Use Distribution Volumetric Charges, depending on the rate classification of the generator host facility. In the case where utility grade metering is not installed on the generator, Distribution Charges on the generator host facility’s load account will be determined by multiplying the peak hourly delivered load as measured by the load account meter in kW by applicable variable charges for the rate class. Standby Charges are determined by multiplying the nameplate capacity of the behind the meter generator in KW by applicable Standby Power charges in each month. This type of scenario is preferable for our customers if the generator is a “baseload” or “24-7-365” generator such as a fuel cell CHP unit or pressure-drop turbine unit. It may also be preferable to the customer where the cost of utility grade metering is high or the size of the generator is very small relative to the demand of the host load customer. In the case where utility grade metering is installed on the generator, Distribution Charges on the generator host facility’s load account will be determined by multiplying the peak hourly delivered load as measured by the load account meter in kW by applicable variable charges for the rate class. Standby Charges will be determined by multiplying the peak coincident combined kW delivered by both the distribution system and the generator, less the peak hourly delivered load in kW of the host customer facility as measured by the generator host load account meter. This type of scenario is preferable for customers who wish to use generators or electricity storage facilities to participate in provincial conservation initiatives such as the IESO’s Demand Response or Industrial Conservation Initiatives, or reduce kWh consumption to contribute towards Kingston Hydro’s 2020 Conservation Targets, but are not able to operate their generators “24-7-365”.
A235: MONTHLY RATES AND CHARGES - Regulatory Component
A238: STREET LIGHTING SERVICE CLASSIFICATION
A240: This classification refers to an account for roadway lighting with a Municipality, Regional Municipality, Ministry of Transportation and private roadway lighting operation, controlled by photo cells. The consumption for these customers will be based on the calculated connected load times the required lighting times established in the approved OEB street lighting load shape template. Further servicing details are available in the distributor's Conditions of Service.
A241: APPLICATION
A243: The application of these rates and charges shall be in accordance with the Licence of the Distributor and any Code or Order of the Board, and amendments thereto as approved by the Board, which may be applicable to the administration of this schedule.
A244: No rates and charges for the distribution of electricity and charges to meet the costs of any work or service done or furnished for the purpose of the distribution of electricity shall be made except as permitted by this schedule, unless required by the Distributor's Licence or a Code or Order of the Board, and amendments thereto as approved by the Board, or as specified herein.
A245: Unless specifically noted, this schedule does not contain any charges for the electricity commodity, be it under the Regulated Price Plan, a contract with a retailer or the wholesale market price, as applicable. In addition, the charges in the MONTHLY RATES AND CHARGES - Regulatory Component of this schedule do not apply to a customer that is an embedded wholesale market participant.
A246: It should be noted that this schedule does not list any changes, assessments or credits that are required by law to be invoiced by a distributor and that are not subject to Board approval, such as the Debt Retirement Charge, the Global Adjustment, and the HST.
A248: MONTHLY RATES AND CHARGES - Delivery Component
A250: Service Charge (per connection) | C250: $ | D250: ='Rates Summary'!$F$50 -> 1.05
A251: Distribution Volumetric Rate | C251: $/kW | D251: ='Rates Summary'!$F$62 -> 11.891
A252: Low Voltage Service Rate | C252: $/kW | D252: ='Rates Summary'!$H$21 -> 0.4878
A253: Retail Transmission Rate - Network Service Rate | C253: $/kW | D253: ='Rates Summary'!$H$23 -> 2.0738
A254: Retail Transmission Rate - Line and Transformation Connection Service Rate | C254: $/kW | D254: ='Rates Summary'!$H$24 -> 1.6898
A255: Rate Rider for Disposition of Deferral/Variance Accounts (2017) - effective until December 31, 2017 | C255: $/kW | D255: ='Rates Summary'!$H$4 -> 1.0375
A256: Rate Rider for Disposition of Deferral/Variance Accounts Non-WMP (2017) - effective until December 31, 2017 Applicable Only for Non-WMP | C256: $/kW | D256: ='Rates Summary'!$H$5 -> -1.9483
A257: Rate Rider for Disposition of Global Adjustment Account (2017) - effective until December 31, 2017 Applicable Only for Non-RPP Customers | C257: $/kWh | D257: ='Rates Summary'!$H$6 -> 0.0139
A258: Rate Rider for Disposition of 1580 Sub-account CBR Class B (2017) - effective until December 31, 2017 Applicable Only for Class B Non-WMP | C258: $/kW | D258: ='Rates Summary'!$H$7 -> 0.1178
A261: MONTHLY RATES AND CHARGES - Regulatory Component
A263: Wholesale Market Service Rate | C263: $/kWh | D263: ='Rates Summary'!$H$25 -> 0.0032
A264: Capacity Based Response (CBR) Charge | C264: $/kWh | D264: ='Rates Summary'!$C$26 -> 0.0004
A265: Rural or Remote Electricity Rate Protection Charge (RRRP) | C265: $/kWh | D265: ='Rates Summary'!$H$28 -> 0.0013
A266: Ontario Electricity Support Program Charge (OESP) | C266: $/kWh | D266: ='Rates Summary'!$C$27 -> 0.0011
A267: Standard Supply Service - Administrative Charge (if applicable) | C267: $ | D267: ='Rates Summary'!$H$29 -> 0.25
A268: MicroFIT SERVICE CLASSIFICATION
A270: This classification applies to an electricity generation facility contracted under the Ontario Power Authority's microFIT program and connected to the distributor's distribution system. Further servicing details are available in the distributor's Conditions of Service.
A271: APPLICATION
A273: The application of these rates and charges shall be in accordance with the Licence of the Distributor and any Code or Order of the Board, and amendments thereto as approved by the Board, which may be applicable to the administration of this schedule.
A274: No rates and charges for the distribution of electricity and charges to meet the costs of any work or service done or furnished for the purpose of the distribution of electricity shall be made except as permitted by this schedule, unless required by the Distributor's Licence or a Code or Order of the Board, and amendments thereto as approved by the Board, or as specified herein.
A275: Unless specifically noted, this schedule does not contain any charges for the electricity commodity, be it under the Regulated Price Plan, a contract with a retailer or the wholesale market price, as applicable. In addition, the charges in the MONTHLY RATES AND CHARGES - Regulatory Component of this schedule do not apply to a customer that is an embedded wholesale market participant.
A276: It should be noted that this schedule does not list any changes, assessments or credits that are required by law to be invoiced by a distributor and that are not subject to Board approval, such as the Debt Retirement Charge, the Global Adjustment, and the HST.
... 57 more rows

Sheet App.2-FA Proposed REG Inves (2 (hidden)
F1: File Number: | G1: =EBNUMBER -> 
F2: Exhibit:
F3: Tab:
F4: Schedule:
F5: Page:
F7: Date:
A9: Appendix 2-FA
A10: Renewable Generation Connection Investment Summary (over the rate setting period)
A12: Enter the details of the Renewable Generation Connection projects as described in Section 2.5.2.5 of the Filing Requirements.
A13: All costs entered on this page will be transferred to the appropriate cells in the appendices that follow.
A14: For Part A, Renewable Enabling Improvements (REI), these amounts will be transferred to Appendix 2 - FB
A15: For Part B, Expansions, these amounts will be transferred to Appendix 2 - FC
A17: If there are more than five projects proposed to be in-service in a certain year, please amend the tables below and ensure that the formulae for the Total Amounts in any given rate year are updated.
A18: Based on the current methodology and allocation, amounts allocated represent 6% for REI Connection Investments and 17% for Expansion Investments. (pg 15, EB-2009-0349)
A21: Part A
A22: REI Investments (Direct Benefit at 6%) | C22: 2015 | D22: =C22+1 -> 2016 | E22: =D22+1 -> 2017 | F22: 2018 | G22: 2019
A23: Project 1
A24: Name: REI Connection Project
A25: Capital Costs | C25: 1000 | D25: 0 | E25: 1000 | F25: 0 | G25: 0
A26: OM&A (Start-Up) | C26: 0 | D26: 0 | E26: 0 | F26: 0 | G26: 0
A27: OM&A (Ongoing) | C27: 0 | D27: 0 | E27: 0 | F27: 0 | G27: 0
A29: Project 2
A30: Name: REI Connection Project
A31: Capital Costs | C31: 0 | D31: 0 | E31: 0 | F31: 0 | G31: 0
A32: OM&A (Start-Up) | C32: 0 | D32: 0 | E32: 0 | F32: 0 | G32: 0
A33: OM&A (Ongoing) | C33: 0 | D33: 0 | E33: 0 | F33: 0 | G33: 0
A35: Project 3
A36: Name: REI Connection Project
A37: Capital Costs | C37: 0 | D37: 0 | E37: 0 | F37: 0 | G37: 0
A38: OM&A (Start-Up) | C38: 0 | D38: 0 | E38: 0 | F38: 0 | G38: 0
A39: OM&A (Ongoing) | C39: 0 | D39: 0 | E39: 0 | F39: 0 | G39: 0
A41: Project 4
A42: Name: REI Connection Project
A43: Capital Costs | C43: 0 | D43: 0 | E43: 0 | F43: 0 | G43: 0
A44: OM&A (Start-Up) | C44: 0 | D44: 0 | E44: 0 | F44: 0 | G44: 0
A45: OM&A (Ongoing) | C45: 0 | D45: 0 | E45: 0 | F45: 0 | G45: 0
A47: Project 5
A48: Name: REI Connection Project
A49: Capital Costs | C49: 0 | D49: 0 | E49: 0 | F49: 0 | G49: 0
A50: OM&A (Start-Up) | C50: 0 | D50: 0 | E50: 0 | F50: 0 | G50: 0
A51: OM&A (Ongoing) | C51: 0 | D51: 0 | E51: 0 | F51: 0 | G51: 0
A53: Total Capital Costs | C53: =SUM(C49,C43,C37,C31,C25) -> 1000 | D53: =SUM(D49,D43,D37,D31,D25) -> 0 | E53: 1000 | F53: 0 | G53: 0
A54: Total OM&A (Start-Up) | C54: =SUM(C50,C44,C38,C32,C26) -> 0 | D54: 0 | E54: 0 | F54: 0 | G54: 0
A55: Total OM&A (Ongoing) | C55: =SUM(C51,C45,C39,C33,C27) -> 0 | D55: 0 | E55: 0 | F55: 0 | G55: 0
A58: Part B
A59: Expansion Investments (Direct Benefit at 17%) | C59: 2015 | D59: =C59+1 -> 2016 | E59: =D59+1 -> 2017 | F59: 2018 | G59: 2019
A60: Project 1
A61: Name: Expansion Connection Project
A62: Capital Costs | C62: 0 | D62: 0 | E62: 0 | F62: 0 | G62: 0
A63: OM&A (Start-Up) | C63: 0 | D63: 0 | E63: 0 | F63: 0 | G63: 0
A64: OM&A (Ongoing) | C64: 0 | D64: 0 | E64: 0 | F64: 0 | G64: 0
A66: Project 2
A67: Name: Expansion Connection Project
A68: Capital Costs | C68: 0 | D68: 0 | E68: 0 | F68: 0 | G68: 0
A69: OM&A (Start-Up) | C69: 0 | D69: 0 | E69: 0 | F69: 0 | G69: 0
A70: OM&A (Ongoing) | C70: 0 | D70: 0 | E70: 0 | F70: 0 | G70: 0
A72: Project 3
A73: Name: Expansion Connection Project
A74: Capital Costs | C74: 0 | D74: 0 | E74: 0 | F74: 0 | G74: 0
A75: OM&A (Start-Up) | C75: 0 | D75: 0 | E75: 0 | F75: 0 | G75: 0
A76: OM&A (Ongoing) | C76: 0 | D76: 0 | E76: 0 | F76: 0 | G76: 0
A78: Project 4
A79: Name: Expansion Connection Project
A80: Capital Costs | C80: 0 | D80: 0 | E80: 0 | F80: 0 | G80: 0
A81: OM&A (Start-Up) | C81: 0 | D81: 0 | E81: 0 | F81: 0 | G81: 0
A82: OM&A (Ongoing) | C82: 0 | D82: 0 | E82: 0 | F82: 0 | G82: 0
A84: Project 5
A85: Name: Expansion Connection Project
A86: Capital Costs | C86: 0 | D86: 0 | E86: 0 | F86: 0 | G86: 0
A87: OM&A (Start-Up) | C87: 0 | D87: 0 | E87: 0 | F87: 0 | G87: 0
A88: OM&A (Ongoing) | C88: 0 | D88: 0 | E88: 0 | F88: 0 | G88: 0
A90: Total Capital Costs | C90: =SUM(C86,C80,C74,C68,C62) -> 0 | D90: =SUM(D86,D80,D74,D68,D62) -> 0 | E90: 0 | F90: 0 | G90: 0
A91: Total OM&A (Start-Up) | C91: =SUM(C87,C81,C75,C69,C63) -> 0 | D91: 0 | E91: 0 | F91: 0 | G91: 0
A92: Total OM&A (Ongoing) | C92: =SUM(C88,C82,C76,C70,C64) -> 0 | D92: 0 | E92: 0 | F92: 0 | G92: 0

Sheet App.2-FB Calc of REG Improv (2 (hidden)
F1: File Number: | G1: =EBNUMBER -> 
F2: Exhibit:
F3: Tab:
F4: Schedule:
F5: Page:
F7: Date:
A9: Appendix 2-FB
A10: Calculation of Renewable Generation Connection Direct Benefits/Provincial Amount: Renewable Enabling Improvement Investments
A12: This table will calculate the distributor/provincial shares of the investments entered in Part A of Appendix 2-FA.
A13: Enter values in green shaded cells: WCA percentage, debt percentages, interest rates, kWh, tax rates, amortization period, CCA Class and percentage.
A14: Rate Riders are not calculated for Test Year as these assets and costs are already in the distributor's rate base/revenue requirement.
D17: 2015 Test Year | G17: 2016 | J17: 2017 | K17: 2016 | M17: 2018 | P17: 2019
E18: Direct Benefit | F18: Provincial | H18: Direct Benefit | I18: Provincial | K18: Direct Benefit | L18: Provincial | N18: Direct Benefit | O18: Provincial | Q18: Direct Benefit | R18: Provincial
D19: Total | E19: 0.06 | F19: 0.94 | G19: Total | H19: 0.06 | I19: 0.94 | J19: Total | K19: 0.06 | L19: 0.94 | M19: Total | N19: 0.06 | O19: 0.94 | P19: Total | Q19: 0.06 | R19: 0.94
A20: Net Fixed Assets (average) | D20: =D82 -> 490 | E20: =D20*E19 -> 29.4 | F20: =D20*F19 -> 460.6 | G20: =E82 -> 960 | H20: =G20*H19 -> 57.6 | I20: =G20*I19 -> 902.4 | J20: =F82 -> 1410 | K20: =J20*K19 -> 84.6 | L20: =J20*L19 -> 1325.4 | M20: =G82 -> 1840 | N20: =M20*N19 -> 110.4 | O20: =M20*O19 -> 1729.6 | P20: =H82 -> 1760 | Q20: =P20*Q19 -> 105.6 | R20: =P20*R19 -> 1654.4
A21: Incremental OM&A (on-going, N/A for Provincial Recovery) | D21: ='App.2-FA Proposed REG Inves (2'!C55 -> 0 | E21: =D21 -> 0 | G21: ='App.2-FA Proposed REG Inves (2'!D55 -> 0 | H21: =G21 -> 0 | J21: ='App.2-FA Proposed REG Inves (2'!E55 -> 0 | K21: =J21 -> 0 | M21: ='App.2-FA Proposed REG Inves (2'!F55 -> 0 | N21: =M21 -> 0 | P21: ='App.2-FA Proposed REG Inves (2'!G55 -> 0 | Q21: =P21 -> 0
A22: Incremental OM&A (start-up, applicable for Provincial Recovery) | D22: ='App.2-FA Proposed REG Inves (2'!C54 -> 0 | E22: =D22*E19 -> 0 | F22: =D22*F19 -> 0 | G22: ='App.2-FA Proposed REG Inves (2'!D54 -> 0 | H22: =G22*H19 -> 0 | I22: =G22*I19 -> 0 | J22: ='App.2-FA Proposed REG Inves (2'!E54 -> 0 | K22: =J22*K19 -> 0 | L22: =J22*L19 -> 0 | M22: ='App.2-FA Proposed REG Inves (2'!F54 -> 0 | N22: =M22*N19 -> 0 | O22: =M22*O19 -> 0 | P22: ='App.2-FA Proposed REG Inves (2'!G54 -> 0 | Q22: =P22*Q19 -> 0 | R22: =P22*R19 -> 0
A23: WCA | B23: 0.13 | E23: =(E21+E22)*$B$23 -> 0 | F23: =F22*$B$23 -> 0 | H23: =(H21+H22)*$B$23 -> 0 | I23: =I22*$B$23 -> 0 | K23: =(K21+K22)*$B$23 -> 0 | L23: =L22*$B$23 -> 0 | N23: =(N21+N22)*$B$23 -> 0 | O23: =O22*$B$23 -> 0 | Q23: =(Q21+Q22)*$B$23 -> 0 | R23: =R22*$B$23 -> 0
A24: Rate Base | E24: =SUM(E20+E23) -> 29.4 | F24: =SUM(F20+F23) -> 460.6 | H24: =SUM(H20+H23) -> 57.6 | I24: =SUM(I20+I23) -> 902.4 | K24: =SUM(K20+K23) -> 84.6 | L24: =SUM(L20+L23) -> 1325.4 | N24: =SUM(N20+N23) -> 110.4 | O24: =SUM(O20+O23) -> 1729.6 | Q24: =SUM(Q20+Q23) -> 105.6 | R24: =SUM(R20+R23) -> 1654.4
A27: Deemed ST Debt | B27: 0.04 | E27: =E24*$B$27 -> 1.176 | F27: =F24*$B$27 -> 18.424 | H27: =H24*$B$27 -> 2.304 | I27: =I24*$B$27 -> 36.096 | K27: =K24*$B$27 -> 3.384 | L27: =L24*$B$27 -> 53.016 | N27: =N24*$B$27 -> 4.416 | O27: =O24*$B$27 -> 69.184 | Q27: =Q24*$B$27 -> 4.224 | R27: =R24*$B$27 -> 66.176
A28: Deemed LT Debt | B28: 0.56 | E28: =E24*$B$28 -> 16.464 | F28: =F24*$B$28 -> 257.936 | H28: =H24*$B$28 -> 32.256 | I28: =I24*$B$28 -> 505.344 | K28: =K24*$B$28 -> 47.376 | L28: =L24*$B$28 -> 742.224 | N28: =N24*$B$28 -> 61.824 | O28: =O24*$B$28 -> 968.576 | Q28: =Q24*$B$28 -> 59.136 | R28: =R24*$B$28 -> 926.464
A29: Deemed Equity | B29: 0.4 | E29: =E24*$B$29 -> 11.76 | F29: =F24*$B$29 -> 184.24 | H29: =H24*$B$29 -> 23.04 | I29: =I24*$B$29 -> 360.96 | K29: =K24*$B$29 -> 33.84 | L29: =L24*$B$29 -> 530.16 | N29: =N24*$B$29 -> 44.16 | O29: =O24*$B$29 -> 691.84 | Q29: =Q24*$B$29 -> 42.24 | R29: =R24*$B$29 -> 661.76
A31: ST Interest | B31: 0.024 | E31: =E27*$B31 -> 0.028224 | F31: =F27*$B31 -> 0.442176 | H31: =H27*$B31 -> 0.055296 | I31: =I27*$B31 -> 0.866304 | K31: =K27*$B31 -> 0.081216 | L31: =L27*$B31 -> 1.272384 | N31: =N27*$B31 -> 0.105984 | O31: =O27*$B31 -> 1.660416 | Q31: =Q27*$B31 -> 0.101376 | R31: =R27*$B31 -> 1.588224
A32: LT Interest | B32: 0.056 | E32: =E28*$B32 -> 0.921984 | F32: 14.444416 | H32: =H28*$B32 -> 1.806336 | I32: 28.299264 | K32: =K28*$B32 -> 2.653056 | L32: 41.564544 | N32: =N28*$B32 -> 3.462144 | O32: 54.240256 | Q32: =Q28*$B32 -> 3.311616 | R32: 51.881984
A33: ROE | B33: 0.085 | E33: 0.9996 | F33: 15.6604 | H33: 1.9584 | I33: 30.6816 | K33: 2.8764 | L33: 45.0636 | N33: 3.7536 | O33: 58.8064 | Q33: 3.5904 | R33: 56.2496
A34: Cost of Capital Total | E34: =SUM(E31:E33) -> 1.949808 | F34: =SUM(F31:F33) -> 30.546992 | H34: =SUM(H31:H33) -> 3.820032 | I34: =SUM(I31:I33) -> 59.847168 | K34: =SUM(K31:K33) -> 5.610672 | L34: =SUM(L31:L33) -> 87.900528 | N34: =SUM(N31:N33) -> 7.321728 | O34: =SUM(O31:O33) -> 114.707072 | Q34: =SUM(Q31:Q33) -> 7.003392 | R34: =SUM(R31:R33) -> 109.719808
A36: OM&A | E36: =E21+E22 -> 0 | F36: =F22 -> 0 | H36: =H21+H22 -> 0 | I36: =I22 -> 0 | K36: =K21+K22 -> 0 | L36: =L22 -> 0 | N36: =N21+N22 -> 0 | O36: =O22 -> 0 | Q36: =Q21+Q22 -> 0 | R36: =R22 -> 0
A37: Amortization | D37: =D77 -> 20 | E37: =D37*E$19 -> 1.2 | F37: =D37*F$19 -> 18.8 | G37: =E76+E77 -> 40 | H37: =G37*H$19 -> 2.4 | I37: =G37*I$19 -> 37.6 | J37: =F76+F77 -> 60 | K37: =J37*K$19 -> 3.6 | L37: =J37*L$19 -> 56.4 | M37: =G76+G77 -> 80 | N37: =M37*N$19 -> 4.8 | O37: =M37*O$19 -> 75.2 | P37: =H76+H77 -> 80 | Q37: =P37*Q$19 -> 4.8 | R37: =P37*R$19 -> 75.2
A38: Grossed-up PILs | E38: =E65 -> 0 | F38: =F65 -> 0 | H38: =H65 -> 0 | I38: =I65 -> 0 | K38: =K65 -> 0 | L38: =L65 -> 0 | N38: =N65 -> 0 | O38: =O65 -> 0 | Q38: =Q65 -> 0 | R38: =R65 -> 0
A40: Revenue Requirement | E40: =SUM(E34:E38) -> 3.149808 | F40: =SUM(F34:F38) -> 49.346992 | H40: =SUM(H34:H38) -> 6.220032 | I40: =SUM(I34:I38) -> 97.447168 | K40: =SUM(K34:K38) -> 9.210672 | L40: =SUM(L34:L38) -> 144.300528 | N40: =SUM(N34:N38) -> 12.121728 | O40: =SUM(O34:O38) -> 189.907072 | Q40: =SUM(Q34:Q38) -> 11.803392 | R40: =SUM(R34:R38) -> 184.919808
A43: Provincial Rate Protection | F43: =F40 -> 49.346992 | I43: =I40 -> 97.447168 | L43: =L40 -> 144.300528 | O43: =O40 -> 189.907072 | R43: =R40 -> 184.919808
A45: Monthly Amount Paid by IESO | F45: =F43/12 -> 4.112249333 | I45: =I43/12 -> 8.120597333 | L45: =L43/12 -> 12.025044 | O45: =O43/12 -> 15.82558933 | R45: =R43/12 -> 15.409984
A47: Note 1: The difference between the actual costs of approved eligible investments and revenue received from the IESO should be recorded in a variance account. The Board may provide
A48: regulatory accounting guidance regarding a variance account either in an individual proceeding or on a generic basis.
A49: Note 2: For the 2014 Test Year, Costs and Revenues of the Direct Benefit are to be included in the test year applicant Rate Base and Revenues.
A51: PILs Calculation
E52: 2015 | H52: =E52+1 -> 2016 | K52: =H52+1 -> 2017 | N52: =K52+1 -> 2018 | Q52: =N52+1 -> 2019
A53: Income Tax | E53: Direct Benefit | F53: Provincial | H53: Direct Benefit | I53: Provincial | K53: Direct Benefit | L53: Provincial | N53: Direct Benefit | O53: Provincial | Q53: Direct Benefit | R53: Provincial
M54: Total | P54: Total
A55: Net Income - ROE on Rate Base | E55: =E33 -> 0.9996 | F55: =F33 -> 15.6604 | H55: =H33 -> 1.9584 | I55: =I33 -> 30.6816 | K55: =K33 -> 2.8764 | L55: =L33 -> 45.0636 | N55: =N33 -> 3.7536 | O55: =O33 -> 58.8064 | Q55: =Q33 -> 3.5904 | R55: =R33 -> 56.2496
A56: Amortization (6% DB and 94% P) | E56: =E37 -> 1.2 | F56: =F37 -> 18.8 | H56: =H37 -> 2.4 | I56: =I37 -> 37.6 | K56: =K37 -> 3.6 | L56: =L37 -> 56.4 | N56: =N37 -> 4.8 | O56: =O37 -> 75.2 | Q56: =Q37 -> 4.8 | R56: =R37 -> 75.2
A57: CCA (6% DB and 94% P) | E57: =-D94*E$19 -> -2.4 | F57: =-D94*F$19 -> -37.6 | H57: =-E94*H$19 -> -4.608 | I57: =-E94*I$19 -> -72.192 | K57: =-F94*K$19 -> -4.23936 | L57: =-F94*L$19 -> -66.41664 | N57: =-G94*N$19 -> -3.9002112 | O57: =-G94*O$19 -> -61.1033088 | Q57: =-H94*Q$19 -> -3.588194304 | R57: =-H94*R$19 -> -56.2150441
A58: Taxable income | E58: =SUM(E55:E57) -> -0.2004 | F58: =SUM(F55:F57) -> -3.1396 | H58: =SUM(H55:H57) -> -0.2496 | I58: =SUM(I55:I57) -> -3.9104 | K58: =SUM(K55:K57) -> 2.23704 | L58: =SUM(L55:L57) -> 35.04696 | N58: =SUM(N55:N57) -> 4.6533888 | O58: =SUM(O55:O57) -> 72.9030912 | Q58: =SUM(Q55:Q57) -> 4.802205696 | R58: =SUM(R55:R57) -> 75.2345559
A60: Tax Rate (to be entered)
A62: Income Taxes Payable | E62: =E58*E60 -> 0 | F62: =F58*F60 -> 0 | H62: =H58*H60 -> 0 | I62: =I58*I60 -> 0 | K62: =K58*K60 -> 0 | L62: =L58*L60 -> 0 | N62: =N58*N60 -> 0 | O62: =O58*O60 -> 0 | Q62: =Q58*Q60 -> 0 | R62: =R58*R60 -> 0
A63: Gross Up
A64: Income Taxes Payable | E64: =E62/(1-E60) -> 0 | F64: =F62/(1-F60) -> 0 | H64: =H62/(1-H60) -> 0 | I64: =I62/(1-I60) -> 0 | K64: =K62/(1-K60) -> 0 | L64: =L62/(1-L60) -> 0 | N64: =N62/(1-N60) -> 0 | O64: =O62/(1-O60) -> 0 | Q64: =Q62/(1-Q60) -> 0 | R64: =R62/(1-R60) -> 0
A65: Grossed Up PILs | E65: =SUM(E64:E64) -> 0 | F65: =SUM(F64:F64) -> 0 | H65: =SUM(H64:H64) -> 0 | I65: =SUM(I64:I64) -> 0 | K65: =SUM(K64:K64) -> 0 | L65: =SUM(L64:L64) -> 0 | N65: =SUM(N64:N64) -> 0 | O65: =SUM(O64:O64) -> 0 | Q65: =SUM(Q64:Q64) -> 0 | R65: =SUM(R64:R64) -> 0
D68: 2015 | E68: =D68+1 -> 2016 | F68: =E68+1 -> 2017 | G68: 2018 | H68: 2019
A69: Net Fixed Assets
B70: Enter applicable amortization in years: | C70: 25
A71: Opening Gross Fixed Assets | E71: =D73 -> 1000 | F71: =E73 -> 1000 | G71: =F73 -> 2000 | H71: =G73 -> 2000
A72: Gross Capital Additions | D72: ='App.2-FA Proposed REG Inves (2'!C53 -> 1000 | E72: ='App.2-FA Proposed REG Inves (2'!D53 -> 0 | F72: ='App.2-FA Proposed REG Inves (2'!E53 -> 1000 | G72: ='App.2-FA Proposed REG Inves (2'!F53 -> 0 | H72: ='App.2-FA Proposed REG Inves (2'!G53 -> 0
A73: Closing Gross Fixed Assets | D73: =SUM(D71:D72) -> 1000 | E73: =SUM(E71:E72) -> 1000 | F73: 2000 | G73: 2000 | H73: 2000
A75: Opening Accumulated Amortization | E75: =D78 -> 20 | F75: =E78 -> 60 | G75: =F78 -> 120 | H75: =G78 -> 200
A76: Current Year Amortization (before additions) | E76: =IF(ISERROR(E71/$C$70), 0, E71/$C$70) -> 40 | F76: =IF(ISERROR(F71/$C$70), 0, F71/$C$70) -> 40 | G76: =IF(ISERROR(G71/$C$70), 0, G71/$C$70) -> 80 | H76: =IF(ISERROR(H71/$C$70), 0, H71/$C$70) -> 80
A77: Additions (half year) | D77: =D72/C70/2 -> 20 | E77: =E72/C70/2 -> 0 | F77: =F72/C70/2 -> 20 | G77: =G72/C70/2 -> 0 | H77: =H72/C70/2 -> 0
A78: Closing Accumulated Amortization | D78: =SUM(D75+D77) -> 20 | E78: =SUM(E75:E77) -> 60 | F78: =SUM(F75:F77) -> 120 | G78: =SUM(G75:G77) -> 200 | H78: =SUM(H75:H77) -> 280
A80: Opening Net Fixed Assets | D80: =D71-D75 -> 0 | E80: =D81 -> 980 | F80: =E81 -> 940 | G80: =F81 -> 1880 | H80: =G81 -> 1800
A81: Closing Net Fixed Assets | D81: =D73-D78 -> 980 | E81: =E73-E78 -> 940 | F81: =F73-F78 -> 1880 | G81: =G73-G78 -> 1800 | H81: =H73-H78 -> 1720
A82: Average Net Fixed Assets | D82: =SUM(D80:D81)/2 -> 490 | E82: =SUM(E80:E81)/2 -> 960 | F82: =SUM(F80:F81)/2 -> 1410 | G82: =SUM(G80:G81)/2 -> 1840 | H82: =SUM(H80:H81)/2 -> 1760
A84: UCC for PILs Calculation
D85: 2015 | E85: =D85+1 -> 2016 | F85: =E85+1 -> 2017 | G85: 2018 | H85: 2019
A87: Opening UCC | E87: =D95 -> 960 | F87: =E95 -> 883.2 | G87: =F95 -> 812.544 | H87: =G95 -> 747.54048
A88: Capital Additions (from Appendix 2-FA) | D88: =D72 -> 1000 | E88: ='App.2-FA Proposed REG Inves (2'!D31 -> 0 | F88: ='App.2-FA Proposed REG Inves (2'!E31 -> 0 | G88: ='App.2-FA Proposed REG Inves (2'!F31 -> 0 | H88: ='App.2-FA Proposed REG Inves (2'!G31 -> 0
A89: UCC Before Half Year Rule | D89: =SUM(D87:D88) -> 1000 | E89: =SUM(E87:E88) -> 960 | F89: =SUM(F87:F88) -> 883.2 | G89: =SUM(G87:G88) -> 812.544 | H89: =SUM(H87:H88) -> 747.54048
A90: Half Year Rule (1/2 Additions - Disposals) | D90: =D88/2 -> 500 | E90: =E88/2 -> 0 | F90: =F88/2 -> 0 | G90: =G88/2 -> 0 | H90: =H88/2 -> 0
A91: Reduced UCC | D91: =D89-D90 -> 500 | E91: =E89-E90 -> 960 | F91: =F89-F90 -> 883.2 | G91: =G89-G90 -> 812.544 | H91: =H89-H90 -> 747.54048
A92: CCA Rate Class (to be entered) | C92: 47 | D92: =C92 -> 47 | E92: =C92 -> 47 | F92: =C92 -> 47 | G92: =C92 -> 47 | H92: =C92 -> 47
A93: CCA Rate (to be entered) | C93: 0.08 | D93: =C93 -> 0.08 | E93: =C93 -> 0.08 | F93: =C93 -> 0.08 | G93: =C93 -> 0.08 | H93: =C93 -> 0.08
A94: CCA | D94: =D91*D93 -> 40 | E94: =E91*E93 -> 76.8 | F94: 70.656 | G94: 65.00352 | H94: =H91*H93 -> 59.8032384
A95: Closing UCC | D95: =D89-D94 -> 960 | E95: =E89-E94 -> 883.2 | F95: =F89-F94 -> 812.544 | G95: =G89-G94 -> 747.54048 | H95: =H89-H94 -> 687.7372416

Sheet App.2-FC Calc of REG Expans (2 (hidden)
E1: File Number: | F1: =EBNUMBER -> 
E2: Exhibit:
E3: Tab:
E4: Schedule:
E5: Page:
E7: Date:
A9: Appendix 2-FC
A10: Calculation of Renewable Generation Connection Direct Benefits/Provincial Amount: Renewable Expansion Investments
A12: This table will calculate the distributor/provincial shares of the investments entered in Part B of Appendix 2-FA.
A13: Enter values in green shaded cells: WCA percentage, debt percentages, interest rates, kWh, tax rates, amortization period, CCA Class and percentage.
A14: Rate Riders are not calculated for Test Year as these assets and costs are already in the distributors rate base.
D17: 2014 Test Year | G17: 2015 | J17: 2016 | K17: 2016 | M17: 2017 | P17: 2018
E18: Direct Benefit | F18: Provincial | H18: Direct Benefit | I18: Provincial | K18: Direct Benefit | L18: Provincial | N18: Direct Benefit | O18: Provincial | Q18: Direct Benefit | R18: Provincial
D19: Total | E19: 0.17 | F19: 0.83 | G19: Total | H19: 0.17 | I19: 0.83 | J19: Total | K19: 0.17 | L19: 0.83 | M19: Total | N19: 0.17 | O19: 0.83 | P19: Total | Q19: 0.17 | R19: 0.83
A20: Net Fixed Assets (average) | D20: =D81 -> 0 | E20: =D20*E19 -> 0 | F20: =D20*F19 -> 0 | G20: =E81 -> 0 | H20: =G20*H19 -> 0 | I20: =G20*I19 -> 0 | J20: =F81 -> 0 | K20: =J20*K19 -> 0 | L20: =J20*L19 -> 0 | M20: =G81 -> 0 | N20: =M20*N19 -> 0 | O20: =M20*O19 -> 0 | P20: =H81 -> 0 | Q20: =P20*Q19 -> 0 | R20: =P20*R19 -> 0
A21: Incremental OM&A (on-going, N/A for Provincial Recovery) | D21: ='App.2-FA Proposed REG Inves (2'!C$92 -> 0 | E21: =D21 -> 0 | G21: ='App.2-FA Proposed REG Inves (2'!D$92 -> 0 | H21: =G21 -> 0 | J21: ='App.2-FA Proposed REG Inves (2'!E$92 -> 0 | K21: =J21 -> 0 | M21: ='App.2-FA Proposed REG Inves (2'!F$92 -> 0 | N21: =M21 -> 0 | P21: ='App.2-FA Proposed REG Inves (2'!G$92 -> 0 | Q21: =P21 -> 0
A22: Incremental OM&A (start-up, applicable for Provincial Recovery) | D22: ='App.2-FA Proposed REG Inves (2'!C$91 -> 0 | E22: =D22*E19 -> 0 | F22: =D22*F19 -> 0 | G22: ='App.2-FA Proposed REG Inves (2'!D$91 -> 0 | H22: =G22*H19 -> 0 | I22: =G22*I19 -> 0 | J22: ='App.2-FA Proposed REG Inves (2'!E$91 -> 0 | K22: =J22*K19 -> 0 | L22: =J22*L19 -> 0 | M22: ='App.2-FA Proposed REG Inves (2'!F$91 -> 0 | N22: =M22*N19 -> 0 | O22: =M22*O19 -> 0 | P22: ='App.2-FA Proposed REG Inves (2'!G$91 -> 0 | Q22: =P22*Q19 -> 0 | R22: =P22*R19 -> 0
A23: WCA | E23: =(E21+E22)*$B$23 -> 0 | F23: =F22*$B$23 -> 0 | H23: =(H21+H22)*$B$23 -> 0 | I23: =I22*$B$23 -> 0 | K23: =(K21+K22)*$B$23 -> 0 | L23: =L22*$B$23 -> 0 | N23: =(N21+N22)*$B$23 -> 0 | O23: =O22*$B$23 -> 0 | Q23: =(Q21+Q22)*$B$23 -> 0 | R23: =R22*$B$23 -> 0
A24: Rate Base | E24: =SUM(E20+E23) -> 0 | F24: =SUM(F20+F23) -> 0 | H24: =SUM(H20+H23) -> 0 | I24: =SUM(I20+I23) -> 0 | K24: =SUM(K20+K23) -> 0 | L24: =SUM(L20+L23) -> 0 | N24: =SUM(N20+N23) -> 0 | O24: =SUM(O20+O23) -> 0 | Q24: =SUM(Q20+Q23) -> 0 | R24: =SUM(R20+R23) -> 0
A27: Deemed ST Debt | E27: =E24*$B$27 -> 0 | F27: =F24*$B$27 -> 0 | H27: =H24*$B$27 -> 0 | I27: =I24*$B$27 -> 0 | K27: =K24*$B$27 -> 0 | L27: =L24*$B$27 -> 0 | N27: =N24*$B$27 -> 0 | O27: =O24*$B$27 -> 0 | Q27: =Q24*$B$27 -> 0 | R27: =R24*$B$27 -> 0
A28: Deemed LT Debt | E28: =E24*$B$28 -> 0 | F28: =F24*$B$28 -> 0 | H28: =H24*$B$28 -> 0 | I28: =I24*$B$28 -> 0 | K28: =K24*$B$28 -> 0 | L28: =L24*$B$28 -> 0 | N28: =N24*$B$28 -> 0 | O28: =O24*$B$28 -> 0 | Q28: =Q24*$B$28 -> 0 | R28: =R24*$B$28 -> 0
A29: Deemed Equity | E29: =E24*$B$29 -> 0 | F29: =F24*$B$29 -> 0 | H29: =H24*$B$29 -> 0 | I29: =I24*$B$29 -> 0 | K29: =K24*$B$29 -> 0 | L29: =L24*$B$29 -> 0 | N29: =N24*$B$29 -> 0 | O29: =O24*$B$29 -> 0 | Q29: =Q24*$B$29 -> 0 | R29: =R24*$B$29 -> 0
